Workbook

Sheet Index
A1: Victorian Population Health Survey | C1: Change vs 2015
A2: Time series data 2015-17 | C2: 2016 | F2: 2017
A3: Selected risk factors and chronic diseases | C3: M | D3: F | E3: P | F3: M | G3: F | H3: P
A4: 1 | B4: Proportion (%) of adult population (18+ years), by body mass index a category and sex, Victoria, 2015-17 | C4: ù | D4: ù | E4: ù | F4: ù | G4: ù | H4: ù
A5: 2 | B5: Proportion (%) of adult population (18+ years), by compliance with physical activity guidelines, by sex, Victoria, 2015-17 | C5: ù | D5: ù | E5: ù | F5: R | G5: ù | H5: R
A6: 3 | B6: Proportion (%) of adult population (18+ years), by compliance with fruit and vegetable consumption guidelines and sex, Victoria, 2015-17 | C6: ù | D6: Q | E6: ù | F6: ù | G6: ù | H6: ù
A7: 4 | B7: Proportion (%) of adult population (18+ years), by smoking status and sex, Victoria, 2015-17 | C7: ù | D7: ù | E7: ù | F7: ù | G7: R | H7: R
A8: 5 | B8: Proportion (%) of adult population (18+ years), by smoking frequency and sex, Victoria, 2015-17 | C8: ù | D8: ù | E8: ù | F8: ù | G8: ù | H8: ù
A9: 6 | B9: Proportion (%) of adult population (18+ years), by lifetime risk of alcohol-related harm and sex, Victoria, 2015-17 | C9: ù | D9: ù | E9: ù | F9: ù | G9: ù | H9: ù
A10: 7 | B10: Proportion (%) of adult population (18+ years), by risk of alcohol-related injury from a single occasion of drinking and sex, Victoria, 2015-17 | C10: ù | D10: ù | E10: ù | F10: ù | G10: ù | H10: ù
A11: 8 | B11: Proportion (%) of adult population (18+ years), by self-reported health status and sex, Victoria, 2015-17 | C11: ù | D11: ù | E11: ù | F11: ù | G11: ù | H11: ù
A12: 9 | B12: Proportion (%) of adult population (18+ years), by life-satisfaction and sex, Victoria, 2015-17 | C12: ù | D12: ù | E12: ù | F12: ù | G12: ù | H12: ù
A13: 10 | B13: Proportion (%) of adult population (18+ years), by feeling of life being worthwhile and sex, Victoria, 2015-17 | C13: ù | D13: ù | E13: ù | F13: ù | G13: ù | H13: ù
A14: 11 | B14: Proportion (%) of adult population (18+ years), by level of psychological distress and sex, Victoria, 2015-17 | C14: ù | D14: ù | E14: R | F14: ù | G14: ù | H14: ù
A15: 12 | B15: Proportion (%) of adult population (18+ years), with high or very high levels of psychological distress, by sex, Victoria, 2015-17 | C15: ù | D15: ù | E15: ù | F15: ù | G15: ù | H15: ù
A16: 13 | B16: Proportion (%) of adult population (18+ years), diagnosed with high blood pressure ever, by sex, Victoria, 2015-17 | C16: ù | D16: ù | E16: ù | F16: ù | G16: ù | H16: ù
A17: 14 | B17: Proportion (%) of adult population (18+ years), diagnosed with chronic disease, by sex, Victoria, 2016-17 | C17: ù | D17: R | E17: R | F17: ù | G17: ù | H17: ù
A18: 15 | B18: Proportion (%) of adult population (18+ years), ever diagnosed with types and type 2 diabetes, heart disease and stroke, by sex, Victoria, 2015-17 | C18: ù | D18: ù | E18: ù | F18: ù | G18: ù | H18: ù
A19: 16 | B19: Proportion (%) of adult population (18+ years), ever diagnosed with cancer, osteoporosis, anxiety or depression and arthritis, by sex, Victoria, 2015-17 | C19: ù | D19: ù | E19: Q | F19: ù | G19: Q | H19: Q
A20: Local Government Area snapshot
B21: Proportion (%) of adults (18+ years), with selected risk factors, chronic disease and screening tests, by local government area, Victoria, 2017
C23: ù | D23: No change
C24: R | D24: Better outcome
C25: Q | D25: Worse outcome
C26: M | D26: Males
C27: F | D27: Females
C28: P | D28: People

Sheet Timeseries
B5: Fruit & Veg
B7: =VLOOKUP($B$5,Lookup!$G:$H,2,FALSE) -> Proportion (%) of adult population (18+ years), by compliance with fruit and vegetable consumption guidelines^ and sex, Victoria, 2015-17
D9: =VLOOKUP(B5,Lookup!$A:$E,2,FALSE) -> Met fruit and vegetable consumption guidelines | I9: =IF(VLOOKUP(B5,Lookup!$A:$E,3,FALSE)=0,"",VLOOKUP(B5,Lookup!$A:$E,3,FALSE)) -> Met vegetable consumption guidelines only^^ | N9: =IF(VLOOKUP(B5,Lookup!$A:$E,4,FALSE)=0,"",VLOOKUP(B5,Lookup!$A:$E,4,FALSE)) -> Met fruit consumption guidelines only^^ | S9: =IF(VLOOKUP(B5,Lookup!$A:$E,5,FALSE)=0,"",VLOOKUP(B5,Lookup!$A:$E,5,FALSE)) -> Did not meet fruit and vegetable consumption guidelines
F10: 95% CI | K10: 95% CI | P10: 95% CI | U10: 95% CI
B11: Sex | C11: Year | D11: % | F11: LL | G11: UL | I11: % | K11: LL | L11: UL | N11: % | P11: LL | Q11: UL | S11: % | U11: LL | V11: UL
B12: Males
C13: 2015 | D13: =SUMIFS(Data!$E:$E,Data!$A:$A,$B$5,Data!$B:$B,$D$9,Data!$C:$C,$B$12,Data!$D:$D,C13) -> 1.671664 | E13: =IF(B5="Chronic disease -1","*","") ->  | F13: =SUMIFS(Data!$F:$F,Data!$A:$A,$B$5,Data!$B:$B,$D$9,Data!$C:$C,$B$12,Data!$D:$D,C13) -> 1.203294 | G13: =SUMIFS(Data!$G:$G,Data!$A:$A,$B$5,Data!$B:$B,$D$9,Data!$C:$C,$B$12,Data!$D:$D,C13) -> 2.318065 | I13: =SUMIFS(Data!$E:$E,Data!$A:$A,$B$5,Data!$B:$B,$I$9,Data!$C:$C,$B$12,Data!$D:$D,C13) -> 2.349247 | K13: =SUMIFS(Data!$F:$F,Data!$A:$A,$B$5,Data!$B:$B,$I$9,Data!$C:$C,$B$12,Data!$D:$D,C13) -> 1.777508 | L13: =SUMIFS(Data!$G:$G,Data!$A:$A,$B$5,Data!$B:$B,$I$9,Data!$C:$C,$B$12,Data!$D:$D,C13) -> 3.099084 | N13: =SUMIFS(Data!$E:$E,Data!$A:$A,$B$5,Data!$B:$B,$N$9,Data!$C:$C,$B$12,Data!$D:$D,C13) -> 39.68474 | P13: =SUMIFS(Data!$F:$F,Data!$A:$A,$B$5,Data!$B:$B,$N$9,Data!$C:$C,$B$12,Data!$D:$D,C13) -> 37.42132 | Q13: =SUMIFS(Data!$G:$G,Data!$A:$A,$B$5,Data!$B:$B,$N$9,Data!$C:$C,$B$12,Data!$D:$D,C13) -> 41.9932 | S13: =SUMIFS(Data!$E:$E,Data!$A:$A,$B$5,Data!$B:$B,$S$9,Data!$C:$C,$B$12,Data!$D:$D,C13) -> 55.53887 | U13: =SUMIFS(Data!$F:$F,Data!$A:$A,$B$5,Data!$B:$B,$S$9,Data!$C:$C,$B$12,Data!$D:$D,C13) -> 53.21042 | V13: =SUMIFS(Data!$G:$G,Data!$A:$A,$B$5,Data!$B:$B,$S$9,Data!$C:$C,$B$12,Data!$D:$D,C13) -> 57.84326
C14: 2016 | D14: =SUMIFS(Data!$E:$E,Data!$A:$A,$B$5,Data!$B:$B,$D$9,Data!$C:$C,$B$12,Data!$D:$D,C14) -> 1.553783 | F14: =SUMIFS(Data!$F:$F,Data!$A:$A,$B$5,Data!$B:$B,$D$9,Data!$C:$C,$B$12,Data!$D:$D,C14) -> 1.084363 | G14: =SUMIFS(Data!$G:$G,Data!$A:$A,$B$5,Data!$B:$B,$D$9,Data!$C:$C,$B$12,Data!$D:$D,C14) -> 2.221851 | I14: =SUMIFS(Data!$E:$E,Data!$A:$A,$B$5,Data!$B:$B,$I$9,Data!$C:$C,$B$12,Data!$D:$D,C14) -> 2.291969 | K14: =SUMIFS(Data!$F:$F,Data!$A:$A,$B$5,Data!$B:$B,$I$9,Data!$C:$C,$B$12,Data!$D:$D,C14) -> 1.707058 | L14: =SUMIFS(Data!$G:$G,Data!$A:$A,$B$5,Data!$B:$B,$I$9,Data!$C:$C,$B$12,Data!$D:$D,C14) -> 3.071033 | N14: =SUMIFS(Data!$E:$E,Data!$A:$A,$B$5,Data!$B:$B,$N$9,Data!$C:$C,$B$12,Data!$D:$D,C14) -> 38.58055 | P14: =SUMIFS(Data!$F:$F,Data!$A:$A,$B$5,Data!$B:$B,$N$9,Data!$C:$C,$B$12,Data!$D:$D,C14) -> 36.44582 | Q14: =SUMIFS(Data!$G:$G,Data!$A:$A,$B$5,Data!$B:$B,$N$9,Data!$C:$C,$B$12,Data!$D:$D,C14) -> 40.76014 | S14: =SUMIFS(Data!$E:$E,Data!$A:$A,$B$5,Data!$B:$B,$S$9,Data!$C:$C,$B$12,Data!$D:$D,C14) -> 57.87374 | U14: =SUMIFS(Data!$F:$F,Data!$A:$A,$B$5,Data!$B:$B,$S$9,Data!$C:$C,$B$12,Data!$D:$D,C14) -> 55.66569 | V14: =SUMIFS(Data!$G:$G,Data!$A:$A,$B$5,Data!$B:$B,$S$9,Data!$C:$C,$B$12,Data!$D:$D,C14) -> 60.05074
C15: 2017 | D15: =SUMIFS(Data!$E:$E,Data!$A:$A,$B$5,Data!$B:$B,$D$9,Data!$C:$C,$B$12,Data!$D:$D,C15) -> 1.57 | F15: =SUMIFS(Data!$F:$F,Data!$A:$A,$B$5,Data!$B:$B,$D$9,Data!$C:$C,$B$12,Data!$D:$D,C15) -> 1.27 | G15: =SUMIFS(Data!$G:$G,Data!$A:$A,$B$5,Data!$B:$B,$D$9,Data!$C:$C,$B$12,Data!$D:$D,C15) -> 1.95 | I15: =SUMIFS(Data!$E:$E,Data!$A:$A,$B$5,Data!$B:$B,$I$9,Data!$C:$C,$B$12,Data!$D:$D,C15) -> 2.22 | K15: =SUMIFS(Data!$F:$F,Data!$A:$A,$B$5,Data!$B:$B,$I$9,Data!$C:$C,$B$12,Data!$D:$D,C15) -> 1.87 | L15: =SUMIFS(Data!$G:$G,Data!$A:$A,$B$5,Data!$B:$B,$I$9,Data!$C:$C,$B$12,Data!$D:$D,C15) -> 2.63 | N15: =SUMIFS(Data!$E:$E,Data!$A:$A,$B$5,Data!$B:$B,$N$9,Data!$C:$C,$B$12,Data!$D:$D,C15) -> 39.3 | P15: =SUMIFS(Data!$F:$F,Data!$A:$A,$B$5,Data!$B:$B,$N$9,Data!$C:$C,$B$12,Data!$D:$D,C15) -> 38.02 | Q15: =SUMIFS(Data!$G:$G,Data!$A:$A,$B$5,Data!$B:$B,$N$9,Data!$C:$C,$B$12,Data!$D:$D,C15) -> 40.6 | S15: =SUMIFS(Data!$E:$E,Data!$A:$A,$B$5,Data!$B:$B,$S$9,Data!$C:$C,$B$12,Data!$D:$D,C15) -> 56.75 | U15: =SUMIFS(Data!$F:$F,Data!$A:$A,$B$5,Data!$B:$B,$S$9,Data!$C:$C,$B$12,Data!$D:$D,C15) -> 55.44 | V15: =SUMIFS(Data!$G:$G,Data!$A:$A,$B$5,Data!$B:$B,$S$9,Data!$C:$C,$B$12,Data!$D:$D,C15) -> 58.06
B16: =IF(B5="High blood pressure","Females^","Females") -> Females
C17: 2015 | D17: =SUMIFS(Data!$E:$E,Data!$A:$A,$B$5,Data!$B:$B,$D$9,Data!$C:$C,$B$16,Data!$D:$D,C17) -> 6.463707 | E17: =IF(B5="Chronic disease -1","*","") ->  | F17: =SUMIFS(Data!$F:$F,Data!$A:$A,$B$5,Data!$B:$B,$D$9,Data!$C:$C,$B$16,Data!$D:$D,C17) -> 5.521762 | G17: =SUMIFS(Data!$G:$G,Data!$A:$A,$B$5,Data!$B:$B,$D$9,Data!$C:$C,$B$16,Data!$D:$D,C17) -> 7.553488 | I17: =SUMIFS(Data!$E:$E,Data!$A:$A,$B$5,Data!$B:$B,$I$9,Data!$C:$C,$B$16,Data!$D:$D,C17) -> 9.193116 | K17: =SUMIFS(Data!$F:$F,Data!$A:$A,$B$5,Data!$B:$B,$I$9,Data!$C:$C,$B$16,Data!$D:$D,C17) -> 8.091437 | L17: =SUMIFS(Data!$G:$G,Data!$A:$A,$B$5,Data!$B:$B,$I$9,Data!$C:$C,$B$16,Data!$D:$D,C17) -> 10.42777 | N17: =SUMIFS(Data!$E:$E,Data!$A:$A,$B$5,Data!$B:$B,$N$9,Data!$C:$C,$B$16,Data!$D:$D,C17) -> 46.93274 | P17: =SUMIFS(Data!$F:$F,Data!$A:$A,$B$5,Data!$B:$B,$N$9,Data!$C:$C,$B$16,Data!$D:$D,C17) -> 44.73315 | Q17: =SUMIFS(Data!$G:$G,Data!$A:$A,$B$5,Data!$B:$B,$N$9,Data!$C:$C,$B$16,Data!$D:$D,C17) -> 49.14431 | S17: =SUMIFS(Data!$E:$E,Data!$A:$A,$B$5,Data!$B:$B,$S$9,Data!$C:$C,$B$16,Data!$D:$D,C17) -> 48.10502 | U17: =SUMIFS(Data!$F:$F,Data!$A:$A,$B$5,Data!$B:$B,$S$9,Data!$C:$C,$B$16,Data!$D:$D,C17) -> 45.89262 | V17: =SUMIFS(Data!$G:$G,Data!$A:$A,$B$5,Data!$B:$B,$S$9,Data!$C:$C,$B$16,Data!$D:$D,C17) -> 50.32488
C18: 2016 | D18: =SUMIFS(Data!$E:$E,Data!$A:$A,$B$5,Data!$B:$B,$D$9,Data!$C:$C,$B$16,Data!$D:$D,C18) -> 4.79707 | E18: =IF(B5="Chronic disease -1","*","") ->  | F18: =SUMIFS(Data!$F:$F,Data!$A:$A,$B$5,Data!$B:$B,$D$9,Data!$C:$C,$B$16,Data!$D:$D,C18) -> 4.121776 | G18: =SUMIFS(Data!$G:$G,Data!$A:$A,$B$5,Data!$B:$B,$D$9,Data!$C:$C,$B$16,Data!$D:$D,C18) -> 5.576567 | I18: =SUMIFS(Data!$E:$E,Data!$A:$A,$B$5,Data!$B:$B,$I$9,Data!$C:$C,$B$16,Data!$D:$D,C18) -> 7.077634 | K18: =SUMIFS(Data!$F:$F,Data!$A:$A,$B$5,Data!$B:$B,$I$9,Data!$C:$C,$B$16,Data!$D:$D,C18) -> 6.212098 | L18: =SUMIFS(Data!$G:$G,Data!$A:$A,$B$5,Data!$B:$B,$I$9,Data!$C:$C,$B$16,Data!$D:$D,C18) -> 8.05341 | N18: =SUMIFS(Data!$E:$E,Data!$A:$A,$B$5,Data!$B:$B,$N$9,Data!$C:$C,$B$16,Data!$D:$D,C18) -> 43.97666 | P18: =SUMIFS(Data!$F:$F,Data!$A:$A,$B$5,Data!$B:$B,$N$9,Data!$C:$C,$B$16,Data!$D:$D,C18) -> 41.99221 | Q18: =SUMIFS(Data!$G:$G,Data!$A:$A,$B$5,Data!$B:$B,$N$9,Data!$C:$C,$B$16,Data!$D:$D,C18) -> 45.98056 | S18: =SUMIFS(Data!$E:$E,Data!$A:$A,$B$5,Data!$B:$B,$S$9,Data!$C:$C,$B$16,Data!$D:$D,C18) -> 51.89272 | U18: =SUMIFS(Data!$F:$F,Data!$A:$A,$B$5,Data!$B:$B,$S$9,Data!$C:$C,$B$16,Data!$D:$D,C18) -> 49.87162 | V18: =SUMIFS(Data!$G:$G,Data!$A:$A,$B$5,Data!$B:$B,$S$9,Data!$C:$C,$B$16,Data!$D:$D,C18) -> 53.90764
C19: 2017 | D19: =SUMIFS(Data!$E:$E,Data!$A:$A,$B$5,Data!$B:$B,$D$9,Data!$C:$C,$B$16,Data!$D:$D,C19) -> 5.48 | F19: =SUMIFS(Data!$F:$F,Data!$A:$A,$B$5,Data!$B:$B,$D$9,Data!$C:$C,$B$16,Data!$D:$D,C19) -> 5.01 | G19: =SUMIFS(Data!$G:$G,Data!$A:$A,$B$5,Data!$B:$B,$D$9,Data!$C:$C,$B$16,Data!$D:$D,C19) -> 5.99 | I19: =SUMIFS(Data!$E:$E,Data!$A:$A,$B$5,Data!$B:$B,$I$9,Data!$C:$C,$B$16,Data!$D:$D,C19) -> 8.42 | K19: =SUMIFS(Data!$F:$F,Data!$A:$A,$B$5,Data!$B:$B,$I$9,Data!$C:$C,$B$16,Data!$D:$D,C19) -> 7.81 | L19: =SUMIFS(Data!$G:$G,Data!$A:$A,$B$5,Data!$B:$B,$I$9,Data!$C:$C,$B$16,Data!$D:$D,C19) -> 9.07 | N19: =SUMIFS(Data!$E:$E,Data!$A:$A,$B$5,Data!$B:$B,$N$9,Data!$C:$C,$B$16,Data!$D:$D,C19) -> 46.84 | P19: =SUMIFS(Data!$F:$F,Data!$A:$A,$B$5,Data!$B:$B,$N$9,Data!$C:$C,$B$16,Data!$D:$D,C19) -> 45.56 | Q19: =SUMIFS(Data!$G:$G,Data!$A:$A,$B$5,Data!$B:$B,$N$9,Data!$C:$C,$B$16,Data!$D:$D,C19) -> 48.11 | S19: =SUMIFS(Data!$E:$E,Data!$A:$A,$B$5,Data!$B:$B,$S$9,Data!$C:$C,$B$16,Data!$D:$D,C19) -> 46.88 | U19: =SUMIFS(Data!$F:$F,Data!$A:$A,$B$5,Data!$B:$B,$S$9,Data!$C:$C,$B$16,Data!$D:$D,C19) -> 45.6 | V19: =SUMIFS(Data!$G:$G,Data!$A:$A,$B$5,Data!$B:$B,$S$9,Data!$C:$C,$B$16,Data!$D:$D,C19) -> 48.15
B20: People
C21: 2015 | D21: =SUMIFS(Data!$E:$E,Data!$A:$A,$B$5,Data!$B:$B,$D$9,Data!$C:$C,$B$20,Data!$D:$D,C21) -> 4.103203 | F21: =SUMIFS(Data!$F:$F,Data!$A:$A,$B$5,Data!$B:$B,$D$9,Data!$C:$C,$B$20,Data!$D:$D,C21) -> 3.556384 | G21: =SUMIFS(Data!$G:$G,Data!$A:$A,$B$5,Data!$B:$B,$D$9,Data!$C:$C,$B$20,Data!$D:$D,C21) -> 4.729976 | I21: =SUMIFS(Data!$E:$E,Data!$A:$A,$B$5,Data!$B:$B,$I$9,Data!$C:$C,$B$20,Data!$D:$D,C21) -> 5.842387 | K21: =SUMIFS(Data!$F:$F,Data!$A:$A,$B$5,Data!$B:$B,$I$9,Data!$C:$C,$B$20,Data!$D:$D,C21) -> 5.195151 | L21: =SUMIFS(Data!$G:$G,Data!$A:$A,$B$5,Data!$B:$B,$I$9,Data!$C:$C,$B$20,Data!$D:$D,C21) -> 6.564675 | N21: =SUMIFS(Data!$E:$E,Data!$A:$A,$B$5,Data!$B:$B,$N$9,Data!$C:$C,$B$20,Data!$D:$D,C21) -> 43.3098 | P21: =SUMIFS(Data!$F:$F,Data!$A:$A,$B$5,Data!$B:$B,$N$9,Data!$C:$C,$B$20,Data!$D:$D,C21) -> 41.7265 | Q21: =SUMIFS(Data!$G:$G,Data!$A:$A,$B$5,Data!$B:$B,$N$9,Data!$C:$C,$B$20,Data!$D:$D,C21) -> 44.90689 | S21: =SUMIFS(Data!$E:$E,Data!$A:$A,$B$5,Data!$B:$B,$S$9,Data!$C:$C,$B$20,Data!$D:$D,C21) -> 51.81231 | U21: =SUMIFS(Data!$F:$F,Data!$A:$A,$B$5,Data!$B:$B,$S$9,Data!$C:$C,$B$20,Data!$D:$D,C21) -> 50.20502 | V21: =SUMIFS(Data!$G:$G,Data!$A:$A,$B$5,Data!$B:$B,$S$9,Data!$C:$C,$B$20,Data!$D:$D,C21) -> 53.41586
C22: 2016 | D22: =SUMIFS(Data!$E:$E,Data!$A:$A,$B$5,Data!$B:$B,$D$9,Data!$C:$C,$B$20,Data!$D:$D,C22) -> 3.270615 | F22: =SUMIFS(Data!$F:$F,Data!$A:$A,$B$5,Data!$B:$B,$D$9,Data!$C:$C,$B$20,Data!$D:$D,C22) -> 2.833751 | G22: =SUMIFS(Data!$G:$G,Data!$A:$A,$B$5,Data!$B:$B,$D$9,Data!$C:$C,$B$20,Data!$D:$D,C22) -> 3.772213 | I22: =SUMIFS(Data!$E:$E,Data!$A:$A,$B$5,Data!$B:$B,$I$9,Data!$C:$C,$B$20,Data!$D:$D,C22) -> 4.821153 | K22: =SUMIFS(Data!$F:$F,Data!$A:$A,$B$5,Data!$B:$B,$I$9,Data!$C:$C,$B$20,Data!$D:$D,C22) -> 4.269492 | L22: =SUMIFS(Data!$G:$G,Data!$A:$A,$B$5,Data!$B:$B,$I$9,Data!$C:$C,$B$20,Data!$D:$D,C22) -> 5.440044 | N22: =SUMIFS(Data!$E:$E,Data!$A:$A,$B$5,Data!$B:$B,$N$9,Data!$C:$C,$B$20,Data!$D:$D,C22) -> 41.38157 | P22: =SUMIFS(Data!$F:$F,Data!$A:$A,$B$5,Data!$B:$B,$N$9,Data!$C:$C,$B$20,Data!$D:$D,C22) -> 39.92178 | Q22: =SUMIFS(Data!$G:$G,Data!$A:$A,$B$5,Data!$B:$B,$N$9,Data!$C:$C,$B$20,Data!$D:$D,C22) -> 42.85666 | S22: =SUMIFS(Data!$E:$E,Data!$A:$A,$B$5,Data!$B:$B,$S$9,Data!$C:$C,$B$20,Data!$D:$D,C22) -> 54.74615 | U22: =SUMIFS(Data!$F:$F,Data!$A:$A,$B$5,Data!$B:$B,$S$9,Data!$C:$C,$B$20,Data!$D:$D,C22) -> 53.25356 | V22: =SUMIFS(Data!$G:$G,Data!$A:$A,$B$5,Data!$B:$B,$S$9,Data!$C:$C,$B$20,Data!$D:$D,C22) -> 56.23025
C23: 2017 | D23: =SUMIFS(Data!$E:$E,Data!$A:$A,$B$5,Data!$B:$B,$D$9,Data!$C:$C,$B$20,Data!$D:$D,C23) -> 3.58 | F23: =SUMIFS(Data!$F:$F,Data!$A:$A,$B$5,Data!$B:$B,$D$9,Data!$C:$C,$B$20,Data!$D:$D,C23) -> 3.29 | G23: =SUMIFS(Data!$G:$G,Data!$A:$A,$B$5,Data!$B:$B,$D$9,Data!$C:$C,$B$20,Data!$D:$D,C23) -> 3.89 | I23: =SUMIFS(Data!$E:$E,Data!$A:$A,$B$5,Data!$B:$B,$I$9,Data!$C:$C,$B$20,Data!$D:$D,C23) -> 5.39 | K23: =SUMIFS(Data!$F:$F,Data!$A:$A,$B$5,Data!$B:$B,$I$9,Data!$C:$C,$B$20,Data!$D:$D,C23) -> 5.03 | L23: =SUMIFS(Data!$G:$G,Data!$A:$A,$B$5,Data!$B:$B,$I$9,Data!$C:$C,$B$20,Data!$D:$D,C23) -> 5.77 | N23: =SUMIFS(Data!$E:$E,Data!$A:$A,$B$5,Data!$B:$B,$N$9,Data!$C:$C,$B$20,Data!$D:$D,C23) -> 43.19 | P23: =SUMIFS(Data!$F:$F,Data!$A:$A,$B$5,Data!$B:$B,$N$9,Data!$C:$C,$B$20,Data!$D:$D,C23) -> 42.29 | Q23: =SUMIFS(Data!$G:$G,Data!$A:$A,$B$5,Data!$B:$B,$N$9,Data!$C:$C,$B$20,Data!$D:$D,C23) -> 44.1 | S23: =SUMIFS(Data!$E:$E,Data!$A:$A,$B$5,Data!$B:$B,$S$9,Data!$C:$C,$B$20,Data!$D:$D,C23) -> 51.67 | U23: =SUMIFS(Data!$F:$F,Data!$A:$A,$B$5,Data!$B:$B,$S$9,Data!$C:$C,$B$20,Data!$D:$D,C23) -> 50.75 | V23: =SUMIFS(Data!$G:$G,Data!$A:$A,$B$5,Data!$B:$B,$S$9,Data!$C:$C,$B$20,Data!$D:$D,C23) -> 52.58
B27: Did not meet fruit and vegetable consumption guidelines | N27: Males
B48: NOTE: Please enable macros fo this chart to work
B50: Data were age-standardised to the 2011 Victorian population.
B51: LL/UL 95% CI = lower/upper limit of 95 per cent confidence interval.
B52: Estimates that are (statistically) significantly different from the corresponding estimate for 2015 are identified by colour as follows: above or below.
B53: Estimates may not add to 100 per cent due to a proportion of 'don't know' or 'refused to say' responses, not reported here.
B54: Corresponding estimates are significantly (statistically) different between years if their 95% CI do NOT overlap.
B55: =IF(VLOOKUP($B$5,Lookup!$G:$I,3,FALSE)=0,"",VLOOKUP($B$5,Lookup!$G:$I,3,FALSE)) -> ^ NHMRC (2013) guidelines.
B56: =IF(B5="Chronic disease -1","* RSE between 25 and 50 per cent; point estimate (%) should be interpreted with caution.","") -> 
B57: Return to Index

Sheet AgeGroup
B5: OBESITY - BMI
B7: =VLOOKUP(B5,Lookup!W:X,2,FALSE) -> Proportion (%) of adult (18+ years) population, by body mass index category^, age group and sex, Victoria, 2017
D9: =VLOOKUP(B5,Lookup!$N:$S,2,FALSE) -> Underweight (BMI < 18.5) | I9: =IF(VLOOKUP(B5,Lookup!$N:$S,3,FALSE)=0,"",VLOOKUP(B5,Lookup!$N:$S,3,FALSE)) -> Normal range (18.5 ≥ BMI < 25) | N9: =IF(VLOOKUP(B5,Lookup!$N:$S,4,FALSE)=0,"",VLOOKUP(B5,Lookup!$N:$S,4,FALSE)) -> Pre-obese (25 ≥ BMI < 30) | S9: =IF(VLOOKUP(B5,Lookup!$N:$S,5,FALSE)=0,"",VLOOKUP(B5,Lookup!$N:$S,5,FALSE)) -> Obese (BMI ≥ 30) | X9: =IF(VLOOKUP(B5,Lookup!$N:$S,6,FALSE)=0,"",VLOOKUP(B5,Lookup!$N:$S,6,FALSE)) -> 
C10: Age group | F10: 95% CI | K10: 95% CI | P10: 95% CI | U10: 95% CI | Z10: 95% CI
C11: (years) | D11: % | F11: LL | G11: UL | I11: % | K11: LL | L11: UL | N11: % | P11: LL | Q11: UL | S11: % | U11: LL | V11: UL | X11: % | Z11: LL | AA11: UL
B12: Males
C13: =VLOOKUP($B$5,Lookup!$AA:$AJ,2,FALSE) -> 18–24 | D13: =IF(E13="**","",SUMIFS(AgeGroupData!$E:$E,AgeGroupData!$A:$A,$B$5,AgeGroupData!$B:$B,$D$9,AgeGroupData!$C:$C,$B$12,AgeGroupData!$D:$D,C13)) -> 4.968102 | E13: =IF(SUMIFS(AgeGroupData!$H:$H,AgeGroupData!$A:$A,$B$5,AgeGroupData!$B:$B,$D$9,AgeGroupData!$C:$C,$B$12,AgeGroupData!$D:$D,C13)>=50,"**", IF(SUMIFS(AgeGroupData!$H:$H,AgeGroupData!$A:$A,$B$5,AgeGroupData!$B:$B,$D$9,AgeGroupData!$C:$C,$B$12,AgeGroupData!$D:$D,C13)>25, IF(SUMIFS(AgeGroupData!$H:$H,AgeGroupData!$A:$A,$B$5,AgeGroupData!$B:$B,$D$9,AgeGroupData!$C:$C,$B$12,AgeGroupData!$D:$D,C13)<50,"*",""),"")) ->  | F13: =IF(E13="**","",SUMIFS(AgeGroupData!$F:$F,AgeGroupData!$A:$A,$B$5,AgeGroupData!$B:$B,$D$9,AgeGroupData!$C:$C,$B$12,AgeGroupData!$D:$D,C13)) -> 3.435966 | G13: =IF(E13="**","",SUMIFS(AgeGroupData!$G:$G,AgeGroupData!$A:$A,$B$5,AgeGroupData!$B:$B,$D$9,AgeGroupData!$C:$C,$B$12,AgeGroupData!$D:$D,C13)) -> 7.132968 | I13: =IF(J13="**","",SUMIFS(AgeGroupData!$E:$E,AgeGroupData!$A:$A,$B$5,AgeGroupData!$B:$B,$I$9,AgeGroupData!$C:$C,$B$12,AgeGroupData!$D:$D,C13)) -> 55.89431 | J13: =IF(SUMIFS(AgeGroupData!$H:$H,AgeGroupData!$A:$A,$B$5,AgeGroupData!$B:$B,$I$9,AgeGroupData!$C:$C,$B$12,AgeGroupData!$D:$D,C13)>=50,"**", IF(SUMIFS(AgeGroupData!$H:$H,AgeGroupData!$A:$A,$B$5,AgeGroupData!$B:$B,$I$9,AgeGroupData!$C:$C,$B$12,AgeGroupData!$D:$D,C13)>25, IF(SUMIFS(AgeGroupData!$H:$H,AgeGroupData!$A:$A,$B$5,AgeGroupData!$B:$B,$I$9,AgeGroupData!$C:$C,$B$12,AgeGroupData!$D:$D,C13)<50,"*",""),"")) ->  | K13: =IF(J13="**","",SUMIFS(AgeGroupData!$F:$F,AgeGroupData!$A:$A,$B$5,AgeGroupData!$B:$B,$I$9,AgeGroupData!$C:$C,$B$12,AgeGroupData!$D:$D,C13)) -> 51.84703 | L13: =IF(J13="**","",SUMIFS(AgeGroupData!$G:$G,AgeGroupData!$A:$A,$B$5,AgeGroupData!$B:$B,$I$9,AgeGroupData!$C:$C,$B$12,AgeGroupData!$D:$D,C13)) -> 59.86476 | N13: =IF(O13="**","",SUMIFS(AgeGroupData!$E:$E,AgeGroupData!$A:$A,$B$5,AgeGroupData!$B:$B,$N$9,AgeGroupData!$C:$C,$B$12,AgeGroupData!$D:$D,C13)) -> 23.97075 | O13: =IF(SUMIFS(AgeGroupData!$H:$H,AgeGroupData!$A:$A,$B$5,AgeGroupData!$B:$B,$N$9,AgeGroupData!$C:$C,$B$12,AgeGroupData!$D:$D,C13)>=50,"**", IF(SUMIFS(AgeGroupData!$H:$H,AgeGroupData!$A:$A,$B$5,AgeGroupData!$B:$B,$N$9,AgeGroupData!$C:$C,$B$12,AgeGroupData!$D:$D,C13)>25, IF(SUMIFS(AgeGroupData!$H:$H,AgeGroupData!$A:$A,$B$5,AgeGroupData!$B:$B,$N$9,AgeGroupData!$C:$C,$B$12,AgeGroupData!$D:$D,C13)<50,"*",""),"")) ->  | P13: =IF(O13="**","",SUMIFS(AgeGroupData!$F:$F,AgeGroupData!$A:$A,$B$5,AgeGroupData!$B:$B,$N$9,AgeGroupData!$C:$C,$B$12,AgeGroupData!$D:$D,C13)) -> 20.74377 | Q13: =IF(O13="**","",SUMIFS(AgeGroupData!$G:$G,AgeGroupData!$A:$A,$B$5,AgeGroupData!$B:$B,$N$9,AgeGroupData!$C:$C,$B$12,AgeGroupData!$D:$D,C13)) -> 27.52539 | S13: =IF(T13="**","",SUMIFS(AgeGroupData!$E:$E,AgeGroupData!$A:$A,$B$5,AgeGroupData!$B:$B,$S$9,AgeGroupData!$C:$C,$B$12,AgeGroupData!$D:$D,C13)) -> 6.484401 | T13: =IF(SUMIFS(AgeGroupData!$H:$H,AgeGroupData!$A:$A,$B$5,AgeGroupData!$B:$B,$S$9,AgeGroupData!$C:$C,$B$12,AgeGroupData!$D:$D,C13)>=50,"**", IF(SUMIFS(AgeGroupData!$H:$H,AgeGroupData!$A:$A,$B$5,AgeGroupData!$B:$B,$S$9,AgeGroupData!$C:$C,$B$12,AgeGroupData!$D:$D,C13)>25, IF(SUMIFS(AgeGroupData!$H:$H,AgeGroupData!$A:$A,$B$5,AgeGroupData!$B:$B,$S$9,AgeGroupData!$C:$C,$B$12,AgeGroupData!$D:$D,C13)<50,"*",""),"")) ->  | U13: =IF(T13="**","",SUMIFS(AgeGroupData!$F:$F,AgeGroupData!$A:$A,$B$5,AgeGroupData!$B:$B,$S$9,AgeGroupData!$C:$C,$B$12,AgeGroupData!$D:$D,C13)) -> 4.814254 | V13: =IF(T13="**","",SUMIFS(AgeGroupData!$G:$G,AgeGroupData!$A:$A,$B$5,AgeGroupData!$B:$B,$S$9,AgeGroupData!$C:$C,$B$12,AgeGroupData!$D:$D,C13)) -> 8.681108 | X13: =IF(Y13="**","",SUMIFS(AgeGroupData!$E:$E,AgeGroupData!$A:$A,$B$5,AgeGroupData!$B:$B,$X$9,AgeGroupData!$C:$C,$B$12,AgeGroupData!$D:$D,C13)) -> 0 | Y13: =IF(SUMIFS(AgeGroupData!$H:$H,AgeGroupData!$A:$A,$B$5,AgeGroupData!$B:$B,$X$9,AgeGroupData!$C:$C,$B$12,AgeGroupData!$D:$D,C13)>=50,"**", IF(SUMIFS(AgeGroupData!$H:$H,AgeGroupData!$A:$A,$B$5,AgeGroupData!$B:$B,$X$9,AgeGroupData!$C:$C,$B$12,AgeGroupData!$D:$D,C13)>25, IF(SUMIFS(AgeGroupData!$H:$H,AgeGroupData!$A:$A,$B$5,AgeGroupData!$B:$B,$X$9,AgeGroupData!$C:$C,$B$12,AgeGroupData!$D:$D,C13)<50,"*",""),"")) ->  | Z13: =IF(Y13="**","",SUMIFS(AgeGroupData!$F:$F,AgeGroupData!$A:$A,$B$5,AgeGroupData!$B:$B,$X$9,AgeGroupData!$C:$C,$B$12,AgeGroupData!$D:$D,C13)) -> 0 | AA13: =IF(Y13="**","",SUMIFS(AgeGroupData!$G:$G,AgeGroupData!$A:$A,$B$5,AgeGroupData!$B:$B,$X$9,AgeGroupData!$C:$C,$B$12,AgeGroupData!$D:$D,C13)) -> 0
C14: =VLOOKUP($B$5,Lookup!$AA:$AJ,3,FALSE) -> 25–34 | D14: =IF(E14="**","",SUMIFS(AgeGroupData!$E:$E,AgeGroupData!$A:$A,$B$5,AgeGroupData!$B:$B,$D$9,AgeGroupData!$C:$C,$B$12,AgeGroupData!$D:$D,C14)) -> 1.368313 | E14: =IF(SUMIFS(AgeGroupData!$H:$H,AgeGroupData!$A:$A,$B$5,AgeGroupData!$B:$B,$D$9,AgeGroupData!$C:$C,$B$12,AgeGroupData!$D:$D,C14)>=50,"**", IF(SUMIFS(AgeGroupData!$H:$H,AgeGroupData!$A:$A,$B$5,AgeGroupData!$B:$B,$D$9,AgeGroupData!$C:$C,$B$12,AgeGroupData!$D:$D,C14)>25, IF(SUMIFS(AgeGroupData!$H:$H,AgeGroupData!$A:$A,$B$5,AgeGroupData!$B:$B,$D$9,AgeGroupData!$C:$C,$B$12,AgeGroupData!$D:$D,C14)<50,"*",""),"")) -> * | F14: =IF(E14="**","",SUMIFS(AgeGroupData!$F:$F,AgeGroupData!$A:$A,$B$5,AgeGroupData!$B:$B,$D$9,AgeGroupData!$C:$C,$B$12,AgeGroupData!$D:$D,C14)) -> 0.7616382 | G14: =IF(E14="**","",SUMIFS(AgeGroupData!$G:$G,AgeGroupData!$A:$A,$B$5,AgeGroupData!$B:$B,$D$9,AgeGroupData!$C:$C,$B$12,AgeGroupData!$D:$D,C14)) -> 2.446317 | I14: =IF(J14="**","",SUMIFS(AgeGroupData!$E:$E,AgeGroupData!$A:$A,$B$5,AgeGroupData!$B:$B,$I$9,AgeGroupData!$C:$C,$B$12,AgeGroupData!$D:$D,C14)) -> 40.57108 | J14: =IF(SUMIFS(AgeGroupData!$H:$H,AgeGroupData!$A:$A,$B$5,AgeGroupData!$B:$B,$I$9,AgeGroupData!$C:$C,$B$12,AgeGroupData!$D:$D,C14)>=50,"**", IF(SUMIFS(AgeGroupData!$H:$H,AgeGroupData!$A:$A,$B$5,AgeGroupData!$B:$B,$I$9,AgeGroupData!$C:$C,$B$12,AgeGroupData!$D:$D,C14)>25, IF(SUMIFS(AgeGroupData!$H:$H,AgeGroupData!$A:$A,$B$5,AgeGroupData!$B:$B,$I$9,AgeGroupData!$C:$C,$B$12,AgeGroupData!$D:$D,C14)<50,"*",""),"")) ->  | K14: =IF(J14="**","",SUMIFS(AgeGroupData!$F:$F,AgeGroupData!$A:$A,$B$5,AgeGroupData!$B:$B,$I$9,AgeGroupData!$C:$C,$B$12,AgeGroupData!$D:$D,C14)) -> 37.35462 | L14: =IF(J14="**","",SUMIFS(AgeGroupData!$G:$G,AgeGroupData!$A:$A,$B$5,AgeGroupData!$B:$B,$I$9,AgeGroupData!$C:$C,$B$12,AgeGroupData!$D:$D,C14)) -> 43.87054 | N14: =IF(O14="**","",SUMIFS(AgeGroupData!$E:$E,AgeGroupData!$A:$A,$B$5,AgeGroupData!$B:$B,$N$9,AgeGroupData!$C:$C,$B$12,AgeGroupData!$D:$D,C14)) -> 37.43619 | O14: =IF(SUMIFS(AgeGroupData!$H:$H,AgeGroupData!$A:$A,$B$5,AgeGroupData!$B:$B,$N$9,AgeGroupData!$C:$C,$B$12,AgeGroupData!$D:$D,C14)>=50,"**", IF(SUMIFS(AgeGroupData!$H:$H,AgeGroupData!$A:$A,$B$5,AgeGroupData!$B:$B,$N$9,AgeGroupData!$C:$C,$B$12,AgeGroupData!$D:$D,C14)>25, IF(SUMIFS(AgeGroupData!$H:$H,AgeGroupData!$A:$A,$B$5,AgeGroupData!$B:$B,$N$9,AgeGroupData!$C:$C,$B$12,AgeGroupData!$D:$D,C14)<50,"*",""),"")) ->  | P14: =IF(O14="**","",SUMIFS(AgeGroupData!$F:$F,AgeGroupData!$A:$A,$B$5,AgeGroupData!$B:$B,$N$9,AgeGroupData!$C:$C,$B$12,AgeGroupData!$D:$D,C14)) -> 34.24366 | Q14: =IF(O14="**","",SUMIFS(AgeGroupData!$G:$G,AgeGroupData!$A:$A,$B$5,AgeGroupData!$B:$B,$N$9,AgeGroupData!$C:$C,$B$12,AgeGroupData!$D:$D,C14)) -> 40.74194 | S14: =IF(T14="**","",SUMIFS(AgeGroupData!$E:$E,AgeGroupData!$A:$A,$B$5,AgeGroupData!$B:$B,$S$9,AgeGroupData!$C:$C,$B$12,AgeGroupData!$D:$D,C14)) -> 15.45263 | T14: =IF(SUMIFS(AgeGroupData!$H:$H,AgeGroupData!$A:$A,$B$5,AgeGroupData!$B:$B,$S$9,AgeGroupData!$C:$C,$B$12,AgeGroupData!$D:$D,C14)>=50,"**", IF(SUMIFS(AgeGroupData!$H:$H,AgeGroupData!$A:$A,$B$5,AgeGroupData!$B:$B,$S$9,AgeGroupData!$C:$C,$B$12,AgeGroupData!$D:$D,C14)>25, IF(SUMIFS(AgeGroupData!$H:$H,AgeGroupData!$A:$A,$B$5,AgeGroupData!$B:$B,$S$9,AgeGroupData!$C:$C,$B$12,AgeGroupData!$D:$D,C14)<50,"*",""),"")) ->  | U14: =IF(T14="**","",SUMIFS(AgeGroupData!$F:$F,AgeGroupData!$A:$A,$B$5,AgeGroupData!$B:$B,$S$9,AgeGroupData!$C:$C,$B$12,AgeGroupData!$D:$D,C14)) -> 13.18318 | V14: =IF(T14="**","",SUMIFS(AgeGroupData!$G:$G,AgeGroupData!$A:$A,$B$5,AgeGroupData!$B:$B,$S$9,AgeGroupData!$C:$C,$B$12,AgeGroupData!$D:$D,C14)) -> 18.03163 | X14: =IF(Y14="**","",SUMIFS(AgeGroupData!$E:$E,AgeGroupData!$A:$A,$B$5,AgeGroupData!$B:$B,$X$9,AgeGroupData!$C:$C,$B$12,AgeGroupData!$D:$D,C14)) -> 0 | Y14: =IF(SUMIFS(AgeGroupData!$H:$H,AgeGroupData!$A:$A,$B$5,AgeGroupData!$B:$B,$X$9,AgeGroupData!$C:$C,$B$12,AgeGroupData!$D:$D,C14)>=50,"**", IF(SUMIFS(AgeGroupData!$H:$H,AgeGroupData!$A:$A,$B$5,AgeGroupData!$B:$B,$X$9,AgeGroupData!$C:$C,$B$12,AgeGroupData!$D:$D,C14)>25, IF(SUMIFS(AgeGroupData!$H:$H,AgeGroupData!$A:$A,$B$5,AgeGroupData!$B:$B,$X$9,AgeGroupData!$C:$C,$B$12,AgeGroupData!$D:$D,C14)<50,"*",""),"")) ->  | Z14: =IF(Y14="**","",SUMIFS(AgeGroupData!$F:$F,AgeGroupData!$A:$A,$B$5,AgeGroupData!$B:$B,$X$9,AgeGroupData!$C:$C,$B$12,AgeGroupData!$D:$D,C14)) -> 0 | AA14: =IF(Y14="**","",SUMIFS(AgeGroupData!$G:$G,AgeGroupData!$A:$A,$B$5,AgeGroupData!$B:$B,$X$9,AgeGroupData!$C:$C,$B$12,AgeGroupData!$D:$D,C14)) -> 0
C15: =VLOOKUP($B$5,Lookup!$AA:$AJ,4,FALSE) -> 35–44 | D15: =IF(E15="**","",SUMIFS(AgeGroupData!$E:$E,AgeGroupData!$A:$A,$B$5,AgeGroupData!$B:$B,$D$9,AgeGroupData!$C:$C,$B$12,AgeGroupData!$D:$D,C15)) -> 0.978977 | E15: =IF(SUMIFS(AgeGroupData!$H:$H,AgeGroupData!$A:$A,$B$5,AgeGroupData!$B:$B,$D$9,AgeGroupData!$C:$C,$B$12,AgeGroupData!$D:$D,C15)>=50,"**", IF(SUMIFS(AgeGroupData!$H:$H,AgeGroupData!$A:$A,$B$5,AgeGroupData!$B:$B,$D$9,AgeGroupData!$C:$C,$B$12,AgeGroupData!$D:$D,C15)>25, IF(SUMIFS(AgeGroupData!$H:$H,AgeGroupData!$A:$A,$B$5,AgeGroupData!$B:$B,$D$9,AgeGroupData!$C:$C,$B$12,AgeGroupData!$D:$D,C15)<50,"*",""),"")) -> * | F15: =IF(E15="**","",SUMIFS(AgeGroupData!$F:$F,AgeGroupData!$A:$A,$B$5,AgeGroupData!$B:$B,$D$9,AgeGroupData!$C:$C,$B$12,AgeGroupData!$D:$D,C15)) -> 0.485173 | G15: =IF(E15="**","",SUMIFS(AgeGroupData!$G:$G,AgeGroupData!$A:$A,$B$5,AgeGroupData!$B:$B,$D$9,AgeGroupData!$C:$C,$B$12,AgeGroupData!$D:$D,C15)) -> 1.965443 | I15: =IF(J15="**","",SUMIFS(AgeGroupData!$E:$E,AgeGroupData!$A:$A,$B$5,AgeGroupData!$B:$B,$I$9,AgeGroupData!$C:$C,$B$12,AgeGroupData!$D:$D,C15)) -> 32.95122 | J15: =IF(SUMIFS(AgeGroupData!$H:$H,AgeGroupData!$A:$A,$B$5,AgeGroupData!$B:$B,$I$9,AgeGroupData!$C:$C,$B$12,AgeGroupData!$D:$D,C15)>=50,"**", IF(SUMIFS(AgeGroupData!$H:$H,AgeGroupData!$A:$A,$B$5,AgeGroupData!$B:$B,$I$9,AgeGroupData!$C:$C,$B$12,AgeGroupData!$D:$D,C15)>25, IF(SUMIFS(AgeGroupData!$H:$H,AgeGroupData!$A:$A,$B$5,AgeGroupData!$B:$B,$I$9,AgeGroupData!$C:$C,$B$12,AgeGroupData!$D:$D,C15)<50,"*",""),"")) ->  | K15: =IF(J15="**","",SUMIFS(AgeGroupData!$F:$F,AgeGroupData!$A:$A,$B$5,AgeGroupData!$B:$B,$I$9,AgeGroupData!$C:$C,$B$12,AgeGroupData!$D:$D,C15)) -> 29.8419 | L15: =IF(J15="**","",SUMIFS(AgeGroupData!$G:$G,AgeGroupData!$A:$A,$B$5,AgeGroupData!$B:$B,$I$9,AgeGroupData!$C:$C,$B$12,AgeGroupData!$D:$D,C15)) -> 36.21727 | N15: =IF(O15="**","",SUMIFS(AgeGroupData!$E:$E,AgeGroupData!$A:$A,$B$5,AgeGroupData!$B:$B,$N$9,AgeGroupData!$C:$C,$B$12,AgeGroupData!$D:$D,C15)) -> 43.39145 | O15: =IF(SUMIFS(AgeGroupData!$H:$H,AgeGroupData!$A:$A,$B$5,AgeGroupData!$B:$B,$N$9,AgeGroupData!$C:$C,$B$12,AgeGroupData!$D:$D,C15)>=50,"**", IF(SUMIFS(AgeGroupData!$H:$H,AgeGroupData!$A:$A,$B$5,AgeGroupData!$B:$B,$N$9,AgeGroupData!$C:$C,$B$12,AgeGroupData!$D:$D,C15)>25, IF(SUMIFS(AgeGroupData!$H:$H,AgeGroupData!$A:$A,$B$5,AgeGroupData!$B:$B,$N$9,AgeGroupData!$C:$C,$B$12,AgeGroupData!$D:$D,C15)<50,"*",""),"")) ->  | P15: =IF(O15="**","",SUMIFS(AgeGroupData!$F:$F,AgeGroupData!$A:$A,$B$5,AgeGroupData!$B:$B,$N$9,AgeGroupData!$C:$C,$B$12,AgeGroupData!$D:$D,C15)) -> 40.04656 | Q15: =IF(O15="**","",SUMIFS(AgeGroupData!$G:$G,AgeGroupData!$A:$A,$B$5,AgeGroupData!$B:$B,$N$9,AgeGroupData!$C:$C,$B$12,AgeGroupData!$D:$D,C15)) -> 46.79766 | S15: =IF(T15="**","",SUMIFS(AgeGroupData!$E:$E,AgeGroupData!$A:$A,$B$5,AgeGroupData!$B:$B,$S$9,AgeGroupData!$C:$C,$B$12,AgeGroupData!$D:$D,C15)) -> 18.631 | T15: =IF(SUMIFS(AgeGroupData!$H:$H,AgeGroupData!$A:$A,$B$5,AgeGroupData!$B:$B,$S$9,AgeGroupData!$C:$C,$B$12,AgeGroupData!$D:$D,C15)>=50,"**", IF(SUMIFS(AgeGroupData!$H:$H,AgeGroupData!$A:$A,$B$5,AgeGroupData!$B:$B,$S$9,AgeGroupData!$C:$C,$B$12,AgeGroupData!$D:$D,C15)>25, IF(SUMIFS(AgeGroupData!$H:$H,AgeGroupData!$A:$A,$B$5,AgeGroupData!$B:$B,$S$9,AgeGroupData!$C:$C,$B$12,AgeGroupData!$D:$D,C15)<50,"*",""),"")) ->  | U15: =IF(T15="**","",SUMIFS(AgeGroupData!$F:$F,AgeGroupData!$A:$A,$B$5,AgeGroupData!$B:$B,$S$9,AgeGroupData!$C:$C,$B$12,AgeGroupData!$D:$D,C15)) -> 16.16601 | V15: =IF(T15="**","",SUMIFS(AgeGroupData!$G:$G,AgeGroupData!$A:$A,$B$5,AgeGroupData!$B:$B,$S$9,AgeGroupData!$C:$C,$B$12,AgeGroupData!$D:$D,C15)) -> 21.37602 | X15: =IF(Y15="**","",SUMIFS(AgeGroupData!$E:$E,AgeGroupData!$A:$A,$B$5,AgeGroupData!$B:$B,$X$9,AgeGroupData!$C:$C,$B$12,AgeGroupData!$D:$D,C15)) -> 0 | Y15: =IF(SUMIFS(AgeGroupData!$H:$H,AgeGroupData!$A:$A,$B$5,AgeGroupData!$B:$B,$X$9,AgeGroupData!$C:$C,$B$12,AgeGroupData!$D:$D,C15)>=50,"**", IF(SUMIFS(AgeGroupData!$H:$H,AgeGroupData!$A:$A,$B$5,AgeGroupData!$B:$B,$X$9,AgeGroupData!$C:$C,$B$12,AgeGroupData!$D:$D,C15)>25, IF(SUMIFS(AgeGroupData!$H:$H,AgeGroupData!$A:$A,$B$5,AgeGroupData!$B:$B,$X$9,AgeGroupData!$C:$C,$B$12,AgeGroupData!$D:$D,C15)<50,"*",""),"")) ->  | Z15: =IF(Y15="**","",SUMIFS(AgeGroupData!$F:$F,AgeGroupData!$A:$A,$B$5,AgeGroupData!$B:$B,$X$9,AgeGroupData!$C:$C,$B$12,AgeGroupData!$D:$D,C15)) -> 0 | AA15: =IF(Y15="**","",SUMIFS(AgeGroupData!$G:$G,AgeGroupData!$A:$A,$B$5,AgeGroupData!$B:$B,$X$9,AgeGroupData!$C:$C,$B$12,AgeGroupData!$D:$D,C15)) -> 0
C16: =VLOOKUP($B$5,Lookup!$AA:$AJ,5,FALSE) -> 45–54 | D16: =IF(E16="**","",SUMIFS(AgeGroupData!$E:$E,AgeGroupData!$A:$A,$B$5,AgeGroupData!$B:$B,$D$9,AgeGroupData!$C:$C,$B$12,AgeGroupData!$D:$D,C16)) -> 0.4414386 | E16: =IF(SUMIFS(AgeGroupData!$H:$H,AgeGroupData!$A:$A,$B$5,AgeGroupData!$B:$B,$D$9,AgeGroupData!$C:$C,$B$12,AgeGroupData!$D:$D,C16)>=50,"**", IF(SUMIFS(AgeGroupData!$H:$H,AgeGroupData!$A:$A,$B$5,AgeGroupData!$B:$B,$D$9,AgeGroupData!$C:$C,$B$12,AgeGroupData!$D:$D,C16)>25, IF(SUMIFS(AgeGroupData!$H:$H,AgeGroupData!$A:$A,$B$5,AgeGroupData!$B:$B,$D$9,AgeGroupData!$C:$C,$B$12,AgeGroupData!$D:$D,C16)<50,"*",""),"")) -> * | F16: =IF(E16="**","",SUMIFS(AgeGroupData!$F:$F,AgeGroupData!$A:$A,$B$5,AgeGroupData!$B:$B,$D$9,AgeGroupData!$C:$C,$B$12,AgeGroupData!$D:$D,C16)) -> 0.1893958 | G16: =IF(E16="**","",SUMIFS(AgeGroupData!$G:$G,AgeGroupData!$A:$A,$B$5,AgeGroupData!$B:$B,$D$9,AgeGroupData!$C:$C,$B$12,AgeGroupData!$D:$D,C16)) -> 1.025447 | I16: =IF(J16="**","",SUMIFS(AgeGroupData!$E:$E,AgeGroupData!$A:$A,$B$5,AgeGroupData!$B:$B,$I$9,AgeGroupData!$C:$C,$B$12,AgeGroupData!$D:$D,C16)) -> 25.20654 | J16: =IF(SUMIFS(AgeGroupData!$H:$H,AgeGroupData!$A:$A,$B$5,AgeGroupData!$B:$B,$I$9,AgeGroupData!$C:$C,$B$12,AgeGroupData!$D:$D,C16)>=50,"**", IF(SUMIFS(AgeGroupData!$H:$H,AgeGroupData!$A:$A,$B$5,AgeGroupData!$B:$B,$I$9,AgeGroupData!$C:$C,$B$12,AgeGroupData!$D:$D,C16)>25, IF(SUMIFS(AgeGroupData!$H:$H,AgeGroupData!$A:$A,$B$5,AgeGroupData!$B:$B,$I$9,AgeGroupData!$C:$C,$B$12,AgeGroupData!$D:$D,C16)<50,"*",""),"")) ->  | K16: =IF(J16="**","",SUMIFS(AgeGroupData!$F:$F,AgeGroupData!$A:$A,$B$5,AgeGroupData!$B:$B,$I$9,AgeGroupData!$C:$C,$B$12,AgeGroupData!$D:$D,C16)) -> 22.67917 | L16: =IF(J16="**","",SUMIFS(AgeGroupData!$G:$G,AgeGroupData!$A:$A,$B$5,AgeGroupData!$B:$B,$I$9,AgeGroupData!$C:$C,$B$12,AgeGroupData!$D:$D,C16)) -> 27.91388 | N16: =IF(O16="**","",SUMIFS(AgeGroupData!$E:$E,AgeGroupData!$A:$A,$B$5,AgeGroupData!$B:$B,$N$9,AgeGroupData!$C:$C,$B$12,AgeGroupData!$D:$D,C16)) -> 42.93209 | O16: =IF(SUMIFS(AgeGroupData!$H:$H,AgeGroupData!$A:$A,$B$5,AgeGroupData!$B:$B,$N$9,AgeGroupData!$C:$C,$B$12,AgeGroupData!$D:$D,C16)>=50,"**", IF(SUMIFS(AgeGroupData!$H:$H,AgeGroupData!$A:$A,$B$5,AgeGroupData!$B:$B,$N$9,AgeGroupData!$C:$C,$B$12,AgeGroupData!$D:$D,C16)>25, IF(SUMIFS(AgeGroupData!$H:$H,AgeGroupData!$A:$A,$B$5,AgeGroupData!$B:$B,$N$9,AgeGroupData!$C:$C,$B$12,AgeGroupData!$D:$D,C16)<50,"*",""),"")) ->  | P16: =IF(O16="**","",SUMIFS(AgeGroupData!$F:$F,AgeGroupData!$A:$A,$B$5,AgeGroupData!$B:$B,$N$9,AgeGroupData!$C:$C,$B$12,AgeGroupData!$D:$D,C16)) -> 39.9502 | Q16: =IF(O16="**","",SUMIFS(AgeGroupData!$G:$G,AgeGroupData!$A:$A,$B$5,AgeGroupData!$B:$B,$N$9,AgeGroupData!$C:$C,$B$12,AgeGroupData!$D:$D,C16)) -> 45.96618 | S16: =IF(T16="**","",SUMIFS(AgeGroupData!$E:$E,AgeGroupData!$A:$A,$B$5,AgeGroupData!$B:$B,$S$9,AgeGroupData!$C:$C,$B$12,AgeGroupData!$D:$D,C16)) -> 26.24599 | T16: =IF(SUMIFS(AgeGroupData!$H:$H,AgeGroupData!$A:$A,$B$5,AgeGroupData!$B:$B,$S$9,AgeGroupData!$C:$C,$B$12,AgeGroupData!$D:$D,C16)>=50,"**", IF(SUMIFS(AgeGroupData!$H:$H,AgeGroupData!$A:$A,$B$5,AgeGroupData!$B:$B,$S$9,AgeGroupData!$C:$C,$B$12,AgeGroupData!$D:$D,C16)>25, IF(SUMIFS(AgeGroupData!$H:$H,AgeGroupData!$A:$A,$B$5,AgeGroupData!$B:$B,$S$9,AgeGroupData!$C:$C,$B$12,AgeGroupData!$D:$D,C16)<50,"*",""),"")) ->  | U16: =IF(T16="**","",SUMIFS(AgeGroupData!$F:$F,AgeGroupData!$A:$A,$B$5,AgeGroupData!$B:$B,$S$9,AgeGroupData!$C:$C,$B$12,AgeGroupData!$D:$D,C16)) -> 23.69627 | V16: =IF(T16="**","",SUMIFS(AgeGroupData!$G:$G,AgeGroupData!$A:$A,$B$5,AgeGroupData!$B:$B,$S$9,AgeGroupData!$C:$C,$B$12,AgeGroupData!$D:$D,C16)) -> 28.96592 | X16: =IF(Y16="**","",SUMIFS(AgeGroupData!$E:$E,AgeGroupData!$A:$A,$B$5,AgeGroupData!$B:$B,$X$9,AgeGroupData!$C:$C,$B$12,AgeGroupData!$D:$D,C16)) -> 0 | Y16: =IF(SUMIFS(AgeGroupData!$H:$H,AgeGroupData!$A:$A,$B$5,AgeGroupData!$B:$B,$X$9,AgeGroupData!$C:$C,$B$12,AgeGroupData!$D:$D,C16)>=50,"**", IF(SUMIFS(AgeGroupData!$H:$H,AgeGroupData!$A:$A,$B$5,AgeGroupData!$B:$B,$X$9,AgeGroupData!$C:$C,$B$12,AgeGroupData!$D:$D,C16)>25, IF(SUMIFS(AgeGroupData!$H:$H,AgeGroupData!$A:$A,$B$5,AgeGroupData!$B:$B,$X$9,AgeGroupData!$C:$C,$B$12,AgeGroupData!$D:$D,C16)<50,"*",""),"")) ->  | Z16: =IF(Y16="**","",SUMIFS(AgeGroupData!$F:$F,AgeGroupData!$A:$A,$B$5,AgeGroupData!$B:$B,$X$9,AgeGroupData!$C:$C,$B$12,AgeGroupData!$D:$D,C16)) -> 0 | AA16: =IF(Y16="**","",SUMIFS(AgeGroupData!$G:$G,AgeGroupData!$A:$A,$B$5,AgeGroupData!$B:$B,$X$9,AgeGroupData!$C:$C,$B$12,AgeGroupData!$D:$D,C16)) -> 0
C17: =VLOOKUP($B$5,Lookup!$AA:$AJ,6,FALSE) -> 55–64 | D17: =IF(E17="**","",SUMIFS(AgeGroupData!$E:$E,AgeGroupData!$A:$A,$B$5,AgeGroupData!$B:$B,$D$9,AgeGroupData!$C:$C,$B$12,AgeGroupData!$D:$D,C17)) -> 0.6810806 | E17: =IF(SUMIFS(AgeGroupData!$H:$H,AgeGroupData!$A:$A,$B$5,AgeGroupData!$B:$B,$D$9,AgeGroupData!$C:$C,$B$12,AgeGroupData!$D:$D,C17)>=50,"**", IF(SUMIFS(AgeGroupData!$H:$H,AgeGroupData!$A:$A,$B$5,AgeGroupData!$B:$B,$D$9,AgeGroupData!$C:$C,$B$12,AgeGroupData!$D:$D,C17)>25, IF(SUMIFS(AgeGroupData!$H:$H,AgeGroupData!$A:$A,$B$5,AgeGroupData!$B:$B,$D$9,AgeGroupData!$C:$C,$B$12,AgeGroupData!$D:$D,C17)<50,"*",""),"")) -> * | F17: =IF(E17="**","",SUMIFS(AgeGroupData!$F:$F,AgeGroupData!$A:$A,$B$5,AgeGroupData!$B:$B,$D$9,AgeGroupData!$C:$C,$B$12,AgeGroupData!$D:$D,C17)) -> 0.3312834 | G17: =IF(E17="**","",SUMIFS(AgeGroupData!$G:$G,AgeGroupData!$A:$A,$B$5,AgeGroupData!$B:$B,$D$9,AgeGroupData!$C:$C,$B$12,AgeGroupData!$D:$D,C17)) -> 1.395053 | I17: =IF(J17="**","",SUMIFS(AgeGroupData!$E:$E,AgeGroupData!$A:$A,$B$5,AgeGroupData!$B:$B,$I$9,AgeGroupData!$C:$C,$B$12,AgeGroupData!$D:$D,C17)) -> 24.93979 | J17: =IF(SUMIFS(AgeGroupData!$H:$H,AgeGroupData!$A:$A,$B$5,AgeGroupData!$B:$B,$I$9,AgeGroupData!$C:$C,$B$12,AgeGroupData!$D:$D,C17)>=50,"**", IF(SUMIFS(AgeGroupData!$H:$H,AgeGroupData!$A:$A,$B$5,AgeGroupData!$B:$B,$I$9,AgeGroupData!$C:$C,$B$12,AgeGroupData!$D:$D,C17)>25, IF(SUMIFS(AgeGroupData!$H:$H,AgeGroupData!$A:$A,$B$5,AgeGroupData!$B:$B,$I$9,AgeGroupData!$C:$C,$B$12,AgeGroupData!$D:$D,C17)<50,"*",""),"")) ->  | K17: =IF(J17="**","",SUMIFS(AgeGroupData!$F:$F,AgeGroupData!$A:$A,$B$5,AgeGroupData!$B:$B,$I$9,AgeGroupData!$C:$C,$B$12,AgeGroupData!$D:$D,C17)) -> 22.54965 | L17: =IF(J17="**","",SUMIFS(AgeGroupData!$G:$G,AgeGroupData!$A:$A,$B$5,AgeGroupData!$B:$B,$I$9,AgeGroupData!$C:$C,$B$12,AgeGroupData!$D:$D,C17)) -> 27.49334 | N17: =IF(O17="**","",SUMIFS(AgeGroupData!$E:$E,AgeGroupData!$A:$A,$B$5,AgeGroupData!$B:$B,$N$9,AgeGroupData!$C:$C,$B$12,AgeGroupData!$D:$D,C17)) -> 43.65084 | O17: =IF(SUMIFS(AgeGroupData!$H:$H,AgeGroupData!$A:$A,$B$5,AgeGroupData!$B:$B,$N$9,AgeGroupData!$C:$C,$B$12,AgeGroupData!$D:$D,C17)>=50,"**", IF(SUMIFS(AgeGroupData!$H:$H,AgeGroupData!$A:$A,$B$5,AgeGroupData!$B:$B,$N$9,AgeGroupData!$C:$C,$B$12,AgeGroupData!$D:$D,C17)>25, IF(SUMIFS(AgeGroupData!$H:$H,AgeGroupData!$A:$A,$B$5,AgeGroupData!$B:$B,$N$9,AgeGroupData!$C:$C,$B$12,AgeGroupData!$D:$D,C17)<50,"*",""),"")) ->  | P17: =IF(O17="**","",SUMIFS(AgeGroupData!$F:$F,AgeGroupData!$A:$A,$B$5,AgeGroupData!$B:$B,$N$9,AgeGroupData!$C:$C,$B$12,AgeGroupData!$D:$D,C17)) -> 40.80881 | Q17: =IF(O17="**","",SUMIFS(AgeGroupData!$G:$G,AgeGroupData!$A:$A,$B$5,AgeGroupData!$B:$B,$N$9,AgeGroupData!$C:$C,$B$12,AgeGroupData!$D:$D,C17)) -> 46.53518 | S17: =IF(T17="**","",SUMIFS(AgeGroupData!$E:$E,AgeGroupData!$A:$A,$B$5,AgeGroupData!$B:$B,$S$9,AgeGroupData!$C:$C,$B$12,AgeGroupData!$D:$D,C17)) -> 25.65203 | T17: =IF(SUMIFS(AgeGroupData!$H:$H,AgeGroupData!$A:$A,$B$5,AgeGroupData!$B:$B,$S$9,AgeGroupData!$C:$C,$B$12,AgeGroupData!$D:$D,C17)>=50,"**", IF(SUMIFS(AgeGroupData!$H:$H,AgeGroupData!$A:$A,$B$5,AgeGroupData!$B:$B,$S$9,AgeGroupData!$C:$C,$B$12,AgeGroupData!$D:$D,C17)>25, IF(SUMIFS(AgeGroupData!$H:$H,AgeGroupData!$A:$A,$B$5,AgeGroupData!$B:$B,$S$9,AgeGroupData!$C:$C,$B$12,AgeGroupData!$D:$D,C17)<50,"*",""),"")) ->  | U17: =IF(T17="**","",SUMIFS(AgeGroupData!$F:$F,AgeGroupData!$A:$A,$B$5,AgeGroupData!$B:$B,$S$9,AgeGroupData!$C:$C,$B$12,AgeGroupData!$D:$D,C17)) -> 23.38278 | V17: =IF(T17="**","",SUMIFS(AgeGroupData!$G:$G,AgeGroupData!$A:$A,$B$5,AgeGroupData!$B:$B,$S$9,AgeGroupData!$C:$C,$B$12,AgeGroupData!$D:$D,C17)) -> 28.06086 | X17: =IF(Y17="**","",SUMIFS(AgeGroupData!$E:$E,AgeGroupData!$A:$A,$B$5,AgeGroupData!$B:$B,$X$9,AgeGroupData!$C:$C,$B$12,AgeGroupData!$D:$D,C17)) -> 0 | Y17: =IF(SUMIFS(AgeGroupData!$H:$H,AgeGroupData!$A:$A,$B$5,AgeGroupData!$B:$B,$X$9,AgeGroupData!$C:$C,$B$12,AgeGroupData!$D:$D,C17)>=50,"**", IF(SUMIFS(AgeGroupData!$H:$H,AgeGroupData!$A:$A,$B$5,AgeGroupData!$B:$B,$X$9,AgeGroupData!$C:$C,$B$12,AgeGroupData!$D:$D,C17)>25, IF(SUMIFS(AgeGroupData!$H:$H,AgeGroupData!$A:$A,$B$5,AgeGroupData!$B:$B,$X$9,AgeGroupData!$C:$C,$B$12,AgeGroupData!$D:$D,C17)<50,"*",""),"")) ->  | Z17: =IF(Y17="**","",SUMIFS(AgeGroupData!$F:$F,AgeGroupData!$A:$A,$B$5,AgeGroupData!$B:$B,$X$9,AgeGroupData!$C:$C,$B$12,AgeGroupData!$D:$D,C17)) -> 0 | AA17: =IF(Y17="**","",SUMIFS(AgeGroupData!$G:$G,AgeGroupData!$A:$A,$B$5,AgeGroupData!$B:$B,$X$9,AgeGroupData!$C:$C,$B$12,AgeGroupData!$D:$D,C17)) -> 0
C18: =IF(VLOOKUP($B$5,Lookup!$AA:$AJ,7,FALSE)=""," ",VLOOKUP($B$5,Lookup!$AA:$AJ,7,FALSE)) -> 65–74 | D18: =IF(E18="**","",SUMIFS(AgeGroupData!$E:$E,AgeGroupData!$A:$A,$B$5,AgeGroupData!$B:$B,$D$9,AgeGroupData!$C:$C,$B$12,AgeGroupData!$D:$D,C18)) -> 0.5999067 | E18: =IF(SUMIFS(AgeGroupData!$H:$H,AgeGroupData!$A:$A,$B$5,AgeGroupData!$B:$B,$D$9,AgeGroupData!$C:$C,$B$12,AgeGroupData!$D:$D,C18)>=50,"**", IF(SUMIFS(AgeGroupData!$H:$H,AgeGroupData!$A:$A,$B$5,AgeGroupData!$B:$B,$D$9,AgeGroupData!$C:$C,$B$12,AgeGroupData!$D:$D,C18)>25, IF(SUMIFS(AgeGroupData!$H:$H,AgeGroupData!$A:$A,$B$5,AgeGroupData!$B:$B,$D$9,AgeGroupData!$C:$C,$B$12,AgeGroupData!$D:$D,C18)<50,"*",""),"")) -> * | F18: =IF(E18="**","",SUMIFS(AgeGroupData!$F:$F,AgeGroupData!$A:$A,$B$5,AgeGroupData!$B:$B,$D$9,AgeGroupData!$C:$C,$B$12,AgeGroupData!$D:$D,C18)) -> 0.2879601 | G18: =IF(E18="**","",SUMIFS(AgeGroupData!$G:$G,AgeGroupData!$A:$A,$B$5,AgeGroupData!$B:$B,$D$9,AgeGroupData!$C:$C,$B$12,AgeGroupData!$D:$D,C18)) -> 1.245563 | I18: =IF(J18="**","",SUMIFS(AgeGroupData!$E:$E,AgeGroupData!$A:$A,$B$5,AgeGroupData!$B:$B,$I$9,AgeGroupData!$C:$C,$B$12,AgeGroupData!$D:$D,C18)) -> 25.87213 | J18: =IF(SUMIFS(AgeGroupData!$H:$H,AgeGroupData!$A:$A,$B$5,AgeGroupData!$B:$B,$I$9,AgeGroupData!$C:$C,$B$12,AgeGroupData!$D:$D,C18)>=50,"**", IF(SUMIFS(AgeGroupData!$H:$H,AgeGroupData!$A:$A,$B$5,AgeGroupData!$B:$B,$I$9,AgeGroupData!$C:$C,$B$12,AgeGroupData!$D:$D,C18)>25, IF(SUMIFS(AgeGroupData!$H:$H,AgeGroupData!$A:$A,$B$5,AgeGroupData!$B:$B,$I$9,AgeGroupData!$C:$C,$B$12,AgeGroupData!$D:$D,C18)<50,"*",""),"")) ->  | K18: =IF(J18="**","",SUMIFS(AgeGroupData!$F:$F,AgeGroupData!$A:$A,$B$5,AgeGroupData!$B:$B,$I$9,AgeGroupData!$C:$C,$B$12,AgeGroupData!$D:$D,C18)) -> 23.41083 | L18: =IF(J18="**","",SUMIFS(AgeGroupData!$G:$G,AgeGroupData!$A:$A,$B$5,AgeGroupData!$B:$B,$I$9,AgeGroupData!$C:$C,$B$12,AgeGroupData!$D:$D,C18)) -> 28.49591 | N18: =IF(O18="**","",SUMIFS(AgeGroupData!$E:$E,AgeGroupData!$A:$A,$B$5,AgeGroupData!$B:$B,$N$9,AgeGroupData!$C:$C,$B$12,AgeGroupData!$D:$D,C18)) -> 42.84814 | O18: =IF(SUMIFS(AgeGroupData!$H:$H,AgeGroupData!$A:$A,$B$5,AgeGroupData!$B:$B,$N$9,AgeGroupData!$C:$C,$B$12,AgeGroupData!$D:$D,C18)>=50,"**", IF(SUMIFS(AgeGroupData!$H:$H,AgeGroupData!$A:$A,$B$5,AgeGroupData!$B:$B,$N$9,AgeGroupData!$C:$C,$B$12,AgeGroupData!$D:$D,C18)>25, IF(SUMIFS(AgeGroupData!$H:$H,AgeGroupData!$A:$A,$B$5,AgeGroupData!$B:$B,$N$9,AgeGroupData!$C:$C,$B$12,AgeGroupData!$D:$D,C18)<50,"*",""),"")) ->  | P18: =IF(O18="**","",SUMIFS(AgeGroupData!$F:$F,AgeGroupData!$A:$A,$B$5,AgeGroupData!$B:$B,$N$9,AgeGroupData!$C:$C,$B$12,AgeGroupData!$D:$D,C18)) -> 40.04936 | Q18: =IF(O18="**","",SUMIFS(AgeGroupData!$G:$G,AgeGroupData!$A:$A,$B$5,AgeGroupData!$B:$B,$N$9,AgeGroupData!$C:$C,$B$12,AgeGroupData!$D:$D,C18)) -> 45.69343 | S18: =IF(T18="**","",SUMIFS(AgeGroupData!$E:$E,AgeGroupData!$A:$A,$B$5,AgeGroupData!$B:$B,$S$9,AgeGroupData!$C:$C,$B$12,AgeGroupData!$D:$D,C18)) -> 25.01289 | T18: =IF(SUMIFS(AgeGroupData!$H:$H,AgeGroupData!$A:$A,$B$5,AgeGroupData!$B:$B,$S$9,AgeGroupData!$C:$C,$B$12,AgeGroupData!$D:$D,C18)>=50,"**", IF(SUMIFS(AgeGroupData!$H:$H,AgeGroupData!$A:$A,$B$5,AgeGroupData!$B:$B,$S$9,AgeGroupData!$C:$C,$B$12,AgeGroupData!$D:$D,C18)>25, IF(SUMIFS(AgeGroupData!$H:$H,AgeGroupData!$A:$A,$B$5,AgeGroupData!$B:$B,$S$9,AgeGroupData!$C:$C,$B$12,AgeGroupData!$D:$D,C18)<50,"*",""),"")) ->  | U18: =IF(T18="**","",SUMIFS(AgeGroupData!$F:$F,AgeGroupData!$A:$A,$B$5,AgeGroupData!$B:$B,$S$9,AgeGroupData!$C:$C,$B$12,AgeGroupData!$D:$D,C18)) -> 22.7599 | V18: =IF(T18="**","",SUMIFS(AgeGroupData!$G:$G,AgeGroupData!$A:$A,$B$5,AgeGroupData!$B:$B,$S$9,AgeGroupData!$C:$C,$B$12,AgeGroupData!$D:$D,C18)) -> 27.40975 | X18: =IF(Y18="**","",SUMIFS(AgeGroupData!$E:$E,AgeGroupData!$A:$A,$B$5,AgeGroupData!$B:$B,$X$9,AgeGroupData!$C:$C,$B$12,AgeGroupData!$D:$D,C18)) -> 0 | Y18: =IF(SUMIFS(AgeGroupData!$H:$H,AgeGroupData!$A:$A,$B$5,AgeGroupData!$B:$B,$X$9,AgeGroupData!$C:$C,$B$12,AgeGroupData!$D:$D,C18)>=50,"**", IF(SUMIFS(AgeGroupData!$H:$H,AgeGroupData!$A:$A,$B$5,AgeGroupData!$B:$B,$X$9,AgeGroupData!$C:$C,$B$12,AgeGroupData!$D:$D,C18)>25, IF(SUMIFS(AgeGroupData!$H:$H,AgeGroupData!$A:$A,$B$5,AgeGroupData!$B:$B,$X$9,AgeGroupData!$C:$C,$B$12,AgeGroupData!$D:$D,C18)<50,"*",""),"")) ->  | Z18: =IF(Y18="**","",SUMIFS(AgeGroupData!$F:$F,AgeGroupData!$A:$A,$B$5,AgeGroupData!$B:$B,$X$9,AgeGroupData!$C:$C,$B$12,AgeGroupData!$D:$D,C18)) -> 0 | AA18: =IF(Y18="**","",SUMIFS(AgeGroupData!$G:$G,AgeGroupData!$A:$A,$B$5,AgeGroupData!$B:$B,$X$9,AgeGroupData!$C:$C,$B$12,AgeGroupData!$D:$D,C18)) -> 0
C19: =IF(VLOOKUP($B$5,Lookup!$AA:$AJ,8,FALSE)=""," ",VLOOKUP($B$5,Lookup!$AA:$AJ,8,FALSE)) -> 75–84 | D19: =IF(E19="**","",SUMIFS(AgeGroupData!$E:$E,AgeGroupData!$A:$A,$B$5,AgeGroupData!$B:$B,$D$9,AgeGroupData!$C:$C,$B$12,AgeGroupData!$D:$D,C19)) -> 0.9058895 | E19: =IF(SUMIFS(AgeGroupData!$H:$H,AgeGroupData!$A:$A,$B$5,AgeGroupData!$B:$B,$D$9,AgeGroupData!$C:$C,$B$12,AgeGroupData!$D:$D,C19)>=50,"**", IF(SUMIFS(AgeGroupData!$H:$H,AgeGroupData!$A:$A,$B$5,AgeGroupData!$B:$B,$D$9,AgeGroupData!$C:$C,$B$12,AgeGroupData!$D:$D,C19)>25, IF(SUMIFS(AgeGroupData!$H:$H,AgeGroupData!$A:$A,$B$5,AgeGroupData!$B:$B,$D$9,AgeGroupData!$C:$C,$B$12,AgeGroupData!$D:$D,C19)<50,"*",""),"")) -> * | F19: =IF(E19="**","",SUMIFS(AgeGroupData!$F:$F,AgeGroupData!$A:$A,$B$5,AgeGroupData!$B:$B,$D$9,AgeGroupData!$C:$C,$B$12,AgeGroupData!$D:$D,C19)) -> 0.4918758 | G19: =IF(E19="**","",SUMIFS(AgeGroupData!$G:$G,AgeGroupData!$A:$A,$B$5,AgeGroupData!$B:$B,$D$9,AgeGroupData!$C:$C,$B$12,AgeGroupData!$D:$D,C19)) -> 1.662558 | I19: =IF(J19="**","",SUMIFS(AgeGroupData!$E:$E,AgeGroupData!$A:$A,$B$5,AgeGroupData!$B:$B,$I$9,AgeGroupData!$C:$C,$B$12,AgeGroupData!$D:$D,C19)) -> 33.87476 | J19: =IF(SUMIFS(AgeGroupData!$H:$H,AgeGroupData!$A:$A,$B$5,AgeGroupData!$B:$B,$I$9,AgeGroupData!$C:$C,$B$12,AgeGroupData!$D:$D,C19)>=50,"**", IF(SUMIFS(AgeGroupData!$H:$H,AgeGroupData!$A:$A,$B$5,AgeGroupData!$B:$B,$I$9,AgeGroupData!$C:$C,$B$12,AgeGroupData!$D:$D,C19)>25, IF(SUMIFS(AgeGroupData!$H:$H,AgeGroupData!$A:$A,$B$5,AgeGroupData!$B:$B,$I$9,AgeGroupData!$C:$C,$B$12,AgeGroupData!$D:$D,C19)<50,"*",""),"")) ->  | K19: =IF(J19="**","",SUMIFS(AgeGroupData!$F:$F,AgeGroupData!$A:$A,$B$5,AgeGroupData!$B:$B,$I$9,AgeGroupData!$C:$C,$B$12,AgeGroupData!$D:$D,C19)) -> 29.15706 | L19: =IF(J19="**","",SUMIFS(AgeGroupData!$G:$G,AgeGroupData!$A:$A,$B$5,AgeGroupData!$B:$B,$I$9,AgeGroupData!$C:$C,$B$12,AgeGroupData!$D:$D,C19)) -> 38.93625 | N19: =IF(O19="**","",SUMIFS(AgeGroupData!$E:$E,AgeGroupData!$A:$A,$B$5,AgeGroupData!$B:$B,$N$9,AgeGroupData!$C:$C,$B$12,AgeGroupData!$D:$D,C19)) -> 43.8122 | O19: =IF(SUMIFS(AgeGroupData!$H:$H,AgeGroupData!$A:$A,$B$5,AgeGroupData!$B:$B,$N$9,AgeGroupData!$C:$C,$B$12,AgeGroupData!$D:$D,C19)>=50,"**", IF(SUMIFS(AgeGroupData!$H:$H,AgeGroupData!$A:$A,$B$5,AgeGroupData!$B:$B,$N$9,AgeGroupData!$C:$C,$B$12,AgeGroupData!$D:$D,C19)>25, IF(SUMIFS(AgeGroupData!$H:$H,AgeGroupData!$A:$A,$B$5,AgeGroupData!$B:$B,$N$9,AgeGroupData!$C:$C,$B$12,AgeGroupData!$D:$D,C19)<50,"*",""),"")) ->  | P19: =IF(O19="**","",SUMIFS(AgeGroupData!$F:$F,AgeGroupData!$A:$A,$B$5,AgeGroupData!$B:$B,$N$9,AgeGroupData!$C:$C,$B$12,AgeGroupData!$D:$D,C19)) -> 39.3644 | Q19: =IF(O19="**","",SUMIFS(AgeGroupData!$G:$G,AgeGroupData!$A:$A,$B$5,AgeGroupData!$B:$B,$N$9,AgeGroupData!$C:$C,$B$12,AgeGroupData!$D:$D,C19)) -> 48.36174 | S19: =IF(T19="**","",SUMIFS(AgeGroupData!$E:$E,AgeGroupData!$A:$A,$B$5,AgeGroupData!$B:$B,$S$9,AgeGroupData!$C:$C,$B$12,AgeGroupData!$D:$D,C19)) -> 16.2141 | T19: =IF(SUMIFS(AgeGroupData!$H:$H,AgeGroupData!$A:$A,$B$5,AgeGroupData!$B:$B,$S$9,AgeGroupData!$C:$C,$B$12,AgeGroupData!$D:$D,C19)>=50,"**", IF(SUMIFS(AgeGroupData!$H:$H,AgeGroupData!$A:$A,$B$5,AgeGroupData!$B:$B,$S$9,AgeGroupData!$C:$C,$B$12,AgeGroupData!$D:$D,C19)>25, IF(SUMIFS(AgeGroupData!$H:$H,AgeGroupData!$A:$A,$B$5,AgeGroupData!$B:$B,$S$9,AgeGroupData!$C:$C,$B$12,AgeGroupData!$D:$D,C19)<50,"*",""),"")) ->  | U19: =IF(T19="**","",SUMIFS(AgeGroupData!$F:$F,AgeGroupData!$A:$A,$B$5,AgeGroupData!$B:$B,$S$9,AgeGroupData!$C:$C,$B$12,AgeGroupData!$D:$D,C19)) -> 13.50662 | V19: =IF(T19="**","",SUMIFS(AgeGroupData!$G:$G,AgeGroupData!$A:$A,$B$5,AgeGroupData!$B:$B,$S$9,AgeGroupData!$C:$C,$B$12,AgeGroupData!$D:$D,C19)) -> 19.34294 | X19: =IF(Y19="**","",SUMIFS(AgeGroupData!$E:$E,AgeGroupData!$A:$A,$B$5,AgeGroupData!$B:$B,$X$9,AgeGroupData!$C:$C,$B$12,AgeGroupData!$D:$D,C19)) -> 0 | Y19: =IF(SUMIFS(AgeGroupData!$H:$H,AgeGroupData!$A:$A,$B$5,AgeGroupData!$B:$B,$X$9,AgeGroupData!$C:$C,$B$12,AgeGroupData!$D:$D,C19)>=50,"**", IF(SUMIFS(AgeGroupData!$H:$H,AgeGroupData!$A:$A,$B$5,AgeGroupData!$B:$B,$X$9,AgeGroupData!$C:$C,$B$12,AgeGroupData!$D:$D,C19)>25, IF(SUMIFS(AgeGroupData!$H:$H,AgeGroupData!$A:$A,$B$5,AgeGroupData!$B:$B,$X$9,AgeGroupData!$C:$C,$B$12,AgeGroupData!$D:$D,C19)<50,"*",""),"")) ->  | Z19: =IF(Y19="**","",SUMIFS(AgeGroupData!$F:$F,AgeGroupData!$A:$A,$B$5,AgeGroupData!$B:$B,$X$9,AgeGroupData!$C:$C,$B$12,AgeGroupData!$D:$D,C19)) -> 0 | AA19: =IF(Y19="**","",SUMIFS(AgeGroupData!$G:$G,AgeGroupData!$A:$A,$B$5,AgeGroupData!$B:$B,$X$9,AgeGroupData!$C:$C,$B$12,AgeGroupData!$D:$D,C19)) -> 0
C20: =IF(VLOOKUP($B$5,Lookup!$AA:$AJ,9,FALSE)=""," ",VLOOKUP($B$5,Lookup!$AA:$AJ,9,FALSE)) -> 85+ | D20: =IF(E20="**","",SUMIFS(AgeGroupData!$E:$E,AgeGroupData!$A:$A,$B$5,AgeGroupData!$B:$B,$D$9,AgeGroupData!$C:$C,$B$12,AgeGroupData!$D:$D,C20)) -> 2.019996 | E20: =IF(SUMIFS(AgeGroupData!$H:$H,AgeGroupData!$A:$A,$B$5,AgeGroupData!$B:$B,$D$9,AgeGroupData!$C:$C,$B$12,AgeGroupData!$D:$D,C20)>=50,"**", IF(SUMIFS(AgeGroupData!$H:$H,AgeGroupData!$A:$A,$B$5,AgeGroupData!$B:$B,$D$9,AgeGroupData!$C:$C,$B$12,AgeGroupData!$D:$D,C20)>25, IF(SUMIFS(AgeGroupData!$H:$H,AgeGroupData!$A:$A,$B$5,AgeGroupData!$B:$B,$D$9,AgeGroupData!$C:$C,$B$12,AgeGroupData!$D:$D,C20)<50,"*",""),"")) -> * | F20: =IF(E20="**","",SUMIFS(AgeGroupData!$F:$F,AgeGroupData!$A:$A,$B$5,AgeGroupData!$B:$B,$D$9,AgeGroupData!$C:$C,$B$12,AgeGroupData!$D:$D,C20)) -> 0.8770015 | G20: =IF(E20="**","",SUMIFS(AgeGroupData!$G:$G,AgeGroupData!$A:$A,$B$5,AgeGroupData!$B:$B,$D$9,AgeGroupData!$C:$C,$B$12,AgeGroupData!$D:$D,C20)) -> 4.583764 | I20: =IF(J20="**","",SUMIFS(AgeGroupData!$E:$E,AgeGroupData!$A:$A,$B$5,AgeGroupData!$B:$B,$I$9,AgeGroupData!$C:$C,$B$12,AgeGroupData!$D:$D,C20)) -> 49.09403 | J20: =IF(SUMIFS(AgeGroupData!$H:$H,AgeGroupData!$A:$A,$B$5,AgeGroupData!$B:$B,$I$9,AgeGroupData!$C:$C,$B$12,AgeGroupData!$D:$D,C20)>=50,"**", IF(SUMIFS(AgeGroupData!$H:$H,AgeGroupData!$A:$A,$B$5,AgeGroupData!$B:$B,$I$9,AgeGroupData!$C:$C,$B$12,AgeGroupData!$D:$D,C20)>25, IF(SUMIFS(AgeGroupData!$H:$H,AgeGroupData!$A:$A,$B$5,AgeGroupData!$B:$B,$I$9,AgeGroupData!$C:$C,$B$12,AgeGroupData!$D:$D,C20)<50,"*",""),"")) ->  | K20: =IF(J20="**","",SUMIFS(AgeGroupData!$F:$F,AgeGroupData!$A:$A,$B$5,AgeGroupData!$B:$B,$I$9,AgeGroupData!$C:$C,$B$12,AgeGroupData!$D:$D,C20)) -> 38.10309 | L20: =IF(J20="**","",SUMIFS(AgeGroupData!$G:$G,AgeGroupData!$A:$A,$B$5,AgeGroupData!$B:$B,$I$9,AgeGroupData!$C:$C,$B$12,AgeGroupData!$D:$D,C20)) -> 60.17326 | N20: =IF(O20="**","",SUMIFS(AgeGroupData!$E:$E,AgeGroupData!$A:$A,$B$5,AgeGroupData!$B:$B,$N$9,AgeGroupData!$C:$C,$B$12,AgeGroupData!$D:$D,C20)) -> 27.29908 | O20: =IF(SUMIFS(AgeGroupData!$H:$H,AgeGroupData!$A:$A,$B$5,AgeGroupData!$B:$B,$N$9,AgeGroupData!$C:$C,$B$12,AgeGroupData!$D:$D,C20)>=50,"**", IF(SUMIFS(AgeGroupData!$H:$H,AgeGroupData!$A:$A,$B$5,AgeGroupData!$B:$B,$N$9,AgeGroupData!$C:$C,$B$12,AgeGroupData!$D:$D,C20)>25, IF(SUMIFS(AgeGroupData!$H:$H,AgeGroupData!$A:$A,$B$5,AgeGroupData!$B:$B,$N$9,AgeGroupData!$C:$C,$B$12,AgeGroupData!$D:$D,C20)<50,"*",""),"")) ->  | P20: =IF(O20="**","",SUMIFS(AgeGroupData!$F:$F,AgeGroupData!$A:$A,$B$5,AgeGroupData!$B:$B,$N$9,AgeGroupData!$C:$C,$B$12,AgeGroupData!$D:$D,C20)) -> 19.39835 | Q20: =IF(O20="**","",SUMIFS(AgeGroupData!$G:$G,AgeGroupData!$A:$A,$B$5,AgeGroupData!$B:$B,$N$9,AgeGroupData!$C:$C,$B$12,AgeGroupData!$D:$D,C20)) -> 36.9428 | S20: =IF(T20="**","",SUMIFS(AgeGroupData!$E:$E,AgeGroupData!$A:$A,$B$5,AgeGroupData!$B:$B,$S$9,AgeGroupData!$C:$C,$B$12,AgeGroupData!$D:$D,C20)) -> 12.24843 | T20: =IF(SUMIFS(AgeGroupData!$H:$H,AgeGroupData!$A:$A,$B$5,AgeGroupData!$B:$B,$S$9,AgeGroupData!$C:$C,$B$12,AgeGroupData!$D:$D,C20)>=50,"**", IF(SUMIFS(AgeGroupData!$H:$H,AgeGroupData!$A:$A,$B$5,AgeGroupData!$B:$B,$S$9,AgeGroupData!$C:$C,$B$12,AgeGroupData!$D:$D,C20)>25, IF(SUMIFS(AgeGroupData!$H:$H,AgeGroupData!$A:$A,$B$5,AgeGroupData!$B:$B,$S$9,AgeGroupData!$C:$C,$B$12,AgeGroupData!$D:$D,C20)<50,"*",""),"")) -> * | U20: =IF(T20="**","",SUMIFS(AgeGroupData!$F:$F,AgeGroupData!$A:$A,$B$5,AgeGroupData!$B:$B,$S$9,AgeGroupData!$C:$C,$B$12,AgeGroupData!$D:$D,C20)) -> 7.13061 | V20: =IF(T20="**","",SUMIFS(AgeGroupData!$G:$G,AgeGroupData!$A:$A,$B$5,AgeGroupData!$B:$B,$S$9,AgeGroupData!$C:$C,$B$12,AgeGroupData!$D:$D,C20)) -> 20.23896 | X20: =IF(Y20="**","",SUMIFS(AgeGroupData!$E:$E,AgeGroupData!$A:$A,$B$5,AgeGroupData!$B:$B,$X$9,AgeGroupData!$C:$C,$B$12,AgeGroupData!$D:$D,C20)) -> 0 | Y20: =IF(SUMIFS(AgeGroupData!$H:$H,AgeGroupData!$A:$A,$B$5,AgeGroupData!$B:$B,$X$9,AgeGroupData!$C:$C,$B$12,AgeGroupData!$D:$D,C20)>=50,"**", IF(SUMIFS(AgeGroupData!$H:$H,AgeGroupData!$A:$A,$B$5,AgeGroupData!$B:$B,$X$9,AgeGroupData!$C:$C,$B$12,AgeGroupData!$D:$D,C20)>25, IF(SUMIFS(AgeGroupData!$H:$H,AgeGroupData!$A:$A,$B$5,AgeGroupData!$B:$B,$X$9,AgeGroupData!$C:$C,$B$12,AgeGroupData!$D:$D,C20)<50,"*",""),"")) ->  | Z20: =IF(Y20="**","",SUMIFS(AgeGroupData!$F:$F,AgeGroupData!$A:$A,$B$5,AgeGroupData!$B:$B,$X$9,AgeGroupData!$C:$C,$B$12,AgeGroupData!$D:$D,C20)) -> 0 | AA20: =IF(Y20="**","",SUMIFS(AgeGroupData!$G:$G,AgeGroupData!$A:$A,$B$5,AgeGroupData!$B:$B,$X$9,AgeGroupData!$C:$C,$B$12,AgeGroupData!$D:$D,C20)) -> 0
C21: =VLOOKUP($B$5,Lookup!$AA:$AJ,10,FALSE) -> 18+ | D21: =IF(E21="**","",SUMIFS(AgeGroupData!$E:$E,AgeGroupData!$A:$A,$B$5,AgeGroupData!$B:$B,$D$9,AgeGroupData!$C:$C,$B$12,AgeGroupData!$D:$D,C21)) -> 1.423819 | E21: =IF(SUMIFS(AgeGroupData!$H:$H,AgeGroupData!$A:$A,$B$5,AgeGroupData!$B:$B,$D$9,AgeGroupData!$C:$C,$B$12,AgeGroupData!$D:$D,C21)>=50,"**", IF(SUMIFS(AgeGroupData!$H:$H,AgeGroupData!$A:$A,$B$5,AgeGroupData!$B:$B,$D$9,AgeGroupData!$C:$C,$B$12,AgeGroupData!$D:$D,C21)>25, IF(SUMIFS(AgeGroupData!$H:$H,AgeGroupData!$A:$A,$B$5,AgeGroupData!$B:$B,$D$9,AgeGroupData!$C:$C,$B$12,AgeGroupData!$D:$D,C21)<50,"*",""),"")) ->  | F21: =IF(E21="**","",SUMIFS(AgeGroupData!$F:$F,AgeGroupData!$A:$A,$B$5,AgeGroupData!$B:$B,$D$9,AgeGroupData!$C:$C,$B$12,AgeGroupData!$D:$D,C21)) -> 1.123816 | G21: =IF(E21="**","",SUMIFS(AgeGroupData!$G:$G,AgeGroupData!$A:$A,$B$5,AgeGroupData!$B:$B,$D$9,AgeGroupData!$C:$C,$B$12,AgeGroupData!$D:$D,C21)) -> 1.802447 | I21: =IF(J21="**","",SUMIFS(AgeGroupData!$E:$E,AgeGroupData!$A:$A,$B$5,AgeGroupData!$B:$B,$I$9,AgeGroupData!$C:$C,$B$12,AgeGroupData!$D:$D,C21)) -> 34.59912 | J21: =IF(SUMIFS(AgeGroupData!$H:$H,AgeGroupData!$A:$A,$B$5,AgeGroupData!$B:$B,$I$9,AgeGroupData!$C:$C,$B$12,AgeGroupData!$D:$D,C21)>=50,"**", IF(SUMIFS(AgeGroupData!$H:$H,AgeGroupData!$A:$A,$B$5,AgeGroupData!$B:$B,$I$9,AgeGroupData!$C:$C,$B$12,AgeGroupData!$D:$D,C21)>25, IF(SUMIFS(AgeGroupData!$H:$H,AgeGroupData!$A:$A,$B$5,AgeGroupData!$B:$B,$I$9,AgeGroupData!$C:$C,$B$12,AgeGroupData!$D:$D,C21)<50,"*",""),"")) ->  | K21: =IF(J21="**","",SUMIFS(AgeGroupData!$F:$F,AgeGroupData!$A:$A,$B$5,AgeGroupData!$B:$B,$I$9,AgeGroupData!$C:$C,$B$12,AgeGroupData!$D:$D,C21)) -> 33.3367 | L21: =IF(J21="**","",SUMIFS(AgeGroupData!$G:$G,AgeGroupData!$A:$A,$B$5,AgeGroupData!$B:$B,$I$9,AgeGroupData!$C:$C,$B$12,AgeGroupData!$D:$D,C21)) -> 35.88362 | N21: =IF(O21="**","",SUMIFS(AgeGroupData!$E:$E,AgeGroupData!$A:$A,$B$5,AgeGroupData!$B:$B,$N$9,AgeGroupData!$C:$C,$B$12,AgeGroupData!$D:$D,C21)) -> 39.3036 | O21: =IF(SUMIFS(AgeGroupData!$H:$H,AgeGroupData!$A:$A,$B$5,AgeGroupData!$B:$B,$N$9,AgeGroupData!$C:$C,$B$12,AgeGroupData!$D:$D,C21)>=50,"**", IF(SUMIFS(AgeGroupData!$H:$H,AgeGroupData!$A:$A,$B$5,AgeGroupData!$B:$B,$N$9,AgeGroupData!$C:$C,$B$12,AgeGroupData!$D:$D,C21)>25, IF(SUMIFS(AgeGroupData!$H:$H,AgeGroupData!$A:$A,$B$5,AgeGroupData!$B:$B,$N$9,AgeGroupData!$C:$C,$B$12,AgeGroupData!$D:$D,C21)<50,"*",""),"")) ->  | P21: =IF(O21="**","",SUMIFS(AgeGroupData!$F:$F,AgeGroupData!$A:$A,$B$5,AgeGroupData!$B:$B,$N$9,AgeGroupData!$C:$C,$B$12,AgeGroupData!$D:$D,C21)) -> 38.0358 | Q21: =IF(O21="**","",SUMIFS(AgeGroupData!$G:$G,AgeGroupData!$A:$A,$B$5,AgeGroupData!$B:$B,$N$9,AgeGroupData!$C:$C,$B$12,AgeGroupData!$D:$D,C21)) -> 40.58598 | S21: =IF(T21="**","",SUMIFS(AgeGroupData!$E:$E,AgeGroupData!$A:$A,$B$5,AgeGroupData!$B:$B,$S$9,AgeGroupData!$C:$C,$B$12,AgeGroupData!$D:$D,C21)) -> 19.134 | T21: =IF(SUMIFS(AgeGroupData!$H:$H,AgeGroupData!$A:$A,$B$5,AgeGroupData!$B:$B,$S$9,AgeGroupData!$C:$C,$B$12,AgeGroupData!$D:$D,C21)>=50,"**", IF(SUMIFS(AgeGroupData!$H:$H,AgeGroupData!$A:$A,$B$5,AgeGroupData!$B:$B,$S$9,AgeGroupData!$C:$C,$B$12,AgeGroupData!$D:$D,C21)>25, IF(SUMIFS(AgeGroupData!$H:$H,AgeGroupData!$A:$A,$B$5,AgeGroupData!$B:$B,$S$9,AgeGroupData!$C:$C,$B$12,AgeGroupData!$D:$D,C21)<50,"*",""),"")) ->  | U21: =IF(T21="**","",SUMIFS(AgeGroupData!$F:$F,AgeGroupData!$A:$A,$B$5,AgeGroupData!$B:$B,$S$9,AgeGroupData!$C:$C,$B$12,AgeGroupData!$D:$D,C21)) -> 18.18128 | V21: =IF(T21="**","",SUMIFS(AgeGroupData!$G:$G,AgeGroupData!$A:$A,$B$5,AgeGroupData!$B:$B,$S$9,AgeGroupData!$C:$C,$B$12,AgeGroupData!$D:$D,C21)) -> 20.12436 | X21: =IF(Y21="**","",SUMIFS(AgeGroupData!$E:$E,AgeGroupData!$A:$A,$B$5,AgeGroupData!$B:$B,$X$9,AgeGroupData!$C:$C,$B$12,AgeGroupData!$D:$D,C21)) -> 0 | Y21: =IF(SUMIFS(AgeGroupData!$H:$H,AgeGroupData!$A:$A,$B$5,AgeGroupData!$B:$B,$X$9,AgeGroupData!$C:$C,$B$12,AgeGroupData!$D:$D,C21)>=50,"**", IF(SUMIFS(AgeGroupData!$H:$H,AgeGroupData!$A:$A,$B$5,AgeGroupData!$B:$B,$X$9,AgeGroupData!$C:$C,$B$12,AgeGroupData!$D:$D,C21)>25, IF(SUMIFS(AgeGroupData!$H:$H,AgeGroupData!$A:$A,$B$5,AgeGroupData!$B:$B,$X$9,AgeGroupData!$C:$C,$B$12,AgeGroupData!$D:$D,C21)<50,"*",""),"")) ->  | Z21: =IF(Y21="**","",SUMIFS(AgeGroupData!$F:$F,AgeGroupData!$A:$A,$B$5,AgeGroupData!$B:$B,$X$9,AgeGroupData!$C:$C,$B$12,AgeGroupData!$D:$D,C21)) -> 0 | AA21: =IF(Y21="**","",SUMIFS(AgeGroupData!$G:$G,AgeGroupData!$A:$A,$B$5,AgeGroupData!$B:$B,$X$9,AgeGroupData!$C:$C,$B$12,AgeGroupData!$D:$D,C21)) -> 0
B22: Females
C23: =VLOOKUP($B$5,Lookup!$AA:$AJ,2,FALSE) -> 18–24 | D23: =IF(E23="**","",SUMIFS(AgeGroupData!$E:$E,AgeGroupData!$A:$A,$B$5,AgeGroupData!$B:$B,$D$9,AgeGroupData!$C:$C,$B$22,AgeGroupData!$D:$D,C23)) -> 7.359542 | E23: =IF(SUMIFS(AgeGroupData!$H:$H,AgeGroupData!$A:$A,$B$5,AgeGroupData!$B:$B,$D$9,AgeGroupData!$C:$C,$B$22,AgeGroupData!$D:$D,C23)>=50,"**", IF(SUMIFS(AgeGroupData!$H:$H,AgeGroupData!$A:$A,$B$5,AgeGroupData!$B:$B,$D$9,AgeGroupData!$C:$C,$B$22,AgeGroupData!$D:$D,C23)>25, IF(SUMIFS(AgeGroupData!$H:$H,AgeGroupData!$A:$A,$B$5,AgeGroupData!$B:$B,$D$9,AgeGroupData!$C:$C,$B$22,AgeGroupData!$D:$D,C23)<50,"*",""),"")) ->  | F23: =IF(E23="**","",SUMIFS(AgeGroupData!$F:$F,AgeGroupData!$A:$A,$B$5,AgeGroupData!$B:$B,$D$9,AgeGroupData!$C:$C,$B$22,AgeGroupData!$D:$D,C23)) -> 5.34299 | G23: =IF(E23="**","",SUMIFS(AgeGroupData!$G:$G,AgeGroupData!$A:$A,$B$5,AgeGroupData!$B:$B,$D$9,AgeGroupData!$C:$C,$B$22,AgeGroupData!$D:$D,C23)) -> 10.05632 | I23: =IF(J23="**","",SUMIFS(AgeGroupData!$E:$E,AgeGroupData!$A:$A,$B$5,AgeGroupData!$B:$B,$I$9,AgeGroupData!$C:$C,$B$22,AgeGroupData!$D:$D,C23)) -> 55.43131 | J23: =IF(SUMIFS(AgeGroupData!$H:$H,AgeGroupData!$A:$A,$B$5,AgeGroupData!$B:$B,$I$9,AgeGroupData!$C:$C,$B$22,AgeGroupData!$D:$D,C23)>=50,"**", IF(SUMIFS(AgeGroupData!$H:$H,AgeGroupData!$A:$A,$B$5,AgeGroupData!$B:$B,$I$9,AgeGroupData!$C:$C,$B$22,AgeGroupData!$D:$D,C23)>25, IF(SUMIFS(AgeGroupData!$H:$H,AgeGroupData!$A:$A,$B$5,AgeGroupData!$B:$B,$I$9,AgeGroupData!$C:$C,$B$22,AgeGroupData!$D:$D,C23)<50,"*",""),"")) ->  | K23: =IF(J23="**","",SUMIFS(AgeGroupData!$F:$F,AgeGroupData!$A:$A,$B$5,AgeGroupData!$B:$B,$I$9,AgeGroupData!$C:$C,$B$22,AgeGroupData!$D:$D,C23)) -> 51.11782 | L23: =IF(J23="**","",SUMIFS(AgeGroupData!$G:$G,AgeGroupData!$A:$A,$B$5,AgeGroupData!$B:$B,$I$9,AgeGroupData!$C:$C,$B$22,AgeGroupData!$D:$D,C23)) -> 59.66452 | N23: =IF(O23="**","",SUMIFS(AgeGroupData!$E:$E,AgeGroupData!$A:$A,$B$5,AgeGroupData!$B:$B,$N$9,AgeGroupData!$C:$C,$B$22,AgeGroupData!$D:$D,C23)) -> 15.56831 | O23: =IF(SUMIFS(AgeGroupData!$H:$H,AgeGroupData!$A:$A,$B$5,AgeGroupData!$B:$B,$N$9,AgeGroupData!$C:$C,$B$22,AgeGroupData!$D:$D,C23)>=50,"**", IF(SUMIFS(AgeGroupData!$H:$H,AgeGroupData!$A:$A,$B$5,AgeGroupData!$B:$B,$N$9,AgeGroupData!$C:$C,$B$22,AgeGroupData!$D:$D,C23)>25, IF(SUMIFS(AgeGroupData!$H:$H,AgeGroupData!$A:$A,$B$5,AgeGroupData!$B:$B,$N$9,AgeGroupData!$C:$C,$B$22,AgeGroupData!$D:$D,C23)<50,"*",""),"")) ->  | P23: =IF(O23="**","",SUMIFS(AgeGroupData!$F:$F,AgeGroupData!$A:$A,$B$5,AgeGroupData!$B:$B,$N$9,AgeGroupData!$C:$C,$B$22,AgeGroupData!$D:$D,C23)) -> 12.73839 | Q23: =IF(O23="**","",SUMIFS(AgeGroupData!$G:$G,AgeGroupData!$A:$A,$B$5,AgeGroupData!$B:$B,$N$9,AgeGroupData!$C:$C,$B$22,AgeGroupData!$D:$D,C23)) -> 18.89081 | S23: =IF(T23="**","",SUMIFS(AgeGroupData!$E:$E,AgeGroupData!$A:$A,$B$5,AgeGroupData!$B:$B,$S$9,AgeGroupData!$C:$C,$B$22,AgeGroupData!$D:$D,C23)) -> 8.924405 | T23: =IF(SUMIFS(AgeGroupData!$H:$H,AgeGroupData!$A:$A,$B$5,AgeGroupData!$B:$B,$S$9,AgeGroupData!$C:$C,$B$22,AgeGroupData!$D:$D,C23)>=50,"**", IF(SUMIFS(AgeGroupData!$H:$H,AgeGroupData!$A:$A,$B$5,AgeGroupData!$B:$B,$S$9,AgeGroupData!$C:$C,$B$22,AgeGroupData!$D:$D,C23)>25, IF(SUMIFS(AgeGroupData!$H:$H,AgeGroupData!$A:$A,$B$5,AgeGroupData!$B:$B,$S$9,AgeGroupData!$C:$C,$B$22,AgeGroupData!$D:$D,C23)<50,"*",""),"")) ->  | U23: =IF(T23="**","",SUMIFS(AgeGroupData!$F:$F,AgeGroupData!$A:$A,$B$5,AgeGroupData!$B:$B,$S$9,AgeGroupData!$C:$C,$B$22,AgeGroupData!$D:$D,C23)) -> 6.764326 | V23: =IF(T23="**","",SUMIFS(AgeGroupData!$G:$G,AgeGroupData!$A:$A,$B$5,AgeGroupData!$B:$B,$S$9,AgeGroupData!$C:$C,$B$22,AgeGroupData!$D:$D,C23)) -> 11.6878 | X23: =IF(Y23="**","",SUMIFS(AgeGroupData!$E:$E,AgeGroupData!$A:$A,$B$5,AgeGroupData!$B:$B,$X$9,AgeGroupData!$C:$C,$B$22,AgeGroupData!$D:$D,C23)) -> 0 | Y23: =IF(SUMIFS(AgeGroupData!$H:$H,AgeGroupData!$A:$A,$B$5,AgeGroupData!$B:$B,$X$9,AgeGroupData!$C:$C,$B$22,AgeGroupData!$D:$D,C23)>=50,"**", IF(SUMIFS(AgeGroupData!$H:$H,AgeGroupData!$A:$A,$B$5,AgeGroupData!$B:$B,$X$9,AgeGroupData!$C:$C,$B$22,AgeGroupData!$D:$D,C23)>25, IF(SUMIFS(AgeGroupData!$H:$H,AgeGroupData!$A:$A,$B$5,AgeGroupData!$B:$B,$X$9,AgeGroupData!$C:$C,$B$22,AgeGroupData!$D:$D,C23)<50,"*",""),"")) ->  | Z23: =IF(Y23="**","",SUMIFS(AgeGroupData!$F:$F,AgeGroupData!$A:$A,$B$5,AgeGroupData!$B:$B,$X$9,AgeGroupData!$C:$C,$B$22,AgeGroupData!$D:$D,C23)) -> 0 | AA23: =IF(Y23="**","",SUMIFS(AgeGroupData!$G:$G,AgeGroupData!$A:$A,$B$5,AgeGroupData!$B:$B,$X$9,AgeGroupData!$C:$C,$B$22,AgeGroupData!$D:$D,C23)) -> 0
C24: =VLOOKUP($B$5,Lookup!$AA:$AJ,3,FALSE) -> 25–34 | D24: =IF(E24="**","",SUMIFS(AgeGroupData!$E:$E,AgeGroupData!$A:$A,$B$5,AgeGroupData!$B:$B,$D$9,AgeGroupData!$C:$C,$B$22,AgeGroupData!$D:$D,C24)) -> 3.913552 | E24: =IF(SUMIFS(AgeGroupData!$H:$H,AgeGroupData!$A:$A,$B$5,AgeGroupData!$B:$B,$D$9,AgeGroupData!$C:$C,$B$22,AgeGroupData!$D:$D,C24)>=50,"**", IF(SUMIFS(AgeGroupData!$H:$H,AgeGroupData!$A:$A,$B$5,AgeGroupData!$B:$B,$D$9,AgeGroupData!$C:$C,$B$22,AgeGroupData!$D:$D,C24)>25, IF(SUMIFS(AgeGroupData!$H:$H,AgeGroupData!$A:$A,$B$5,AgeGroupData!$B:$B,$D$9,AgeGroupData!$C:$C,$B$22,AgeGroupData!$D:$D,C24)<50,"*",""),"")) ->  | F24: =IF(E24="**","",SUMIFS(AgeGroupData!$F:$F,AgeGroupData!$A:$A,$B$5,AgeGroupData!$B:$B,$D$9,AgeGroupData!$C:$C,$B$22,AgeGroupData!$D:$D,C24)) -> 2.823985 | G24: =IF(E24="**","",SUMIFS(AgeGroupData!$G:$G,AgeGroupData!$A:$A,$B$5,AgeGroupData!$B:$B,$D$9,AgeGroupData!$C:$C,$B$22,AgeGroupData!$D:$D,C24)) -> 5.400142 | I24: =IF(J24="**","",SUMIFS(AgeGroupData!$E:$E,AgeGroupData!$A:$A,$B$5,AgeGroupData!$B:$B,$I$9,AgeGroupData!$C:$C,$B$22,AgeGroupData!$D:$D,C24)) -> 47.46817 | J24: =IF(SUMIFS(AgeGroupData!$H:$H,AgeGroupData!$A:$A,$B$5,AgeGroupData!$B:$B,$I$9,AgeGroupData!$C:$C,$B$22,AgeGroupData!$D:$D,C24)>=50,"**", IF(SUMIFS(AgeGroupData!$H:$H,AgeGroupData!$A:$A,$B$5,AgeGroupData!$B:$B,$I$9,AgeGroupData!$C:$C,$B$22,AgeGroupData!$D:$D,C24)>25, IF(SUMIFS(AgeGroupData!$H:$H,AgeGroupData!$A:$A,$B$5,AgeGroupData!$B:$B,$I$9,AgeGroupData!$C:$C,$B$22,AgeGroupData!$D:$D,C24)<50,"*",""),"")) ->  | K24: =IF(J24="**","",SUMIFS(AgeGroupData!$F:$F,AgeGroupData!$A:$A,$B$5,AgeGroupData!$B:$B,$I$9,AgeGroupData!$C:$C,$B$22,AgeGroupData!$D:$D,C24)) -> 44.20618 | L24: =IF(J24="**","",SUMIFS(AgeGroupData!$G:$G,AgeGroupData!$A:$A,$B$5,AgeGroupData!$B:$B,$I$9,AgeGroupData!$C:$C,$B$22,AgeGroupData!$D:$D,C24)) -> 50.75191 | N24: =IF(O24="**","",SUMIFS(AgeGroupData!$E:$E,AgeGroupData!$A:$A,$B$5,AgeGroupData!$B:$B,$N$9,AgeGroupData!$C:$C,$B$22,AgeGroupData!$D:$D,C24)) -> 22.56822 | O24: =IF(SUMIFS(AgeGroupData!$H:$H,AgeGroupData!$A:$A,$B$5,AgeGroupData!$B:$B,$N$9,AgeGroupData!$C:$C,$B$22,AgeGroupData!$D:$D,C24)>=50,"**", IF(SUMIFS(AgeGroupData!$H:$H,AgeGroupData!$A:$A,$B$5,AgeGroupData!$B:$B,$N$9,AgeGroupData!$C:$C,$B$22,AgeGroupData!$D:$D,C24)>25, IF(SUMIFS(AgeGroupData!$H:$H,AgeGroupData!$A:$A,$B$5,AgeGroupData!$B:$B,$N$9,AgeGroupData!$C:$C,$B$22,AgeGroupData!$D:$D,C24)<50,"*",""),"")) ->  | P24: =IF(O24="**","",SUMIFS(AgeGroupData!$F:$F,AgeGroupData!$A:$A,$B$5,AgeGroupData!$B:$B,$N$9,AgeGroupData!$C:$C,$B$22,AgeGroupData!$D:$D,C24)) -> 19.92603 | Q24: =IF(O24="**","",SUMIFS(AgeGroupData!$G:$G,AgeGroupData!$A:$A,$B$5,AgeGroupData!$B:$B,$N$9,AgeGroupData!$C:$C,$B$22,AgeGroupData!$D:$D,C24)) -> 25.4494 | S24: =IF(T24="**","",SUMIFS(AgeGroupData!$E:$E,AgeGroupData!$A:$A,$B$5,AgeGroupData!$B:$B,$S$9,AgeGroupData!$C:$C,$B$22,AgeGroupData!$D:$D,C24)) -> 14.90251 | T24: =IF(SUMIFS(AgeGroupData!$H:$H,AgeGroupData!$A:$A,$B$5,AgeGroupData!$B:$B,$S$9,AgeGroupData!$C:$C,$B$22,AgeGroupData!$D:$D,C24)>=50,"**", IF(SUMIFS(AgeGroupData!$H:$H,AgeGroupData!$A:$A,$B$5,AgeGroupData!$B:$B,$S$9,AgeGroupData!$C:$C,$B$22,AgeGroupData!$D:$D,C24)>25, IF(SUMIFS(AgeGroupData!$H:$H,AgeGroupData!$A:$A,$B$5,AgeGroupData!$B:$B,$S$9,AgeGroupData!$C:$C,$B$22,AgeGroupData!$D:$D,C24)<50,"*",""),"")) ->  | U24: =IF(T24="**","",SUMIFS(AgeGroupData!$F:$F,AgeGroupData!$A:$A,$B$5,AgeGroupData!$B:$B,$S$9,AgeGroupData!$C:$C,$B$22,AgeGroupData!$D:$D,C24)) -> 12.7353 | V24: =IF(T24="**","",SUMIFS(AgeGroupData!$G:$G,AgeGroupData!$A:$A,$B$5,AgeGroupData!$B:$B,$S$9,AgeGroupData!$C:$C,$B$22,AgeGroupData!$D:$D,C24)) -> 17.36514 | X24: =IF(Y24="**","",SUMIFS(AgeGroupData!$E:$E,AgeGroupData!$A:$A,$B$5,AgeGroupData!$B:$B,$X$9,AgeGroupData!$C:$C,$B$22,AgeGroupData!$D:$D,C24)) -> 0 | Y24: =IF(SUMIFS(AgeGroupData!$H:$H,AgeGroupData!$A:$A,$B$5,AgeGroupData!$B:$B,$X$9,AgeGroupData!$C:$C,$B$22,AgeGroupData!$D:$D,C24)>=50,"**", IF(SUMIFS(AgeGroupData!$H:$H,AgeGroupData!$A:$A,$B$5,AgeGroupData!$B:$B,$X$9,AgeGroupData!$C:$C,$B$22,AgeGroupData!$D:$D,C24)>25, IF(SUMIFS(AgeGroupData!$H:$H,AgeGroupData!$A:$A,$B$5,AgeGroupData!$B:$B,$X$9,AgeGroupData!$C:$C,$B$22,AgeGroupData!$D:$D,C24)<50,"*",""),"")) ->  | Z24: =IF(Y24="**","",SUMIFS(AgeGroupData!$F:$F,AgeGroupData!$A:$A,$B$5,AgeGroupData!$B:$B,$X$9,AgeGroupData!$C:$C,$B$22,AgeGroupData!$D:$D,C24)) -> 0 | AA24: =IF(Y24="**","",SUMIFS(AgeGroupData!$G:$G,AgeGroupData!$A:$A,$B$5,AgeGroupData!$B:$B,$X$9,AgeGroupData!$C:$C,$B$22,AgeGroupData!$D:$D,C24)) -> 0
C25: =VLOOKUP($B$5,Lookup!$AA:$AJ,4,FALSE) -> 35–44 | D25: =IF(E25="**","",SUMIFS(AgeGroupData!$E:$E,AgeGroupData!$A:$A,$B$5,AgeGroupData!$B:$B,$D$9,AgeGroupData!$C:$C,$B$22,AgeGroupData!$D:$D,C25)) -> 2.581576 | E25: =IF(SUMIFS(AgeGroupData!$H:$H,AgeGroupData!$A:$A,$B$5,AgeGroupData!$B:$B,$D$9,AgeGroupData!$C:$C,$B$22,AgeGroupData!$D:$D,C25)>=50,"**", IF(SUMIFS(AgeGroupData!$H:$H,AgeGroupData!$A:$A,$B$5,AgeGroupData!$B:$B,$D$9,AgeGroupData!$C:$C,$B$22,AgeGroupData!$D:$D,C25)>25, IF(SUMIFS(AgeGroupData!$H:$H,AgeGroupData!$A:$A,$B$5,AgeGroupData!$B:$B,$D$9,AgeGroupData!$C:$C,$B$22,AgeGroupData!$D:$D,C25)<50,"*",""),"")) ->  | F25: =IF(E25="**","",SUMIFS(AgeGroupData!$F:$F,AgeGroupData!$A:$A,$B$5,AgeGroupData!$B:$B,$D$9,AgeGroupData!$C:$C,$B$22,AgeGroupData!$D:$D,C25)) -> 1.686286 | G25: =IF(E25="**","",SUMIFS(AgeGroupData!$G:$G,AgeGroupData!$A:$A,$B$5,AgeGroupData!$B:$B,$D$9,AgeGroupData!$C:$C,$B$22,AgeGroupData!$D:$D,C25)) -> 3.933182 | I25: =IF(J25="**","",SUMIFS(AgeGroupData!$E:$E,AgeGroupData!$A:$A,$B$5,AgeGroupData!$B:$B,$I$9,AgeGroupData!$C:$C,$B$22,AgeGroupData!$D:$D,C25)) -> 42.66249 | J25: =IF(SUMIFS(AgeGroupData!$H:$H,AgeGroupData!$A:$A,$B$5,AgeGroupData!$B:$B,$I$9,AgeGroupData!$C:$C,$B$22,AgeGroupData!$D:$D,C25)>=50,"**", IF(SUMIFS(AgeGroupData!$H:$H,AgeGroupData!$A:$A,$B$5,AgeGroupData!$B:$B,$I$9,AgeGroupData!$C:$C,$B$22,AgeGroupData!$D:$D,C25)>25, IF(SUMIFS(AgeGroupData!$H:$H,AgeGroupData!$A:$A,$B$5,AgeGroupData!$B:$B,$I$9,AgeGroupData!$C:$C,$B$22,AgeGroupData!$D:$D,C25)<50,"*",""),"")) ->  | K25: =IF(J25="**","",SUMIFS(AgeGroupData!$F:$F,AgeGroupData!$A:$A,$B$5,AgeGroupData!$B:$B,$I$9,AgeGroupData!$C:$C,$B$22,AgeGroupData!$D:$D,C25)) -> 39.44957 | L25: =IF(J25="**","",SUMIFS(AgeGroupData!$G:$G,AgeGroupData!$A:$A,$B$5,AgeGroupData!$B:$B,$I$9,AgeGroupData!$C:$C,$B$22,AgeGroupData!$D:$D,C25)) -> 45.93854 | N25: =IF(O25="**","",SUMIFS(AgeGroupData!$E:$E,AgeGroupData!$A:$A,$B$5,AgeGroupData!$B:$B,$N$9,AgeGroupData!$C:$C,$B$22,AgeGroupData!$D:$D,C25)) -> 22.45325 | O25: =IF(SUMIFS(AgeGroupData!$H:$H,AgeGroupData!$A:$A,$B$5,AgeGroupData!$B:$B,$N$9,AgeGroupData!$C:$C,$B$22,AgeGroupData!$D:$D,C25)>=50,"**", IF(SUMIFS(AgeGroupData!$H:$H,AgeGroupData!$A:$A,$B$5,AgeGroupData!$B:$B,$N$9,AgeGroupData!$C:$C,$B$22,AgeGroupData!$D:$D,C25)>25, IF(SUMIFS(AgeGroupData!$H:$H,AgeGroupData!$A:$A,$B$5,AgeGroupData!$B:$B,$N$9,AgeGroupData!$C:$C,$B$22,AgeGroupData!$D:$D,C25)<50,"*",""),"")) ->  | P25: =IF(O25="**","",SUMIFS(AgeGroupData!$F:$F,AgeGroupData!$A:$A,$B$5,AgeGroupData!$B:$B,$N$9,AgeGroupData!$C:$C,$B$22,AgeGroupData!$D:$D,C25)) -> 19.93735 | Q25: =IF(O25="**","",SUMIFS(AgeGroupData!$G:$G,AgeGroupData!$A:$A,$B$5,AgeGroupData!$B:$B,$N$9,AgeGroupData!$C:$C,$B$22,AgeGroupData!$D:$D,C25)) -> 25.18676 | S25: =IF(T25="**","",SUMIFS(AgeGroupData!$E:$E,AgeGroupData!$A:$A,$B$5,AgeGroupData!$B:$B,$S$9,AgeGroupData!$C:$C,$B$22,AgeGroupData!$D:$D,C25)) -> 22.31477 | T25: =IF(SUMIFS(AgeGroupData!$H:$H,AgeGroupData!$A:$A,$B$5,AgeGroupData!$B:$B,$S$9,AgeGroupData!$C:$C,$B$22,AgeGroupData!$D:$D,C25)>=50,"**", IF(SUMIFS(AgeGroupData!$H:$H,AgeGroupData!$A:$A,$B$5,AgeGroupData!$B:$B,$S$9,AgeGroupData!$C:$C,$B$22,AgeGroupData!$D:$D,C25)>25, IF(SUMIFS(AgeGroupData!$H:$H,AgeGroupData!$A:$A,$B$5,AgeGroupData!$B:$B,$S$9,AgeGroupData!$C:$C,$B$22,AgeGroupData!$D:$D,C25)<50,"*",""),"")) ->  | U25: =IF(T25="**","",SUMIFS(AgeGroupData!$F:$F,AgeGroupData!$A:$A,$B$5,AgeGroupData!$B:$B,$S$9,AgeGroupData!$C:$C,$B$22,AgeGroupData!$D:$D,C25)) -> 19.35142 | V25: =IF(T25="**","",SUMIFS(AgeGroupData!$G:$G,AgeGroupData!$A:$A,$B$5,AgeGroupData!$B:$B,$S$9,AgeGroupData!$C:$C,$B$22,AgeGroupData!$D:$D,C25)) -> 25.58794 | X25: =IF(Y25="**","",SUMIFS(AgeGroupData!$E:$E,AgeGroupData!$A:$A,$B$5,AgeGroupData!$B:$B,$X$9,AgeGroupData!$C:$C,$B$22,AgeGroupData!$D:$D,C25)) -> 0 | Y25: =IF(SUMIFS(AgeGroupData!$H:$H,AgeGroupData!$A:$A,$B$5,AgeGroupData!$B:$B,$X$9,AgeGroupData!$C:$C,$B$22,AgeGroupData!$D:$D,C25)>=50,"**", IF(SUMIFS(AgeGroupData!$H:$H,AgeGroupData!$A:$A,$B$5,AgeGroupData!$B:$B,$X$9,AgeGroupData!$C:$C,$B$22,AgeGroupData!$D:$D,C25)>25, IF(SUMIFS(AgeGroupData!$H:$H,AgeGroupData!$A:$A,$B$5,AgeGroupData!$B:$B,$X$9,AgeGroupData!$C:$C,$B$22,AgeGroupData!$D:$D,C25)<50,"*",""),"")) ->  | Z25: =IF(Y25="**","",SUMIFS(AgeGroupData!$F:$F,AgeGroupData!$A:$A,$B$5,AgeGroupData!$B:$B,$X$9,AgeGroupData!$C:$C,$B$22,AgeGroupData!$D:$D,C25)) -> 0 | AA25: =IF(Y25="**","",SUMIFS(AgeGroupData!$G:$G,AgeGroupData!$A:$A,$B$5,AgeGroupData!$B:$B,$X$9,AgeGroupData!$C:$C,$B$22,AgeGroupData!$D:$D,C25)) -> 0
C26: =VLOOKUP($B$5,Lookup!$AA:$AJ,5,FALSE) -> 45–54 | D26: =IF(E26="**","",SUMIFS(AgeGroupData!$E:$E,AgeGroupData!$A:$A,$B$5,AgeGroupData!$B:$B,$D$9,AgeGroupData!$C:$C,$B$22,AgeGroupData!$D:$D,C26)) -> 1.297764 | E26: =IF(SUMIFS(AgeGroupData!$H:$H,AgeGroupData!$A:$A,$B$5,AgeGroupData!$B:$B,$D$9,AgeGroupData!$C:$C,$B$22,AgeGroupData!$D:$D,C26)>=50,"**", IF(SUMIFS(AgeGroupData!$H:$H,AgeGroupData!$A:$A,$B$5,AgeGroupData!$B:$B,$D$9,AgeGroupData!$C:$C,$B$22,AgeGroupData!$D:$D,C26)>25, IF(SUMIFS(AgeGroupData!$H:$H,AgeGroupData!$A:$A,$B$5,AgeGroupData!$B:$B,$D$9,AgeGroupData!$C:$C,$B$22,AgeGroupData!$D:$D,C26)<50,"*",""),"")) ->  | F26: =IF(E26="**","",SUMIFS(AgeGroupData!$F:$F,AgeGroupData!$A:$A,$B$5,AgeGroupData!$B:$B,$D$9,AgeGroupData!$C:$C,$B$22,AgeGroupData!$D:$D,C26)) -> 0.8695092 | G26: =IF(E26="**","",SUMIFS(AgeGroupData!$G:$G,AgeGroupData!$A:$A,$B$5,AgeGroupData!$B:$B,$D$9,AgeGroupData!$C:$C,$B$22,AgeGroupData!$D:$D,C26)) -> 1.932832 | I26: =IF(J26="**","",SUMIFS(AgeGroupData!$E:$E,AgeGroupData!$A:$A,$B$5,AgeGroupData!$B:$B,$I$9,AgeGroupData!$C:$C,$B$22,AgeGroupData!$D:$D,C26)) -> 35.79241 | J26: =IF(SUMIFS(AgeGroupData!$H:$H,AgeGroupData!$A:$A,$B$5,AgeGroupData!$B:$B,$I$9,AgeGroupData!$C:$C,$B$22,AgeGroupData!$D:$D,C26)>=50,"**", IF(SUMIFS(AgeGroupData!$H:$H,AgeGroupData!$A:$A,$B$5,AgeGroupData!$B:$B,$I$9,AgeGroupData!$C:$C,$B$22,AgeGroupData!$D:$D,C26)>25, IF(SUMIFS(AgeGroupData!$H:$H,AgeGroupData!$A:$A,$B$5,AgeGroupData!$B:$B,$I$9,AgeGroupData!$C:$C,$B$22,AgeGroupData!$D:$D,C26)<50,"*",""),"")) ->  | K26: =IF(J26="**","",SUMIFS(AgeGroupData!$F:$F,AgeGroupData!$A:$A,$B$5,AgeGroupData!$B:$B,$I$9,AgeGroupData!$C:$C,$B$22,AgeGroupData!$D:$D,C26)) -> 33.14654 | L26: =IF(J26="**","",SUMIFS(AgeGroupData!$G:$G,AgeGroupData!$A:$A,$B$5,AgeGroupData!$B:$B,$I$9,AgeGroupData!$C:$C,$B$22,AgeGroupData!$D:$D,C26)) -> 38.52776 | N26: =IF(O26="**","",SUMIFS(AgeGroupData!$E:$E,AgeGroupData!$A:$A,$B$5,AgeGroupData!$B:$B,$N$9,AgeGroupData!$C:$C,$B$22,AgeGroupData!$D:$D,C26)) -> 27.35694 | O26: =IF(SUMIFS(AgeGroupData!$H:$H,AgeGroupData!$A:$A,$B$5,AgeGroupData!$B:$B,$N$9,AgeGroupData!$C:$C,$B$22,AgeGroupData!$D:$D,C26)>=50,"**", IF(SUMIFS(AgeGroupData!$H:$H,AgeGroupData!$A:$A,$B$5,AgeGroupData!$B:$B,$N$9,AgeGroupData!$C:$C,$B$22,AgeGroupData!$D:$D,C26)>25, IF(SUMIFS(AgeGroupData!$H:$H,AgeGroupData!$A:$A,$B$5,AgeGroupData!$B:$B,$N$9,AgeGroupData!$C:$C,$B$22,AgeGroupData!$D:$D,C26)<50,"*",""),"")) ->  | P26: =IF(O26="**","",SUMIFS(AgeGroupData!$F:$F,AgeGroupData!$A:$A,$B$5,AgeGroupData!$B:$B,$N$9,AgeGroupData!$C:$C,$B$22,AgeGroupData!$D:$D,C26)) -> 24.91781 | Q26: =IF(O26="**","",SUMIFS(AgeGroupData!$G:$G,AgeGroupData!$A:$A,$B$5,AgeGroupData!$B:$B,$N$9,AgeGroupData!$C:$C,$B$22,AgeGroupData!$D:$D,C26)) -> 29.93963 | S26: =IF(T26="**","",SUMIFS(AgeGroupData!$E:$E,AgeGroupData!$A:$A,$B$5,AgeGroupData!$B:$B,$S$9,AgeGroupData!$C:$C,$B$22,AgeGroupData!$D:$D,C26)) -> 22.39941 | T26: =IF(SUMIFS(AgeGroupData!$H:$H,AgeGroupData!$A:$A,$B$5,AgeGroupData!$B:$B,$S$9,AgeGroupData!$C:$C,$B$22,AgeGroupData!$D:$D,C26)>=50,"**", IF(SUMIFS(AgeGroupData!$H:$H,AgeGroupData!$A:$A,$B$5,AgeGroupData!$B:$B,$S$9,AgeGroupData!$C:$C,$B$22,AgeGroupData!$D:$D,C26)>25, IF(SUMIFS(AgeGroupData!$H:$H,AgeGroupData!$A:$A,$B$5,AgeGroupData!$B:$B,$S$9,AgeGroupData!$C:$C,$B$22,AgeGroupData!$D:$D,C26)<50,"*",""),"")) ->  | U26: =IF(T26="**","",SUMIFS(AgeGroupData!$F:$F,AgeGroupData!$A:$A,$B$5,AgeGroupData!$B:$B,$S$9,AgeGroupData!$C:$C,$B$22,AgeGroupData!$D:$D,C26)) -> 20.21069 | V26: =IF(T26="**","",SUMIFS(AgeGroupData!$G:$G,AgeGroupData!$A:$A,$B$5,AgeGroupData!$B:$B,$S$9,AgeGroupData!$C:$C,$B$22,AgeGroupData!$D:$D,C26)) -> 24.75162 | X26: =IF(Y26="**","",SUMIFS(AgeGroupData!$E:$E,AgeGroupData!$A:$A,$B$5,AgeGroupData!$B:$B,$X$9,AgeGroupData!$C:$C,$B$22,AgeGroupData!$D:$D,C26)) -> 0 | Y26: =IF(SUMIFS(AgeGroupData!$H:$H,AgeGroupData!$A:$A,$B$5,AgeGroupData!$B:$B,$X$9,AgeGroupData!$C:$C,$B$22,AgeGroupData!$D:$D,C26)>=50,"**", IF(SUMIFS(AgeGroupData!$H:$H,AgeGroupData!$A:$A,$B$5,AgeGroupData!$B:$B,$X$9,AgeGroupData!$C:$C,$B$22,AgeGroupData!$D:$D,C26)>25, IF(SUMIFS(AgeGroupData!$H:$H,AgeGroupData!$A:$A,$B$5,AgeGroupData!$B:$B,$X$9,AgeGroupData!$C:$C,$B$22,AgeGroupData!$D:$D,C26)<50,"*",""),"")) ->  | Z26: =IF(Y26="**","",SUMIFS(AgeGroupData!$F:$F,AgeGroupData!$A:$A,$B$5,AgeGroupData!$B:$B,$X$9,AgeGroupData!$C:$C,$B$22,AgeGroupData!$D:$D,C26)) -> 0 | AA26: =IF(Y26="**","",SUMIFS(AgeGroupData!$G:$G,AgeGroupData!$A:$A,$B$5,AgeGroupData!$B:$B,$X$9,AgeGroupData!$C:$C,$B$22,AgeGroupData!$D:$D,C26)) -> 0
C27: =VLOOKUP($B$5,Lookup!$AA:$AJ,6,FALSE) -> 55–64 | D27: =IF(E27="**","",SUMIFS(AgeGroupData!$E:$E,AgeGroupData!$A:$A,$B$5,AgeGroupData!$B:$B,$D$9,AgeGroupData!$C:$C,$B$22,AgeGroupData!$D:$D,C27)) -> 1.400724 | E27: =IF(SUMIFS(AgeGroupData!$H:$H,AgeGroupData!$A:$A,$B$5,AgeGroupData!$B:$B,$D$9,AgeGroupData!$C:$C,$B$22,AgeGroupData!$D:$D,C27)>=50,"**", IF(SUMIFS(AgeGroupData!$H:$H,AgeGroupData!$A:$A,$B$5,AgeGroupData!$B:$B,$D$9,AgeGroupData!$C:$C,$B$22,AgeGroupData!$D:$D,C27)>25, IF(SUMIFS(AgeGroupData!$H:$H,AgeGroupData!$A:$A,$B$5,AgeGroupData!$B:$B,$D$9,AgeGroupData!$C:$C,$B$22,AgeGroupData!$D:$D,C27)<50,"*",""),"")) ->  | F27: =IF(E27="**","",SUMIFS(AgeGroupData!$F:$F,AgeGroupData!$A:$A,$B$5,AgeGroupData!$B:$B,$D$9,AgeGroupData!$C:$C,$B$22,AgeGroupData!$D:$D,C27)) -> 0.9814488 | G27: =IF(E27="**","",SUMIFS(AgeGroupData!$G:$G,AgeGroupData!$A:$A,$B$5,AgeGroupData!$B:$B,$D$9,AgeGroupData!$C:$C,$B$22,AgeGroupData!$D:$D,C27)) -> 1.995503 | I27: =IF(J27="**","",SUMIFS(AgeGroupData!$E:$E,AgeGroupData!$A:$A,$B$5,AgeGroupData!$B:$B,$I$9,AgeGroupData!$C:$C,$B$22,AgeGroupData!$D:$D,C27)) -> 34.66621 | J27: =IF(SUMIFS(AgeGroupData!$H:$H,AgeGroupData!$A:$A,$B$5,AgeGroupData!$B:$B,$I$9,AgeGroupData!$C:$C,$B$22,AgeGroupData!$D:$D,C27)>=50,"**", IF(SUMIFS(AgeGroupData!$H:$H,AgeGroupData!$A:$A,$B$5,AgeGroupData!$B:$B,$I$9,AgeGroupData!$C:$C,$B$22,AgeGroupData!$D:$D,C27)>25, IF(SUMIFS(AgeGroupData!$H:$H,AgeGroupData!$A:$A,$B$5,AgeGroupData!$B:$B,$I$9,AgeGroupData!$C:$C,$B$22,AgeGroupData!$D:$D,C27)<50,"*",""),"")) ->  | K27: =IF(J27="**","",SUMIFS(AgeGroupData!$F:$F,AgeGroupData!$A:$A,$B$5,AgeGroupData!$B:$B,$I$9,AgeGroupData!$C:$C,$B$22,AgeGroupData!$D:$D,C27)) -> 32.09001 | L27: =IF(J27="**","",SUMIFS(AgeGroupData!$G:$G,AgeGroupData!$A:$A,$B$5,AgeGroupData!$B:$B,$I$9,AgeGroupData!$C:$C,$B$22,AgeGroupData!$D:$D,C27)) -> 37.33553 | N27: =IF(O27="**","",SUMIFS(AgeGroupData!$E:$E,AgeGroupData!$A:$A,$B$5,AgeGroupData!$B:$B,$N$9,AgeGroupData!$C:$C,$B$22,AgeGroupData!$D:$D,C27)) -> 26.72866 | O27: =IF(SUMIFS(AgeGroupData!$H:$H,AgeGroupData!$A:$A,$B$5,AgeGroupData!$B:$B,$N$9,AgeGroupData!$C:$C,$B$22,AgeGroupData!$D:$D,C27)>=50,"**", IF(SUMIFS(AgeGroupData!$H:$H,AgeGroupData!$A:$A,$B$5,AgeGroupData!$B:$B,$N$9,AgeGroupData!$C:$C,$B$22,AgeGroupData!$D:$D,C27)>25, IF(SUMIFS(AgeGroupData!$H:$H,AgeGroupData!$A:$A,$B$5,AgeGroupData!$B:$B,$N$9,AgeGroupData!$C:$C,$B$22,AgeGroupData!$D:$D,C27)<50,"*",""),"")) ->  | P27: =IF(O27="**","",SUMIFS(AgeGroupData!$F:$F,AgeGroupData!$A:$A,$B$5,AgeGroupData!$B:$B,$N$9,AgeGroupData!$C:$C,$B$22,AgeGroupData!$D:$D,C27)) -> 24.47513 | Q27: =IF(O27="**","",SUMIFS(AgeGroupData!$G:$G,AgeGroupData!$A:$A,$B$5,AgeGroupData!$B:$B,$N$9,AgeGroupData!$C:$C,$B$22,AgeGroupData!$D:$D,C27)) -> 29.1097 | S27: =IF(T27="**","",SUMIFS(AgeGroupData!$E:$E,AgeGroupData!$A:$A,$B$5,AgeGroupData!$B:$B,$S$9,AgeGroupData!$C:$C,$B$22,AgeGroupData!$D:$D,C27)) -> 25.73558 | T27: =IF(SUMIFS(AgeGroupData!$H:$H,AgeGroupData!$A:$A,$B$5,AgeGroupData!$B:$B,$S$9,AgeGroupData!$C:$C,$B$22,AgeGroupData!$D:$D,C27)>=50,"**", IF(SUMIFS(AgeGroupData!$H:$H,AgeGroupData!$A:$A,$B$5,AgeGroupData!$B:$B,$S$9,AgeGroupData!$C:$C,$B$22,AgeGroupData!$D:$D,C27)>25, IF(SUMIFS(AgeGroupData!$H:$H,AgeGroupData!$A:$A,$B$5,AgeGroupData!$B:$B,$S$9,AgeGroupData!$C:$C,$B$22,AgeGroupData!$D:$D,C27)<50,"*",""),"")) ->  | U27: =IF(T27="**","",SUMIFS(AgeGroupData!$F:$F,AgeGroupData!$A:$A,$B$5,AgeGroupData!$B:$B,$S$9,AgeGroupData!$C:$C,$B$22,AgeGroupData!$D:$D,C27)) -> 23.5199 | V27: =IF(T27="**","",SUMIFS(AgeGroupData!$G:$G,AgeGroupData!$A:$A,$B$5,AgeGroupData!$B:$B,$S$9,AgeGroupData!$C:$C,$B$22,AgeGroupData!$D:$D,C27)) -> 28.08333 | X27: =IF(Y27="**","",SUMIFS(AgeGroupData!$E:$E,AgeGroupData!$A:$A,$B$5,AgeGroupData!$B:$B,$X$9,AgeGroupData!$C:$C,$B$22,AgeGroupData!$D:$D,C27)) -> 0 | Y27: =IF(SUMIFS(AgeGroupData!$H:$H,AgeGroupData!$A:$A,$B$5,AgeGroupData!$B:$B,$X$9,AgeGroupData!$C:$C,$B$22,AgeGroupData!$D:$D,C27)>=50,"**", IF(SUMIFS(AgeGroupData!$H:$H,AgeGroupData!$A:$A,$B$5,AgeGroupData!$B:$B,$X$9,AgeGroupData!$C:$C,$B$22,AgeGroupData!$D:$D,C27)>25, IF(SUMIFS(AgeGroupData!$H:$H,AgeGroupData!$A:$A,$B$5,AgeGroupData!$B:$B,$X$9,AgeGroupData!$C:$C,$B$22,AgeGroupData!$D:$D,C27)<50,"*",""),"")) ->  | Z27: =IF(Y27="**","",SUMIFS(AgeGroupData!$F:$F,AgeGroupData!$A:$A,$B$5,AgeGroupData!$B:$B,$X$9,AgeGroupData!$C:$C,$B$22,AgeGroupData!$D:$D,C27)) -> 0 | AA27: =IF(Y27="**","",SUMIFS(AgeGroupData!$G:$G,AgeGroupData!$A:$A,$B$5,AgeGroupData!$B:$B,$X$9,AgeGroupData!$C:$C,$B$22,AgeGroupData!$D:$D,C27)) -> 0
C28: =IF(VLOOKUP($B$5,Lookup!$AA:$AJ,7,FALSE)=""," ",VLOOKUP($B$5,Lookup!$AA:$AJ,7,FALSE)) -> 65–74 | D28: =IF(E28="**","",SUMIFS(AgeGroupData!$E:$E,AgeGroupData!$A:$A,$B$5,AgeGroupData!$B:$B,$D$9,AgeGroupData!$C:$C,$B$22,AgeGroupData!$D:$D,C28)) -> 1.355352 | E28: =IF(SUMIFS(AgeGroupData!$H:$H,AgeGroupData!$A:$A,$B$5,AgeGroupData!$B:$B,$D$9,AgeGroupData!$C:$C,$B$22,AgeGroupData!$D:$D,C28)>=50,"**", IF(SUMIFS(AgeGroupData!$H:$H,AgeGroupData!$A:$A,$B$5,AgeGroupData!$B:$B,$D$9,AgeGroupData!$C:$C,$B$22,AgeGroupData!$D:$D,C28)>25, IF(SUMIFS(AgeGroupData!$H:$H,AgeGroupData!$A:$A,$B$5,AgeGroupData!$B:$B,$D$9,AgeGroupData!$C:$C,$B$22,AgeGroupData!$D:$D,C28)<50,"*",""),"")) ->  | F28: =IF(E28="**","",SUMIFS(AgeGroupData!$F:$F,AgeGroupData!$A:$A,$B$5,AgeGroupData!$B:$B,$D$9,AgeGroupData!$C:$C,$B$22,AgeGroupData!$D:$D,C28)) -> 0.9430973 | G28: =IF(E28="**","",SUMIFS(AgeGroupData!$G:$G,AgeGroupData!$A:$A,$B$5,AgeGroupData!$B:$B,$D$9,AgeGroupData!$C:$C,$B$22,AgeGroupData!$D:$D,C28)) -> 1.944279 | I28: =IF(J28="**","",SUMIFS(AgeGroupData!$E:$E,AgeGroupData!$A:$A,$B$5,AgeGroupData!$B:$B,$I$9,AgeGroupData!$C:$C,$B$22,AgeGroupData!$D:$D,C28)) -> 30.65007 | J28: =IF(SUMIFS(AgeGroupData!$H:$H,AgeGroupData!$A:$A,$B$5,AgeGroupData!$B:$B,$I$9,AgeGroupData!$C:$C,$B$22,AgeGroupData!$D:$D,C28)>=50,"**", IF(SUMIFS(AgeGroupData!$H:$H,AgeGroupData!$A:$A,$B$5,AgeGroupData!$B:$B,$I$9,AgeGroupData!$C:$C,$B$22,AgeGroupData!$D:$D,C28)>25, IF(SUMIFS(AgeGroupData!$H:$H,AgeGroupData!$A:$A,$B$5,AgeGroupData!$B:$B,$I$9,AgeGroupData!$C:$C,$B$22,AgeGroupData!$D:$D,C28)<50,"*",""),"")) ->  | K28: =IF(J28="**","",SUMIFS(AgeGroupData!$F:$F,AgeGroupData!$A:$A,$B$5,AgeGroupData!$B:$B,$I$9,AgeGroupData!$C:$C,$B$22,AgeGroupData!$D:$D,C28)) -> 28.26151 | L28: =IF(J28="**","",SUMIFS(AgeGroupData!$G:$G,AgeGroupData!$A:$A,$B$5,AgeGroupData!$B:$B,$I$9,AgeGroupData!$C:$C,$B$22,AgeGroupData!$D:$D,C28)) -> 33.14723 | N28: =IF(O28="**","",SUMIFS(AgeGroupData!$E:$E,AgeGroupData!$A:$A,$B$5,AgeGroupData!$B:$B,$N$9,AgeGroupData!$C:$C,$B$22,AgeGroupData!$D:$D,C28)) -> 31.64889 | O28: =IF(SUMIFS(AgeGroupData!$H:$H,AgeGroupData!$A:$A,$B$5,AgeGroupData!$B:$B,$N$9,AgeGroupData!$C:$C,$B$22,AgeGroupData!$D:$D,C28)>=50,"**", IF(SUMIFS(AgeGroupData!$H:$H,AgeGroupData!$A:$A,$B$5,AgeGroupData!$B:$B,$N$9,AgeGroupData!$C:$C,$B$22,AgeGroupData!$D:$D,C28)>25, IF(SUMIFS(AgeGroupData!$H:$H,AgeGroupData!$A:$A,$B$5,AgeGroupData!$B:$B,$N$9,AgeGroupData!$C:$C,$B$22,AgeGroupData!$D:$D,C28)<50,"*",""),"")) ->  | P28: =IF(O28="**","",SUMIFS(AgeGroupData!$F:$F,AgeGroupData!$A:$A,$B$5,AgeGroupData!$B:$B,$N$9,AgeGroupData!$C:$C,$B$22,AgeGroupData!$D:$D,C28)) -> 29.1022 | Q28: =IF(O28="**","",SUMIFS(AgeGroupData!$G:$G,AgeGroupData!$A:$A,$B$5,AgeGroupData!$B:$B,$N$9,AgeGroupData!$C:$C,$B$22,AgeGroupData!$D:$D,C28)) -> 34.31058 | S28: =IF(T28="**","",SUMIFS(AgeGroupData!$E:$E,AgeGroupData!$A:$A,$B$5,AgeGroupData!$B:$B,$S$9,AgeGroupData!$C:$C,$B$22,AgeGroupData!$D:$D,C28)) -> 25.88001 | T28: =IF(SUMIFS(AgeGroupData!$H:$H,AgeGroupData!$A:$A,$B$5,AgeGroupData!$B:$B,$S$9,AgeGroupData!$C:$C,$B$22,AgeGroupData!$D:$D,C28)>=50,"**", IF(SUMIFS(AgeGroupData!$H:$H,AgeGroupData!$A:$A,$B$5,AgeGroupData!$B:$B,$S$9,AgeGroupData!$C:$C,$B$22,AgeGroupData!$D:$D,C28)>25, IF(SUMIFS(AgeGroupData!$H:$H,AgeGroupData!$A:$A,$B$5,AgeGroupData!$B:$B,$S$9,AgeGroupData!$C:$C,$B$22,AgeGroupData!$D:$D,C28)<50,"*",""),"")) ->  | U28: =IF(T28="**","",SUMIFS(AgeGroupData!$F:$F,AgeGroupData!$A:$A,$B$5,AgeGroupData!$B:$B,$S$9,AgeGroupData!$C:$C,$B$22,AgeGroupData!$D:$D,C28)) -> 23.20349 | V28: =IF(T28="**","",SUMIFS(AgeGroupData!$G:$G,AgeGroupData!$A:$A,$B$5,AgeGroupData!$B:$B,$S$9,AgeGroupData!$C:$C,$B$22,AgeGroupData!$D:$D,C28)) -> 28.74969 | X28: =IF(Y28="**","",SUMIFS(AgeGroupData!$E:$E,AgeGroupData!$A:$A,$B$5,AgeGroupData!$B:$B,$X$9,AgeGroupData!$C:$C,$B$22,AgeGroupData!$D:$D,C28)) -> 0 | Y28: =IF(SUMIFS(AgeGroupData!$H:$H,AgeGroupData!$A:$A,$B$5,AgeGroupData!$B:$B,$X$9,AgeGroupData!$C:$C,$B$22,AgeGroupData!$D:$D,C28)>=50,"**", IF(SUMIFS(AgeGroupData!$H:$H,AgeGroupData!$A:$A,$B$5,AgeGroupData!$B:$B,$X$9,AgeGroupData!$C:$C,$B$22,AgeGroupData!$D:$D,C28)>25, IF(SUMIFS(AgeGroupData!$H:$H,AgeGroupData!$A:$A,$B$5,AgeGroupData!$B:$B,$X$9,AgeGroupData!$C:$C,$B$22,AgeGroupData!$D:$D,C28)<50,"*",""),"")) ->  | Z28: =IF(Y28="**","",SUMIFS(AgeGroupData!$F:$F,AgeGroupData!$A:$A,$B$5,AgeGroupData!$B:$B,$X$9,AgeGroupData!$C:$C,$B$22,AgeGroupData!$D:$D,C28)) -> 0 | AA28: =IF(Y28="**","",SUMIFS(AgeGroupData!$G:$G,AgeGroupData!$A:$A,$B$5,AgeGroupData!$B:$B,$X$9,AgeGroupData!$C:$C,$B$22,AgeGroupData!$D:$D,C28)) -> 0
C29: =IF(VLOOKUP($B$5,Lookup!$AA:$AJ,8,FALSE)=""," ",VLOOKUP($B$5,Lookup!$AA:$AJ,8,FALSE)) -> 75–84 | D29: =IF(E29="**","",SUMIFS(AgeGroupData!$E:$E,AgeGroupData!$A:$A,$B$5,AgeGroupData!$B:$B,$D$9,AgeGroupData!$C:$C,$B$22,AgeGroupData!$D:$D,C29)) -> 2.515741 | E29: =IF(SUMIFS(AgeGroupData!$H:$H,AgeGroupData!$A:$A,$B$5,AgeGroupData!$B:$B,$D$9,AgeGroupData!$C:$C,$B$22,AgeGroupData!$D:$D,C29)>=50,"**", IF(SUMIFS(AgeGroupData!$H:$H,AgeGroupData!$A:$A,$B$5,AgeGroupData!$B:$B,$D$9,AgeGroupData!$C:$C,$B$22,AgeGroupData!$D:$D,C29)>25, IF(SUMIFS(AgeGroupData!$H:$H,AgeGroupData!$A:$A,$B$5,AgeGroupData!$B:$B,$D$9,AgeGroupData!$C:$C,$B$22,AgeGroupData!$D:$D,C29)<50,"*",""),"")) ->  | F29: =IF(E29="**","",SUMIFS(AgeGroupData!$F:$F,AgeGroupData!$A:$A,$B$5,AgeGroupData!$B:$B,$D$9,AgeGroupData!$C:$C,$B$22,AgeGroupData!$D:$D,C29)) -> 1.64602 | G29: =IF(E29="**","",SUMIFS(AgeGroupData!$G:$G,AgeGroupData!$A:$A,$B$5,AgeGroupData!$B:$B,$D$9,AgeGroupData!$C:$C,$B$22,AgeGroupData!$D:$D,C29)) -> 3.827121 | I29: =IF(J29="**","",SUMIFS(AgeGroupData!$E:$E,AgeGroupData!$A:$A,$B$5,AgeGroupData!$B:$B,$I$9,AgeGroupData!$C:$C,$B$22,AgeGroupData!$D:$D,C29)) -> 33.17795 | J29: =IF(SUMIFS(AgeGroupData!$H:$H,AgeGroupData!$A:$A,$B$5,AgeGroupData!$B:$B,$I$9,AgeGroupData!$C:$C,$B$22,AgeGroupData!$D:$D,C29)>=50,"**", IF(SUMIFS(AgeGroupData!$H:$H,AgeGroupData!$A:$A,$B$5,AgeGroupData!$B:$B,$I$9,AgeGroupData!$C:$C,$B$22,AgeGroupData!$D:$D,C29)>25, IF(SUMIFS(AgeGroupData!$H:$H,AgeGroupData!$A:$A,$B$5,AgeGroupData!$B:$B,$I$9,AgeGroupData!$C:$C,$B$22,AgeGroupData!$D:$D,C29)<50,"*",""),"")) ->  | K29: =IF(J29="**","",SUMIFS(AgeGroupData!$F:$F,AgeGroupData!$A:$A,$B$5,AgeGroupData!$B:$B,$I$9,AgeGroupData!$C:$C,$B$22,AgeGroupData!$D:$D,C29)) -> 29.52403 | L29: =IF(J29="**","",SUMIFS(AgeGroupData!$G:$G,AgeGroupData!$A:$A,$B$5,AgeGroupData!$B:$B,$I$9,AgeGroupData!$C:$C,$B$22,AgeGroupData!$D:$D,C29)) -> 37.04636 | N29: =IF(O29="**","",SUMIFS(AgeGroupData!$E:$E,AgeGroupData!$A:$A,$B$5,AgeGroupData!$B:$B,$N$9,AgeGroupData!$C:$C,$B$22,AgeGroupData!$D:$D,C29)) -> 28.06945 | O29: =IF(SUMIFS(AgeGroupData!$H:$H,AgeGroupData!$A:$A,$B$5,AgeGroupData!$B:$B,$N$9,AgeGroupData!$C:$C,$B$22,AgeGroupData!$D:$D,C29)>=50,"**", IF(SUMIFS(AgeGroupData!$H:$H,AgeGroupData!$A:$A,$B$5,AgeGroupData!$B:$B,$N$9,AgeGroupData!$C:$C,$B$22,AgeGroupData!$D:$D,C29)>25, IF(SUMIFS(AgeGroupData!$H:$H,AgeGroupData!$A:$A,$B$5,AgeGroupData!$B:$B,$N$9,AgeGroupData!$C:$C,$B$22,AgeGroupData!$D:$D,C29)<50,"*",""),"")) ->  | P29: =IF(O29="**","",SUMIFS(AgeGroupData!$F:$F,AgeGroupData!$A:$A,$B$5,AgeGroupData!$B:$B,$N$9,AgeGroupData!$C:$C,$B$22,AgeGroupData!$D:$D,C29)) -> 24.86399 | Q29: =IF(O29="**","",SUMIFS(AgeGroupData!$G:$G,AgeGroupData!$A:$A,$B$5,AgeGroupData!$B:$B,$N$9,AgeGroupData!$C:$C,$B$22,AgeGroupData!$D:$D,C29)) -> 31.51482 | S29: =IF(T29="**","",SUMIFS(AgeGroupData!$E:$E,AgeGroupData!$A:$A,$B$5,AgeGroupData!$B:$B,$S$9,AgeGroupData!$C:$C,$B$22,AgeGroupData!$D:$D,C29)) -> 21.08606 | T29: =IF(SUMIFS(AgeGroupData!$H:$H,AgeGroupData!$A:$A,$B$5,AgeGroupData!$B:$B,$S$9,AgeGroupData!$C:$C,$B$22,AgeGroupData!$D:$D,C29)>=50,"**", IF(SUMIFS(AgeGroupData!$H:$H,AgeGroupData!$A:$A,$B$5,AgeGroupData!$B:$B,$S$9,AgeGroupData!$C:$C,$B$22,AgeGroupData!$D:$D,C29)>25, IF(SUMIFS(AgeGroupData!$H:$H,AgeGroupData!$A:$A,$B$5,AgeGroupData!$B:$B,$S$9,AgeGroupData!$C:$C,$B$22,AgeGroupData!$D:$D,C29)<50,"*",""),"")) ->  | U29: =IF(T29="**","",SUMIFS(AgeGroupData!$F:$F,AgeGroupData!$A:$A,$B$5,AgeGroupData!$B:$B,$S$9,AgeGroupData!$C:$C,$B$22,AgeGroupData!$D:$D,C29)) -> 17.73715 | V29: =IF(T29="**","",SUMIFS(AgeGroupData!$G:$G,AgeGroupData!$A:$A,$B$5,AgeGroupData!$B:$B,$S$9,AgeGroupData!$C:$C,$B$22,AgeGroupData!$D:$D,C29)) -> 24.87607 | X29: =IF(Y29="**","",SUMIFS(AgeGroupData!$E:$E,AgeGroupData!$A:$A,$B$5,AgeGroupData!$B:$B,$X$9,AgeGroupData!$C:$C,$B$22,AgeGroupData!$D:$D,C29)) -> 0 | Y29: =IF(SUMIFS(AgeGroupData!$H:$H,AgeGroupData!$A:$A,$B$5,AgeGroupData!$B:$B,$X$9,AgeGroupData!$C:$C,$B$22,AgeGroupData!$D:$D,C29)>=50,"**", IF(SUMIFS(AgeGroupData!$H:$H,AgeGroupData!$A:$A,$B$5,AgeGroupData!$B:$B,$X$9,AgeGroupData!$C:$C,$B$22,AgeGroupData!$D:$D,C29)>25, IF(SUMIFS(AgeGroupData!$H:$H,AgeGroupData!$A:$A,$B$5,AgeGroupData!$B:$B,$X$9,AgeGroupData!$C:$C,$B$22,AgeGroupData!$D:$D,C29)<50,"*",""),"")) ->  | Z29: =IF(Y29="**","",SUMIFS(AgeGroupData!$F:$F,AgeGroupData!$A:$A,$B$5,AgeGroupData!$B:$B,$X$9,AgeGroupData!$C:$C,$B$22,AgeGroupData!$D:$D,C29)) -> 0 | AA29: =IF(Y29="**","",SUMIFS(AgeGroupData!$G:$G,AgeGroupData!$A:$A,$B$5,AgeGroupData!$B:$B,$X$9,AgeGroupData!$C:$C,$B$22,AgeGroupData!$D:$D,C29)) -> 0
C30: =IF(VLOOKUP($B$5,Lookup!$AA:$AJ,9,FALSE)=""," ",VLOOKUP($B$5,Lookup!$AA:$AJ,9,FALSE)) -> 85+ | D30: =IF(E30="**","",SUMIFS(AgeGroupData!$E:$E,AgeGroupData!$A:$A,$B$5,AgeGroupData!$B:$B,$D$9,AgeGroupData!$C:$C,$B$22,AgeGroupData!$D:$D,C30)) -> 2.92731 | E30: =IF(SUMIFS(AgeGroupData!$H:$H,AgeGroupData!$A:$A,$B$5,AgeGroupData!$B:$B,$D$9,AgeGroupData!$C:$C,$B$22,AgeGroupData!$D:$D,C30)>=50,"**", IF(SUMIFS(AgeGroupData!$H:$H,AgeGroupData!$A:$A,$B$5,AgeGroupData!$B:$B,$D$9,AgeGroupData!$C:$C,$B$22,AgeGroupData!$D:$D,C30)>25, IF(SUMIFS(AgeGroupData!$H:$H,AgeGroupData!$A:$A,$B$5,AgeGroupData!$B:$B,$D$9,AgeGroupData!$C:$C,$B$22,AgeGroupData!$D:$D,C30)<50,"*",""),"")) -> * | F30: =IF(E30="**","",SUMIFS(AgeGroupData!$F:$F,AgeGroupData!$A:$A,$B$5,AgeGroupData!$B:$B,$D$9,AgeGroupData!$C:$C,$B$22,AgeGroupData!$D:$D,C30)) -> 1.633875 | G30: =IF(E30="**","",SUMIFS(AgeGroupData!$G:$G,AgeGroupData!$A:$A,$B$5,AgeGroupData!$B:$B,$D$9,AgeGroupData!$C:$C,$B$22,AgeGroupData!$D:$D,C30)) -> 5.190643 | I30: =IF(J30="**","",SUMIFS(AgeGroupData!$E:$E,AgeGroupData!$A:$A,$B$5,AgeGroupData!$B:$B,$I$9,AgeGroupData!$C:$C,$B$22,AgeGroupData!$D:$D,C30)) -> 38.29281 | J30: =IF(SUMIFS(AgeGroupData!$H:$H,AgeGroupData!$A:$A,$B$5,AgeGroupData!$B:$B,$I$9,AgeGroupData!$C:$C,$B$22,AgeGroupData!$D:$D,C30)>=50,"**", IF(SUMIFS(AgeGroupData!$H:$H,AgeGroupData!$A:$A,$B$5,AgeGroupData!$B:$B,$I$9,AgeGroupData!$C:$C,$B$22,AgeGroupData!$D:$D,C30)>25, IF(SUMIFS(AgeGroupData!$H:$H,AgeGroupData!$A:$A,$B$5,AgeGroupData!$B:$B,$I$9,AgeGroupData!$C:$C,$B$22,AgeGroupData!$D:$D,C30)<50,"*",""),"")) ->  | K30: =IF(J30="**","",SUMIFS(AgeGroupData!$F:$F,AgeGroupData!$A:$A,$B$5,AgeGroupData!$B:$B,$I$9,AgeGroupData!$C:$C,$B$22,AgeGroupData!$D:$D,C30)) -> 30.93063 | L30: =IF(J30="**","",SUMIFS(AgeGroupData!$G:$G,AgeGroupData!$A:$A,$B$5,AgeGroupData!$B:$B,$I$9,AgeGroupData!$C:$C,$B$22,AgeGroupData!$D:$D,C30)) -> 46.23434 | N30: =IF(O30="**","",SUMIFS(AgeGroupData!$E:$E,AgeGroupData!$A:$A,$B$5,AgeGroupData!$B:$B,$N$9,AgeGroupData!$C:$C,$B$22,AgeGroupData!$D:$D,C30)) -> 20.90577 | O30: =IF(SUMIFS(AgeGroupData!$H:$H,AgeGroupData!$A:$A,$B$5,AgeGroupData!$B:$B,$N$9,AgeGroupData!$C:$C,$B$22,AgeGroupData!$D:$D,C30)>=50,"**", IF(SUMIFS(AgeGroupData!$H:$H,AgeGroupData!$A:$A,$B$5,AgeGroupData!$B:$B,$N$9,AgeGroupData!$C:$C,$B$22,AgeGroupData!$D:$D,C30)>25, IF(SUMIFS(AgeGroupData!$H:$H,AgeGroupData!$A:$A,$B$5,AgeGroupData!$B:$B,$N$9,AgeGroupData!$C:$C,$B$22,AgeGroupData!$D:$D,C30)<50,"*",""),"")) ->  | P30: =IF(O30="**","",SUMIFS(AgeGroupData!$F:$F,AgeGroupData!$A:$A,$B$5,AgeGroupData!$B:$B,$N$9,AgeGroupData!$C:$C,$B$22,AgeGroupData!$D:$D,C30)) -> 16.03435 | Q30: =IF(O30="**","",SUMIFS(AgeGroupData!$G:$G,AgeGroupData!$A:$A,$B$5,AgeGroupData!$B:$B,$N$9,AgeGroupData!$C:$C,$B$22,AgeGroupData!$D:$D,C30)) -> 26.78505 | S30: =IF(T30="**","",SUMIFS(AgeGroupData!$E:$E,AgeGroupData!$A:$A,$B$5,AgeGroupData!$B:$B,$S$9,AgeGroupData!$C:$C,$B$22,AgeGroupData!$D:$D,C30)) -> 7.53594 | T30: =IF(SUMIFS(AgeGroupData!$H:$H,AgeGroupData!$A:$A,$B$5,AgeGroupData!$B:$B,$S$9,AgeGroupData!$C:$C,$B$22,AgeGroupData!$D:$D,C30)>=50,"**", IF(SUMIFS(AgeGroupData!$H:$H,AgeGroupData!$A:$A,$B$5,AgeGroupData!$B:$B,$S$9,AgeGroupData!$C:$C,$B$22,AgeGroupData!$D:$D,C30)>25, IF(SUMIFS(AgeGroupData!$H:$H,AgeGroupData!$A:$A,$B$5,AgeGroupData!$B:$B,$S$9,AgeGroupData!$C:$C,$B$22,AgeGroupData!$D:$D,C30)<50,"*",""),"")) -> * | U30: =IF(T30="**","",SUMIFS(AgeGroupData!$F:$F,AgeGroupData!$A:$A,$B$5,AgeGroupData!$B:$B,$S$9,AgeGroupData!$C:$C,$B$22,AgeGroupData!$D:$D,C30)) -> 4.138711 | V30: =IF(T30="**","",SUMIFS(AgeGroupData!$G:$G,AgeGroupData!$A:$A,$B$5,AgeGroupData!$B:$B,$S$9,AgeGroupData!$C:$C,$B$22,AgeGroupData!$D:$D,C30)) -> 13.33388 | X30: =IF(Y30="**","",SUMIFS(AgeGroupData!$E:$E,AgeGroupData!$A:$A,$B$5,AgeGroupData!$B:$B,$X$9,AgeGroupData!$C:$C,$B$22,AgeGroupData!$D:$D,C30)) -> 0 | Y30: =IF(SUMIFS(AgeGroupData!$H:$H,AgeGroupData!$A:$A,$B$5,AgeGroupData!$B:$B,$X$9,AgeGroupData!$C:$C,$B$22,AgeGroupData!$D:$D,C30)>=50,"**", IF(SUMIFS(AgeGroupData!$H:$H,AgeGroupData!$A:$A,$B$5,AgeGroupData!$B:$B,$X$9,AgeGroupData!$C:$C,$B$22,AgeGroupData!$D:$D,C30)>25, IF(SUMIFS(AgeGroupData!$H:$H,AgeGroupData!$A:$A,$B$5,AgeGroupData!$B:$B,$X$9,AgeGroupData!$C:$C,$B$22,AgeGroupData!$D:$D,C30)<50,"*",""),"")) ->  | Z30: =IF(Y30="**","",SUMIFS(AgeGroupData!$F:$F,AgeGroupData!$A:$A,$B$5,AgeGroupData!$B:$B,$X$9,AgeGroupData!$C:$C,$B$22,AgeGroupData!$D:$D,C30)) -> 0 | AA30: =IF(Y30="**","",SUMIFS(AgeGroupData!$G:$G,AgeGroupData!$A:$A,$B$5,AgeGroupData!$B:$B,$X$9,AgeGroupData!$C:$C,$B$22,AgeGroupData!$D:$D,C30)) -> 0
C31: =VLOOKUP($B$5,Lookup!$AA:$AJ,10,FALSE) -> 18+ | D31: =IF(E31="**","",SUMIFS(AgeGroupData!$E:$E,AgeGroupData!$A:$A,$B$5,AgeGroupData!$B:$B,$D$9,AgeGroupData!$C:$C,$B$22,AgeGroupData!$D:$D,C31)) -> 2.8889 | E31: =IF(SUMIFS(AgeGroupData!$H:$H,AgeGroupData!$A:$A,$B$5,AgeGroupData!$B:$B,$D$9,AgeGroupData!$C:$C,$B$22,AgeGroupData!$D:$D,C31)>=50,"**", IF(SUMIFS(AgeGroupData!$H:$H,AgeGroupData!$A:$A,$B$5,AgeGroupData!$B:$B,$D$9,AgeGroupData!$C:$C,$B$22,AgeGroupData!$D:$D,C31)>25, IF(SUMIFS(AgeGroupData!$H:$H,AgeGroupData!$A:$A,$B$5,AgeGroupData!$B:$B,$D$9,AgeGroupData!$C:$C,$B$22,AgeGroupData!$D:$D,C31)<50,"*",""),"")) ->  | F31: =IF(E31="**","",SUMIFS(AgeGroupData!$F:$F,AgeGroupData!$A:$A,$B$5,AgeGroupData!$B:$B,$D$9,AgeGroupData!$C:$C,$B$22,AgeGroupData!$D:$D,C31)) -> 2.472866 | G31: =IF(E31="**","",SUMIFS(AgeGroupData!$G:$G,AgeGroupData!$A:$A,$B$5,AgeGroupData!$B:$B,$D$9,AgeGroupData!$C:$C,$B$22,AgeGroupData!$D:$D,C31)) -> 3.372506 | I31: =IF(J31="**","",SUMIFS(AgeGroupData!$E:$E,AgeGroupData!$A:$A,$B$5,AgeGroupData!$B:$B,$I$9,AgeGroupData!$C:$C,$B$22,AgeGroupData!$D:$D,C31)) -> 40.75645 | J31: =IF(SUMIFS(AgeGroupData!$H:$H,AgeGroupData!$A:$A,$B$5,AgeGroupData!$B:$B,$I$9,AgeGroupData!$C:$C,$B$22,AgeGroupData!$D:$D,C31)>=50,"**", IF(SUMIFS(AgeGroupData!$H:$H,AgeGroupData!$A:$A,$B$5,AgeGroupData!$B:$B,$I$9,AgeGroupData!$C:$C,$B$22,AgeGroupData!$D:$D,C31)>25, IF(SUMIFS(AgeGroupData!$H:$H,AgeGroupData!$A:$A,$B$5,AgeGroupData!$B:$B,$I$9,AgeGroupData!$C:$C,$B$22,AgeGroupData!$D:$D,C31)<50,"*",""),"")) ->  | K31: =IF(J31="**","",SUMIFS(AgeGroupData!$F:$F,AgeGroupData!$A:$A,$B$5,AgeGroupData!$B:$B,$I$9,AgeGroupData!$C:$C,$B$22,AgeGroupData!$D:$D,C31)) -> 39.52515 | L31: =IF(J31="**","",SUMIFS(AgeGroupData!$G:$G,AgeGroupData!$A:$A,$B$5,AgeGroupData!$B:$B,$I$9,AgeGroupData!$C:$C,$B$22,AgeGroupData!$D:$D,C31)) -> 41.99947 | N31: =IF(O31="**","",SUMIFS(AgeGroupData!$E:$E,AgeGroupData!$A:$A,$B$5,AgeGroupData!$B:$B,$N$9,AgeGroupData!$C:$C,$B$22,AgeGroupData!$D:$D,C31)) -> 24.46955 | O31: =IF(SUMIFS(AgeGroupData!$H:$H,AgeGroupData!$A:$A,$B$5,AgeGroupData!$B:$B,$N$9,AgeGroupData!$C:$C,$B$22,AgeGroupData!$D:$D,C31)>=50,"**", IF(SUMIFS(AgeGroupData!$H:$H,AgeGroupData!$A:$A,$B$5,AgeGroupData!$B:$B,$N$9,AgeGroupData!$C:$C,$B$22,AgeGroupData!$D:$D,C31)>25, IF(SUMIFS(AgeGroupData!$H:$H,AgeGroupData!$A:$A,$B$5,AgeGroupData!$B:$B,$N$9,AgeGroupData!$C:$C,$B$22,AgeGroupData!$D:$D,C31)<50,"*",""),"")) ->  | P31: =IF(O31="**","",SUMIFS(AgeGroupData!$F:$F,AgeGroupData!$A:$A,$B$5,AgeGroupData!$B:$B,$N$9,AgeGroupData!$C:$C,$B$22,AgeGroupData!$D:$D,C31)) -> 23.44383 | Q31: =IF(O31="**","",SUMIFS(AgeGroupData!$G:$G,AgeGroupData!$A:$A,$B$5,AgeGroupData!$B:$B,$N$9,AgeGroupData!$C:$C,$B$22,AgeGroupData!$D:$D,C31)) -> 25.52519 | S31: =IF(T31="**","",SUMIFS(AgeGroupData!$E:$E,AgeGroupData!$A:$A,$B$5,AgeGroupData!$B:$B,$S$9,AgeGroupData!$C:$C,$B$22,AgeGroupData!$D:$D,C31)) -> 19.83514 | T31: =IF(SUMIFS(AgeGroupData!$H:$H,AgeGroupData!$A:$A,$B$5,AgeGroupData!$B:$B,$S$9,AgeGroupData!$C:$C,$B$22,AgeGroupData!$D:$D,C31)>=50,"**", IF(SUMIFS(AgeGroupData!$H:$H,AgeGroupData!$A:$A,$B$5,AgeGroupData!$B:$B,$S$9,AgeGroupData!$C:$C,$B$22,AgeGroupData!$D:$D,C31)>25, IF(SUMIFS(AgeGroupData!$H:$H,AgeGroupData!$A:$A,$B$5,AgeGroupData!$B:$B,$S$9,AgeGroupData!$C:$C,$B$22,AgeGroupData!$D:$D,C31)<50,"*",""),"")) ->  | U31: =IF(T31="**","",SUMIFS(AgeGroupData!$F:$F,AgeGroupData!$A:$A,$B$5,AgeGroupData!$B:$B,$S$9,AgeGroupData!$C:$C,$B$22,AgeGroupData!$D:$D,C31)) -> 18.84449 | V31: =IF(T31="**","",SUMIFS(AgeGroupData!$G:$G,AgeGroupData!$A:$A,$B$5,AgeGroupData!$B:$B,$S$9,AgeGroupData!$C:$C,$B$22,AgeGroupData!$D:$D,C31)) -> 20.86449 | X31: =IF(Y31="**","",SUMIFS(AgeGroupData!$E:$E,AgeGroupData!$A:$A,$B$5,AgeGroupData!$B:$B,$X$9,AgeGroupData!$C:$C,$B$22,AgeGroupData!$D:$D,C31)) -> 0 | Y31: =IF(SUMIFS(AgeGroupData!$H:$H,AgeGroupData!$A:$A,$B$5,AgeGroupData!$B:$B,$X$9,AgeGroupData!$C:$C,$B$22,AgeGroupData!$D:$D,C31)>=50,"**", IF(SUMIFS(AgeGroupData!$H:$H,AgeGroupData!$A:$A,$B$5,AgeGroupData!$B:$B,$X$9,AgeGroupData!$C:$C,$B$22,AgeGroupData!$D:$D,C31)>25, IF(SUMIFS(AgeGroupData!$H:$H,AgeGroupData!$A:$A,$B$5,AgeGroupData!$B:$B,$X$9,AgeGroupData!$C:$C,$B$22,AgeGroupData!$D:$D,C31)<50,"*",""),"")) ->  | Z31: =IF(Y31="**","",SUMIFS(AgeGroupData!$F:$F,AgeGroupData!$A:$A,$B$5,AgeGroupData!$B:$B,$X$9,AgeGroupData!$C:$C,$B$22,AgeGroupData!$D:$D,C31)) -> 0 | AA31: =IF(Y31="**","",SUMIFS(AgeGroupData!$G:$G,AgeGroupData!$A:$A,$B$5,AgeGroupData!$B:$B,$X$9,AgeGroupData!$C:$C,$B$22,AgeGroupData!$D:$D,C31)) -> 0
B32: People
C33: =VLOOKUP($B$5,Lookup!$AA:$AJ,2,FALSE) -> 18–24 | D33: =IF(E33="**","",SUMIFS(AgeGroupData!$E:$E,AgeGroupData!$A:$A,$B$5,AgeGroupData!$B:$B,$D$9,AgeGroupData!$C:$C,$B$32,AgeGroupData!$D:$D,C33)) -> 6.134684 | E33: =IF(SUMIFS(AgeGroupData!$H:$H,AgeGroupData!$A:$A,$B$5,AgeGroupData!$B:$B,$D$9,AgeGroupData!$C:$C,$B$32,AgeGroupData!$D:$D,C33)>=50,"**", IF(SUMIFS(AgeGroupData!$H:$H,AgeGroupData!$A:$A,$B$5,AgeGroupData!$B:$B,$D$9,AgeGroupData!$C:$C,$B$32,AgeGroupData!$D:$D,C33)>25, IF(SUMIFS(AgeGroupData!$H:$H,AgeGroupData!$A:$A,$B$5,AgeGroupData!$B:$B,$D$9,AgeGroupData!$C:$C,$B$32,AgeGroupData!$D:$D,C33)<50,"*",""),"")) ->  | F33: =IF(E33="**","",SUMIFS(AgeGroupData!$F:$F,AgeGroupData!$A:$A,$B$5,AgeGroupData!$B:$B,$D$9,AgeGroupData!$C:$C,$B$32,AgeGroupData!$D:$D,C33)) -> 4.818325 | G33: =IF(E33="**","",SUMIFS(AgeGroupData!$G:$G,AgeGroupData!$A:$A,$B$5,AgeGroupData!$B:$B,$D$9,AgeGroupData!$C:$C,$B$32,AgeGroupData!$D:$D,C33)) -> 7.781271 | I33: =IF(J33="**","",SUMIFS(AgeGroupData!$E:$E,AgeGroupData!$A:$A,$B$5,AgeGroupData!$B:$B,$I$9,AgeGroupData!$C:$C,$B$32,AgeGroupData!$D:$D,C33)) -> 55.66846 | J33: =IF(SUMIFS(AgeGroupData!$H:$H,AgeGroupData!$A:$A,$B$5,AgeGroupData!$B:$B,$I$9,AgeGroupData!$C:$C,$B$32,AgeGroupData!$D:$D,C33)>=50,"**", IF(SUMIFS(AgeGroupData!$H:$H,AgeGroupData!$A:$A,$B$5,AgeGroupData!$B:$B,$I$9,AgeGroupData!$C:$C,$B$32,AgeGroupData!$D:$D,C33)>25, IF(SUMIFS(AgeGroupData!$H:$H,AgeGroupData!$A:$A,$B$5,AgeGroupData!$B:$B,$I$9,AgeGroupData!$C:$C,$B$32,AgeGroupData!$D:$D,C33)<50,"*",""),"")) ->  | K33: =IF(J33="**","",SUMIFS(AgeGroupData!$F:$F,AgeGroupData!$A:$A,$B$5,AgeGroupData!$B:$B,$I$9,AgeGroupData!$C:$C,$B$32,AgeGroupData!$D:$D,C33)) -> 52.72282 | L33: =IF(J33="**","",SUMIFS(AgeGroupData!$G:$G,AgeGroupData!$A:$A,$B$5,AgeGroupData!$B:$B,$I$9,AgeGroupData!$C:$C,$B$32,AgeGroupData!$D:$D,C33)) -> 58.57476 | N33: =IF(O33="**","",SUMIFS(AgeGroupData!$E:$E,AgeGroupData!$A:$A,$B$5,AgeGroupData!$B:$B,$N$9,AgeGroupData!$C:$C,$B$32,AgeGroupData!$D:$D,C33)) -> 19.87191 | O33: =IF(SUMIFS(AgeGroupData!$H:$H,AgeGroupData!$A:$A,$B$5,AgeGroupData!$B:$B,$N$9,AgeGroupData!$C:$C,$B$32,AgeGroupData!$D:$D,C33)>=50,"**", IF(SUMIFS(AgeGroupData!$H:$H,AgeGroupData!$A:$A,$B$5,AgeGroupData!$B:$B,$N$9,AgeGroupData!$C:$C,$B$32,AgeGroupData!$D:$D,C33)>25, IF(SUMIFS(AgeGroupData!$H:$H,AgeGroupData!$A:$A,$B$5,AgeGroupData!$B:$B,$N$9,AgeGroupData!$C:$C,$B$32,AgeGroupData!$D:$D,C33)<50,"*",""),"")) ->  | P33: =IF(O33="**","",SUMIFS(AgeGroupData!$F:$F,AgeGroupData!$A:$A,$B$5,AgeGroupData!$B:$B,$N$9,AgeGroupData!$C:$C,$B$32,AgeGroupData!$D:$D,C33)) -> 17.66761 | Q33: =IF(O33="**","",SUMIFS(AgeGroupData!$G:$G,AgeGroupData!$A:$A,$B$5,AgeGroupData!$B:$B,$N$9,AgeGroupData!$C:$C,$B$32,AgeGroupData!$D:$D,C33)) -> 22.2768 | S33: =IF(T33="**","",SUMIFS(AgeGroupData!$E:$E,AgeGroupData!$A:$A,$B$5,AgeGroupData!$B:$B,$S$9,AgeGroupData!$C:$C,$B$32,AgeGroupData!$D:$D,C33)) -> 7.674674 | T33: =IF(SUMIFS(AgeGroupData!$H:$H,AgeGroupData!$A:$A,$B$5,AgeGroupData!$B:$B,$S$9,AgeGroupData!$C:$C,$B$32,AgeGroupData!$D:$D,C33)>=50,"**", IF(SUMIFS(AgeGroupData!$H:$H,AgeGroupData!$A:$A,$B$5,AgeGroupData!$B:$B,$S$9,AgeGroupData!$C:$C,$B$32,AgeGroupData!$D:$D,C33)>25, IF(SUMIFS(AgeGroupData!$H:$H,AgeGroupData!$A:$A,$B$5,AgeGroupData!$B:$B,$S$9,AgeGroupData!$C:$C,$B$32,AgeGroupData!$D:$D,C33)<50,"*",""),"")) ->  | U33: =IF(T33="**","",SUMIFS(AgeGroupData!$F:$F,AgeGroupData!$A:$A,$B$5,AgeGroupData!$B:$B,$S$9,AgeGroupData!$C:$C,$B$32,AgeGroupData!$D:$D,C33)) -> 6.266106 | V33: =IF(T33="**","",SUMIFS(AgeGroupData!$G:$G,AgeGroupData!$A:$A,$B$5,AgeGroupData!$B:$B,$S$9,AgeGroupData!$C:$C,$B$32,AgeGroupData!$D:$D,C33)) -> 9.36823 | X33: =IF(Y33="**","",SUMIFS(AgeGroupData!$E:$E,AgeGroupData!$A:$A,$B$5,AgeGroupData!$B:$B,$X$9,AgeGroupData!$C:$C,$B$32,AgeGroupData!$D:$D,C33)) -> 0 | Y33: =IF(SUMIFS(AgeGroupData!$H:$H,AgeGroupData!$A:$A,$B$5,AgeGroupData!$B:$B,$X$9,AgeGroupData!$C:$C,$B$32,AgeGroupData!$D:$D,C33)>=50,"**", IF(SUMIFS(AgeGroupData!$H:$H,AgeGroupData!$A:$A,$B$5,AgeGroupData!$B:$B,$X$9,AgeGroupData!$C:$C,$B$32,AgeGroupData!$D:$D,C33)>25, IF(SUMIFS(AgeGroupData!$H:$H,AgeGroupData!$A:$A,$B$5,AgeGroupData!$B:$B,$X$9,AgeGroupData!$C:$C,$B$32,AgeGroupData!$D:$D,C33)<50,"*",""),"")) ->  | Z33: =IF(Y33="**","",SUMIFS(AgeGroupData!$F:$F,AgeGroupData!$A:$A,$B$5,AgeGroupData!$B:$B,$X$9,AgeGroupData!$C:$C,$B$32,AgeGroupData!$D:$D,C33)) -> 0 | AA33: =IF(Y33="**","",SUMIFS(AgeGroupData!$G:$G,AgeGroupData!$A:$A,$B$5,AgeGroupData!$B:$B,$X$9,AgeGroupData!$C:$C,$B$32,AgeGroupData!$D:$D,C33)) -> 0
C34: =VLOOKUP($B$5,Lookup!$AA:$AJ,3,FALSE) -> 25–34 | D34: =IF(E34="**","",SUMIFS(AgeGroupData!$E:$E,AgeGroupData!$A:$A,$B$5,AgeGroupData!$B:$B,$D$9,AgeGroupData!$C:$C,$B$32,AgeGroupData!$D:$D,C34)) -> 2.647717 | E34: =IF(SUMIFS(AgeGroupData!$H:$H,AgeGroupData!$A:$A,$B$5,AgeGroupData!$B:$B,$D$9,AgeGroupData!$C:$C,$B$32,AgeGroupData!$D:$D,C34)>=50,"**", IF(SUMIFS(AgeGroupData!$H:$H,AgeGroupData!$A:$A,$B$5,AgeGroupData!$B:$B,$D$9,AgeGroupData!$C:$C,$B$32,AgeGroupData!$D:$D,C34)>25, IF(SUMIFS(AgeGroupData!$H:$H,AgeGroupData!$A:$A,$B$5,AgeGroupData!$B:$B,$D$9,AgeGroupData!$C:$C,$B$32,AgeGroupData!$D:$D,C34)<50,"*",""),"")) ->  | F34: =IF(E34="**","",SUMIFS(AgeGroupData!$F:$F,AgeGroupData!$A:$A,$B$5,AgeGroupData!$B:$B,$D$9,AgeGroupData!$C:$C,$B$32,AgeGroupData!$D:$D,C34)) -> 1.989628 | G34: =IF(E34="**","",SUMIFS(AgeGroupData!$G:$G,AgeGroupData!$A:$A,$B$5,AgeGroupData!$B:$B,$D$9,AgeGroupData!$C:$C,$B$32,AgeGroupData!$D:$D,C34)) -> 3.515669 | I34: =IF(J34="**","",SUMIFS(AgeGroupData!$E:$E,AgeGroupData!$A:$A,$B$5,AgeGroupData!$B:$B,$I$9,AgeGroupData!$C:$C,$B$32,AgeGroupData!$D:$D,C34)) -> 44.03801 | J34: =IF(SUMIFS(AgeGroupData!$H:$H,AgeGroupData!$A:$A,$B$5,AgeGroupData!$B:$B,$I$9,AgeGroupData!$C:$C,$B$32,AgeGroupData!$D:$D,C34)>=50,"**", IF(SUMIFS(AgeGroupData!$H:$H,AgeGroupData!$A:$A,$B$5,AgeGroupData!$B:$B,$I$9,AgeGroupData!$C:$C,$B$32,AgeGroupData!$D:$D,C34)>25, IF(SUMIFS(AgeGroupData!$H:$H,AgeGroupData!$A:$A,$B$5,AgeGroupData!$B:$B,$I$9,AgeGroupData!$C:$C,$B$32,AgeGroupData!$D:$D,C34)<50,"*",""),"")) ->  | K34: =IF(J34="**","",SUMIFS(AgeGroupData!$F:$F,AgeGroupData!$A:$A,$B$5,AgeGroupData!$B:$B,$I$9,AgeGroupData!$C:$C,$B$32,AgeGroupData!$D:$D,C34)) -> 41.73717 | L34: =IF(J34="**","",SUMIFS(AgeGroupData!$G:$G,AgeGroupData!$A:$A,$B$5,AgeGroupData!$B:$B,$I$9,AgeGroupData!$C:$C,$B$32,AgeGroupData!$D:$D,C34)) -> 46.36475 | N34: =IF(O34="**","",SUMIFS(AgeGroupData!$E:$E,AgeGroupData!$A:$A,$B$5,AgeGroupData!$B:$B,$N$9,AgeGroupData!$C:$C,$B$32,AgeGroupData!$D:$D,C34)) -> 29.96257 | O34: =IF(SUMIFS(AgeGroupData!$H:$H,AgeGroupData!$A:$A,$B$5,AgeGroupData!$B:$B,$N$9,AgeGroupData!$C:$C,$B$32,AgeGroupData!$D:$D,C34)>=50,"**", IF(SUMIFS(AgeGroupData!$H:$H,AgeGroupData!$A:$A,$B$5,AgeGroupData!$B:$B,$N$9,AgeGroupData!$C:$C,$B$32,AgeGroupData!$D:$D,C34)>25, IF(SUMIFS(AgeGroupData!$H:$H,AgeGroupData!$A:$A,$B$5,AgeGroupData!$B:$B,$N$9,AgeGroupData!$C:$C,$B$32,AgeGroupData!$D:$D,C34)<50,"*",""),"")) ->  | P34: =IF(O34="**","",SUMIFS(AgeGroupData!$F:$F,AgeGroupData!$A:$A,$B$5,AgeGroupData!$B:$B,$N$9,AgeGroupData!$C:$C,$B$32,AgeGroupData!$D:$D,C34)) -> 27.84596 | Q34: =IF(O34="**","",SUMIFS(AgeGroupData!$G:$G,AgeGroupData!$A:$A,$B$5,AgeGroupData!$B:$B,$N$9,AgeGroupData!$C:$C,$B$32,AgeGroupData!$D:$D,C34)) -> 32.16834 | S34: =IF(T34="**","",SUMIFS(AgeGroupData!$E:$E,AgeGroupData!$A:$A,$B$5,AgeGroupData!$B:$B,$S$9,AgeGroupData!$C:$C,$B$32,AgeGroupData!$D:$D,C34)) -> 15.17611 | T34: =IF(SUMIFS(AgeGroupData!$H:$H,AgeGroupData!$A:$A,$B$5,AgeGroupData!$B:$B,$S$9,AgeGroupData!$C:$C,$B$32,AgeGroupData!$D:$D,C34)>=50,"**", IF(SUMIFS(AgeGroupData!$H:$H,AgeGroupData!$A:$A,$B$5,AgeGroupData!$B:$B,$S$9,AgeGroupData!$C:$C,$B$32,AgeGroupData!$D:$D,C34)>25, IF(SUMIFS(AgeGroupData!$H:$H,AgeGroupData!$A:$A,$B$5,AgeGroupData!$B:$B,$S$9,AgeGroupData!$C:$C,$B$32,AgeGroupData!$D:$D,C34)<50,"*",""),"")) ->  | U34: =IF(T34="**","",SUMIFS(AgeGroupData!$F:$F,AgeGroupData!$A:$A,$B$5,AgeGroupData!$B:$B,$S$9,AgeGroupData!$C:$C,$B$32,AgeGroupData!$D:$D,C34)) -> 13.57781 | V34: =IF(T34="**","",SUMIFS(AgeGroupData!$G:$G,AgeGroupData!$A:$A,$B$5,AgeGroupData!$B:$B,$S$9,AgeGroupData!$C:$C,$B$32,AgeGroupData!$D:$D,C34)) -> 16.9257 | X34: =IF(Y34="**","",SUMIFS(AgeGroupData!$E:$E,AgeGroupData!$A:$A,$B$5,AgeGroupData!$B:$B,$X$9,AgeGroupData!$C:$C,$B$32,AgeGroupData!$D:$D,C34)) -> 0 | Y34: =IF(SUMIFS(AgeGroupData!$H:$H,AgeGroupData!$A:$A,$B$5,AgeGroupData!$B:$B,$X$9,AgeGroupData!$C:$C,$B$32,AgeGroupData!$D:$D,C34)>=50,"**", IF(SUMIFS(AgeGroupData!$H:$H,AgeGroupData!$A:$A,$B$5,AgeGroupData!$B:$B,$X$9,AgeGroupData!$C:$C,$B$32,AgeGroupData!$D:$D,C34)>25, IF(SUMIFS(AgeGroupData!$H:$H,AgeGroupData!$A:$A,$B$5,AgeGroupData!$B:$B,$X$9,AgeGroupData!$C:$C,$B$32,AgeGroupData!$D:$D,C34)<50,"*",""),"")) ->  | Z34: =IF(Y34="**","",SUMIFS(AgeGroupData!$F:$F,AgeGroupData!$A:$A,$B$5,AgeGroupData!$B:$B,$X$9,AgeGroupData!$C:$C,$B$32,AgeGroupData!$D:$D,C34)) -> 0 | AA34: =IF(Y34="**","",SUMIFS(AgeGroupData!$G:$G,AgeGroupData!$A:$A,$B$5,AgeGroupData!$B:$B,$X$9,AgeGroupData!$C:$C,$B$32,AgeGroupData!$D:$D,C34)) -> 0
C35: =VLOOKUP($B$5,Lookup!$AA:$AJ,4,FALSE) -> 35–44 | D35: =IF(E35="**","",SUMIFS(AgeGroupData!$E:$E,AgeGroupData!$A:$A,$B$5,AgeGroupData!$B:$B,$D$9,AgeGroupData!$C:$C,$B$32,AgeGroupData!$D:$D,C35)) -> 1.785313 | E35: =IF(SUMIFS(AgeGroupData!$H:$H,AgeGroupData!$A:$A,$B$5,AgeGroupData!$B:$B,$D$9,AgeGroupData!$C:$C,$B$32,AgeGroupData!$D:$D,C35)>=50,"**", IF(SUMIFS(AgeGroupData!$H:$H,AgeGroupData!$A:$A,$B$5,AgeGroupData!$B:$B,$D$9,AgeGroupData!$C:$C,$B$32,AgeGroupData!$D:$D,C35)>25, IF(SUMIFS(AgeGroupData!$H:$H,AgeGroupData!$A:$A,$B$5,AgeGroupData!$B:$B,$D$9,AgeGroupData!$C:$C,$B$32,AgeGroupData!$D:$D,C35)<50,"*",""),"")) ->  | F35: =IF(E35="**","",SUMIFS(AgeGroupData!$F:$F,AgeGroupData!$A:$A,$B$5,AgeGroupData!$B:$B,$D$9,AgeGroupData!$C:$C,$B$32,AgeGroupData!$D:$D,C35)) -> 1.240117 | G35: =IF(E35="**","",SUMIFS(AgeGroupData!$G:$G,AgeGroupData!$A:$A,$B$5,AgeGroupData!$B:$B,$D$9,AgeGroupData!$C:$C,$B$32,AgeGroupData!$D:$D,C35)) -> 2.563973 | I35: =IF(J35="**","",SUMIFS(AgeGroupData!$E:$E,AgeGroupData!$A:$A,$B$5,AgeGroupData!$B:$B,$I$9,AgeGroupData!$C:$C,$B$32,AgeGroupData!$D:$D,C35)) -> 37.83737 | J35: =IF(SUMIFS(AgeGroupData!$H:$H,AgeGroupData!$A:$A,$B$5,AgeGroupData!$B:$B,$I$9,AgeGroupData!$C:$C,$B$32,AgeGroupData!$D:$D,C35)>=50,"**", IF(SUMIFS(AgeGroupData!$H:$H,AgeGroupData!$A:$A,$B$5,AgeGroupData!$B:$B,$I$9,AgeGroupData!$C:$C,$B$32,AgeGroupData!$D:$D,C35)>25, IF(SUMIFS(AgeGroupData!$H:$H,AgeGroupData!$A:$A,$B$5,AgeGroupData!$B:$B,$I$9,AgeGroupData!$C:$C,$B$32,AgeGroupData!$D:$D,C35)<50,"*",""),"")) ->  | K35: =IF(J35="**","",SUMIFS(AgeGroupData!$F:$F,AgeGroupData!$A:$A,$B$5,AgeGroupData!$B:$B,$I$9,AgeGroupData!$C:$C,$B$32,AgeGroupData!$D:$D,C35)) -> 35.58391 | L35: =IF(J35="**","",SUMIFS(AgeGroupData!$G:$G,AgeGroupData!$A:$A,$B$5,AgeGroupData!$B:$B,$I$9,AgeGroupData!$C:$C,$B$32,AgeGroupData!$D:$D,C35)) -> 40.1446 | N35: =IF(O35="**","",SUMIFS(AgeGroupData!$E:$E,AgeGroupData!$A:$A,$B$5,AgeGroupData!$B:$B,$N$9,AgeGroupData!$C:$C,$B$32,AgeGroupData!$D:$D,C35)) -> 32.85655 | O35: =IF(SUMIFS(AgeGroupData!$H:$H,AgeGroupData!$A:$A,$B$5,AgeGroupData!$B:$B,$N$9,AgeGroupData!$C:$C,$B$32,AgeGroupData!$D:$D,C35)>=50,"**", IF(SUMIFS(AgeGroupData!$H:$H,AgeGroupData!$A:$A,$B$5,AgeGroupData!$B:$B,$N$9,AgeGroupData!$C:$C,$B$32,AgeGroupData!$D:$D,C35)>25, IF(SUMIFS(AgeGroupData!$H:$H,AgeGroupData!$A:$A,$B$5,AgeGroupData!$B:$B,$N$9,AgeGroupData!$C:$C,$B$32,AgeGroupData!$D:$D,C35)<50,"*",""),"")) ->  | P35: =IF(O35="**","",SUMIFS(AgeGroupData!$F:$F,AgeGroupData!$A:$A,$B$5,AgeGroupData!$B:$B,$N$9,AgeGroupData!$C:$C,$B$32,AgeGroupData!$D:$D,C35)) -> 30.68924 | Q35: =IF(O35="**","",SUMIFS(AgeGroupData!$G:$G,AgeGroupData!$A:$A,$B$5,AgeGroupData!$B:$B,$N$9,AgeGroupData!$C:$C,$B$32,AgeGroupData!$D:$D,C35)) -> 35.09941 | S35: =IF(T35="**","",SUMIFS(AgeGroupData!$E:$E,AgeGroupData!$A:$A,$B$5,AgeGroupData!$B:$B,$S$9,AgeGroupData!$C:$C,$B$32,AgeGroupData!$D:$D,C35)) -> 20.48446 | T35: =IF(SUMIFS(AgeGroupData!$H:$H,AgeGroupData!$A:$A,$B$5,AgeGroupData!$B:$B,$S$9,AgeGroupData!$C:$C,$B$32,AgeGroupData!$D:$D,C35)>=50,"**", IF(SUMIFS(AgeGroupData!$H:$H,AgeGroupData!$A:$A,$B$5,AgeGroupData!$B:$B,$S$9,AgeGroupData!$C:$C,$B$32,AgeGroupData!$D:$D,C35)>25, IF(SUMIFS(AgeGroupData!$H:$H,AgeGroupData!$A:$A,$B$5,AgeGroupData!$B:$B,$S$9,AgeGroupData!$C:$C,$B$32,AgeGroupData!$D:$D,C35)<50,"*",""),"")) ->  | U35: =IF(T35="**","",SUMIFS(AgeGroupData!$F:$F,AgeGroupData!$A:$A,$B$5,AgeGroupData!$B:$B,$S$9,AgeGroupData!$C:$C,$B$32,AgeGroupData!$D:$D,C35)) -> 18.51531 | V35: =IF(T35="**","",SUMIFS(AgeGroupData!$G:$G,AgeGroupData!$A:$A,$B$5,AgeGroupData!$B:$B,$S$9,AgeGroupData!$C:$C,$B$32,AgeGroupData!$D:$D,C35)) -> 22.60494 | X35: =IF(Y35="**","",SUMIFS(AgeGroupData!$E:$E,AgeGroupData!$A:$A,$B$5,AgeGroupData!$B:$B,$X$9,AgeGroupData!$C:$C,$B$32,AgeGroupData!$D:$D,C35)) -> 0 | Y35: =IF(SUMIFS(AgeGroupData!$H:$H,AgeGroupData!$A:$A,$B$5,AgeGroupData!$B:$B,$X$9,AgeGroupData!$C:$C,$B$32,AgeGroupData!$D:$D,C35)>=50,"**", IF(SUMIFS(AgeGroupData!$H:$H,AgeGroupData!$A:$A,$B$5,AgeGroupData!$B:$B,$X$9,AgeGroupData!$C:$C,$B$32,AgeGroupData!$D:$D,C35)>25, IF(SUMIFS(AgeGroupData!$H:$H,AgeGroupData!$A:$A,$B$5,AgeGroupData!$B:$B,$X$9,AgeGroupData!$C:$C,$B$32,AgeGroupData!$D:$D,C35)<50,"*",""),"")) ->  | Z35: =IF(Y35="**","",SUMIFS(AgeGroupData!$F:$F,AgeGroupData!$A:$A,$B$5,AgeGroupData!$B:$B,$X$9,AgeGroupData!$C:$C,$B$32,AgeGroupData!$D:$D,C35)) -> 0 | AA35: =IF(Y35="**","",SUMIFS(AgeGroupData!$G:$G,AgeGroupData!$A:$A,$B$5,AgeGroupData!$B:$B,$X$9,AgeGroupData!$C:$C,$B$32,AgeGroupData!$D:$D,C35)) -> 0
C36: =VLOOKUP($B$5,Lookup!$AA:$AJ,5,FALSE) -> 45–54 | D36: =IF(E36="**","",SUMIFS(AgeGroupData!$E:$E,AgeGroupData!$A:$A,$B$5,AgeGroupData!$B:$B,$D$9,AgeGroupData!$C:$C,$B$32,AgeGroupData!$D:$D,C36)) -> 0.8798877 | E36: =IF(SUMIFS(AgeGroupData!$H:$H,AgeGroupData!$A:$A,$B$5,AgeGroupData!$B:$B,$D$9,AgeGroupData!$C:$C,$B$32,AgeGroupData!$D:$D,C36)>=50,"**", IF(SUMIFS(AgeGroupData!$H:$H,AgeGroupData!$A:$A,$B$5,AgeGroupData!$B:$B,$D$9,AgeGroupData!$C:$C,$B$32,AgeGroupData!$D:$D,C36)>25, IF(SUMIFS(AgeGroupData!$H:$H,AgeGroupData!$A:$A,$B$5,AgeGroupData!$B:$B,$D$9,AgeGroupData!$C:$C,$B$32,AgeGroupData!$D:$D,C36)<50,"*",""),"")) ->  | F36: =IF(E36="**","",SUMIFS(AgeGroupData!$F:$F,AgeGroupData!$A:$A,$B$5,AgeGroupData!$B:$B,$D$9,AgeGroupData!$C:$C,$B$32,AgeGroupData!$D:$D,C36)) -> 0.6099159 | G36: =IF(E36="**","",SUMIFS(AgeGroupData!$G:$G,AgeGroupData!$A:$A,$B$5,AgeGroupData!$B:$B,$D$9,AgeGroupData!$C:$C,$B$32,AgeGroupData!$D:$D,C36)) -> 1.267835 | I36: =IF(J36="**","",SUMIFS(AgeGroupData!$E:$E,AgeGroupData!$A:$A,$B$5,AgeGroupData!$B:$B,$I$9,AgeGroupData!$C:$C,$B$32,AgeGroupData!$D:$D,C36)) -> 30.62663 | J36: =IF(SUMIFS(AgeGroupData!$H:$H,AgeGroupData!$A:$A,$B$5,AgeGroupData!$B:$B,$I$9,AgeGroupData!$C:$C,$B$32,AgeGroupData!$D:$D,C36)>=50,"**", IF(SUMIFS(AgeGroupData!$H:$H,AgeGroupData!$A:$A,$B$5,AgeGroupData!$B:$B,$I$9,AgeGroupData!$C:$C,$B$32,AgeGroupData!$D:$D,C36)>25, IF(SUMIFS(AgeGroupData!$H:$H,AgeGroupData!$A:$A,$B$5,AgeGroupData!$B:$B,$I$9,AgeGroupData!$C:$C,$B$32,AgeGroupData!$D:$D,C36)<50,"*",""),"")) ->  | K36: =IF(J36="**","",SUMIFS(AgeGroupData!$F:$F,AgeGroupData!$A:$A,$B$5,AgeGroupData!$B:$B,$I$9,AgeGroupData!$C:$C,$B$32,AgeGroupData!$D:$D,C36)) -> 28.76497 | L36: =IF(J36="**","",SUMIFS(AgeGroupData!$G:$G,AgeGroupData!$A:$A,$B$5,AgeGroupData!$B:$B,$I$9,AgeGroupData!$C:$C,$B$32,AgeGroupData!$D:$D,C36)) -> 32.55373 | N36: =IF(O36="**","",SUMIFS(AgeGroupData!$E:$E,AgeGroupData!$A:$A,$B$5,AgeGroupData!$B:$B,$N$9,AgeGroupData!$C:$C,$B$32,AgeGroupData!$D:$D,C36)) -> 34.95742 | O36: =IF(SUMIFS(AgeGroupData!$H:$H,AgeGroupData!$A:$A,$B$5,AgeGroupData!$B:$B,$N$9,AgeGroupData!$C:$C,$B$32,AgeGroupData!$D:$D,C36)>=50,"**", IF(SUMIFS(AgeGroupData!$H:$H,AgeGroupData!$A:$A,$B$5,AgeGroupData!$B:$B,$N$9,AgeGroupData!$C:$C,$B$32,AgeGroupData!$D:$D,C36)>25, IF(SUMIFS(AgeGroupData!$H:$H,AgeGroupData!$A:$A,$B$5,AgeGroupData!$B:$B,$N$9,AgeGroupData!$C:$C,$B$32,AgeGroupData!$D:$D,C36)<50,"*",""),"")) ->  | P36: =IF(O36="**","",SUMIFS(AgeGroupData!$F:$F,AgeGroupData!$A:$A,$B$5,AgeGroupData!$B:$B,$N$9,AgeGroupData!$C:$C,$B$32,AgeGroupData!$D:$D,C36)) -> 33.00525 | Q36: =IF(O36="**","",SUMIFS(AgeGroupData!$G:$G,AgeGroupData!$A:$A,$B$5,AgeGroupData!$B:$B,$N$9,AgeGroupData!$C:$C,$B$32,AgeGroupData!$D:$D,C36)) -> 36.96135 | S36: =IF(T36="**","",SUMIFS(AgeGroupData!$E:$E,AgeGroupData!$A:$A,$B$5,AgeGroupData!$B:$B,$S$9,AgeGroupData!$C:$C,$B$32,AgeGroupData!$D:$D,C36)) -> 24.27649 | T36: =IF(SUMIFS(AgeGroupData!$H:$H,AgeGroupData!$A:$A,$B$5,AgeGroupData!$B:$B,$S$9,AgeGroupData!$C:$C,$B$32,AgeGroupData!$D:$D,C36)>=50,"**", IF(SUMIFS(AgeGroupData!$H:$H,AgeGroupData!$A:$A,$B$5,AgeGroupData!$B:$B,$S$9,AgeGroupData!$C:$C,$B$32,AgeGroupData!$D:$D,C36)>25, IF(SUMIFS(AgeGroupData!$H:$H,AgeGroupData!$A:$A,$B$5,AgeGroupData!$B:$B,$S$9,AgeGroupData!$C:$C,$B$32,AgeGroupData!$D:$D,C36)<50,"*",""),"")) ->  | U36: =IF(T36="**","",SUMIFS(AgeGroupData!$F:$F,AgeGroupData!$A:$A,$B$5,AgeGroupData!$B:$B,$S$9,AgeGroupData!$C:$C,$B$32,AgeGroupData!$D:$D,C36)) -> 22.58332 | V36: =IF(T36="**","",SUMIFS(AgeGroupData!$G:$G,AgeGroupData!$A:$A,$B$5,AgeGroupData!$B:$B,$S$9,AgeGroupData!$C:$C,$B$32,AgeGroupData!$D:$D,C36)) -> 26.05389 | X36: =IF(Y36="**","",SUMIFS(AgeGroupData!$E:$E,AgeGroupData!$A:$A,$B$5,AgeGroupData!$B:$B,$X$9,AgeGroupData!$C:$C,$B$32,AgeGroupData!$D:$D,C36)) -> 0 | Y36: =IF(SUMIFS(AgeGroupData!$H:$H,AgeGroupData!$A:$A,$B$5,AgeGroupData!$B:$B,$X$9,AgeGroupData!$C:$C,$B$32,AgeGroupData!$D:$D,C36)>=50,"**", IF(SUMIFS(AgeGroupData!$H:$H,AgeGroupData!$A:$A,$B$5,AgeGroupData!$B:$B,$X$9,AgeGroupData!$C:$C,$B$32,AgeGroupData!$D:$D,C36)>25, IF(SUMIFS(AgeGroupData!$H:$H,AgeGroupData!$A:$A,$B$5,AgeGroupData!$B:$B,$X$9,AgeGroupData!$C:$C,$B$32,AgeGroupData!$D:$D,C36)<50,"*",""),"")) ->  | Z36: =IF(Y36="**","",SUMIFS(AgeGroupData!$F:$F,AgeGroupData!$A:$A,$B$5,AgeGroupData!$B:$B,$X$9,AgeGroupData!$C:$C,$B$32,AgeGroupData!$D:$D,C36)) -> 0 | AA36: =IF(Y36="**","",SUMIFS(AgeGroupData!$G:$G,AgeGroupData!$A:$A,$B$5,AgeGroupData!$B:$B,$X$9,AgeGroupData!$C:$C,$B$32,AgeGroupData!$D:$D,C36)) -> 0
C37: =VLOOKUP($B$5,Lookup!$AA:$AJ,6,FALSE) -> 55–64 | D37: =IF(E37="**","",SUMIFS(AgeGroupData!$E:$E,AgeGroupData!$A:$A,$B$5,AgeGroupData!$B:$B,$D$9,AgeGroupData!$C:$C,$B$32,AgeGroupData!$D:$D,C37)) -> 1.049833 | E37: =IF(SUMIFS(AgeGroupData!$H:$H,AgeGroupData!$A:$A,$B$5,AgeGroupData!$B:$B,$D$9,AgeGroupData!$C:$C,$B$32,AgeGroupData!$D:$D,C37)>=50,"**", IF(SUMIFS(AgeGroupData!$H:$H,AgeGroupData!$A:$A,$B$5,AgeGroupData!$B:$B,$D$9,AgeGroupData!$C:$C,$B$32,AgeGroupData!$D:$D,C37)>25, IF(SUMIFS(AgeGroupData!$H:$H,AgeGroupData!$A:$A,$B$5,AgeGroupData!$B:$B,$D$9,AgeGroupData!$C:$C,$B$32,AgeGroupData!$D:$D,C37)<50,"*",""),"")) ->  | F37: =IF(E37="**","",SUMIFS(AgeGroupData!$F:$F,AgeGroupData!$A:$A,$B$5,AgeGroupData!$B:$B,$D$9,AgeGroupData!$C:$C,$B$32,AgeGroupData!$D:$D,C37)) -> 0.7524488 | G37: =IF(E37="**","",SUMIFS(AgeGroupData!$G:$G,AgeGroupData!$A:$A,$B$5,AgeGroupData!$B:$B,$D$9,AgeGroupData!$C:$C,$B$32,AgeGroupData!$D:$D,C37)) -> 1.463018 | I37: =IF(J37="**","",SUMIFS(AgeGroupData!$E:$E,AgeGroupData!$A:$A,$B$5,AgeGroupData!$B:$B,$I$9,AgeGroupData!$C:$C,$B$32,AgeGroupData!$D:$D,C37)) -> 29.92371 | J37: =IF(SUMIFS(AgeGroupData!$H:$H,AgeGroupData!$A:$A,$B$5,AgeGroupData!$B:$B,$I$9,AgeGroupData!$C:$C,$B$32,AgeGroupData!$D:$D,C37)>=50,"**", IF(SUMIFS(AgeGroupData!$H:$H,AgeGroupData!$A:$A,$B$5,AgeGroupData!$B:$B,$I$9,AgeGroupData!$C:$C,$B$32,AgeGroupData!$D:$D,C37)>25, IF(SUMIFS(AgeGroupData!$H:$H,AgeGroupData!$A:$A,$B$5,AgeGroupData!$B:$B,$I$9,AgeGroupData!$C:$C,$B$32,AgeGroupData!$D:$D,C37)<50,"*",""),"")) ->  | K37: =IF(J37="**","",SUMIFS(AgeGroupData!$F:$F,AgeGroupData!$A:$A,$B$5,AgeGroupData!$B:$B,$I$9,AgeGroupData!$C:$C,$B$32,AgeGroupData!$D:$D,C37)) -> 28.13053 | L37: =IF(J37="**","",SUMIFS(AgeGroupData!$G:$G,AgeGroupData!$A:$A,$B$5,AgeGroupData!$B:$B,$I$9,AgeGroupData!$C:$C,$B$32,AgeGroupData!$D:$D,C37)) -> 31.78065 | N37: =IF(O37="**","",SUMIFS(AgeGroupData!$E:$E,AgeGroupData!$A:$A,$B$5,AgeGroupData!$B:$B,$N$9,AgeGroupData!$C:$C,$B$32,AgeGroupData!$D:$D,C37)) -> 34.97973 | O37: =IF(SUMIFS(AgeGroupData!$H:$H,AgeGroupData!$A:$A,$B$5,AgeGroupData!$B:$B,$N$9,AgeGroupData!$C:$C,$B$32,AgeGroupData!$D:$D,C37)>=50,"**", IF(SUMIFS(AgeGroupData!$H:$H,AgeGroupData!$A:$A,$B$5,AgeGroupData!$B:$B,$N$9,AgeGroupData!$C:$C,$B$32,AgeGroupData!$D:$D,C37)>25, IF(SUMIFS(AgeGroupData!$H:$H,AgeGroupData!$A:$A,$B$5,AgeGroupData!$B:$B,$N$9,AgeGroupData!$C:$C,$B$32,AgeGroupData!$D:$D,C37)<50,"*",""),"")) ->  | P37: =IF(O37="**","",SUMIFS(AgeGroupData!$F:$F,AgeGroupData!$A:$A,$B$5,AgeGroupData!$B:$B,$N$9,AgeGroupData!$C:$C,$B$32,AgeGroupData!$D:$D,C37)) -> 33.14275 | Q37: =IF(O37="**","",SUMIFS(AgeGroupData!$G:$G,AgeGroupData!$A:$A,$B$5,AgeGroupData!$B:$B,$N$9,AgeGroupData!$C:$C,$B$32,AgeGroupData!$D:$D,C37)) -> 36.8624 | S37: =IF(T37="**","",SUMIFS(AgeGroupData!$E:$E,AgeGroupData!$A:$A,$B$5,AgeGroupData!$B:$B,$S$9,AgeGroupData!$C:$C,$B$32,AgeGroupData!$D:$D,C37)) -> 25.69484 | T37: =IF(SUMIFS(AgeGroupData!$H:$H,AgeGroupData!$A:$A,$B$5,AgeGroupData!$B:$B,$S$9,AgeGroupData!$C:$C,$B$32,AgeGroupData!$D:$D,C37)>=50,"**", IF(SUMIFS(AgeGroupData!$H:$H,AgeGroupData!$A:$A,$B$5,AgeGroupData!$B:$B,$S$9,AgeGroupData!$C:$C,$B$32,AgeGroupData!$D:$D,C37)>25, IF(SUMIFS(AgeGroupData!$H:$H,AgeGroupData!$A:$A,$B$5,AgeGroupData!$B:$B,$S$9,AgeGroupData!$C:$C,$B$32,AgeGroupData!$D:$D,C37)<50,"*",""),"")) ->  | U37: =IF(T37="**","",SUMIFS(AgeGroupData!$F:$F,AgeGroupData!$A:$A,$B$5,AgeGroupData!$B:$B,$S$9,AgeGroupData!$C:$C,$B$32,AgeGroupData!$D:$D,C37)) -> 24.09612 | V37: =IF(T37="**","",SUMIFS(AgeGroupData!$G:$G,AgeGroupData!$A:$A,$B$5,AgeGroupData!$B:$B,$S$9,AgeGroupData!$C:$C,$B$32,AgeGroupData!$D:$D,C37)) -> 27.36141 | X37: =IF(Y37="**","",SUMIFS(AgeGroupData!$E:$E,AgeGroupData!$A:$A,$B$5,AgeGroupData!$B:$B,$X$9,AgeGroupData!$C:$C,$B$32,AgeGroupData!$D:$D,C37)) -> 0 | Y37: =IF(SUMIFS(AgeGroupData!$H:$H,AgeGroupData!$A:$A,$B$5,AgeGroupData!$B:$B,$X$9,AgeGroupData!$C:$C,$B$32,AgeGroupData!$D:$D,C37)>=50,"**", IF(SUMIFS(AgeGroupData!$H:$H,AgeGroupData!$A:$A,$B$5,AgeGroupData!$B:$B,$X$9,AgeGroupData!$C:$C,$B$32,AgeGroupData!$D:$D,C37)>25, IF(SUMIFS(AgeGroupData!$H:$H,AgeGroupData!$A:$A,$B$5,AgeGroupData!$B:$B,$X$9,AgeGroupData!$C:$C,$B$32,AgeGroupData!$D:$D,C37)<50,"*",""),"")) ->  | Z37: =IF(Y37="**","",SUMIFS(AgeGroupData!$F:$F,AgeGroupData!$A:$A,$B$5,AgeGroupData!$B:$B,$X$9,AgeGroupData!$C:$C,$B$32,AgeGroupData!$D:$D,C37)) -> 0 | AA37: =IF(Y37="**","",SUMIFS(AgeGroupData!$G:$G,AgeGroupData!$A:$A,$B$5,AgeGroupData!$B:$B,$X$9,AgeGroupData!$C:$C,$B$32,AgeGroupData!$D:$D,C37)) -> 0
C38: =IF(VLOOKUP($B$5,Lookup!$AA:$AJ,7,FALSE)=""," ",VLOOKUP($B$5,Lookup!$AA:$AJ,7,FALSE)) -> 65–74 | D38: =IF(E38="**","",SUMIFS(AgeGroupData!$E:$E,AgeGroupData!$A:$A,$B$5,AgeGroupData!$B:$B,$D$9,AgeGroupData!$C:$C,$B$32,AgeGroupData!$D:$D,C38)) -> 1.003566 | E38: =IF(SUMIFS(AgeGroupData!$H:$H,AgeGroupData!$A:$A,$B$5,AgeGroupData!$B:$B,$D$9,AgeGroupData!$C:$C,$B$32,AgeGroupData!$D:$D,C38)>=50,"**", IF(SUMIFS(AgeGroupData!$H:$H,AgeGroupData!$A:$A,$B$5,AgeGroupData!$B:$B,$D$9,AgeGroupData!$C:$C,$B$32,AgeGroupData!$D:$D,C38)>25, IF(SUMIFS(AgeGroupData!$H:$H,AgeGroupData!$A:$A,$B$5,AgeGroupData!$B:$B,$D$9,AgeGroupData!$C:$C,$B$32,AgeGroupData!$D:$D,C38)<50,"*",""),"")) ->  | F38: =IF(E38="**","",SUMIFS(AgeGroupData!$F:$F,AgeGroupData!$A:$A,$B$5,AgeGroupData!$B:$B,$D$9,AgeGroupData!$C:$C,$B$32,AgeGroupData!$D:$D,C38)) -> 0.7203472 | G38: =IF(E38="**","",SUMIFS(AgeGroupData!$G:$G,AgeGroupData!$A:$A,$B$5,AgeGroupData!$B:$B,$D$9,AgeGroupData!$C:$C,$B$32,AgeGroupData!$D:$D,C38)) -> 1.396572 | I38: =IF(J38="**","",SUMIFS(AgeGroupData!$E:$E,AgeGroupData!$A:$A,$B$5,AgeGroupData!$B:$B,$I$9,AgeGroupData!$C:$C,$B$32,AgeGroupData!$D:$D,C38)) -> 28.42514 | J38: =IF(SUMIFS(AgeGroupData!$H:$H,AgeGroupData!$A:$A,$B$5,AgeGroupData!$B:$B,$I$9,AgeGroupData!$C:$C,$B$32,AgeGroupData!$D:$D,C38)>=50,"**", IF(SUMIFS(AgeGroupData!$H:$H,AgeGroupData!$A:$A,$B$5,AgeGroupData!$B:$B,$I$9,AgeGroupData!$C:$C,$B$32,AgeGroupData!$D:$D,C38)>25, IF(SUMIFS(AgeGroupData!$H:$H,AgeGroupData!$A:$A,$B$5,AgeGroupData!$B:$B,$I$9,AgeGroupData!$C:$C,$B$32,AgeGroupData!$D:$D,C38)<50,"*",""),"")) ->  | K38: =IF(J38="**","",SUMIFS(AgeGroupData!$F:$F,AgeGroupData!$A:$A,$B$5,AgeGroupData!$B:$B,$I$9,AgeGroupData!$C:$C,$B$32,AgeGroupData!$D:$D,C38)) -> 26.70289 | L38: =IF(J38="**","",SUMIFS(AgeGroupData!$G:$G,AgeGroupData!$A:$A,$B$5,AgeGroupData!$B:$B,$I$9,AgeGroupData!$C:$C,$B$32,AgeGroupData!$D:$D,C38)) -> 30.21269 | N38: =IF(O38="**","",SUMIFS(AgeGroupData!$E:$E,AgeGroupData!$A:$A,$B$5,AgeGroupData!$B:$B,$N$9,AgeGroupData!$C:$C,$B$32,AgeGroupData!$D:$D,C38)) -> 36.86401 | O38: =IF(SUMIFS(AgeGroupData!$H:$H,AgeGroupData!$A:$A,$B$5,AgeGroupData!$B:$B,$N$9,AgeGroupData!$C:$C,$B$32,AgeGroupData!$D:$D,C38)>=50,"**", IF(SUMIFS(AgeGroupData!$H:$H,AgeGroupData!$A:$A,$B$5,AgeGroupData!$B:$B,$N$9,AgeGroupData!$C:$C,$B$32,AgeGroupData!$D:$D,C38)>25, IF(SUMIFS(AgeGroupData!$H:$H,AgeGroupData!$A:$A,$B$5,AgeGroupData!$B:$B,$N$9,AgeGroupData!$C:$C,$B$32,AgeGroupData!$D:$D,C38)<50,"*",""),"")) ->  | P38: =IF(O38="**","",SUMIFS(AgeGroupData!$F:$F,AgeGroupData!$A:$A,$B$5,AgeGroupData!$B:$B,$N$9,AgeGroupData!$C:$C,$B$32,AgeGroupData!$D:$D,C38)) -> 34.95532 | Q38: =IF(O38="**","",SUMIFS(AgeGroupData!$G:$G,AgeGroupData!$A:$A,$B$5,AgeGroupData!$B:$B,$N$9,AgeGroupData!$C:$C,$B$32,AgeGroupData!$D:$D,C38)) -> 38.81473 | S38: =IF(T38="**","",SUMIFS(AgeGroupData!$E:$E,AgeGroupData!$A:$A,$B$5,AgeGroupData!$B:$B,$S$9,AgeGroupData!$C:$C,$B$32,AgeGroupData!$D:$D,C38)) -> 25.47622 | T38: =IF(SUMIFS(AgeGroupData!$H:$H,AgeGroupData!$A:$A,$B$5,AgeGroupData!$B:$B,$S$9,AgeGroupData!$C:$C,$B$32,AgeGroupData!$D:$D,C38)>=50,"**", IF(SUMIFS(AgeGroupData!$H:$H,AgeGroupData!$A:$A,$B$5,AgeGroupData!$B:$B,$S$9,AgeGroupData!$C:$C,$B$32,AgeGroupData!$D:$D,C38)>25, IF(SUMIFS(AgeGroupData!$H:$H,AgeGroupData!$A:$A,$B$5,AgeGroupData!$B:$B,$S$9,AgeGroupData!$C:$C,$B$32,AgeGroupData!$D:$D,C38)<50,"*",""),"")) ->  | U38: =IF(T38="**","",SUMIFS(AgeGroupData!$F:$F,AgeGroupData!$A:$A,$B$5,AgeGroupData!$B:$B,$S$9,AgeGroupData!$C:$C,$B$32,AgeGroupData!$D:$D,C38)) -> 23.68217 | V38: =IF(T38="**","",SUMIFS(AgeGroupData!$G:$G,AgeGroupData!$A:$A,$B$5,AgeGroupData!$B:$B,$S$9,AgeGroupData!$C:$C,$B$32,AgeGroupData!$D:$D,C38)) -> 27.35746 | X38: =IF(Y38="**","",SUMIFS(AgeGroupData!$E:$E,AgeGroupData!$A:$A,$B$5,AgeGroupData!$B:$B,$X$9,AgeGroupData!$C:$C,$B$32,AgeGroupData!$D:$D,C38)) -> 0 | Y38: =IF(SUMIFS(AgeGroupData!$H:$H,AgeGroupData!$A:$A,$B$5,AgeGroupData!$B:$B,$X$9,AgeGroupData!$C:$C,$B$32,AgeGroupData!$D:$D,C38)>=50,"**", IF(SUMIFS(AgeGroupData!$H:$H,AgeGroupData!$A:$A,$B$5,AgeGroupData!$B:$B,$X$9,AgeGroupData!$C:$C,$B$32,AgeGroupData!$D:$D,C38)>25, IF(SUMIFS(AgeGroupData!$H:$H,AgeGroupData!$A:$A,$B$5,AgeGroupData!$B:$B,$X$9,AgeGroupData!$C:$C,$B$32,AgeGroupData!$D:$D,C38)<50,"*",""),"")) ->  | Z38: =IF(Y38="**","",SUMIFS(AgeGroupData!$F:$F,AgeGroupData!$A:$A,$B$5,AgeGroupData!$B:$B,$X$9,AgeGroupData!$C:$C,$B$32,AgeGroupData!$D:$D,C38)) -> 0 | AA38: =IF(Y38="**","",SUMIFS(AgeGroupData!$G:$G,AgeGroupData!$A:$A,$B$5,AgeGroupData!$B:$B,$X$9,AgeGroupData!$C:$C,$B$32,AgeGroupData!$D:$D,C38)) -> 0
C39: =IF(VLOOKUP($B$5,Lookup!$AA:$AJ,8,FALSE)=""," ",VLOOKUP($B$5,Lookup!$AA:$AJ,8,FALSE)) -> 75–84 | D39: =IF(E39="**","",SUMIFS(AgeGroupData!$E:$E,AgeGroupData!$A:$A,$B$5,AgeGroupData!$B:$B,$D$9,AgeGroupData!$C:$C,$B$32,AgeGroupData!$D:$D,C39)) -> 1.780606 | E39: =IF(SUMIFS(AgeGroupData!$H:$H,AgeGroupData!$A:$A,$B$5,AgeGroupData!$B:$B,$D$9,AgeGroupData!$C:$C,$B$32,AgeGroupData!$D:$D,C39)>=50,"**", IF(SUMIFS(AgeGroupData!$H:$H,AgeGroupData!$A:$A,$B$5,AgeGroupData!$B:$B,$D$9,AgeGroupData!$C:$C,$B$32,AgeGroupData!$D:$D,C39)>25, IF(SUMIFS(AgeGroupData!$H:$H,AgeGroupData!$A:$A,$B$5,AgeGroupData!$B:$B,$D$9,AgeGroupData!$C:$C,$B$32,AgeGroupData!$D:$D,C39)<50,"*",""),"")) ->  | F39: =IF(E39="**","",SUMIFS(AgeGroupData!$F:$F,AgeGroupData!$A:$A,$B$5,AgeGroupData!$B:$B,$D$9,AgeGroupData!$C:$C,$B$32,AgeGroupData!$D:$D,C39)) -> 1.248116 | G39: =IF(E39="**","",SUMIFS(AgeGroupData!$G:$G,AgeGroupData!$A:$A,$B$5,AgeGroupData!$B:$B,$D$9,AgeGroupData!$C:$C,$B$32,AgeGroupData!$D:$D,C39)) -> 2.534443 | I39: =IF(J39="**","",SUMIFS(AgeGroupData!$E:$E,AgeGroupData!$A:$A,$B$5,AgeGroupData!$B:$B,$I$9,AgeGroupData!$C:$C,$B$32,AgeGroupData!$D:$D,C39)) -> 33.49614 | J39: =IF(SUMIFS(AgeGroupData!$H:$H,AgeGroupData!$A:$A,$B$5,AgeGroupData!$B:$B,$I$9,AgeGroupData!$C:$C,$B$32,AgeGroupData!$D:$D,C39)>=50,"**", IF(SUMIFS(AgeGroupData!$H:$H,AgeGroupData!$A:$A,$B$5,AgeGroupData!$B:$B,$I$9,AgeGroupData!$C:$C,$B$32,AgeGroupData!$D:$D,C39)>25, IF(SUMIFS(AgeGroupData!$H:$H,AgeGroupData!$A:$A,$B$5,AgeGroupData!$B:$B,$I$9,AgeGroupData!$C:$C,$B$32,AgeGroupData!$D:$D,C39)<50,"*",""),"")) ->  | K39: =IF(J39="**","",SUMIFS(AgeGroupData!$F:$F,AgeGroupData!$A:$A,$B$5,AgeGroupData!$B:$B,$I$9,AgeGroupData!$C:$C,$B$32,AgeGroupData!$D:$D,C39)) -> 30.52942 | L39: =IF(J39="**","",SUMIFS(AgeGroupData!$G:$G,AgeGroupData!$A:$A,$B$5,AgeGroupData!$B:$B,$I$9,AgeGroupData!$C:$C,$B$32,AgeGroupData!$D:$D,C39)) -> 36.59928 | N39: =IF(O39="**","",SUMIFS(AgeGroupData!$E:$E,AgeGroupData!$A:$A,$B$5,AgeGroupData!$B:$B,$N$9,AgeGroupData!$C:$C,$B$32,AgeGroupData!$D:$D,C39)) -> 35.25834 | O39: =IF(SUMIFS(AgeGroupData!$H:$H,AgeGroupData!$A:$A,$B$5,AgeGroupData!$B:$B,$N$9,AgeGroupData!$C:$C,$B$32,AgeGroupData!$D:$D,C39)>=50,"**", IF(SUMIFS(AgeGroupData!$H:$H,AgeGroupData!$A:$A,$B$5,AgeGroupData!$B:$B,$N$9,AgeGroupData!$C:$C,$B$32,AgeGroupData!$D:$D,C39)>25, IF(SUMIFS(AgeGroupData!$H:$H,AgeGroupData!$A:$A,$B$5,AgeGroupData!$B:$B,$N$9,AgeGroupData!$C:$C,$B$32,AgeGroupData!$D:$D,C39)<50,"*",""),"")) ->  | P39: =IF(O39="**","",SUMIFS(AgeGroupData!$F:$F,AgeGroupData!$A:$A,$B$5,AgeGroupData!$B:$B,$N$9,AgeGroupData!$C:$C,$B$32,AgeGroupData!$D:$D,C39)) -> 32.52379 | Q39: =IF(O39="**","",SUMIFS(AgeGroupData!$G:$G,AgeGroupData!$A:$A,$B$5,AgeGroupData!$B:$B,$N$9,AgeGroupData!$C:$C,$B$32,AgeGroupData!$D:$D,C39)) -> 38.09302 | S39: =IF(T39="**","",SUMIFS(AgeGroupData!$E:$E,AgeGroupData!$A:$A,$B$5,AgeGroupData!$B:$B,$S$9,AgeGroupData!$C:$C,$B$32,AgeGroupData!$D:$D,C39)) -> 18.86129 | T39: =IF(SUMIFS(AgeGroupData!$H:$H,AgeGroupData!$A:$A,$B$5,AgeGroupData!$B:$B,$S$9,AgeGroupData!$C:$C,$B$32,AgeGroupData!$D:$D,C39)>=50,"**", IF(SUMIFS(AgeGroupData!$H:$H,AgeGroupData!$A:$A,$B$5,AgeGroupData!$B:$B,$S$9,AgeGroupData!$C:$C,$B$32,AgeGroupData!$D:$D,C39)>25, IF(SUMIFS(AgeGroupData!$H:$H,AgeGroupData!$A:$A,$B$5,AgeGroupData!$B:$B,$S$9,AgeGroupData!$C:$C,$B$32,AgeGroupData!$D:$D,C39)<50,"*",""),"")) ->  | U39: =IF(T39="**","",SUMIFS(AgeGroupData!$F:$F,AgeGroupData!$A:$A,$B$5,AgeGroupData!$B:$B,$S$9,AgeGroupData!$C:$C,$B$32,AgeGroupData!$D:$D,C39)) -> 16.60142 | V39: =IF(T39="**","",SUMIFS(AgeGroupData!$G:$G,AgeGroupData!$A:$A,$B$5,AgeGroupData!$B:$B,$S$9,AgeGroupData!$C:$C,$B$32,AgeGroupData!$D:$D,C39)) -> 21.35003 | X39: =IF(Y39="**","",SUMIFS(AgeGroupData!$E:$E,AgeGroupData!$A:$A,$B$5,AgeGroupData!$B:$B,$X$9,AgeGroupData!$C:$C,$B$32,AgeGroupData!$D:$D,C39)) -> 0 | Y39: =IF(SUMIFS(AgeGroupData!$H:$H,AgeGroupData!$A:$A,$B$5,AgeGroupData!$B:$B,$X$9,AgeGroupData!$C:$C,$B$32,AgeGroupData!$D:$D,C39)>=50,"**", IF(SUMIFS(AgeGroupData!$H:$H,AgeGroupData!$A:$A,$B$5,AgeGroupData!$B:$B,$X$9,AgeGroupData!$C:$C,$B$32,AgeGroupData!$D:$D,C39)>25, IF(SUMIFS(AgeGroupData!$H:$H,AgeGroupData!$A:$A,$B$5,AgeGroupData!$B:$B,$X$9,AgeGroupData!$C:$C,$B$32,AgeGroupData!$D:$D,C39)<50,"*",""),"")) ->  | Z39: =IF(Y39="**","",SUMIFS(AgeGroupData!$F:$F,AgeGroupData!$A:$A,$B$5,AgeGroupData!$B:$B,$X$9,AgeGroupData!$C:$C,$B$32,AgeGroupData!$D:$D,C39)) -> 0 | AA39: =IF(Y39="**","",SUMIFS(AgeGroupData!$G:$G,AgeGroupData!$A:$A,$B$5,AgeGroupData!$B:$B,$X$9,AgeGroupData!$C:$C,$B$32,AgeGroupData!$D:$D,C39)) -> 0
C40: =IF(VLOOKUP($B$5,Lookup!$AA:$AJ,9,FALSE)=""," ",VLOOKUP($B$5,Lookup!$AA:$AJ,9,FALSE)) -> 85+ | D40: =IF(E40="**","",SUMIFS(AgeGroupData!$E:$E,AgeGroupData!$A:$A,$B$5,AgeGroupData!$B:$B,$D$9,AgeGroupData!$C:$C,$B$32,AgeGroupData!$D:$D,C40)) -> 2.5263 | E40: =IF(SUMIFS(AgeGroupData!$H:$H,AgeGroupData!$A:$A,$B$5,AgeGroupData!$B:$B,$D$9,AgeGroupData!$C:$C,$B$32,AgeGroupData!$D:$D,C40)>=50,"**", IF(SUMIFS(AgeGroupData!$H:$H,AgeGroupData!$A:$A,$B$5,AgeGroupData!$B:$B,$D$9,AgeGroupData!$C:$C,$B$32,AgeGroupData!$D:$D,C40)>25, IF(SUMIFS(AgeGroupData!$H:$H,AgeGroupData!$A:$A,$B$5,AgeGroupData!$B:$B,$D$9,AgeGroupData!$C:$C,$B$32,AgeGroupData!$D:$D,C40)<50,"*",""),"")) ->  | F40: =IF(E40="**","",SUMIFS(AgeGroupData!$F:$F,AgeGroupData!$A:$A,$B$5,AgeGroupData!$B:$B,$D$9,AgeGroupData!$C:$C,$B$32,AgeGroupData!$D:$D,C40)) -> 1.564658 | G40: =IF(E40="**","",SUMIFS(AgeGroupData!$G:$G,AgeGroupData!$A:$A,$B$5,AgeGroupData!$B:$B,$D$9,AgeGroupData!$C:$C,$B$32,AgeGroupData!$D:$D,C40)) -> 4.054623 | I40: =IF(J40="**","",SUMIFS(AgeGroupData!$E:$E,AgeGroupData!$A:$A,$B$5,AgeGroupData!$B:$B,$I$9,AgeGroupData!$C:$C,$B$32,AgeGroupData!$D:$D,C40)) -> 43.06667 | J40: =IF(SUMIFS(AgeGroupData!$H:$H,AgeGroupData!$A:$A,$B$5,AgeGroupData!$B:$B,$I$9,AgeGroupData!$C:$C,$B$32,AgeGroupData!$D:$D,C40)>=50,"**", IF(SUMIFS(AgeGroupData!$H:$H,AgeGroupData!$A:$A,$B$5,AgeGroupData!$B:$B,$I$9,AgeGroupData!$C:$C,$B$32,AgeGroupData!$D:$D,C40)>25, IF(SUMIFS(AgeGroupData!$H:$H,AgeGroupData!$A:$A,$B$5,AgeGroupData!$B:$B,$I$9,AgeGroupData!$C:$C,$B$32,AgeGroupData!$D:$D,C40)<50,"*",""),"")) ->  | K40: =IF(J40="**","",SUMIFS(AgeGroupData!$F:$F,AgeGroupData!$A:$A,$B$5,AgeGroupData!$B:$B,$I$9,AgeGroupData!$C:$C,$B$32,AgeGroupData!$D:$D,C40)) -> 36.4915 | L40: =IF(J40="**","",SUMIFS(AgeGroupData!$G:$G,AgeGroupData!$A:$A,$B$5,AgeGroupData!$B:$B,$I$9,AgeGroupData!$C:$C,$B$32,AgeGroupData!$D:$D,C40)) -> 49.8958 | N40: =IF(O40="**","",SUMIFS(AgeGroupData!$E:$E,AgeGroupData!$A:$A,$B$5,AgeGroupData!$B:$B,$N$9,AgeGroupData!$C:$C,$B$32,AgeGroupData!$D:$D,C40)) -> 23.73145 | O40: =IF(SUMIFS(AgeGroupData!$H:$H,AgeGroupData!$A:$A,$B$5,AgeGroupData!$B:$B,$N$9,AgeGroupData!$C:$C,$B$32,AgeGroupData!$D:$D,C40)>=50,"**", IF(SUMIFS(AgeGroupData!$H:$H,AgeGroupData!$A:$A,$B$5,AgeGroupData!$B:$B,$N$9,AgeGroupData!$C:$C,$B$32,AgeGroupData!$D:$D,C40)>25, IF(SUMIFS(AgeGroupData!$H:$H,AgeGroupData!$A:$A,$B$5,AgeGroupData!$B:$B,$N$9,AgeGroupData!$C:$C,$B$32,AgeGroupData!$D:$D,C40)<50,"*",""),"")) ->  | P40: =IF(O40="**","",SUMIFS(AgeGroupData!$F:$F,AgeGroupData!$A:$A,$B$5,AgeGroupData!$B:$B,$N$9,AgeGroupData!$C:$C,$B$32,AgeGroupData!$D:$D,C40)) -> 19.1757 | Q40: =IF(O40="**","",SUMIFS(AgeGroupData!$G:$G,AgeGroupData!$A:$A,$B$5,AgeGroupData!$B:$B,$N$9,AgeGroupData!$C:$C,$B$32,AgeGroupData!$D:$D,C40)) -> 28.98144 | S40: =IF(T40="**","",SUMIFS(AgeGroupData!$E:$E,AgeGroupData!$A:$A,$B$5,AgeGroupData!$B:$B,$S$9,AgeGroupData!$C:$C,$B$32,AgeGroupData!$D:$D,C40)) -> 9.618743 | T40: =IF(SUMIFS(AgeGroupData!$H:$H,AgeGroupData!$A:$A,$B$5,AgeGroupData!$B:$B,$S$9,AgeGroupData!$C:$C,$B$32,AgeGroupData!$D:$D,C40)>=50,"**", IF(SUMIFS(AgeGroupData!$H:$H,AgeGroupData!$A:$A,$B$5,AgeGroupData!$B:$B,$S$9,AgeGroupData!$C:$C,$B$32,AgeGroupData!$D:$D,C40)>25, IF(SUMIFS(AgeGroupData!$H:$H,AgeGroupData!$A:$A,$B$5,AgeGroupData!$B:$B,$S$9,AgeGroupData!$C:$C,$B$32,AgeGroupData!$D:$D,C40)<50,"*",""),"")) ->  | U40: =IF(T40="**","",SUMIFS(AgeGroupData!$F:$F,AgeGroupData!$A:$A,$B$5,AgeGroupData!$B:$B,$S$9,AgeGroupData!$C:$C,$B$32,AgeGroupData!$D:$D,C40)) -> 6.465396 | V40: =IF(T40="**","",SUMIFS(AgeGroupData!$G:$G,AgeGroupData!$A:$A,$B$5,AgeGroupData!$B:$B,$S$9,AgeGroupData!$C:$C,$B$32,AgeGroupData!$D:$D,C40)) -> 14.07857 | X40: =IF(Y40="**","",SUMIFS(AgeGroupData!$E:$E,AgeGroupData!$A:$A,$B$5,AgeGroupData!$B:$B,$X$9,AgeGroupData!$C:$C,$B$32,AgeGroupData!$D:$D,C40)) -> 0 | Y40: =IF(SUMIFS(AgeGroupData!$H:$H,AgeGroupData!$A:$A,$B$5,AgeGroupData!$B:$B,$X$9,AgeGroupData!$C:$C,$B$32,AgeGroupData!$D:$D,C40)>=50,"**", IF(SUMIFS(AgeGroupData!$H:$H,AgeGroupData!$A:$A,$B$5,AgeGroupData!$B:$B,$X$9,AgeGroupData!$C:$C,$B$32,AgeGroupData!$D:$D,C40)>25, IF(SUMIFS(AgeGroupData!$H:$H,AgeGroupData!$A:$A,$B$5,AgeGroupData!$B:$B,$X$9,AgeGroupData!$C:$C,$B$32,AgeGroupData!$D:$D,C40)<50,"*",""),"")) ->  | Z40: =IF(Y40="**","",SUMIFS(AgeGroupData!$F:$F,AgeGroupData!$A:$A,$B$5,AgeGroupData!$B:$B,$X$9,AgeGroupData!$C:$C,$B$32,AgeGroupData!$D:$D,C40)) -> 0 | AA40: =IF(Y40="**","",SUMIFS(AgeGroupData!$G:$G,AgeGroupData!$A:$A,$B$5,AgeGroupData!$B:$B,$X$9,AgeGroupData!$C:$C,$B$32,AgeGroupData!$D:$D,C40)) -> 0
C41: =VLOOKUP($B$5,Lookup!$AA:$AJ,10,FALSE) -> 18+ | D41: =IF(E41="**","",SUMIFS(AgeGroupData!$E:$E,AgeGroupData!$A:$A,$B$5,AgeGroupData!$B:$B,$D$9,AgeGroupData!$C:$C,$B$32,AgeGroupData!$D:$D,C41)) -> 2.171929 | E41: =IF(SUMIFS(AgeGroupData!$H:$H,AgeGroupData!$A:$A,$B$5,AgeGroupData!$B:$B,$D$9,AgeGroupData!$C:$C,$B$32,AgeGroupData!$D:$D,C41)>=50,"**", IF(SUMIFS(AgeGroupData!$H:$H,AgeGroupData!$A:$A,$B$5,AgeGroupData!$B:$B,$D$9,AgeGroupData!$C:$C,$B$32,AgeGroupData!$D:$D,C41)>25, IF(SUMIFS(AgeGroupData!$H:$H,AgeGroupData!$A:$A,$B$5,AgeGroupData!$B:$B,$D$9,AgeGroupData!$C:$C,$B$32,AgeGroupData!$D:$D,C41)<50,"*",""),"")) ->  | F41: =IF(E41="**","",SUMIFS(AgeGroupData!$F:$F,AgeGroupData!$A:$A,$B$5,AgeGroupData!$B:$B,$D$9,AgeGroupData!$C:$C,$B$32,AgeGroupData!$D:$D,C41)) -> 1.906937 | G41: =IF(E41="**","",SUMIFS(AgeGroupData!$G:$G,AgeGroupData!$A:$A,$B$5,AgeGroupData!$B:$B,$D$9,AgeGroupData!$C:$C,$B$32,AgeGroupData!$D:$D,C41)) -> 2.472818 | I41: =IF(J41="**","",SUMIFS(AgeGroupData!$E:$E,AgeGroupData!$A:$A,$B$5,AgeGroupData!$B:$B,$I$9,AgeGroupData!$C:$C,$B$32,AgeGroupData!$D:$D,C41)) -> 37.74322 | J41: =IF(SUMIFS(AgeGroupData!$H:$H,AgeGroupData!$A:$A,$B$5,AgeGroupData!$B:$B,$I$9,AgeGroupData!$C:$C,$B$32,AgeGroupData!$D:$D,C41)>=50,"**", IF(SUMIFS(AgeGroupData!$H:$H,AgeGroupData!$A:$A,$B$5,AgeGroupData!$B:$B,$I$9,AgeGroupData!$C:$C,$B$32,AgeGroupData!$D:$D,C41)>25, IF(SUMIFS(AgeGroupData!$H:$H,AgeGroupData!$A:$A,$B$5,AgeGroupData!$B:$B,$I$9,AgeGroupData!$C:$C,$B$32,AgeGroupData!$D:$D,C41)<50,"*",""),"")) ->  | K41: =IF(J41="**","",SUMIFS(AgeGroupData!$F:$F,AgeGroupData!$A:$A,$B$5,AgeGroupData!$B:$B,$I$9,AgeGroupData!$C:$C,$B$32,AgeGroupData!$D:$D,C41)) -> 36.86241 | L41: =IF(J41="**","",SUMIFS(AgeGroupData!$G:$G,AgeGroupData!$A:$A,$B$5,AgeGroupData!$B:$B,$I$9,AgeGroupData!$C:$C,$B$32,AgeGroupData!$D:$D,C41)) -> 38.6322 | N41: =IF(O41="**","",SUMIFS(AgeGroupData!$E:$E,AgeGroupData!$A:$A,$B$5,AgeGroupData!$B:$B,$N$9,AgeGroupData!$C:$C,$B$32,AgeGroupData!$D:$D,C41)) -> 31.72893 | O41: =IF(SUMIFS(AgeGroupData!$H:$H,AgeGroupData!$A:$A,$B$5,AgeGroupData!$B:$B,$N$9,AgeGroupData!$C:$C,$B$32,AgeGroupData!$D:$D,C41)>=50,"**", IF(SUMIFS(AgeGroupData!$H:$H,AgeGroupData!$A:$A,$B$5,AgeGroupData!$B:$B,$N$9,AgeGroupData!$C:$C,$B$32,AgeGroupData!$D:$D,C41)>25, IF(SUMIFS(AgeGroupData!$H:$H,AgeGroupData!$A:$A,$B$5,AgeGroupData!$B:$B,$N$9,AgeGroupData!$C:$C,$B$32,AgeGroupData!$D:$D,C41)<50,"*",""),"")) ->  | P41: =IF(O41="**","",SUMIFS(AgeGroupData!$F:$F,AgeGroupData!$A:$A,$B$5,AgeGroupData!$B:$B,$N$9,AgeGroupData!$C:$C,$B$32,AgeGroupData!$D:$D,C41)) -> 30.90381 | Q41: =IF(O41="**","",SUMIFS(AgeGroupData!$G:$G,AgeGroupData!$A:$A,$B$5,AgeGroupData!$B:$B,$N$9,AgeGroupData!$C:$C,$B$32,AgeGroupData!$D:$D,C41)) -> 32.56569 | S41: =IF(T41="**","",SUMIFS(AgeGroupData!$E:$E,AgeGroupData!$A:$A,$B$5,AgeGroupData!$B:$B,$S$9,AgeGroupData!$C:$C,$B$32,AgeGroupData!$D:$D,C41)) -> 19.49202 | T41: =IF(SUMIFS(AgeGroupData!$H:$H,AgeGroupData!$A:$A,$B$5,AgeGroupData!$B:$B,$S$9,AgeGroupData!$C:$C,$B$32,AgeGroupData!$D:$D,C41)>=50,"**", IF(SUMIFS(AgeGroupData!$H:$H,AgeGroupData!$A:$A,$B$5,AgeGroupData!$B:$B,$S$9,AgeGroupData!$C:$C,$B$32,AgeGroupData!$D:$D,C41)>25, IF(SUMIFS(AgeGroupData!$H:$H,AgeGroupData!$A:$A,$B$5,AgeGroupData!$B:$B,$S$9,AgeGroupData!$C:$C,$B$32,AgeGroupData!$D:$D,C41)<50,"*",""),"")) ->  | U41: =IF(T41="**","",SUMIFS(AgeGroupData!$F:$F,AgeGroupData!$A:$A,$B$5,AgeGroupData!$B:$B,$S$9,AgeGroupData!$C:$C,$B$32,AgeGroupData!$D:$D,C41)) -> 18.80179 | V41: =IF(T41="**","",SUMIFS(AgeGroupData!$G:$G,AgeGroupData!$A:$A,$B$5,AgeGroupData!$B:$B,$S$9,AgeGroupData!$C:$C,$B$32,AgeGroupData!$D:$D,C41)) -> 20.20129 | X41: =IF(Y41="**","",SUMIFS(AgeGroupData!$E:$E,AgeGroupData!$A:$A,$B$5,AgeGroupData!$B:$B,$X$9,AgeGroupData!$C:$C,$B$32,AgeGroupData!$D:$D,C41)) -> 0 | Y41: =IF(SUMIFS(AgeGroupData!$H:$H,AgeGroupData!$A:$A,$B$5,AgeGroupData!$B:$B,$X$9,AgeGroupData!$C:$C,$B$32,AgeGroupData!$D:$D,C41)>=50,"**", IF(SUMIFS(AgeGroupData!$H:$H,AgeGroupData!$A:$A,$B$5,AgeGroupData!$B:$B,$X$9,AgeGroupData!$C:$C,$B$32,AgeGroupData!$D:$D,C41)>25, IF(SUMIFS(AgeGroupData!$H:$H,AgeGroupData!$A:$A,$B$5,AgeGroupData!$B:$B,$X$9,AgeGroupData!$C:$C,$B$32,AgeGroupData!$D:$D,C41)<50,"*",""),"")) ->  | Z41: =IF(Y41="**","",SUMIFS(AgeGroupData!$F:$F,AgeGroupData!$A:$A,$B$5,AgeGroupData!$B:$B,$X$9,AgeGroupData!$C:$C,$B$32,AgeGroupData!$D:$D,C41)) -> 0 | AA41: =IF(Y41="**","",SUMIFS(AgeGroupData!$G:$G,AgeGroupData!$A:$A,$B$5,AgeGroupData!$B:$B,$X$9,AgeGroupData!$C:$C,$B$32,AgeGroupData!$D:$D,C41)) -> 0
B46: Underweight (BMI < 18.5)
B74: NOTE: Please enable macros fo this chart to work
B76: Data are age-specific estimates, except for 18+', which are crude estimates (not age-standardised) .
B77: LL/UL 95% CI = lower/upper limit of 95 per cent confidence interval.
B78: Estimates that are significantly different (statistically) from the corresponding estimate for Victoria are identified by colour as follows: above or below.
B79: Estimates may not add to 100 per cent due to a proportion of 'don't know' or 'refused to say' responses, not reported here.
B80: Relative standard error (RSE) = standard error/point estimate * 100; interpretation below:
B81: * | C81: Estimate has a RSE between 25 and 50 per cent and should be interpreted with caution.
B82: ** | C82: Estimate has a RSE greater than 50 per cent and is not reported as it is unreliable for general use.
B83: =IF(VLOOKUP($B$5,Lookup!$W:$Y,3,FALSE)=0,"",VLOOKUP($B$5,Lookup!$W:$Y,3,FALSE)) -> ^ Computed from self-reported height and weight [BMI = weight (kg) / height squared (m2)].
B86: Return to Index

Sheet LGA snapshot
D1: 2017 Victorian Population Health Survey
D2: Proportion (%) of adults (18+ years), with selected risk factors, chronic disease and screening tests, by local government area, Victoria, 2017
D3: Modifiable risk factorsa | CW3: Doctor diagnosed chronic diseasea | EZ3: Screening tests and treatmenta, b
A4: Local Government Area | D4: Obese | F4: OB_LL_2017 | G4: OB_UL_2017 | H4: OB_SE_2017 | I4: OB_RSE_2017 | J4: Overweight | L4: OW_LL_2017 | M4: OW_UL_2017 | N4: OW_SE_2017 | O4: OW_RSE_2017 | P4: Daily consumer of sugar sweetened soft drinks | R4: SSB_LL_2017 | S4: SSB_UL_2017 | T4: SSB_SE_2017 | U4: SSB_RSE_ | V4: Take-away food consumed > 1 day/week | X4: TA_LL_2017 | Y4: TA_UL_2017 | Z4: TA_SE_2017 | AA4: TA_RSE_2017 | AB4: Sedentary (inactive) | AD4: SED_LL_2017 | AE4: SED_UL_2017 | AF4: SED_SE_2017 | AG4: SED_RSE_2017 | AH4: Insufficiently physically active | AJ4: INSUF_LL_2017 | AK4: INSUF_UL_2017 | AL4: INSUF_SE_2017 | AM4: INSUF_RSE_2017 | AN4: Complied with vegetable consumption guidelines | AP4: veg_13_LL_2017 | AQ4: veg_13_UL_2017 | AR4: veg_13_SE_2017 | AS4: veg_13_RSE_2017 | AT4: Complied with fruit consumption guidelines | AV4: frt_13_LL_2017 | AW4: frt_13_UL_2017 | AX4: frt_13_SE_2017 | AY4: frt_13_RSE_2017 | AZ4: Daily smoker | BB4: daily_smoker_LL_2017 | BC4: daily_smoker_UL_2017 | BD4: daily_smoker_SE_2017 | BE4: daily_smoker_RSE_2017 | BF4: Current (i.e. daily or occasional) smoker | BH4: smoker_LL_2017 | BI4: smoker_UL_2017 | BJ4: smoker_SE_2017 | BK4: smoker_RSE_2017 | BL4: Increased lifetime risk of alcohol-related harm | BN4: alc_lt09_LL_2017 | BO4: alc_lt09_UL_2017 | BP4: alc_lt09_SE_2017 | BQ4: alc_lt09_RSE_2017 | BR4: Increased risk of injury from a single occasion of drinking | BT4: alc_so09_LL_2017 | BU4: alc_so09_UL_2017 | BV4: alc_so09_SE_2017 | BW4: alc_so09_RSE_2017 | BX4: Fair or poor self-reported health | BZ4: srh_LL_2017 | CA4: srh_UL_2017 | CB4: srh_SE_2017 | CC4: srh_RSE_2017 | CD4: Low or medium life satisfaction | CF4: sat_cat2_LL_2017 | CG4: sat_cat2_UL_2017 | CH4: sat_cat2_SE_2017 | CI4: sat_cat2_RSE_2017 | CJ4: High, or very high, levels of psychological distress | CL4: k10scr3_LL_2017 | CM4: k10scr3_UL_2017 | CN4: k10scr3_SE_2017 | CO4: k10scr3_RSE_2017 | CP4: Doctor diagnosed hypertension | CR4: highbp_LL_2017 | CS4: highbp_UL_2017 | CT4: highbp_SE_2017 | CU4: highbp_RSE | CW4: Anxiety or depression | CY4: depression_LL_2017 | CZ4: depression_UL_2017 | DA4: depression_SE_2017 | DB4: depression_RSE_2017 | DC4: Arthritis | DE4: arthritis_LL_2017 | DF4: arthritis_UL_2017 | DG4: arthritis_SE_2017 | DH4: arthritis_RSE_2017 | DI4: Asthma (ever diagnosed) | DK4: asthma_LL_2017 | DL4: asthma_UL_2017 | DM4: asthma_SE_2017 | DN4: asthma_RSE_2017 | DO4: Cancer | DQ4: cancer_LL_2017 | DR4: cancer_UL_2017 | DS4: cancer_SE_2017 | DT4: cancer_RSE_2017 | DU4: Type 2 diabetes | DW4: type2_dm_LL_2017 | DX4: type2_dm_UL_2017 | DY4: type2_dm_SE_2017 | DZ4: type2_dm_RSE | EA4: Heart disease | EC4: heart_LL_2017 | ED4: heart_UL_2017 | EE4: heart_SE_2017 | EF4: heart_RSE_2017 | EG4: Osteoporosis | EI4: osteoporosis_LL_2017 | EJ4: osteoporosis_UL_2017 | EK4: osteoporosis_SE_2017 | EL4: osteoporosis_RSE_2017 | EM4: Stroke | EO4: stroke_LL_2017 | EP4: stroke_UL_2017 | EQ4: stroke_SE_2017 | ER4: stroke_RSE_2017 | ES4: Two, or more, chronic diseases | EU4: multimorb_LL_2017 | EV4: multimorb_UL_2017 | EW4: multimorb_SE_2017 | EX4: multimorb_RSE_2017 | EZ4: Had a blood-lipids test in last 2 yearsa | FB4: chol_chk_LL_2017 | FC4: chol_chk_UL_2017 | FD4: chol_chk_SE_2017 | FE4: chol_chk_RSE | FF4: Had a blood-pressure test in last 2 yearsa | FH4: bp_chk_LL_2017 | FI4: bp_chk_UL_2017 | FJ4: bp_chk_SE_2017 | FK4: bp_chk_RSE | FL4: Had a blood-glucose test in last 2 yearsa | FN4: diab_chk_LL_2017 | FO4: diab_chk_UL_2017 | FP4: diab_chk_SE_2017 | FQ4: diab_chk_RSE | FR4: Had a faecal occult blood test (50+ years of age)b | FT4: fobt_LL_2017 | FU4: fobt_UL_2017 | FV4: fobt_SE_2017 | FW4: fobt_RSE | FX4: Had a bowel exam to detect cancer (last 5 years)b | FZ4: bwlexm_LL_2017 | GA4: bwlexm_UL_2017 | GB4: bwlexm_SE_2017 | GC4: bwlexm_RSE | GD4: Had a mammogram to detect cancer in last 2 yearsb | GF4: mgrm2yrs_LL_2017 | GG4: mgrm2yrs_UL_2017 | GH4: mgrm2yrs_SE_2017 | GI4: mgrm2yrs_RSE | GJ4: Sought help for a mental health related problemb | GL4: mh_prob_LL_2017 | GM4: mh_prob_UL_2017 | GN4: mh_prob_SE_2017 | GO4: mh_prob_RSE
A5: Victoria | D5: 19.26897 | E5: =IF(I5>25,"*",IF(I5>50,"**","")) ->  | F5: 18.58293 | G5: 19.97411 | H5: 0.354879 | I5: =H5/D5*100 -> 1.841712349 | J5: 50.80429 | K5: =IF(O5>25,"*",IF(O5>50,"**","")) ->  | L5: 49.90919 | M5: 51.69888 | N5: 0.456592 | O5: =N5/J5*100 -> 0.8987272532 | P5: 10.09867 | Q5: =IF(U5>50,"**",IF(U5>25,"*","")) ->  | R5: 9.516874 | S5: 10.71183 | T5: 0.3047296 | U5: =T5/P5*100 -> 3.017522109 | V5: 15.2893 | W5: =IF(AA5>50,"**",IF(AA5>25,"*","")) ->  | X5: 14.59565 | Y5: 16.00974 | Z5: 0.3606931 | AA5: =Z5/V5*100 -> 2.359121085 | AB5: 2.539791 | AC5: =IF(AG5>50,"**",IF(AG5>25,"*","")) ->  | AD5: 2.256574 | AE5: 2.857514 | AF5: 0.1529796 | AG5: =AF5/AB5*100 -> 6.023314517 | AH5: 44.08774 | AI5: =IF(AM5>50,"**",IF(AM5>25,"*","")) ->  | AJ5: 43.18836 | AK5: 44.99101 | AL5: 0.4598989 | AM5: =AL5/AH5*100 -> 1.043144647 | AN5: 5.388293 | AO5: =IF(AS5>50,"**",IF(AS5>25,"*","")) ->  | AP5: 5.0284 | AQ5: 5.77238 | AR5: 0.1896708 | AS5: =AR5/AN5*100 -> 3.520053568 | AT5: 43.19355 | AU5: =IF(AY5>50,"**",IF(AY5>25,"*","")) ->  | AV5: 42.28772 | AW5: 44.10395 | AX5: 0.4633656 | AY5: =AX5/AT5*100 -> 1.072765725 | AZ5: 12.42754 | BA5: =IF(BE5>50,"**",IF(BE5>25,"*","")) ->  | BB5: 11.80477 | BC5: 13.0783 | BD5: 0.3248103 | BE5: =BD5/AZ5*100 -> 2.613633108 | BF5: 16.741 | BG5: =IF(BK5>50,"**",IF(BK5>25,"*","")) ->  | BH5: 16.03742 | BI5: 17.46903 | BJ5: 0.365174 | BK5: =BJ5/BF5*100 -> 2.181315334 | BL5: 59.48907 | BM5: =IF(BQ5>50,"**",IF(BQ5>25,"*","")) ->  | BN5: 58.59407 | BO5: 60.37781 | BP5: 0.4550752 | BQ5: =BP5/BL5*100 -> 0.7649727925 | BR5: 42.98549 | BS5: =IF(BW5>50,"**",IF(BW5>25,"*","")) ->  | BT5: 42.10708 | BU5: 43.86834 | BV5: 0.4493391 | BW5: =BV5/BR5*100 -> 1.045327388 | BX5: 20.28965 | BY5: =IF(CC5>50,"**",IF(CC5>25,"*","")) ->  | BZ5: 19.55869 | CA5: 21.04079 | CB5: 0.3780782 | CC5: =CB5/BX5*100 -> 1.863404248 | CD5: 20.45532 | CE5: =IF(CI5>50,"**",IF(CI5>25,"*","")) ->  | CF5: 19.69321 | CG5: 21.23913 | CH5: 0.3943577 | CI5: =CH5/CD5*100 -> 1.927897975 | CJ5: 15.43 | CK5: =IF(CO5>50,"**",IF(CO5>25,"*","")) ->  | CL5: 14.75 | CM5: 16.14 | CN5: 0.36 | CO5: =CN5/CJ5*100 -> 2.333117304 | CP5: 25.42567 | CQ5: =IF(CU5>50,"**",IF(CU5>25,"*","")) ->  | CR5: 24.74985 | CS5: 26.11354 | CT5: 0.3478848 | CU5: =CT5/CP5*100 -> 1.36824241 | CW5: 27.36389 | CX5: =IF(DB5>50,"**",IF(DB5>25,"*","")) ->  | CY5: 26.566 | CZ5: 28.17655 | DA5: 0.4108684 | DB5: =DA5/CW5*100 -> 1.501498508 | DC5: 20.54975 | DD5: =IF(DH5>50,"**",IF(DH5>25,"*","")) ->  | DE5: 19.97896 | DF5: 21.13254 | DG5: 0.2942746 | DH5: =DG5/DC5*100 -> 1.432010608 | DI5: 19.9574 | DJ5: =IF(DN5>50,"**",IF(DN5>25,"*","")) ->  | DK5: 19.24135 | DL5: 20.69326 | DM5: 0.3703749 | DN5: =DM5/DI5*100 -> 1.855827412 | DO5: 8.055676 | DP5: =IF(DT5>50,"**",IF(DT5>25,"*","")) ->  | DQ5: 7.650898 | DR5: 8.479904 | DS5: 0.211416 | DT5: =DS5/DO5*100 -> 2.624435243 | DU5: 5.452335 | DV5: =IF(DZ5>50,"**",IF(DZ5>25,"*","")) ->  | DW5: 5.114101 | DX5: 5.81157 | DY5: 0.1778291 | DZ5: =DY5/DU5*100 -> 3.261521898 | EA5: 6.74474 | EB5: =IF(EF5>50,"**",IF(EF5>25,"*","")) ->  | EC5: 6.381202 | ED5: 7.127412 | EE5: 0.1902868 | EF5: =EE5/EA5*100 -> 2.821262198 | EG5: 5.669229 | EH5: =IF(EL5>50,"**",IF(EL5>25,"*","")) ->  | EI5: 5.326293 | EJ5: 6.032838 | EK5: 0.1801491 | EL5: =EK5/EG5*100 -> 3.177664899 | EM5: 2.364184 | EN5: =IF(ER5>50,"**",IF(ER5>25,"*","")) ->  | EO5: 2.142138 | EP5: 2.608632 | EQ5: 0.1188279 | ER5: =EQ5/EM5*100 -> 5.026169706 | ES5: 25.48854 | ET5: =IF(EX5>50,"**",IF(EX5>25,"*","")) ->  | EU5: 24.80298 | EV5: 26.18645 | EW5: 0.3529299 | EX5: =EW5/ES5*100 -> 1.384661107 | EZ5: 56.78789 | FA5: =IF(FE5>50,"**",IF(FE5>25,"*","")) ->  | FB5: 55.95063 | FC5: 57.62128 | FD5: 0.4262163 | FE5: =FD5/EZ5*100 -> 0.7505408283 | FF5: 79.5963 | FG5: =IF(FK5>50,"**",IF(FK5>25,"*","")) ->  | FH5: 78.80486 | FI5: 80.36555 | FJ5: 0.3981249 | FK5: =FJ5/FF5*100 -> 0.5001801591 | FL5: 50.72365 | FM5: =IF(FQ5>50,"**",IF(FQ5>25,"*","")) ->  | FN5: 49.86354 | FO5: 51.58334 | FP5: 0.438759 | FQ5: =FP5/FL5*100 -> 0.8649988713 | FR5: 60.14296 | FS5: =IF(FW5>50,"**",IF(FW5>25,"*","")) ->  | FT5: 58.76671 | FU5: 61.50336 | FV5: 0.6982467 | FW5: =FV5/FR5*100 -> 1.160978276 | FX5: 46.75256 | FY5: =IF(GC5>50,"**",IF(GC5>25,"*","")) ->  | FZ5: 45.59576 | GA5: 47.91285 | GB5: 0.5911798 | GC5: =GB5/FX5*100 -> 1.264486479 | GD5: 79.2266 | GE5: =IF(GI5>50,"**",IF(GI5>25,"*","")) ->  | GF5: 77.66267 | GG5: 80.70823 | GH5: 0.776826 | GI5: =GH5/GD5*100 -> 0.9805115959 | GJ5: 17.56419 | GK5: =IF(GO5>50,"**",IF(GO5>25,"*","")) ->  | GL5: 16.87218 | GM5: 18.27835 | GN5: 0.3586909 | GO5: =GN5/GJ5*100 -> 2.0421716
B6: Alpine (S) | D6: 25.61235 | F6: 17.59607 | G6: 35.69854 | H6: 4.643873 | I6: =H6/D6*100 -> 18.13138193 | J6: 58.81481 | L6: 49.52787 | M6: 67.51378 | N6: 4.636899 | O6: =N6/J6*100 -> 7.88389693 | P6: 7.524095 | Q6: =IF(U6>50,"**",IF(U6>25,"*","")) -> * | R6: 4.354448 | S6: 12.69473 | T6: 2.061136 | U6: =T6/P6*100 -> 27.39380617 | V6: 7.460271 | W6: =IF(AA6>50,"**",IF(AA6>25,"*","")) -> * | X6: 2.972728 | Y6: 17.50024 | Z6: 3.407647 | AA6: 45.67725489 | AB6: 0.8657284 | AC6: =IF(AG6>50,"**",IF(AG6>25,"*","")) -> * | AD6: 0.3340208 | AE6: 2.224934 | AF6: 0.4193522 | AG6: =AF6/AB6*100 -> 48.43923337 | AH6: 45.31205 | AI6: =IF(AM6>50,"**",IF(AM6>25,"*","")) ->  | AJ6: 35.91788 | AK6: 55.05243 | AL6: 4.941543 | AM6: =AL6/AH6*100 -> 10.90558251 | AN6: 8.152531 | AO6: =IF(AS6>50,"**",IF(AS6>25,"*","")) -> * | AP6: 4.425508 | AQ6: 14.5408 | AR6: 2.485937 | AS6: =AR6/AN6*100 -> 30.49282487 | AT6: 40.5504 | AU6: =IF(AY6>50,"**",IF(AY6>25,"*","")) ->  | AV6: 32.80908 | AW6: 48.79189 | AX6: 4.111033 | AY6: =AX6/AT6*100 -> 10.13808249 | AZ6: 16.59514 | BA6: =IF(BE6>50,"**",IF(BE6>25,"*","")) ->  | BB6: 10.0593 | BC6: 26.14318 | BD6: 4.067931 | BE6: =BD6/AZ6*100 -> 24.51278507 | BF6: 22.05102 | BG6: =IF(BK6>50,"**",IF(BK6>25,"*","")) ->  | BH6: 14.01752 | BI6: 32.92552 | BJ6: 4.833227 | BK6: =BJ6/BF6*100 -> 21.91838291 | BL6: 67.43256 | BM6: =IF(BQ6>50,"**",IF(BQ6>25,"*","")) ->  | BN6: 58.98698 | BO6: 74.87963 | BP6: 4.082755 | BQ6: =BP6/BL6*100 -> 6.054575119 | BR6: 53.64262 | BS6: =IF(BW6>50,"**",IF(BW6>25,"*","")) ->  | BT6: 43.86551 | BU6: 63.14748 | BV6: 4.980804 | BW6: =BV6/BR6*100 -> 9.285161687 | BX6: 16.12919 | BY6: =IF(CC6>50,"**",IF(CC6>25,"*","")) ->  | BZ6: 11.77921 | CA6: 21.69063 | CB6: 2.518172 | CC6: =CB6/BX6*100 -> 15.61251371 | CD6: 16.51454 | CE6: =IF(CI6>50,"**",IF(CI6>25,"*","")) ->  | CF6: 10.45807 | CG6: 25.09543 | CH6: 3.706324 | CI6: =CH6/CD6*100 -> 22.44279284 | CJ6: 15.1 | CK6: =IF(CO6>50,"**",IF(CO6>25,"*","")) -> * | CL6: 8.82 | CM6: 24.64 | CN6: 3.98 | CO6: =CN6/CJ6*100 -> 26.35761589 | CP6: 17.24 | CQ6: =IF(CU6>50,"**",IF(CU6>25,"*","")) ->  | CR6: 13.94564 | CS6: 21.12156 | CT6: 1.827845 | CU6: =CT6/CP6*100 -> 10.60234919 | CW6: 23.83754 | CX6: =IF(DB6>50,"**",IF(DB6>25,"*","")) ->  | CY6: 17.63122 | CZ6: 31.39582 | DA6: 3.51917 | DB6: =DA6/CW6*100 -> 14.76314251 | DC6: 20.66531 | DD6: =IF(DH6>50,"**",IF(DH6>25,"*","")) ->  | DE6: 17.38507 | DF6: 24.38181 | DG6: 1.784651 | DH6: =DG6/DC6*100 -> 8.635974974 | DI6: 17.9752 | DJ6: =IF(DN6>50,"**",IF(DN6>25,"*","")) ->  | DK6: 12.90037 | DL6: 24.48519 | DM6: 2.947026 | DN6: 16.39495527 | DO6: 8.416611 | DP6: =IF(DT6>50,"**",IF(DT6>25,"*","")) ->  | DQ6: 6.239715 | DR6: 11.26176 | DS6: 1.269333 | DT6: =DS6/DO6*100 -> 15.0812839 | DU6: 4.417968 | DV6: =IF(DZ6>50,"**",IF(DZ6>25,"*","")) ->  | DW6: 2.787194 | DX6: 6.934833 | DY6: 1.02888 | DZ6: =DY6/DU6*100 -> 23.28853446 | EA6: 5.552991 | EB6: =IF(EF6>50,"**",IF(EF6>25,"*","")) ->  | EC6: 4.003547 | ED6: 7.654284 | EE6: 0.9189409 | EF6: =EE6/EA6*100 -> 16.54857535 | EG6: 5.877363 | EH6: =IF(EL6>50,"**",IF(EL6>25,"*","")) ->  | EI6: 4.066907 | EJ6: 8.423011 | EK6: 1.093038 | EL6: =EK6/EG6*100 -> 18.59742201 | EM6: 2.38048 | EN6: =IF(ER6>50,"**",IF(ER6>25,"*","")) -> * | EO6: 1.349114 | EP6: 4.166996 | EQ6: 0.6857067 | ER6: =EQ6/EM6*100 -> 28.80539639 | ES6: 22.06043 | ET6: =IF(EX6>50,"**",IF(EX6>25,"*","")) ->  | EU6: 18.51131 | EV6: 26.0723 | EW6: 1.929305 | EX6: =EW6/ES6*100 -> 8.745545758 | EZ6: 47.0362 | FA6: =IF(FE6>50,"**",IF(FE6>25,"*","")) ->  | FB6: 39.24699 | FC6: 54.97251 | FD6: 4.044987 | FE6: =FD6/EZ6*100 -> 8.599731696 | FF6: 69.88124 | FG6: =IF(FK6>50,"**",IF(FK6>25,"*","")) ->  | FH6: 60.08459 | FI6: 78.14792 | FJ6: 4.645997 | FK6: =FJ6/FF6*100 -> 6.648418088 | FL6: 45.41227 | FM6: =IF(FQ6>50,"**",IF(FQ6>25,"*","")) ->  | FN6: 37.88599 | FO6: 53.15423 | FP6: 3.92532 | FQ6: =FP6/FL6*100 -> 8.6437432 | FR6: 66.69169 | FS6: =IF(FW6>50,"**",IF(FW6>25,"*","")) ->  | FT6: 58.74892 | FU6: 73.78747 | FV6: 3.860874 | FW6: 5.789138047 | FX6: 50.36985 | FY6: =IF(GC6>50,"**",IF(GC6>25,"*","")) ->  | FZ6: 43.98312 | GA6: 56.74453 | GB6: 3.273196 | GC6: =GB6/FX6*100 -> 6.498323898 | GD6: 86.21254 | GE6: =IF(GI6>50,"**",IF(GI6>25,"*","")) ->  | GF6: 78.90009 | GG6: 91.27113 | GH6: 3.117682 | GI6: =GH6/GD6*100 -> 3.616274384 | GJ6: 14.49511 | GK6: =IF(GO6>50,"**",IF(GO6>25,"*","")) ->  | GL6: 10.64228 | GM6: 19.43934 | GN6: 2.23247 | GO6: =GN6/GJ6*100 -> 15.40153886
B7: Ararat (RC) | D7: 20.80898 | F7: 16.1723 | G7: 26.35704 | H7: 2.59777 | I7: =H7/D7*100 -> 12.48388917 | J7: 54.63037 | L7: 46.19469 | M7: 62.80829 | N7: 4.277389 | O7: =N7/J7*100 -> 7.829690701 | P7: 14.38595 | Q7: =IF(U7>50,"**",IF(U7>25,"*","")) ->  | R7: 8.903312 | S7: 22.41407 | T7: 3.405173 | U7: =T7/P7*100 -> 23.67012954 | V7: 13.67098 | W7: =IF(AA7>50,"**",IF(AA7>25,"*","")) ->  | X7: 8.509841 | Y7: 21.23577 | Z7: 3.204061 | AA7: 23.43695185 | AB7: 2.795547 | AC7: =IF(AG7>50,"**",IF(AG7>25,"*","")) -> * | AD7: 1.083328 | AE7: 7.021854 | AF7: 1.338504 | AG7: =AF7/AB7*100 -> 47.87986036 | AH7: 36.36943 | AI7: =IF(AM7>50,"**",IF(AM7>25,"*","")) ->  | AJ7: 29.89632 | AK7: 43.37686 | AL7: 3.457956 | AM7: =AL7/AH7*100 -> 9.50786416 | AN7: 4.279253 | AO7: =IF(AS7>50,"**",IF(AS7>25,"*","")) -> * | AP7: 2.518526 | AQ7: 7.180254 | AR7: 1.145919 | AS7: =AR7/AN7*100 -> 26.77848213 | AT7: 36.54699 | AU7: =IF(AY7>50,"**",IF(AY7>25,"*","")) ->  | AV7: 29.25957 | AW7: 44.50748 | AX7: 3.91753 | AY7: =AX7/AT7*100 -> 10.71915909 | AZ7: 17.22465 | BA7: =IF(BE7>50,"**",IF(BE7>25,"*","")) ->  | BB7: 11.27334 | BC7: 25.4177 | BD7: 3.588609 | BE7: =BD7/AZ7*100 -> 20.83414757 | BF7: 21.85546 | BG7: =IF(BK7>50,"**",IF(BK7>25,"*","")) ->  | BH7: 15.51848 | BI7: 29.86535 | BJ7: 3.6631 | BK7: =BJ7/BF7*100 -> 16.7605715 | BL7: 62.112 | BM7: =IF(BQ7>50,"**",IF(BQ7>25,"*","")) ->  | BN7: 54.29123 | BO7: 69.35007 | BP7: 3.868853 | BQ7: =BP7/BL7*100 -> 6.228833398 | BR7: 48.96995 | BS7: =IF(BW7>50,"**",IF(BW7>25,"*","")) ->  | BT7: 41.24433 | BU7: 56.74509 | BV7: 3.986328 | BW7: =BV7/BR7*100 -> 8.140355463 | BX7: 21.80474 | BY7: =IF(CC7>50,"**",IF(CC7>25,"*","")) ->  | BZ7: 16.23385 | CA7: 28.63389 | CB7: 3.165112 | CC7: =CB7/BX7*100 -> 14.51570622 | CD7: 21.63569 | CE7: =IF(CI7>50,"**",IF(CI7>25,"*","")) ->  | CF7: 15.35362 | CG7: 29.58961 | CH7: 3.634 | CI7: =CH7/CD7*100 -> 16.79632126 | CJ7: 14.68 | CK7: =IF(CO7>50,"**",IF(CO7>25,"*","")) ->  | CL7: 9.85 | CM7: 21.31 | CN7: 2.9 | CO7: =CN7/CJ7*100 -> 19.75476839 | CP7: 34.39413 | CQ7: =IF(CU7>50,"**",IF(CU7>25,"*","")) ->  | CR7: 27.04593 | CS7: 42.57372 | CT7: 3.989187 | CU7: =CT7/CP7*100 -> 11.59845299 | CW7: 35.97069 | CX7: =IF(DB7>50,"**",IF(DB7>25,"*","")) ->  | CY7: 28.20475 | CZ7: 44.54813 | DA7: 4.203123 | DB7: =DA7/CW7*100 -> 11.68485509 | DC7: 24.14882 | DD7: =IF(DH7>50,"**",IF(DH7>25,"*","")) ->  | DE7: 20.15338 | DF7: 28.65213 | DG7: 2.169965 | DH7: =DG7/DC7*100 -> 8.985801377 | DI7: 33.93419 | DJ7: =IF(DN7>50,"**",IF(DN7>25,"*","")) ->  | DK7: 22.14173 | DL7: 48.1251 | DM7: 6.762122 | DN7: 19.9271649 | DO7: 10.08669 | DP7: =IF(DT7>50,"**",IF(DT7>25,"*","")) ->  | DQ7: 7.366425 | DR7: 13.66332 | DS7: 1.592137 | DT7: =DS7/DO7*100 -> 15.78453388 | DU7: 4.443062 | DV7: =IF(DZ7>50,"**",IF(DZ7>25,"*","")) ->  | DW7: 2.905345 | DX7: 6.73817 | DY7: 0.9547266 | DZ7: =DY7/DU7*100 -> 21.48803235 | EA7: 7.790197 | EB7: =IF(EF7>50,"**",IF(EF7>25,"*","")) ->  | EC7: 5.161783 | ED7: 11.59341 | EE7: 1.611419 | EF7: =EE7/EA7*100 -> 20.68521502 | EG7: 5.302834 | EH7: =IF(EL7>50,"**",IF(EL7>25,"*","")) ->  | EI7: 3.856329 | EJ7: 7.251001 | EK7: 0.8549059 | EL7: =EK7/EG7*100 -> 16.12167946 | EM7: 1.722604 | EN7: =IF(ER7>50,"**",IF(ER7>25,"*","")) -> * | EO7: 1.025086 | EP7: 2.88093 | EQ7: 0.4544335 | ER7: =EQ7/EM7*100 -> 26.3806133 | ES7: 34.25206 | ET7: =IF(EX7>50,"**",IF(EX7>25,"*","")) ->  | EU7: 27.81072 | EV7: 41.33114 | EW7: 3.467431 | EX7: =EW7/ES7*100 -> 10.12327726 | EZ7: 46.74135 | FA7: =IF(FE7>50,"**",IF(FE7>25,"*","")) ->  | FB7: 41.09849 | FC7: 52.46883 | FD7: 2.913089 | FE7: =FD7/EZ7*100 -> 6.23235957 | FF7: 77.39081 | FG7: =IF(FK7>50,"**",IF(FK7>25,"*","")) ->  | FH7: 67.69198 | FI7: 84.83053 | FJ7: 4.381954 | FK7: =FJ7/FF7*100 -> 5.662111561 | FL7: 45.81465 | FM7: =IF(FQ7>50,"**",IF(FQ7>25,"*","")) ->  | FN7: 38.76929 | FO7: 53.03145 | FP7: 3.663038 | FQ7: =FP7/FL7*100 -> 7.995342101 | FR7: 68.6111 | FS7: =IF(FW7>50,"**",IF(FW7>25,"*","")) ->  | FT7: 61.20288 | FU7: 75.17845 | FV7: 3.583504 | FW7: 5.222921656 | FX7: 54.20967 | FY7: =IF(GC7>50,"**",IF(GC7>25,"*","")) ->  | FZ7: 47.62821 | GA7: 60.64741 | GB7: 3.339932 | GC7: =GB7/FX7*100 -> 6.161136934 | GD7: 73.82013 | GE7: =IF(GI7>50,"**",IF(GI7>25,"*","")) ->  | GF7: 63.95145 | GG7: 81.7578 | GH7: 4.568526 | GI7: =GH7/GD7*100 -> 6.188726571 | GJ7: 17.90312 | GK7: =IF(GO7>50,"**",IF(GO7>25,"*","")) ->  | GL7: 13.32753 | GM7: 23.62146 | GN7: 2.619923 | GO7: =GN7/GJ7*100 -> 14.63389063
B8: Ballarat (C) | D8: 23.55693 | F8: 18.92226 | G8: 28.92183 | H8: 2.553575 | I8: 10.84001608 | J8: 51.83049 | L8: 45.93428 | M8: 57.67615 | N8: 3.009183 | O8: 5.805816229 | P8: 11.15708 | R8: 7.701639 | S8: 15.89585 | T8: 2.06737 | U8: 18.52966905 | V8: 16.68413 | X8: 12.42713 | Y8: 22.03251 | Z8: 2.442537 | AA8: 14.63988233 | AB8: 2.17171 | AC8: * | AD8: 0.8957951 | AE8: 5.170149 | AF8: 0.9739316 | AG8: 44.84630084 | AH8: 49.35948 | AJ8: 43.33465 | AK8: 55.40298 | AL8: 3.093677 | AM8: 6.26764504 | AN8: 6.896079 | AP8: 4.367997 | AQ8: 10.72328 | AR8: 1.583612 | AS8: 22.96394806 | AT8: 51.25347 | AV8: 45.15735 | AW8: 57.31252 | AX8: 3.116152 | AY8: 6.079884933 | AZ8: 13.48872 | BB8: 9.852652 | BC8: 18.19581 | BD8: 2.115219 | BE8: 15.68139156 | BF8: 15.70825 | BH8: 11.78666 | BI8: 20.62949 | BJ8: 2.24746 | BK8: 14.30751357 | BL8: 62.79705 | BN8: 56.43764 | BO8: 68.74225 | BP8: 3.153588 | BQ8: 5.021872843 | BR8: 45.90964 | BT8: 39.81546 | BU8: 52.12868 | BV8: 3.156983 | BW8: 6.876514388 | BX8: 22.4397 | BZ8: 17.70601 | CA8: 28.00823 | CB8: 2.62987 | CC8: 11.71971996 | CD8: 20.50742 | CF8: 15.8452 | CG8: 26.11573 | CH8: 2.619189 | CI8: 12.7719089 | CJ8: 17.94 | CL8: 13.55 | CM8: 23.38 | CN8: 2.5 | CO8: 13.93534002 | CP8: 23.84817 | CR8: 19.69253 | CS8: 28.56879 | CT8: 2.266372 | CU8: 9.503337153 | CW8: 36.18317 | CY8: 30.50127 | CZ8: 42.27961 | DA8: 3.01729 | DB8: 8.338932161 | DC8: 21.04778 | DE8: 17.99055 | DF8: 24.46952 | DG8: 1.652752 | DH8: 7.852381581 | DI8: 23.99121 | DK8: 18.93611 | DL8: 29.89808 | DM8: 2.800443 | DN8: 11.67278766 | DO8: 9.755573 | DQ8: 7.412131 | DR8: 12.73799 | DS8: 1.34911 | DT8: 13.82912106 | DU8: 4.015668 | DW8: 2.723597 | DX8: 5.883621 | DY8: 0.7897898 | DZ8: 19.66770659 | EA8: 8.25598 | EC8: 6.18522 | ED8: 10.93917 | EE8: 1.202198 | EF8: 14.56154206 | EG8: 5.221105 | EI8: 3.600997 | EJ8: 7.513298 | EK8: 0.9807143 | EL8: 18.78365403 | EM8: 2.154139 | EN8: * | EO8: 1.145858 | EP8: 4.013619 | EQ8: 0.6898295 | ER8: 32.02344417 | ES8: 27.38312 | EU8: 23.24987 | EV8: 31.94532 | EW8: 2.221627 | EX8: 8.113125897 | EZ8: 46.84044 | FB8: 41.82434 | FC8: 51.92121 | FD8: 2.584457 | FE8: 5.517576265 | FF8: 78.89218 | FH8: 73.02104 | FI8: 83.76964 | FJ8: 2.742066 | FK8: 3.475713309 | FL8: 43.51482 | FN8: 38.32386 | FO8: 48.85198 | FP8: 2.695508 | FQ8: 6.194459727 | FR8: 67.96301 | FT8: 59.44753 | FU8: 75.42942 | FV8: 4.105294 | FW8: 6.040482904 | FX8: 48.68154 | FZ8: 41.87761 | GA8: 55.53468 | GB8: 3.505717 | GC8: 7.201327238 | GD8: 74.49493 | GF8: 62.34579 | GG8: 83.7461 | GH8: 5.50163 | GI8: 7.385240848 | GJ8: 21.30979 | GL8: 16.78484 | GM8: 26.66372 | GN8: 2.520404 | GO8: 11.82744645
B9: Banyule (C) | D9: 18.49581 | F9: 14.27837 | G9: 23.61578 | H9: 2.378471 | I9: 12.85951251 | J9: 49.25548 | L9: 43.28711 | M9: 55.24515 | N9: 3.065131 | O9: 6.222923825 | P9: 7.32531 | R9: 4.802494 | S9: 11.01998 | T9: 1.555343 | U9: 21.23245296 | V9: 18.19952 | X9: 13.72904 | Y9: 23.72536 | Z9: 2.545165 | AA9: 13.98479191 | AB9: 2.77727 | AC9: * | AD9: 1.316464 | AE9: 5.764365 | AF9: 1.048947 | AG9: 37.76899617 | AH9: 40.5342 | AJ9: 34.79789 | AK9: 46.54114 | AL9: 3.009007 | AM9: 7.423378283 | AN9: 6.648588 | AP9: 4.490375 | AQ9: 9.73834 | AR9: 1.315146 | AS9: 19.78083166 | AT9: 48.36966 | AV9: 42.46829 | AW9: 54.31685 | AX9: 3.036789 | AY9: 6.278293046 | AZ9: 10.48191 | BB9: 6.983475 | BC9: 15.44197 | BD9: 2.127657 | BE9: 20.29837119 | BF9: 13.63934 | BH9: 9.758979 | BI9: 18.74217 | BJ9: 2.275972 | BK9: 16.68681916 | BL9: 63.75273 | BN9: 58.19396 | BO9: 68.96653 | BP9: 2.757743 | BQ9: 4.325686131 | BR9: 48.17655 | BT9: 42.59929 | BU9: 53.79961 | BV9: 2.869195 | BW9: 5.9555842 | BX9: 16.27499 | BZ9: 12.5774 | CA9: 20.80096 | CB9: 2.092171 | CC9: 12.85512925 | CD9: 17.84407 | CF9: 13.73247 | CG9: 22.8605 | CH9: 2.324181 | CI9: 13.0249489 | CJ9: 11.49 | CL9: 8.03 | CM9: 16.17 | CN9: 2.05 | CO9: 17.84160139 | CP9: 21.07545 | CR9: 17.95455 | CS9: 24.57633 | CT9: 1.689194 | CU9: 8.014984259 | CW9: 28.39732 | CY9: 23.34327 | CZ9: 34.05943 | DA9: 2.740695 | DB9: 9.651245258 | DC9: 16.8723 | DE9: 13.96163 | DF9: 20.24699 | DG9: 1.601292 | DH9: 9.490656283 | DI9: 24.08901 | DK9: 19.29941 | DL9: 29.63084 | DM9: 2.639007 | DN9: 10.95523228 | DO9: 7.186332 | DQ9: 5.300678 | DR9: 9.674259 | DS9: 1.104118 | DT9: 15.36413848 | DU9: 4.595943 | DW9: 3.088185 | DX9: 6.788276 | DY9: 0.9245114 | DZ9: 20.11581519 | EA9: 5.458917 | EC9: 3.890657 | ED9: 7.60927 | EE9: 0.9350698 | EF9: 17.12921812 | EG9: 3.465762 | EI9: 2.325733 | EJ9: 5.135231 | EK9: 0.7009308 | EL9: 20.22443549 | EM9: 1.754683 | EN9: * | EO9: 0.8762975 | EP9: 3.482614 | EQ9: 0.6185146 | ER9: 35.24936413 | ES9: 24.33578 | EU9: 19.81854 | EV9: 29.50379 | EW9: 2.473724 | EX9: 10.16496697 | EZ9: 58.47286 | FB9: 53.04412 | FC9: 63.70345 | FD9: 2.729213 | FE9: 4.667486762 | FF9: 82.87274 | FH9: 77.66792 | FI9: 87.0665 | FJ9: 2.391304 | FK9: 2.885513379 | FL9: 47.88426 | FN9: 42.28634 | FO9: 53.53582 | FP9: 2.881891 | FQ9: 6.018451575 | FR9: 58.14256 | FT9: 49.84761 | FU9: 66.00131 | FV9: 4.155959 | FW9: 7.147877562 | FX9: 48.91977 | FZ9: 42.06873 | GA9: 55.81163 | GB9: 3.528036 | GC9: 7.211881822 | GD9: 83.15048 | GF9: 73.27586 | GG9: 89.88031 | GH9: 4.200264 | GI9: 5.051400786 | GJ9: 19.37957 | GL9: 15.06683 | GM9: 24.56967 | GN9: 2.421949 | GO9: 12.49743415
B10: Bass Coast (S) | D10: 20.26775 | F10: 15.17644 | G10: 26.5328 | H10: 2.89543 | I10: 14.28589755 | J10: 50.94888 | L10: 42.70542 | M10: 59.14107 | N10: 4.231055 | O10: 8.304510325 | P10: 8.386481 | R10: 5.290379 | S10: 13.04495 | T10: 1.936307 | U10: 23.08843244 | V10: 10.24482 | W10: * | X10: 5.889111 | Y10: 17.23222 | Z10: 2.819776 | AA10: 27.52391941 | AB10: 0.8298157 | AC10: * | AD10: 0.3672584 | AE10: 1.864058 | AF10: 0.3441933 | AG10: 41.47828247 | AH10: 44.72665 | AJ10: 36.58922 | AK10: 53.15673 | AL10: 4.265198 | AM10: 9.536144558 | AN10: 7.801793 | AO10: * | AP10: 3.744942 | AQ10: 15.5437 | AR10: 2.851536 | AS10: 36.54975209 | AT10: 42.88363 | AV10: 34.72994 | AW10: 51.44284 | AX10: 4.302927 | AY10: 10.03396168 | AZ10: 18.18584 | BB10: 12.21099 | BC10: 26.21132 | BD10: 3.5586 | BE10: 19.56797156 | BF10: 23.84661 | BH10: 16.84803 | BI10: 32.61217 | BJ10: 4.033381 | BK10: 16.91385484 | BL10: 73.3525 | BN10: 67.48755 | BO10: 78.49658 | BP10: 2.814876 | BQ10: 3.837464299 | BR10: 54.45908 | BT10: 46.31364 | BU10: 62.37273 | BV10: 4.132113 | BW10: 7.587555647 | BX10: 25.04505 | BZ10: 18.05824 | CA10: 33.62579 | CB10: 3.986173 | CC10: 15.91601135 | CD10: 23.32632 | CF10: 16.24278 | CG10: 32.30743 | CH10: 4.108924 | CI10: 17.61496884 | CJ10: 20.08 | CL10: 13.76 | CM10: 28.37 | CN10: 3.72 | CO10: 18.52589641 | CP10: 31.25945 | CR10: 25.13786 | CS10: 38.11284 | CT10: 3.324605 | CU10: 10.63551982 | CW10: 39.05146 | CY10: 30.86423 | CZ10: 47.90561 | DA10: 4.387677 | DB10: 11.23562858 | DC10: 25.70075 | DE10: 20.69643 | DF10: 31.43544 | DG10: 2.744838 | DH10: 10.67999183 | DI10: 18.84451 | DK10: 13.06762 | DL10: 26.39968 | DM10: 3.392942 | DN10: 18.00493619 | DO10: 12.20931 | DQ10: 9.50095 | DR10: 15.55701 | DS10: 1.537721 | DT10: 12.59465932 | DU10: 5.825546 | DW10: 3.712478 | DX10: 9.028554 | DY10: 1.323217 | DZ10: 22.7140426 | EA10: 8.861826 | EC10: 6.292866 | ED10: 12.3414 | EE10: 1.525171 | EF10: 17.21057263 | EG10: 5.477156 | EI10: 3.510456 | EJ10: 8.449199 | EK10: 1.229378 | EL10: 22.44555386 | EM10: 2.919772 | EO10: 1.831494 | EP10: 4.624245 | EQ10: 0.690571 | ER10: 23.65153854 | ES10: 34.61232 | EU10: 27.46186 | EV10: 42.53293 | EW10: 3.870388 | EX10: 11.18211088 | EZ10: 54.70432 | FB10: 48.36395 | FC10: 60.89563 | FD10: 3.21354 | FE10: 5.87438067 | FF10: 85.76977 | FH10: 78.50589 | FI10: 90.86451 | FJ10: 3.119153 | FK10: 3.636657764 | FL10: 51.05243 | FN10: 43.96208 | FO10: 58.10068 | FP10: 3.631036 | FQ10: 7.11236664 | FR10: 57.60737 | FT10: 49.66497 | FU10: 65.1753 | FV10: 3.987869 | FW10: 6.922497937 | FX10: 49.01062 | FZ10: 42.99915 | GA10: 55.05084 | GB10: 3.089314 | GC10: 6.303356293 | GD10: 68.70025 | GF10: 59.51522 | GG10: 76.62005 | GH10: 4.397043 | GI10: 6.400330421 | GJ10: 17.74299 | GL10: 13.13298 | GM10: 23.53285 | GN10: 2.646343 | GO10: 14.91486497
B11: Baw Baw (S) | D11: 23.62602 | F11: 18.20281 | G11: 30.07098 | H11: 3.032221 | I11: 12.83424377 | J11: 55.69085 | L11: 48.32022 | M11: 62.81913 | N11: 3.724532 | O11: 6.687870629 | P11: 10.32553 | R11: 6.492925 | S11: 16.03254 | T11: 2.389241 | U11: 23.1391609 | V11: 11.81427 | X11: 7.609865 | Y11: 17.89175 | Z11: 2.585646 | AA11: 21.88578727 | AB11: 1.385759 | AC11: * | AD11: 0.7570019 | AE11: 2.523475 | AF11: 0.4259904 | AG11: 30.74058332 | AH11: 44.6954 | AJ11: 37.46437 | AK11: 52.15804 | AL11: 3.775331 | AM11: 8.446799894 | AN11: 6.787799 | AP11: 4.180212 | AQ11: 10.838 | AR11: 1.6539 | AS11: 24.36577748 | AT11: 52.09098 | AV11: 44.8022 | AW11: 59.29181 | AX11: 3.722417 | AY11: 7.145991494 | AZ11: 18.33911 | BB11: 12.52855 | BC11: 26.0422 | BD11: 3.436468 | BE11: 18.73846659 | BF11: 23.35388 | BH11: 17.01726 | BI11: 31.16391 | BJ11: 3.616149 | BK11: 15.48414653 | BL11: 59.18872 | BN11: 51.62007 | BO11: 66.34528 | BP11: 3.782847 | BQ11: 6.391162032 | BR11: 45.05243 | BT11: 37.63661 | BU11: 52.69479 | BV11: 3.870444 | BW11: 8.590977224 | BX11: 22.58537 | BZ11: 17.52359 | CA11: 28.60222 | CB11: 2.828593 | CC11: 12.52400558 | CD11: 19.44331 | CF11: 14.61852 | CG11: 25.38702 | CH11: 2.744006 | CI11: 14.11285424 | CJ11: 14.21 | CL11: 10.14 | CM11: 19.55 | CN11: 2.38 | CO11: 16.74876847 | CP11: 29.3397 | CR11: 24.51617 | CS11: 34.67629 | CT11: 2.5982 | CU11: 8.855577937 | CW11: 35.41158 | CY11: 28.65741 | CZ11: 42.80255 | DA11: 3.630072 | DB11: 10.25108736 | DC11: 24.40433 | DE11: 20.19143 | DF11: 29.1749 | DG11: 2.294119 | DH11: 9.400458853 | DI11: 20.04824 | DK11: 14.48671 | DL11: 27.06903 | DM11: 3.207025 | DN11: 15.99654134 | DO11: 9.830603 | DQ11: 7.198033 | DR11: 13.28813 | DS11: 1.539766 | DT11: 15.66298629 | DU11: 5.660679 | DW11: 3.978416 | DX11: 7.995052 | DY11: 1.009002 | DZ11: 17.82475212 | EA11: 5.270344 | EC11: 3.919646 | ED11: 7.052326 | EE11: 0.7902711 | EF11: 14.99467777 | EG11: 5.77646 | EI11: 4.160448 | EJ11: 7.967981 | EK11: 0.9585065 | EL11: 16.59332013 | EM11: 2.645921 | EO11: 1.637734 | EP11: 4.247943 | EQ11: 0.6439774 | ER11: 24.33849688 | ES11: 27.08606 | EU11: 22.34059 | EV11: 32.41875 | EW11: 2.576127 | EX11: 9.510896011 | EZ11: 50.19528 | FB11: 44.06623 | FC11: 56.31846 | FD11: 3.141295 | FE11: 6.258148176 | FF11: 76.82858 | FH11: 68.63318 | FI11: 83.4006 | FJ11: 3.775029 | FK11: 4.913573829 | FL11: 48.71944 | FN11: 42.84271 | FO11: 54.63179 | FP11: 3.021404 | FQ11: 6.201639428 | FR11: 58.30151 | FT11: 50.20553 | FU11: 65.9733 | FV11: 4.054972 | FW11: 6.955174917 | FX11: 46.52374 | FZ11: 40.08813 | GA11: 53.07721 | GB11: 3.332162 | GC11: 7.16228317 | GD11: 72.83914 | GF11: 62.11927 | GG11: 81.43215 | GH11: 4.964161 | GI11: 6.815238346 | GJ11: 19.85664 | GL11: 15.43853 | GM11: 25.16285 | GN11: 2.47904 | GO11: 12.48469026
B12: Bayside (C) | D12: 10.57602 | F12: 6.74803 | G12: 16.19834 | H12: 2.370389 | I12: 22.4128642 | J12: 43.20269 | L12: 36.45567 | M12: 50.21171 | N12: 3.531085 | O12: 8.173298931 | P12: 6.637413 | Q12: * | R12: 3.976193 | S12: 10.87798 | T12: 1.708858 | U12: 25.74584405 | V12: 14.23768 | X12: 8.741662 | Y12: 22.34312 | Z12: 3.425789 | AA12: 24.06142714 | AB12: 0.7877527 | AC12: ** | AD12: 0.2449733 | AE12: 2.502976 | AF12: 0.4679196 | AG12: 59.39930133 | AH12: 34.48299 | AJ12: 27.70619 | AK12: 41.9554 | AL12: 3.656638 | AM12: 10.60417905 | AN12: 6.6839 | AO12: * | AP12: 3.497501 | AQ12: 12.40024 | AR12: 2.167784 | AS12: 32.4329209 | AT12: 47.98834 | AV12: 40.66492 | AW12: 55.39924 | AX12: 3.786204 | AY12: 7.889841574 | AZ12: 3.145213 | BA12: * | BB12: 1.673262 | BC12: 5.83518 | BD12: 1.004309 | BE12: 31.93135091 | BF12: 9.759404 | BG12: * | BH12: 5.410391 | BI12: 16.97684 | BJ12: 2.862109 | BK12: 29.32667815 | BL12: 77.68785 | BN12: 71.84286 | BO12: 82.61315 | BP12: 2.749373 | BQ12: 3.538999985 | BR12: 60.02416 | BT12: 53.56256 | BU12: 66.15478 | BV12: 3.228608 | BW12: 5.378847451 | BX12: 11.59556 | BZ12: 8.395202 | CA12: 15.80543 | CB12: 1.875079 | CC12: 16.1706636 | CD12: 11.17453 | CF12: 7.777364 | CG12: 15.80134 | CH12: 2.025401 | CI12: 18.12515605 | CJ12: 10.22 | CL12: 6.8 | CM12: 15.08 | CN12: 2.08 | CO12: 20.35225049 | CP12: 18.68131 | CR12: 15.85538 | CS12: 21.87994 | CT12: 1.535975 | CU12: 8.221987644 | CW12: 23.00917 | CY12: 16.33818 | CZ12: 31.38224 | DA12: 3.845561 | DB12: 16.71316697 | DC12: 17.86619 | DE12: 14.59194 | DF12: 21.68856 | DG12: 1.80827 | DH12: 10.1211842 | DI12: 31.3924 | DK12: 22.35905 | DL12: 42.09654 | DM12: 5.087898 | DN12: 16.20741963 | DO12: 7.14091 | DQ12: 5.16715 | DR12: 9.790773 | DS12: 1.165651 | DT12: 16.3235638 | DU12: 3.045892 | DW12: 2.078577 | DX12: 4.442944 | DY12: 0.5906698 | DZ12: 19.39234221 | EA12: 5.918472 | EC12: 4.353329 | ED12: 7.999266 | EE12: 0.9194072 | EF12: 15.53453662 | EG12: 4.665183 | EI12: 3.146345 | EJ12: 6.865242 | EK12: 0.9296377 | EL12: 19.92714327 | EM12: 0.8543427 | EN12: * | EO12: 0.3843908 | EP12: 1.887963 | EQ12: 0.347196 | ER12: 40.63896139 | ES12: 24.7468 | EU12: 18.17029 | EV12: 32.75092 | EW12: 3.731042 | EX12: 15.0768665 | EZ12: 55.41685 | FB12: 48.51193 | FC12: 62.11885 | FD12: 3.49249 | FE12: 6.302216745 | FF12: 79.63776 | FH12: 72.83332 | FI12: 85.08687 | FJ12: 3.124213 | FK12: 3.923029729 | FL12: 43.36595 | FN12: 36.74678 | FO12: 50.23059 | FP12: 3.460372 | FQ12: 7.979467762 | FR12: 58.86659 | FT12: 50.4254 | FU12: 66.81632 | FV12: 4.217845 | FW12: 7.165091438 | FX12: 48.92033 | FZ12: 42.24929 | GA12: 55.63005 | GB12: 3.433925 | GC12: 7.019423213 | GD12: 78.3952 | GF12: 68.62864 | GG12: 85.75246 | GH12: 4.37232 | GI12: 5.577280242 | GJ12: 16.20185 | GL12: 11.12835 | GM12: 22.99004 | GN12: 3.009102 | GO12: 18.57258276
B13: Benalla (RC) | D13: 31.00831 | F13: 21.07001 | G13: 43.076 | H13: 5.686328 | I13: 18.33807776 | J13: 61.31022 | L13: 50.31832 | M13: 71.25927 | N13: 5.417422 | O13: 8.83608312 | P13: 19.27231 | R13: 12.89837 | S13: 27.79105 | T13: 3.790728 | U13: 19.66929756 | V13: 13.95528 | W13: * | X13: 7.890436 | Y13: 23.49281 | Z13: 3.910539 | AA13: 28.02193148 | AB13: 4.016589 | AC13: * | AD13: 2.018117 | AE13: 7.835813 | AF13: 1.394311 | AG13: 34.71380816 | AH13: 53.97627 | AJ13: 46.73505 | AK13: 61.05343 | AL13: 3.677693 | AM13: 6.813536763 | AN13: 7.680507 | AO13: * | AP13: 4.618576 | AQ13: 12.50622 | AR13: 1.957941 | AS13: 25.49234054 | AT13: 38.0843 | AV13: 29.59345 | AW13: 47.37216 | AX13: 4.580742 | AY13: 12.02790126 | AZ13: 14.41722 | BB13: 8.966906 | BC13: 22.36643 | BD13: 3.378101 | BE13: 23.43101513 | BF13: 17.80689 | BH13: 11.37106 | BI13: 26.78448 | BJ13: 3.91209 | BK13: 21.96952977 | BL13: 59.55327 | BN13: 49.74207 | BO13: 68.65604 | BP13: 4.881319 | BQ13: 8.196559148 | BR13: 46.59712 | BT13: 37.30932 | BU13: 56.127 | BV13: 4.857969 | BW13: 10.4254705 | BX13: 20.61535 | BZ13: 15.02601 | CA13: 27.60828 | CB13: 3.208678 | CC13: 15.56450897 | CD13: 17.36541 | CF13: 11.80876 | CG13: 24.80147 | CH13: 3.29981 | CI13: 19.00220035 | CJ13: 19.29 | CL13: 12.51 | CM13: 28.53 | CN13: 4.07 | CO13: 21.09901503 | CP13: 34.91544 | CR13: 24.72885 | CS13: 46.69506 | CT13: 5.685303 | CU13: 16.28306274 | CW13: 37.15099 | CY13: 28.14406 | CZ13: 47.14903 | DA13: 4.902997 | DB13: 13.1974868 | DC13: 19.80367 | DE13: 16.39355 | DF13: 23.72189 | DG13: 1.868694 | DH13: 9.43609947 | DI13: 30.6156 | DK13: 25.33027 | DL13: 36.46518 | DM13: 2.849497 | DN13: 9.307336783 | DO13: 10.22623 | DQ13: 7.567493 | DR13: 13.68082 | DS13: 1.546977 | DT13: 15.12753967 | DU13: 4.903474 | DW13: 3.438366 | DX13: 6.947952 | DY13: 0.8808136 | DZ13: 17.96305232 | EA13: 4.355389 | EC13: 3.260099 | ED13: 5.796614 | EE13: 0.6398121 | EF13: 14.69012527 | EG13: 5.774596 | EI13: 4.399183 | EJ13: 7.546091 | EK13: 0.7954494 | EL13: 13.77497924 | EM13: 2.279398 | EN13: * | EO13: 1.135824 | EP13: 4.521688 | EQ13: 0.804805 | ER13: 35.30778741 | ES13: 30.73083 | EU13: 24.24122 | EV13: 38.0844 | EW13: 3.548851 | EX13: 11.54817817 | EZ13: 61.56902 | FB13: 50.25955 | FC13: 71.7523 | FD13: 5.56415 | FE13: 9.037256075 | FF13: 88.53976 | FH13: 81.2838 | FI13: 93.21744 | FJ13: 2.981941 | FK13: 3.367911772 | FL13: 60.9686 | FN13: 50.08606 | FO13: 70.85893 | FP13: 5.373025 | FQ13: 8.812774117 | FR13: 70.21308 | FT13: 62.70503 | FU13: 76.76961 | FV13: 3.605173 | FW13: 5.134617368 | FX13: 49.15592 | FZ13: 42.47235 | GA13: 55.8698 | GB13: 3.438264 | GC13: 6.994608177 | GD13: 85.98594 | GF13: 76.95188 | GG13: 91.85382 | GH13: 3.740802 | GI13: 4.350481021 | GJ13: 18.50927 | GL13: 13.67086 | GM13: 24.57269 | GN13: 2.775622 | GO13: 14.99584803
B14: Boroondara (C) | D14: 10.53356 | F14: 7.676164 | G14: 14.28996 | H14: 1.672658 | I14: 15.87932285 | J14: 38.01874 | L14: 33.21536 | M14: 43.0688 | N14: 2.521214 | O14: 6.631503306 | P14: 4.629727 | Q14: * | R14: 2.533127 | S14: 8.31361 | T14: 1.407466 | U14: 30.40062621 | V14: 12.75485 | X14: 9.559766 | Y14: 16.81921 | Z14: 1.841284 | AA14: 14.43595181 | AB14: 1.954563 | AC14: ** | AD14: 0.6723058 | AE14: 5.545863 | AF14: 1.056132 | AG14: 54.03417541 | AH14: 38.51205 | AJ14: 33.37054 | AK14: 43.92352 | AL14: 2.701475 | AM14: 7.014622696 | AN14: 7.988338 | AP14: 5.428474 | AQ14: 11.60718 | AR14: 1.551637 | AS14: 19.42377751 | AT14: 47.82057 | AV14: 42.57271 | AW14: 53.11698 | AX14: 2.699834 | AY14: 5.645758718 | AZ14: 4.818616 | BA14: * | BB14: 2.790045 | BC14: 8.197732 | BD14: 1.327976 | BE14: 27.55928258 | BF14: 9.92287 | BH14: 6.91337 | BI14: 14.04479 | BJ14: 1.797873 | BK14: 18.11847782 | BL14: 66.22992 | BN14: 60.96918 | BO14: 71.1175 | BP14: 2.596456 | BQ14: 3.920367109 | BR14: 44.99023 | BT14: 39.76808 | BU14: 50.32517 | BV14: 2.703056 | BW14: 6.008095535 | BX14: 14.90785 | BZ14: 11.35451 | CA14: 19.3307 | CB14: 2.026932 | CC14: 13.59640726 | CD14: 17.37798 | CF14: 13.32475 | CG14: 22.34627 | CH14: 2.296309 | CI14: 13.21390058 | CJ14: 8.85 | CL14: 5.99 | CM14: 12.9 | CN14: 1.74 | CO14: 19.66101695 | CP14: 18.60294 | CR14: 15.02058 | CS14: 22.81035 | CT14: 1.985208 | CU14: 10.67147451 | CW14: 22.17623 | CY14: 17.97823 | CZ14: 27.03142 | DA14: 2.310443 | DB14: 10.41855626 | DC14: 16.63747 | DE14: 13.26446 | DF14: 20.66384 | DG14: 1.883895 | DH14: 11.32320599 | DI14: 15.93571 | DK14: 12.59658 | DL14: 19.95786 | DM14: 1.873318 | DN14: 11.75547246 | DO14: 9.067003 | DQ14: 6.557725 | DR14: 12.40893 | DS14: 1.477404 | DT14: 16.29429261 | DU14: 3.495368 | DV14: * | DW14: 1.977358 | DX14: 6.106153 | DY14: 1.007266 | DZ14: 28.81716603 | EA14: 4.554493 | EC14: 2.82928 | ED14: 7.253167 | EE14: 1.09563 | EF14: 24.05602556 | EG14: 5.017794 | EI14: 3.393045 | EJ14: 7.361266 | EK14: 0.9926352 | EL14: 19.78230274 | EM14: 0.8085241 | EN14: * | EO14: 0.3628398 | EP14: 1.791808 | EQ14: 0.3296813 | ER14: 40.7756924 | ES14: 18.31422 | EU14: 15.01223 | EV14: 22.15318 | EW14: 1.819912 | EX14: 9.937152661 | EZ14: 54.72713 | FB14: 49.80762 | FC14: 59.55598 | FD14: 2.494633 | FE14: 4.55831139 | FF14: 82.0273 | FH14: 77.76137 | FI14: 85.62618 | FJ14: 2.003625 | FK14: 2.442631904 | FL14: 48.37544 | FN14: 43.39193 | FO14: 53.39149 | FP14: 2.559407 | FQ14: 5.290715702 | FR14: 60.36994 | FT14: 51.2717 | FU14: 68.80306 | FV14: 4.51641 | FW14: 7.481223271 | FX14: 56.96874 | FZ14: 48.97495 | GA14: 64.61502 | GB14: 4.022016 | GC14: 7.060040296 | GD14: 89.94719 | GF14: 82.53673 | GG14: 94.42544 | GH14: 2.944042 | GI14: 3.273078347 | GJ14: 13.36005 | GL14: 10.07724 | GM14: 17.5041 | GN14: 1.884937 | GO14: 14.10875708
B15: Brimbank (C) | D15: 20.72741 | F15: 16.76386 | G15: 25.34275 | H15: 2.188162 | I15: 10.55685201 | J15: 47.4744 | L15: 42.23592 | M15: 52.76906 | N15: 2.696958 | O15: 5.680868005 | P15: 9.954818 | R15: 7.142204 | S15: 13.71149 | T15: 1.659162 | U15: 16.6669245 | V15: 18.8257 | X15: 15.0439 | Y15: 23.29747 | Z15: 2.103416 | AA15: 11.1731091 | AB15: 7.769267 | AD15: 4.95276 | AE15: 11.98548 | AF15: 1.755961 | AG15: 22.60137282 | AH15: 49.82556 | AJ15: 44.45055 | AK15: 55.2046 | AL15: 2.753981 | AM15: 5.527245454 | AN15: 4.730466 | AP15: 2.947457 | AQ15: 7.508626 | AR15: 1.130386 | AS15: 23.89586988 | AT15: 41.47477 | AV15: 36.19925 | AW15: 46.95331 | AX15: 2.753645 | AY15: 6.639325547 | AZ15: 16.36719 | BB15: 12.74623 | BC15: 20.77191 | BD15: 2.042237 | BE15: 12.4776275 | BF15: 21.00059 | BH15: 16.87836 | BI15: 25.8169 | BJ15: 2.280139 | BK15: 10.85749972 | BL15: 40.02309 | BN15: 34.7946 | BO15: 45.48915 | BP15: 2.738154 | BQ15: 6.841435781 | BR15: 26.46095 | BT15: 21.863 | BU15: 31.63441 | BV15: 2.497098 | BW15: 9.43691742 | BX15: 27.68898 | BZ15: 23.01001 | CA15: 32.91266 | CB15: 2.531374 | CC15: 9.142171362 | CD15: 25.61678 | CF15: 21.16748 | CG15: 30.63782 | CH15: 2.419467 | CI15: 9.444852163 | CJ15: 19.82 | CL15: 15.72 | CM15: 24.69 | CN15: 2.29 | CO15: 11.55398587 | CP15: 28.93517 | CR15: 24.97265 | CS15: 33.24782 | CT15: 2.114326 | CU15: 7.307114491 | CW15: 27.74607 | CY15: 23.08235 | CZ15: 32.94844 | DA15: 2.522013 | DB15: 9.089622422 | DC15: 20.82091 | DE15: 17.5584 | DF15: 24.5094 | DG15: 1.773061 | DH15: 8.515770925 | DI15: 19.24106 | DK15: 15.1958 | DL15: 24.05772 | DM15: 2.258679 | DN15: 11.73884911 | DO15: 6.252273 | DQ15: 4.327961 | DR15: 8.952119 | DS15: 1.16079 | DT15: 18.56588796 | DU15: 6.945853 | DW15: 4.970083 | DX15: 9.627483 | DY15: 1.173016 | DZ15: 16.88800497 | EA15: 8.239856 | EC15: 6.046907 | ED15: 11.13385 | EE15: 1.284766 | EF15: 15.59209287 | EG15: 6.317945 | EI15: 4.367223 | EJ15: 9.057477 | EK15: 1.17732 | EL15: 18.63454019 | EM15: 5.192812 | EO15: 3.376766 | EP15: 7.905628 | EQ15: 1.128617 | ER15: 21.73421645 | ES15: 28.44738 | EU15: 24.00963 | EV15: 33.34544 | EW15: 2.386195 | EX15: 8.388101119 | EZ15: 65.59353 | FB15: 60.84251 | FC15: 70.05184 | FD15: 2.355079 | FE15: 3.590413567 | FF15: 75.94039 | FH15: 71.3137 | FI15: 80.02983 | FJ15: 2.225527 | FK15: 2.930623611 | FL15: 61.59422 | FN15: 56.64643 | FO15: 66.31314 | FP15: 2.47319 | FQ15: 4.015295591 | FR15: 61.83936 | FT15: 53.08148 | FU15: 69.88978 | FV15: 4.325924 | FW15: 6.995421686 | FX15: 40.45022 | FZ15: 33.62719 | GA15: 47.66349 | GB15: 3.603397 | GC15: 8.908225963 | GD15: 74.40922 | GF15: 63.19311 | GG15: 83.12042 | GH15: 5.117771 | GI15: 6.877872124 | GJ15: 20.66198 | GL15: 16.31588 | GM15: 25.80872 | GN15: 2.421141 | GO15: 11.71785569
B16: Buloke (S) | D16: 24.54915 | F16: 15.42065 | G16: 36.73445 | H16: 5.473299 | I16: 22.29526888 | J16: 48.45692 | L16: 37.13273 | M16: 59.94183 | N16: 5.922621 | O16: 12.22244625 | P16: 4.873079 | Q16: * | R16: 2.900805 | S16: 8.074798 | T16: 1.275382 | U16: 26.17199516 | V16: 8.244204 | W16: ** | X16: 2.824744 | Y16: 21.73559 | Z16: 4.355236 | AA16: 52.82785336 | AB16: 1.134506 | AC16: * | AD16: 0.6886662 | AE16: 1.863563 | AF16: 0.2882406 | AG16: 25.40670565 | AH16: 41.17249 | AJ16: 29.0049 | AK16: 54.52427 | AL16: 6.652019 | AM16: 16.15646515 | AN16: 4.899878 | AO16: * | AP16: 2.835264 | AQ16: 8.338898 | AR16: 1.351679 | AS16: 27.58597255 | AT16: 39.72369 | AV16: 29.60842 | AW16: 50.80074 | AX16: 5.485315 | AY16: 13.80867437 | AZ16: 10.9544 | BA16: * | BB16: 6.264055 | BC16: 18.46491 | BD16: 3.036983 | BE16: 27.72386438 | BF16: 13.16969 | BH16: 7.984951 | BI16: 20.95429 | BJ16: 3.257569 | BK16: 24.73535064 | BL16: 68.82375 | BN16: 60.47056 | BO16: 76.10917 | BP16: 4.015187 | BQ16: 5.834013694 | BR16: 44.86358 | BT16: 35.48005 | BU16: 54.62761 | BV16: 4.944872 | BW16: 11.02201831 | BX16: 21.87712 | BZ16: 15.49997 | CA16: 29.94811 | CB16: 3.689084 | CC16: 16.86274976 | CD16: 20.62153 | CE16: * | CF16: 12.27049 | CG16: 32.54754 | CH16: 5.170943 | CI16: 25.07545754 | CJ16: 11.48 | CK16: * | CL16: 6.76 | CM16: 18.85 | CN16: 3.02 | CO16: 26.30662021 | CP16: 31.02941 | CR16: 21.53803 | CS16: 42.44101 | CT16: 5.394412 | CU16: 17.38483587 | CW16: 33.59956 | CY16: 22.85779 | CZ16: 46.35591 | DA16: 6.091593 | DB16: 18.12997849 | DC16: 27.72842 | DE16: 20.81126 | DF16: 35.90232 | DG16: 3.868493 | DH16: 13.9513647 | DI16: 30.16696 | DK16: 24.10236 | DL16: 37.01336 | DM16: 3.307342 | DN16: 10.96345803 | DO16: 8.483842 | DP16: * | DQ16: 4.9593 | DR16: 14.14057 | DS16: 2.276455 | DT16: 26.83283116 | DU16: 4.38336 | DW16: 3.125495 | DX16: 6.115498 | DY16: 0.7511824 | DZ16: 17.13713681 | EA16: 8.67734 | EB16: * | EC16: 3.542471 | ED16: 19.73263 | EE16: 3.843232 | EF16: 44.29043924 | EG16: 5.863016 | EH16: * | EI16: 3.181393 | EJ16: 10.5585 | EK16: 1.800581 | EL16: 30.7108321 | EM16: 2.38069 | EN16: * | EO16: 1.251878 | EP16: 4.481158 | EQ16: 0.7757358 | ER16: 32.58449441 | ES16: 30.37425 | EU16: 22.3769 | EV16: 39.76557 | EW16: 4.470162 | EX16: 14.7169461 | EZ16: 56.08576 | FB16: 47.51765 | FC16: 64.30581 | FD16: 4.322912 | FE16: 7.70768195 | FF16: 82.89689 | FH16: 69.3062 | FI16: 91.23123 | FJ16: 5.525422 | FK16: 6.665415313 | FL16: 50.59383 | FN16: 43.44579 | FO16: 57.71768 | FP16: 3.665746 | FQ16: 7.245440798 | FR16: 69.21581 | FT16: 53.85637 | FU16: 81.24325 | FV16: 7.12743 | FW16: 10.29740171 | FX16: 51.77095 | FZ16: 39.18255 | GA16: 64.1385 | GB16: 6.503252 | GC16: 12.56158521 | GD16: 74.99951 | GF16: 49.59573 | GG16: 90.14413 | GH16: 10.66304 | GI16: 14.21747955 | GJ16: 15.36394 | GK16: * | GL16: 8.77576 | GM16: 25.51469 | GN16: 4.212706 | GO16: 27.41943798
B17: Campaspe (S) | D17: 25.70218 | F17: 20.55202 | G17: 31.62913 | H17: 2.831614 | I17: 11.01701879 | J17: 55.42952 | L17: 48.37241 | M17: 62.27431 | N17: 3.569173 | O17: 6.439119444 | P17: 18.03242 | R17: 12.22597 | S17: 25.78636 | T17: 3.446644 | U17: 19.11359651 | V17: 12.10241 | W17: * | X17: 7.002748 | Y17: 20.11265 | Z17: 3.275381 | AA17: 27.06387405 | AB17: 1.603679 | AC17: * | AD17: 0.8970935 | AE17: 2.850791 | AF17: 0.4734213 | AG17: 29.52095151 | AH17: 38.11752 | AJ17: 32.52097 | AK17: 44.0485 | AL17: 2.952896 | AM17: 7.746820884 | AN17: 5.41481 | AP17: 3.710346 | AQ17: 7.838532 | AR17: 1.034423 | AS17: 19.10358812 | AT17: 42.82427 | AV17: 35.78303 | AW17: 50.16861 | AX17: 3.6948 | AY17: 8.627817824 | AZ17: 12.89057 | BB17: 9.125516 | BC17: 17.903 | BD17: 2.221312 | BE17: 17.23206964 | BF17: 15.9412 | BH17: 11.54804 | BI17: 21.59754 | BJ17: 2.552335 | BK17: 16.01093393 | BL17: 69.67132 | BN17: 63.70734 | BO17: 75.03923 | BP17: 2.900104 | BQ17: 4.162550674 | BR17: 52.925 | BT17: 46.39879 | BU17: 59.35271 | BV17: 3.32312 | BW17: 6.278923004 | BX17: 16.39542 | BZ17: 12.43835 | CA17: 21.30508 | CB17: 2.255115 | CC17: 13.75454243 | CD17: 18.04218 | CF17: 13.24588 | CG17: 24.09289 | CH17: 2.760429 | CI17: 15.29986399 | CJ17: 12.65 | CL17: 9.16 | CM17: 17.22 | CN17: 2.04 | CO17: 16.12648221 | CP17: 26.51513 | CR17: 22.5027 | CS17: 30.95721 | CT17: 2.159609 | CU17: 8.144817695 | CW17: 30.28012 | CY17: 24.53697 | CZ17: 36.71353 | DA17: 3.117818 | DB17: 10.29658403 | DC17: 33.32876 | DE17: 24.08588 | DF17: 44.05996 | DG17: 5.154022 | DH17: 15.46418769 | DI17: 29.7268 | DK17: 21.84913 | DL17: 39.02639 | DM17: 4.413873 | DN17: 14.84812694 | DO17: 9.321234 | DQ17: 7.070482 | DR17: 12.19445 | DS17: 1.297523 | DT17: 13.92007753 | DU17: 5.978664 | DW17: 3.886518 | DX17: 9.090511 | DY17: 1.298282 | DZ17: 21.71525277 | EA17: 7.544876 | EC17: 5.902801 | ED17: 9.597162 | EE17: 0.9361638 | EF17: 12.4079415 | EG17: 6.651499 | EI17: 4.850467 | EJ17: 9.057613 | EK17: 1.060837 | EL17: 15.94884101 | EM17: 2.477424 | EO17: 1.525921 | EP17: 3.998158 | EQ17: 0.6093398 | ER17: 24.59570102 | ES17: 30.88874 | EU17: 25.78879 | EV17: 36.50117 | EW17: 2.740818 | EX17: 8.873194569 | EZ17: 55.87169 | FB17: 50.47308 | FC17: 61.13497 | FD17: 2.730048 | FE17: 4.886281407 | FF17: 79.82191 | FH17: 72.17536 | FI17: 85.78107 | FJ17: 3.46797 | FK17: 4.344634199 | FL17: 59.62169 | FN17: 52.29405 | FO17: 66.54387 | FP17: 3.658972 | FQ17: 6.136981357 | FR17: 64.63432 | FT17: 57.39187 | FU17: 71.26213 | FV17: 3.558526 | FW17: 5.505629208 | FX17: 53.06897 | FZ17: 47.11418 | GA17: 58.93764 | GB17: 3.030206 | GC17: 5.709939349 | GD17: 82.06054 | GF17: 72.64708 | GG17: 88.73665 | GH17: 4.082897 | GI17: 4.97546933 | GJ17: 15.05939 | GL17: 11.48562 | GM17: 19.50017 | GN17: 2.036942 | GO17: 13.52605916
B18: Cardinia (S) | D18: 23.37155 | F18: 19.04034 | G18: 28.34309 | H18: 2.375148 | I18: 10.16256089 | J18: 57.7572 | L18: 52.02611 | M18: 63.28677 | N18: 2.884486 | O18: 4.994158304 | P18: 14.67049 | R18: 10.69997 | S18: 19.78789 | T18: 2.306118 | U18: 15.71943405 | V18: 13.48457 | X18: 9.679238 | Y18: 18.47984 | Z18: 2.229682 | AA18: 16.53506193 | AB18: 1.358537 | AC18: ** | AD18: 0.4259189 | AE18: 4.246187 | AF18: 0.7994701 | AG18: 58.84787091 | AH18: 42.36737 | AJ18: 36.49503 | AK18: 48.46352 | AL18: 3.06747 | AM18: 7.240170915 | AN18: 4.846561 | AO18: * | AP18: 2.881355 | AQ18: 8.041143 | AR18: 1.271602 | AS18: 26.23720201 | AT18: 43.27558 | AV18: 37.30835 | AW18: 49.44449 | AX18: 3.110941 | AY18: 7.188675461 | AZ18: 13.15809 | BB18: 9.586093 | BC18: 17.79907 | BD18: 2.081449 | BE18: 15.81877765 | BF18: 14.95674 | BH18: 11.16418 | BI18: 19.7512 | BJ18: 2.181005 | BK18: 14.58208808 | BL18: 60.6955 | BN18: 55.1868 | BO18: 65.94491 | BP18: 2.754468 | BQ18: 4.538174988 | BR18: 44.01773 | BT18: 38.40106 | BU18: 49.79186 | BV18: 2.918241 | BW18: 6.629694444 | BX18: 18.41498 | BZ18: 14.53939 | CA18: 23.04507 | CB18: 2.167022 | CC18: 11.76771302 | CD18: 18.14376 | CF18: 14.01703 | CG18: 23.15822 | CH18: 2.328046 | CI18: 12.83111108 | CJ18: 15.89 | CL18: 11.69 | CM18: 21.22 | CN18: 2.42 | CO18: 15.22970422 | CP18: 22.35575 | CR18: 18.69948 | CS18: 26.49394 | CT18: 1.989066 | CU18: 8.897335137 | CW18: 29.77027 | CY18: 24.51459 | CZ18: 35.62099 | DA18: 2.841771 | DB18: 9.54566754 | DC18: 21.46802 | DE18: 17.87068 | DF18: 25.56409 | DG18: 1.962797 | DH18: 9.142887886 | DI18: 23.29123 | DK18: 18.21479 | DL18: 29.27603 | DM18: 2.825063 | DN18: 12.12929931 | DO18: 10.19706 | DQ18: 7.823876 | DR18: 13.1871 | DS18: 1.35956 | DT18: 13.33286261 | DU18: 5.217581 | DW18: 3.419837 | DX18: 7.883229 | DY18: 1.113266 | DZ18: 21.33682256 | EA18: 6.361386 | EC18: 4.452572 | ED18: 9.011329 | EE18: 1.145566 | EF18: 18.00811961 | EG18: 5.662749 | EI18: 3.697469 | EJ18: 8.579556 | EK18: 1.217972 | EL18: 21.50849349 | EM18: 2.909788 | EO18: 1.784291 | EP18: 4.711175 | EQ18: 0.7215244 | ER18: 24.7964594 | ES18: 28.38849 | EU18: 23.98598 | EV18: 33.24563 | EW18: 2.366634 | EX18: 8.33659698 | EZ18: 59.36491 | FB18: 53.94756 | FC18: 64.56359 | FD18: 2.717966 | FE18: 4.578404987 | FF18: 81.84898 | FH18: 76.3009 | FI18: 86.33091 | FJ18: 2.553605 | FK18: 3.119898379 | FL18: 53.68107 | FN18: 48.30743 | FO18: 58.97056 | FP18: 2.73046 | FQ18: 5.086448538 | FR18: 55.99836 | FT18: 45.71002 | FU18: 65.79591 | FV18: 5.193198 | FW18: 9.273839448 | FX18: 49.77282 | FZ18: 41.9329 | GA18: 57.62393 | GB18: 4.036021 | GC18: 8.108885532 | GD18: 63.93203 | GF18: 50.88556 | GG18: 75.20181 | GH18: 6.316832 | GI18: 9.880543446 | GJ18: 18.19136 | GL18: 13.68661 | GM18: 23.77046 | GN18: 2.56735 | GO18: 14.11301849
B19: Casey (C) | D19: 23.86941 | F19: 19.2687 | G19: 29.17167 | H19: 2.529112 | I19: 10.59562008 | J19: 58.32653 | L19: 52.52015 | M19: 63.91077 | N19: 2.918002 | O19: 5.002872621 | P19: 9.384377 | R19: 6.547019 | S19: 13.2767 | T19: 1.695802 | U19: 18.07048033 | V19: 19.54423 | X19: 15.84105 | Y19: 23.86759 | Z19: 2.046348 | AA19: 10.47034342 | AB19: 1.89268 | AC19: * | AD19: 0.9608646 | AE19: 3.694431 | AF19: 0.6511852 | AG19: 34.40545681 | AH19: 51.01722 | AJ19: 45.74755 | AK19: 56.26437 | AL19: 2.692767 | AM19: 5.278153141 | AN19: 3.473296 | AO19: * | AP19: 2.098816 | AQ19: 5.695534 | AR19: 0.8858208 | AS19: 25.50375206 | AT19: 38.68488 | AV19: 33.3343 | AW19: 44.32328 | AX19: 2.813949 | AY19: 7.274027992 | AZ19: 10.91199 | BB19: 8.088093 | BC19: 14.5656 | BD19: 1.640067 | BE19: 15.02995329 | BF19: 16.5173 | BH19: 13.02438 | BI19: 20.72376 | BJ19: 1.9598 | BK19: 11.86513534 | BL19: 52.52164 | BN19: 47.02084 | BO19: 57.96192 | BP19: 2.802233 | BQ19: 5.335387471 | BR19: 35.65486 | BT19: 31.02945 | BU19: 40.56424 | BV19: 2.43893 | BW19: 6.840385855 | BX19: 26.23765 | BZ19: 21.27701 | CA19: 31.88637 | CB19: 2.711958 | CC19: 10.33613148 | CD19: 21.85942 | CF19: 17.30799 | CG19: 27.21384 | CH19: 2.52793 | CI19: 11.56448799 | CJ19: 18.84 | CL19: 15.01 | CM19: 23.37 | CN19: 2.13 | CO19: 11.30573248 | CP19: 29.72333 | CR19: 24.8417 | CS19: 35.11604 | CT19: 2.627706 | CU19: 8.840550504 | CW19: 26.95523 | CY19: 22.30374 | CZ19: 32.17507 | DA19: 2.522982 | DB19: 9.359897875 | DC19: 23.65717 | DE19: 19.34443 | DF19: 28.59058 | DG19: 2.360873 | DH19: 9.979524178 | DI19: 21.34969 | DK19: 16.89523 | DL19: 26.60263 | DM19: 2.476685 | DN19: 11.60056657 | DO19: 13.21276 | DQ19: 9.488681 | DR19: 18.10607 | DS19: 2.182779 | DT19: 16.52023498 | DU19: 7.158509 | DW19: 4.707004 | DX19: 10.74287 | DY19: 1.509962 | DZ19: 21.09324721 | EA19: 5.783578 | EC19: 3.716149 | ED19: 8.894938 | EE19: 1.290077 | EF19: 22.30586326 | EG19: 9.886671 | EI19: 7.084928 | EJ19: 13.63379 | EK19: 1.653791 | EL19: 16.72748087 | EM19: 3.667285 | EN19: * | EO19: 1.963616 | EP19: 6.747355 | EQ19: 1.157501 | ER19: 31.56288644 | ES19: 30.98217 | EU19: 26.93228 | EV19: 35.34644 | EW19: 2.15037 | EX19: 6.940669424 | EZ19: 60.85556 | FB19: 56.32871 | FC19: 65.20305 | FD19: 2.269469 | FE19: 3.729271409 | FF19: 84.01572 | FH19: 79.93916 | FI19: 87.39451 | FJ19: 1.897213 | FK19: 2.258164305 | FL19: 57.04941 | FN19: 51.85025 | FO19: 62.09755 | FP19: 2.623074 | FQ19: 4.597898558 | FR19: 49.15601 | FT19: 39.37008 | FU19: 59.00705 | FV19: 5.075022 | FW19: 10.3243164 | FX19: 45.70377 | FZ19: 36.88639 | GA19: 54.79884 | GB19: 4.618805 | GC19: 10.10596062 | GD19: 74.45807 | GF19: 59.63347 | GG19: 85.1904 | GH19: 6.594405 | GI19: 8.85653496 | GJ19: 17.76183 | GL19: 13.89233 | GM19: 22.42839 | GN19: 2.173823 | GO19: 12.23873328
B20: Central Goldfields (S) | D20: 30.60591 | F20: 23.50384 | G20: 38.76644 | H20: 3.916823 | I20: 12.79760347 | J20: 64.10631 | L20: 54.96547 | M20: 72.32594 | N20: 4.469353 | O20: 6.971783277 | P20: 17.4901 | R20: 11.02577 | S20: 26.61089 | T20: 3.952484 | U20: 22.5984071 | V20: 9.961963 | X20: 6.36208 | Y20: 15.26668 | Z20: 2.231467 | AA20: 22.39987239 | AB20: 1.196133 | AC20: * | AD20: 0.5657021 | AE20: 2.511384 | AF20: 0.4553212 | AG20: 38.06610134 | AH20: 49.08816 | AJ20: 40.15341 | AK20: 58.08155 | AL20: 4.623375 | AM20: 9.418513548 | AN20: 4.74006 | AO20: * | AP20: 2.715408 | AQ20: 8.147889 | AR20: 1.331872 | AS20: 28.09820973 | AT20: 33.42959 | AV20: 27.57719 | AW20: 39.84073 | AX20: 3.1418 | AY20: 9.398260643 | AZ20: 16.3254 | BB20: 11.63859 | BC20: 22.42067 | BD20: 2.738236 | BE20: 16.77285702 | BF20: 22.259 | BH20: 15.16579 | BI20: 31.44025 | BJ20: 4.158447 | BK20: 18.68209264 | BL20: 59.12582 | BN20: 51.99475 | BO20: 65.89246 | BP20: 3.567514 | BQ20: 6.033766635 | BR20: 34.51052 | BT20: 27.23404 | BU20: 42.59315 | BV20: 3.94532 | BW20: 11.43222414 | BX20: 28.90548 | BZ20: 21.04386 | CA20: 38.28014 | CB20: 4.427703 | CC20: 15.31786706 | CD20: 30.87268 | CF20: 22.86523 | CG20: 40.22209 | CH20: 4.462666 | CI20: 14.45506513 | CJ20: 19.37 | CL20: 12.49 | CM20: 28.79 | CN20: 4.15 | CO20: 21.42488384 | CP20: 25.8285 | CR20: 20.89542 | CS20: 31.46299 | CT20: 2.700944 | CU20: 10.45722361 | CW20: 42.8071 | CY20: 34.21913 | CZ20: 51.85146 | DA20: 4.544421 | DB20: 10.616045 | DC20: 31.2181 | DE20: 26.77477 | DF20: 36.03593 | DG20: 2.367813 | DH20: 7.584744107 | DI20: 23.01253 | DK20: 16.5255 | DL20: 31.09738 | DM20: 3.724371 | DN20: 16.18410057 | DO20: 6.543382 | DQ20: 4.629156 | DR20: 9.173035 | DS20: 1.143012 | DT20: 17.46821445 | DU20: 6.443534 | DW20: 4.489474 | DX20: 9.16648 | DY20: 1.174931 | DZ20: 18.23426399 | EA20: 10.96554 | EB20: * | EC20: 6.526123 | ED20: 17.84825 | EE20: 2.827282 | EF20: 25.7833358 | EG20: 7.18834 | EI20: 5.395382 | EJ20: 9.517182 | EK20: 1.041744 | EL20: 14.49213588 | EM20: 3.023519 | EN20: * | EO20: 1.806823 | EP20: 5.01766 | EQ20: 0.7888408 | ER20: 26.09015521 | ES20: 36.81957 | EU20: 29.93258 | EV20: 44.28952 | EW20: 3.685716 | EX20: 10.01020924 | EZ20: 50.55317 | FB20: 41.90974 | FC20: 59.16366 | FD20: 4.4459 | FE20: 8.794502897 | FF20: 79.18027 | FH20: 70.51832 | FI20: 85.8094 | FJ20: 3.900198 | FK20: 4.925719501 | FL20: 45.59472 | FN20: 38.42267 | FO20: 52.95424 | FP20: 3.733186 | FQ20: 8.18775946 | FR20: 73.64763 | FT20: 66.20673 | FU20: 79.94639 | FV20: 3.517102 | FW20: 4.775580694 | FX20: 54.49935 | FZ20: 47.9902 | GA20: 60.85831 | GB20: 3.300718 | GC20: 6.056435535 | GD20: 80.50622 | GF20: 71.16979 | GG20: 87.35627 | GH20: 4.119876 | GI20: 5.117462974 | GJ20: 13.88894 | GL20: 10.05665 | GM20: 18.87515 | GN20: 2.235741 | GO20: 16.09727596
B21: Colac-Otway (S) | D21: 28.38615 | F21: 22.4168 | G21: 35.2234 | H21: 3.278968 | I21: 11.55129526 | J21: 58.52193 | L21: 50.15937 | M21: 66.4207 | N21: 4.184202 | O21: 7.149801792 | P21: 17.11422 | R21: 10.28025 | S21: 27.11806 | T21: 4.262107 | U21: 24.90389279 | V21: 17.60653 | X21: 11.2035 | Y21: 26.57385 | Z21: 3.899579 | AA21: 22.14848127 | AB21: 1.969801 | AC21: * | AD21: 0.8912988 | AE21: 4.296752 | AF21: 0.7920409 | AG21: 40.20918357 | AH21: 43.97545 | AJ21: 35.9392 | AK21: 52.34047 | AL21: 4.221477 | AM21: 9.599622062 | AN21: 5.485558 | AO21: * | AP21: 3.21911 | AQ21: 9.196099 | AR21: 1.472601 | AS21: 26.84505387 | AT21: 41.19855 | AV21: 33.06432 | AW21: 49.84376 | AX21: 4.319868 | AY21: 10.48548553 | AZ21: 15.29325 | BB21: 10.15496 | BC21: 22.38372 | BD21: 3.095391 | BE21: 20.24024324 | BF21: 17.4531 | BH21: 11.781 | BI21: 25.07974 | BJ21: 3.377388 | BK21: 19.35122127 | BL21: 58.76486 | BN21: 50.44866 | BO21: 66.60915 | BP21: 4.157734 | BQ21: 7.075204467 | BR21: 44.86548 | BT21: 36.85155 | BU21: 53.15519 | BV21: 4.196061 | BW21: 9.352537853 | BX21: 20.45146 | BZ21: 14.46503 | CA21: 28.10146 | CB21: 3.476808 | CC21: 17.0002924 | CD21: 18.87952 | CF21: 13.19246 | CG21: 26.27609 | CH21: 3.330128 | CI21: 17.63883828 | CJ21: 20.26 | CL21: 13.95 | CM21: 28.48 | CN21: 3.7 | CO21: 18.26258638 | CP21: 23.76773 | CR21: 19.11535 | CS21: 29.14443 | CT21: 2.56131 | CU21: 10.77641828 | CW21: 31.64931 | CY21: 24.08268 | CZ21: 40.33037 | DA21: 4.174305 | DB21: 13.18924488 | DC21: 23.14365 | DE21: 19.45557 | DF21: 27.29396 | DG21: 2.000666 | DH21: 8.64455693 | DI21: 26.36957 | DK21: 19.29455 | DL21: 34.91649 | DM21: 4.003355 | DN21: 15.18172272 | DO21: 7.636024 | DQ21: 5.610086 | DR21: 10.31364 | DS21: 1.187493 | DT21: 15.55119523 | DU21: 4.206336 | DW21: 2.87402 | DX21: 6.117376 | DY21: 0.8114018 | DZ21: 19.28999015 | EA21: 5.735812 | EC21: 4.208155 | ED21: 7.773043 | EE21: 0.8986778 | EF21: 15.66783918 | EG21: 7.126893 | EI21: 5.300313 | EJ21: 9.519666 | EK21: 1.065723 | EL21: 14.95354287 | EM21: 2.332437 | EN21: * | EO21: 1.333994 | EP21: 4.04752 | EQ21: 0.6612078 | ER21: 28.34836697 | ES21: 28.71512 | EU21: 22.4881 | EV21: 35.86852 | EW21: 3.427388 | EX21: 11.93583032 | EZ21: 50.44277 | FB21: 44.29657 | FC21: 56.57561 | FD21: 3.148238 | FE21: 6.24120761 | FF21: 81.81538 | FH21: 73.59577 | FI21: 87.89702 | FJ21: 3.634569 | FK21: 4.442403128 | FL21: 51.24463 | FN21: 43.15363 | FO21: 59.27092 | FP21: 4.147627 | FQ21: 8.093778802 | FR21: 62.15175 | FT21: 54.39588 | FU21: 69.33223 | FV21: 3.836754 | FW21: 6.17320349 | FX21: 49.99653 | FZ21: 43.92755 | GA21: 56.06561 | GB21: 3.11168 | GC21: 6.223791931 | GD21: 75.10681 | GF21: 66.75639 | GG21: 81.92755 | GH21: 3.883167 | GI21: 5.170192956 | GJ21: 19.90257 | GL21: 14.11323 | GM21: 27.31155 | GN21: 3.363279 | GO21: 16.8987171
B22: Corangamite (S) | D22: 31.66166 | F22: 24.79754 | G22: 39.42961 | H22: 3.754129 | I22: 11.85701887 | J22: 63.19296 | L22: 55.95905 | M22: 69.87826 | N22: 3.571967 | O22: 5.652476162 | P22: 11.80859 | R22: 8.0876 | S22: 16.92629 | T22: 2.23062 | U22: 18.88980818 | V22: 12.24818 | W22: * | X22: 7.153178 | Y22: 20.18333 | Z22: 3.258668 | AA22: 26.60532422 | AB22: 1.369369 | AC22: * | AD22: 0.7738933 | AE22: 2.4119 | AF22: 0.3973852 | AG22: 29.01958493 | AH22: 47.92392 | AJ22: 40.02724 | AK22: 55.92572 | AL22: 4.0903 | AM22: 8.534986287 | AN22: 8.125377 | AO22: * | AP22: 4.90788 | AQ22: 13.16027 | AR22: 2.051249 | AS22: 25.24497017 | AT22: 43.5559 | AV22: 35.85763 | AW22: 51.57792 | AX22: 4.043154 | AY22: 9.282678122 | AZ22: 9.307953 | BB22: 5.822428 | BC22: 14.55751 | BD22: 2.182987 | BE22: 23.45292246 | BF22: 10.11857 | BH22: 6.508881 | BI22: 15.40036 | BJ22: 2.229928 | BK22: 22.03797572 | BL22: 67.68626 | BN22: 60.67722 | BO22: 73.98169 | BP22: 3.410473 | BQ22: 5.038648907 | BR22: 49.16439 | BT22: 41.23514 | BU22: 57.13592 | BV22: 4.090953 | BW22: 8.320967676 | BX22: 22.52291 | BZ22: 16.36048 | CA22: 30.16926 | CB22: 3.527337 | CC22: 15.66110685 | CD22: 18.97301 | CF22: 13.17026 | CG22: 26.55066 | CH22: 3.40577 | CI22: 17.95060457 | CJ22: 14.98 | CL22: 9.61 | CM22: 22.6 | CN22: 3.28 | CO22: 21.89586115 | CP22: 24.64494 | CR22: 20.29636 | CS22: 29.57946 | CT22: 2.370955 | CU22: 9.620453529 | CW22: 31.95553 | CY22: 24.83896 | CZ22: 40.02527 | DA22: 3.898357 | DB22: 12.19931887 | DC22: 23.8843 | DE22: 20.64758 | DF22: 27.45287 | DG22: 1.736942 | DH22: 7.272316961 | DI22: 23.86076 | DK22: 17.05068 | DL22: 32.33066 | DM22: 3.908809 | DN22: 16.38174559 | DO22: 8.073407 | DQ22: 6.273952 | DR22: 10.33208 | DS22: 1.028234 | DT22: 12.7360605 | DU22: 4.638429 | DW22: 3.353665 | DX22: 6.382871 | DY22: 0.7621098 | DZ22: 16.43034312 | EA22: 8.838882 | EC22: 6.921006 | ED22: 11.22413 | EE22: 1.091128 | EF22: 12.34463816 | EG22: 4.502877 | EI22: 3.250705 | EJ22: 6.206446 | EK22: 0.7434505 | EL22: 16.51056647 | EM22: 1.764559 | EN22: * | EO22: 1.051768 | EP22: 2.946032 | EQ22: 0.4639991 | ER22: 26.29547099 | ES22: 28.14964 | EU22: 22.7269 | EV22: 34.29206 | EW22: 2.958926 | EX22: 10.51141684 | EZ22: 50.8351 | FB22: 43.02182 | FC22: 58.6078 | FD22: 4.008606 | FE22: 7.885508241 | FF22: 75.05487 | FH22: 66.38285 | FI22: 82.09327 | FJ22: 4.022777 | FK22: 5.359781451 | FL22: 48.6569 | FN22: 40.93605 | FO22: 56.44238 | FP22: 3.987771 | FQ22: 8.195694752 | FR22: 60.2981 | FT22: 52.88139 | FU22: 67.26993 | FV22: 3.694734 | FW22: 6.127446802 | FX22: 53.92874 | FZ22: 47.99945 | GA22: 59.7489 | GB22: 3.011027 | GC22: 5.583343872 | GD22: 77.23373 | GF22: 67.72087 | GG22: 84.58139 | GH22: 4.310829 | GI22: 5.58153672 | GJ22: 16.20549 | GL22: 11.77453 | GM22: 21.89017 | GN22: 2.569903 | GO22: 15.85822459
B23: Darebin (C) | D23: 16.65411 | F23: 12.88531 | G23: 21.25627 | H23: 2.130165 | I23: 12.79062646 | J23: 47.55679 | L23: 42.08272 | M23: 53.09021 | N23: 2.81938 | O23: 5.928448913 | P23: 6.295947 | R23: 3.962564 | S23: 9.862259 | T23: 1.467674 | U23: 23.31140971 | V23: 11.46164 | X23: 8.455529 | Y23: 15.3572 | Z23: 1.74777 | AA23: 15.24886491 | AB23: 4.078648 | AC23: * | AD23: 2.186252 | AE23: 7.483755 | AF23: 1.283676 | AG23: 31.47307637 | AH23: 48.47331 | AJ23: 43.1887 | AK23: 53.79228 | AL23: 2.715144 | AM23: 5.601317509 | AN23: 5.057326 | AP23: 3.421146 | AQ23: 7.415933 | AR23: 0.999366 | AS23: 19.76075895 | AT23: 42.75292 | AV23: 37.45703 | AW23: 48.22029 | AX23: 2.75612 | AY23: 6.446623997 | AZ23: 13.35102 | BB23: 10.14525 | BC23: 17.37391 | BD23: 1.835094 | BE23: 13.74497229 | BF23: 19.82265 | BH23: 15.94936 | BI23: 24.36391 | BJ23: 2.145433 | BK23: 10.82313919 | BL23: 62.45754 | BN23: 56.70126 | BO23: 67.88205 | BP23: 2.863271 | BQ23: 4.584348023 | BR23: 47.14262 | BT23: 42.08686 | BU23: 52.25768 | BV23: 2.603525 | BW23: 5.522656569 | BX23: 24.19659 | BZ23: 19.98101 | CA23: 28.97947 | CB23: 2.29784 | CC23: 9.496544761 | CD23: 22.85659 | CF23: 18.5972 | CG23: 27.75886 | CH23: 2.338692 | CI23: 10.23202499 | CJ23: 19.76 | CL23: 15.57 | CM23: 24.75 | CN23: 2.34 | CO23: 11.84210526 | CP23: 26.30647 | CR23: 22.07749 | CS23: 31.023 | CT23: 2.285312 | CU23: 8.687262107 | CW23: 29.46702 | CY23: 24.6789 | CZ23: 34.75546 | DA23: 2.576775 | DB23: 8.744606682 | DC23: 20.23725 | DE23: 16.59802 | DF23: 24.44058 | DG23: 2.000038 | DH23: 9.882953465 | DI23: 18.62871 | DK23: 14.8406 | DL23: 23.12123 | DM23: 2.110076 | DN23: 11.32701083 | DO23: 5.931137 | DQ23: 4.185864 | DR23: 8.340744 | DS23: 1.044362 | DT23: 17.60812472 | DU23: 6.412799 | DW23: 4.21247 | DX23: 9.646695 | DY23: 1.357938 | DZ23: 21.17543369 | EA23: 5.205822 | EC23: 3.359733 | ED23: 7.982502 | EE23: 1.15111 | EF23: 22.11197386 | EG23: 8.005552 | EI23: 5.783326 | EJ23: 10.98213 | EK23: 1.311433 | EL23: 16.38154371 | EM23: 2.988626 | EN23: * | EO23: 1.512672 | EP23: 5.819609 | EQ23: 1.029584 | ER23: 34.4500784 | ES23: 27.59482 | EU23: 23.2011 | EV23: 32.46884 | EW23: 2.368426 | EX23: 8.582864465 | EZ23: 55.85059 | FB23: 50.9912 | FC23: 60.60045 | FD23: 2.458773 | FE23: 4.402411864 | FF23: 78.49502 | FH23: 73.54851 | FI23: 82.73368 | FJ23: 2.343551 | FK23: 2.985604692 | FL23: 46.9252 | FN23: 42.12023 | FO23: 51.78786 | FP23: 2.473886 | FQ23: 5.27197753 | FR23: 56.24388 | FT23: 45.76883 | FU23: 66.19026 | FV23: 5.282299 | FW23: 9.391775603 | FX23: 43.13543 | FZ23: 35.32846 | GA23: 51.29914 | GB23: 4.108489 | GC23: 9.524627435 | GD23: 81.01536 | GF23: 69.4697 | GG23: 88.89288 | GH23: 4.934028 | GI23: 6.090237703 | GJ23: 24.60515 | GL23: 20.17549 | GM23: 29.64617 | GN23: 2.41896 | GO23: 9.831112592
B24: East Gippsland (S) | D24: 20.91877 | F24: 16.46203 | G24: 26.2036 | H24: 2.484888 | I24: 11.87874813 | J24: 59.7717 | L24: 52.08256 | M24: 67.00857 | N24: 3.835022 | O24: 6.416116657 | P24: 9.805712 | Q24: * | R24: 5.75858 | S24: 16.20799 | T24: 2.599821 | U24: 26.51333223 | V24: 19.61678 | X24: 12.8187 | Y24: 28.82795 | Z24: 4.076151 | AA24: 20.77889949 | AB24: 1.154523 | AC24: * | AD24: 0.5150563 | AE24: 2.567427 | AF24: 0.4737118 | AG24: 41.03095391 | AH24: 48.85729 | AJ24: 40.4785 | AK24: 57.30079 | AL24: 4.332485 | AM24: 8.86763265 | AN24: 6.70138 | AP24: 4.713424 | AQ24: 9.444679 | AR24: 1.189773 | AS24: 17.75414915 | AT24: 44.82524 | AV24: 36.56801 | AW24: 53.37801 | AX24: 4.328825 | AY24: 9.657115054 | AZ24: 13.74437 | BB24: 8.759342 | BC24: 20.91606 | BD24: 3.064741 | BE24: 22.29815554 | BF24: 15.2949 | BH24: 10.1163 | BI24: 22.46198 | BJ24: 3.124562 | BK24: 20.42878345 | BL24: 67.24885 | BN24: 59.22712 | BO24: 74.37519 | BP24: 3.889096 | BQ24: 5.783141273 | BR24: 55.66541 | BT24: 47.80588 | BU24: 63.2512 | BV24: 3.971428 | BW24: 7.134462856 | BX24: 18.68087 | BZ24: 13.66238 | CA24: 25.0088 | CB24: 2.888884 | CC24: 15.46439754 | CD24: 17.94771 | CF24: 12.35872 | CG24: 25.33361 | CH24: 3.298351 | CI24: 18.37755903 | CJ24: 11.59 | CL24: 7.53 | CM24: 17.42 | CN24: 2.49 | CO24: 21.48403796 | CP24: 23.88803 | CR24: 20.33777 | CS24: 27.84144 | CT24: 1.915418 | CU24: 8.018317124 | CW24: 33.8366 | CY24: 26.44749 | CZ24: 42.10828 | DA24: 4.023437 | DB24: 11.89078394 | DC24: 30.4264 | DE24: 24.66052 | DF24: 36.88046 | DG24: 3.129095 | DH24: 10.28414469 | DI24: 17.12588 | DK24: 11.47701 | DL24: 24.77687 | DM24: 3.375713 | DN24: 19.71117981 | DO24: 7.434977 | DQ24: 5.520613 | DR24: 9.943313 | DS24: 1.117201 | DT24: 15.02628724 | DU24: 4.638208 | DW24: 3.320206 | DX24: 6.444535 | DY24: 0.785371 | DZ24: 16.93263864 | EA24: 5.573805 | EC24: 4.056067 | ED24: 7.614392 | EE24: 0.8963536 | EF24: 16.08153855 | EG24: 8.154709 | EI24: 5.72203 | EJ24: 11.49552 | EK24: 1.453644 | EL24: 17.82582309 | EM24: 1.68652 | EN24: * | EO24: 1.013381 | EP24: 2.794171 | EQ24: 0.4366743 | ER24: 25.89203211 | ES24: 29.63598 | EU24: 23.98011 | EV24: 35.99421 | EW24: 3.075532 | EX24: 10.3776963 | EZ24: 45.70149 | FB24: 40.04444 | FC24: 51.47163 | FD24: 2.92774 | FE24: 6.406224392 | FF24: 67.2845 | FH24: 59.80548 | FI24: 73.97742 | FJ24: 3.635523 | FK24: 5.403210249 | FL24: 44.22323 | FN24: 37.7736 | FO24: 50.87377 | FP24: 3.360869 | FQ24: 7.599781834 | FR24: 68.57563 | FT24: 61.58283 | FU24: 74.81611 | FV24: 3.391358 | FW24: 4.945427406 | FX24: 54.39491 | FZ24: 48.51454 | GA24: 60.15526 | GB24: 2.982887 | GC24: 5.483761256 | GD24: 79.42589 | GF24: 70.2011 | GG24: 86.35023 | GH24: 4.117317 | GI24: 5.183847483 | GJ24: 15.07656 | GL24: 11.01896 | GM24: 20.28767 | GN24: 2.352918 | GO24: 15.6064646
B25: Frankston (C) | D25: 24.92895 | F25: 20.29706 | G25: 30.21712 | H25: 2.534282 | I25: 10.16601983 | J25: 57.00247 | L25: 51.02455 | M25: 62.78294 | N25: 3.013185 | O25: 5.286060411 | P25: 14.39598 | R25: 10.29181 | S25: 19.77601 | T25: 2.404495 | U25: 16.70254474 | V25: 15.55572 | X25: 11.43368 | Y25: 20.81459 | Z25: 2.382688 | AA25: 15.31711808 | AB25: 1.255892 | AC25: * | AD25: 0.559239 | AE25: 2.795976 | AF25: 0.5163201 | AG25: 41.11182331 | AH25: 45.06136 | AJ25: 39.16818 | AK25: 51.09644 | AL25: 3.05728 | AM25: 6.784704234 | AN25: 7.652047 | AP25: 4.900197 | AQ25: 11.7582 | AR25: 1.712736 | AS25: 22.38271668 | AT25: 41.53513 | AV25: 35.69384 | AW25: 47.6244 | AX25: 3.057565 | AY25: 7.361395041 | AZ25: 18.36125 | BB25: 13.87093 | BC25: 23.90178 | BD25: 2.554278 | BE25: 13.91124243 | BF25: 21.59722 | BH25: 16.73718 | BI25: 27.40402 | BJ25: 2.721944 | BK25: 12.60321467 | BL25: 65.75618 | BN25: 60.20597 | BO25: 70.90637 | BP25: 2.738727 | BQ25: 4.164972783 | BR25: 48.46462 | BT25: 42.6366 | BU25: 54.3347 | BV25: 2.997869 | BW25: 6.185685558 | BX25: 25.28504 | BZ25: 20.38268 | CA25: 30.90875 | CB25: 2.689888 | CC25: 10.63825883 | CD25: 22.38907 | CF25: 17.70301 | CG25: 27.8951 | CH25: 2.601662 | CI25: 11.62023255 | CJ25: 20.95 | CL25: 16.25 | CM25: 26.56 | CN25: 2.63 | CO25: 12.55369928 | CP25: 26.80808 | CR25: 22.35593 | CS25: 31.78392 | CT25: 2.409196 | CU25: 8.986827852 | CW25: 34.93729 | CY25: 29.31486 | CZ25: 41.0124 | DA25: 2.996099 | DB25: 8.575647968 | DC25: 21.93298 | DE25: 18.41207 | DF25: 25.91334 | DG25: 1.913996 | DH25: 8.726566112 | DI25: 22.68066 | DK25: 18.0169 | DL25: 28.13731 | DM25: 2.583651 | DN25: 11.39142776 | DO25: 8.825249 | DQ25: 6.461366 | DR25: 11.94353 | DS25: 1.384993 | DT25: 15.69352887 | DU25: 7.081467 | DW25: 5.047384 | DX25: 9.850242 | DY25: 1.209442 | DZ25: 17.0789753 | EA25: 6.959429 | EC25: 4.782998 | ED25: 10.02197 | EE25: 1.315322 | EF25: 18.89985515 | EG25: 3.924235 | EI25: 2.696229 | EJ25: 5.678898 | EK25: 0.7463746 | EL25: 19.01962038 | EM25: 2.288813 | EN25: * | EO25: 1.317154 | EP25: 3.948578 | EQ25: 0.6417685 | ER25: 28.03935927 | ES25: 28.11929 | EU25: 23.52666 | EV25: 33.21902 | EW25: 2.47758 | EX25: 8.810962154 | EZ25: 57.22321 | FB25: 51.83041 | FC25: 62.44966 | FD25: 2.718969 | FE25: 4.751514289 | FF25: 79.28755 | FH25: 73.45206 | FI25: 84.1177 | FJ25: 2.720251 | FK25: 3.430867772 | FL25: 52.3317 | FN25: 46.5471 | FO25: 58.05441 | FP25: 2.948518 | FQ25: 5.634286675 | FR25: 56.45316 | FT25: 47.35275 | FU25: 65.13861 | FV25: 4.584845 | FW25: 8.121502853 | FX25: 48.85607 | FZ25: 41.6171 | GA25: 56.14335 | GB25: 3.731934 | GC25: 7.638629141 | GD25: 69.10015 | GF25: 58.5515 | GG25: 77.97408 | GH25: 5.003495 | GI25: 7.240932183 | GJ25: 20.88752 | GL25: 16.25444 | GM25: 26.4245 | GN25: 2.594141 | GO25: 12.41957398
B26: Gannawarra (S) | D26: 31.59719 | F26: 21.14702 | G26: 44.30964 | H26: 5.995846 | I26: 18.97588361 | J26: 64.24845 | L26: 53.88125 | M26: 73.4342 | N26: 5.046252 | O26: 7.854278197 | P26: 17.72608 | R26: 11.47572 | S26: 26.36679 | T26: 3.780049 | U26: 21.32478811 | V26: 11.34263 | X26: 7.89273 | Y26: 16.0379 | Z26: 2.056332 | AA26: 18.12923458 | AB26: 4.236348 | AC26: * | AD26: 1.961776 | AE26: 8.90852 | AF26: 1.642026 | AG26: 38.76041345 | AH26: 34.05159 | AJ26: 28.19542 | AK26: 40.43906 | AL26: 3.136891 | AM26: 9.212171884 | AN26: 2.948822 | AP26: 1.876009 | AQ26: 4.606334 | AR26: 0.6764001 | AS26: 22.93797659 | AT26: 33.47966 | AV26: 25.75674 | AW26: 42.20195 | AX26: 4.227748 | AY26: 12.62781044 | AZ26: 15.3253 | BB26: 10.08823 | BC26: 22.59778 | BD26: 3.165639 | BE26: 20.65629384 | BF26: 21.78224 | BH26: 14.63582 | BI26: 31.145 | BJ26: 4.216316 | BK26: 19.35666855 | BL26: 62.87504 | BN26: 52.96965 | BO26: 71.80468 | BP26: 4.858144 | BQ26: 7.726665462 | BR26: 47.72201 | BT26: 37.75896 | BU26: 57.86969 | BV26: 5.200941 | BW26: 10.89841145 | BX26: 21.65035 | BZ26: 16.44538 | CA26: 27.95159 | CB26: 2.936409 | CC26: 13.56287081 | CD26: 29.03738 | CF26: 20.37314 | CG26: 39.5559 | CH26: 4.936501 | CI26: 17.00050418 | CJ26: 21.02 | CL26: 13.16 | CM26: 31.87 | CN26: 4.77 | CO26: 22.69267364 | CP26: 37.91748 | CR26: 27.19421 | CS26: 49.96717 | CT26: 5.905815 | CU26: 15.57544172 | CW26: 32.25313 | CY26: 24.16787 | CZ26: 41.56083 | DA26: 4.474086 | DB26: 13.87178857 | DC26: 30.38161 | DE26: 25.48179 | DF26: 35.77132 | DG26: 2.631852 | DH26: 8.662648227 | DI26: 28.95207 | DK26: 20.70006 | DL26: 38.88081 | DM26: 4.674181 | DN26: 16.14454856 | DO26: 11.63132 | DQ26: 8.722963 | DR26: 15.34632 | DS26: 1.678732 | DT26: 14.43285887 | DU26: 7.154628 | DW26: 4.893869 | DX26: 10.34615 | DY26: 1.368632 | DZ26: 19.1293244 | EA26: 6.627399 | EC26: 4.830336 | ED26: 9.029603 | EE26: 1.05879 | EF26: 15.97595075 | EG26: 8.096555 | EI26: 6.190214 | EJ26: 10.52411 | EK26: 1.097149 | EL26: 13.55081266 | EM26: 1.422296 | EN26: * | EO26: 0.8318271 | EP26: 2.42167 | EQ26: 0.3879757 | ER26: 27.27812635 | ES26: 33.17893 | EU26: 27.93746 | EV26: 38.8733 | EW26: 2.799117 | EX26: 8.436429385 | EZ26: 55.7066 | FB26: 43.82196 | FC26: 66.97195 | FD26: 6.013056 | FE26: 10.79415366 | FF26: 78.21044 | FH26: 67.31411 | FI26: 86.21803 | FJ26: 4.830246 | FK26: 6.175960652 | FL26: 53.35409 | FN26: 42.39993 | FO26: 63.99409 | FP26: 5.596317 | FQ26: 10.48901218 | FR26: 72.69148 | FT26: 64.66371 | FU26: 79.47439 | FV26: 3.795109 | FW26: 5.220844314 | FX26: 56.42361 | FZ26: 49.65787 | GA26: 62.95834 | GB26: 3.412733 | GC26: 6.048413067 | GD26: 79.67625 | GF26: 70.43012 | GG26: 86.58203 | GH26: 4.116535 | GI26: 5.166577242 | GJ26: 15.19503 | GL26: 10.98079 | GM26: 20.65141 | GN26: 2.454365 | GO26: 16.15241957
B27: Glen Eira (C) | D27: 14.35141 | F27: 10.91459 | G27: 18.64394 | H27: 1.963455 | I27: 13.68126895 | J27: 45.91478 | L27: 40.35797 | M27: 51.57508 | N27: 2.873466 | O27: 6.258259323 | P27: 4.131231 | Q27: * | R27: 2.486734 | S27: 6.78755 | T27: 1.060065 | U27: 25.65978518 | V27: 18.207 | X27: 11.30783 | Y27: 27.98724 | Z27: 4.234214 | AA27: 23.25596749 | AB27: 1.531563 | AC27: * | AD27: 0.6940361 | AE27: 3.345724 | AF27: 0.6155349 | AG27: 40.18998239 | AH27: 42.81091 | AJ27: 37.45959 | AK27: 48.33585 | AL27: 2.785281 | AM27: 6.506007464 | AN27: 4.838907 | AP27: 3.09227 | AQ27: 7.495804 | AR27: 1.094718 | AS27: 22.62324942 | AT27: 51.49288 | AV27: 45.81568 | AW27: 57.13182 | AX27: 2.899126 | AY27: 5.630149256 | AZ27: 8.005789 | BB27: 5.083374 | BC27: 12.389 | BD27: 1.824135 | BE27: 22.78519956 | BF27: 11.64028 | BH27: 8.212605 | BI27: 16.24536 | BJ27: 2.030056 | BK27: 17.43992413 | BL27: 62.47261 | BN27: 57.32326 | BO27: 67.35448 | BP27: 2.566927 | BQ27: 4.108883877 | BR27: 42.79708 | BT27: 37.45877 | BU27: 48.30851 | BV27: 2.77844 | BW27: 6.492125164 | BX27: 19.88166 | BZ27: 15.6846 | CA27: 24.87053 | CB27: 2.341971 | CC27: 11.77955462 | CD27: 18.01798 | CF27: 14.20898 | CG27: 22.57932 | CH27: 2.132111 | CI27: 11.83324102 | CJ27: 9.37 | CL27: 6.57 | CM27: 13.2 | CN27: 1.67 | CO27: 17.82283885 | CP27: 24.9843 | CR27: 21.09395 | CS27: 29.32549 | CT27: 2.10197 | CU27: 8.413163467 | CW27: 21.13229 | CY27: 16.94047 | CZ27: 26.03621 | DA27: 2.320373 | DB27: 10.98022505 | DC27: 17.1722 | DE27: 13.93027 | DF27: 20.98467 | DG27: 1.796916 | DH27: 10.46409895 | DI27: 20.68897 | DK27: 16.26534 | DL27: 25.94294 | DM27: 2.468285 | DN27: 11.93043926 | DO27: 6.616433 | DQ27: 4.604616 | DR27: 9.420438 | DS27: 1.209899 | DT27: 18.28627298 | DU27: 3.905139 | DW27: 2.399949 | DX27: 6.293477 | DY27: 0.9618611 | DZ27: 24.63064951 | EA27: 7.213111 | EC27: 5.158672 | ED27: 9.999467 | EE27: 1.219442 | EF27: 16.90590925 | EG27: 5.792933 | EI27: 3.974472 | EJ27: 8.370875 | EK27: 1.102215 | EL27: 19.02689018 | EM27: 1.994945 | EN27: * | EO27: 1.021919 | EP27: 3.858327 | EQ27: 0.6771206 | ER27: 33.94181794 | ES27: 20.64594 | EU27: 16.70495 | EV27: 25.23501 | EW27: 2.175637 | EX27: 10.53784424 | EZ27: 52.6777 | FB27: 47.44597 | FC27: 57.85127 | FD27: 2.663981 | FE27: 5.057132335 | FF27: 76.0164 | FH27: 70.15627 | FI27: 81.03687 | FJ27: 2.779585 | FK27: 3.656559637 | FL27: 46.41939 | FN27: 41.16491 | FO27: 51.75458 | FP27: 2.711513 | FQ27: 5.841336993 | FR27: 58.27548 | FT27: 48.68117 | FU27: 67.28163 | FV27: 4.798948 | FW27: 8.234935173 | FX27: 47.83227 | FZ27: 39.95526 | GA27: 55.81858 | GB27: 4.08103 | GC27: 8.5319597 | GD27: 85.06245 | GF27: 74.35671 | GG27: 91.79205 | GH27: 4.37482 | GI27: 5.143068416 | GJ27: 12.84023 | GL27: 9.513333 | GM27: 17.11058 | GN27: 1.926214 | GO27: 15.00139795
B28: Glenelg (S) | D28: 26.33357 | F28: 20.11795 | G28: 33.66036 | H28: 3.466382 | I28: 13.16335765 | J28: 52.7444 | L28: 44.27619 | M28: 61.05759 | N28: 4.321649 | O28: 8.193569365 | P28: 7.994533 | R28: 4.940173 | S28: 12.68531 | T28: 1.928944 | U28: 24.12828867 | V28: 16.09448 | X28: 9.722851 | Y28: 25.46385 | Z28: 3.976701 | AA28: 24.70847769 | AB28: 1.442931 | AC28: * | AD28: 0.851535 | AE28: 2.434967 | AF28: 0.3869911 | AG28: 26.81979249 | AH28: 39.01686 | AJ28: 30.37819 | AK28: 48.40418 | AL28: 4.64636 | AM28: 11.90859541 | AN28: 4.263224 | AP28: 3.018217 | AQ28: 5.990074 | AR28: 0.7460637 | AS28: 17.49998827 | AT28: 38.32248 | AV28: 30.18086 | AW28: 47.17637 | AX28: 4.375269 | AY28: 11.41697771 | AZ28: 16.82881 | BB28: 10.6619 | BC28: 25.54287 | BD28: 3.770073 | BE28: 22.40249311 | BF28: 24.41593 | BH28: 16.66395 | BI28: 34.29024 | BJ28: 4.515856 | BK28: 18.4955314 | BL28: 62.4332 | BN28: 54.12202 | BO28: 70.07134 | BP28: 4.10106 | BQ28: 6.568716644 | BR28: 49.5008 | BT28: 40.89581 | BU28: 58.13546 | BV28: 4.442149 | BW28: 8.973893351 | BX28: 19.37012 | BZ28: 13.48674 | CA28: 27.0185 | CB28: 3.445907 | CC28: 17.78980719 | CD28: 20.1841 | CF28: 13.43439 | CG28: 29.18181 | CH28: 4.013136 | CI28: 19.88266011 | CJ28: 15.47 | CL28: 9.35 | CM28: 24.52 | CN28: 3.83 | CO28: 24.75759535 | CP28: 30.10091 | CR28: 22.9632 | CS28: 38.35272 | CT28: 3.949201 | CU28: 13.11987246 | CW28: 27.77548 | CY28: 20.12207 | CZ28: 36.99178 | DA28: 4.329929 | DB28: 15.58903392 | DC28: 25.10514 | DE28: 20.21572 | DF28: 30.72178 | DG28: 2.684616 | DH28: 10.69349145 | DI28: 16.64551 | DK28: 11.04192 | DL28: 24.31554 | DM28: 3.366023 | DN28: 20.22180756 | DO28: 12.07848 | DQ28: 8.623517 | DR28: 16.66521 | DS28: 2.034353 | DT28: 16.84278982 | DU28: 5.529008 | DW28: 3.999045 | DX28: 7.597982 | DY28: 0.9061166 | DZ28: 16.38841181 | EA28: 7.956563 | EB28: * | EC28: 4.477285 | ED28: 13.75037 | EE28: 2.286996 | EF28: 28.74351652 | EG28: 5.362461 | EI28: 3.977162 | EJ28: 7.194127 | EK28: 0.8114165 | EL28: 15.13142007 | EM28: 2.283701 | EN28: * | EO28: 1.279879 | EP28: 4.042591 | EQ28: 0.6708785 | ER28: 29.37680984 | ES28: 26.51151 | EU28: 21.98793 | EV28: 31.5889 | EW28: 2.453416 | EX28: 9.254154139 | EZ28: 51.23652 | FB28: 43.28866 | FC28: 59.12234 | FD28: 4.073384 | FE28: 7.950157427 | FF28: 82.63634 | FH28: 72.43906 | FI28: 89.60228 | FJ28: 4.346434 | FK28: 5.259712616 | FL28: 47.77921 | FN28: 40.2287 | FO28: 55.4326 | FP28: 3.908723 | FQ28: 8.180802906 | FR28: 58.32081 | FT28: 50.65755 | FU28: 65.60207 | FV28: 3.840043 | FW28: 6.584344422 | FX28: 39.74744 | FZ28: 34.1542 | GA28: 45.622 | GB28: 2.93767 | GC28: 7.390840769 | GD28: 76.81408 | GF28: 67.79691 | GG28: 83.90575 | GH28: 4.11936 | GI28: 5.362766826 | GJ28: 14.87262 | GL28: 10.49469 | GM28: 20.65537 | GN28: 2.576024 | GO28: 17.3205797
B29: Golden Plains (S) | D29: 24.43056 | F29: 18.95079 | G29: 30.89092 | H29: 3.051774 | I29: 12.49162524 | J29: 54.97381 | L29: 48.19389 | M29: 61.57389 | N29: 3.433584 | O29: 6.245854162 | P29: 13.13768 | Q29: * | R29: 7.692571 | S29: 21.53774 | T29: 3.470195 | U29: 26.41406245 | V29: 14.31182 | X29: 10.56373 | Y29: 19.10567 | Z29: 2.167795 | AA29: 15.14688558 | AB29: 1.811958 | AC29: * | AD29: 0.727311 | AE29: 4.441775 | AF29: 0.8385298 | AG29: 46.27755169 | AH29: 33.70274 | AJ29: 26.45615 | AK29: 41.80593 | AL29: 3.942322 | AM29: 11.69733381 | AN29: 5.232655 | AP29: 3.549277 | AQ29: 7.651103 | AR29: 1.026621 | AS29: 19.61950482 | AT29: 35.06186 | AV29: 28.20291 | AW29: 42.59918 | AX29: 3.695144 | AY29: 10.53892748 | AZ29: 18.23696 | BB29: 11.43005 | BC29: 27.82409 | BD29: 4.162639 | BE29: 22.82528996 | BF29: 21.0689 | BH29: 13.95241 | BI29: 30.52744 | BJ29: 4.22928 | BK29: 20.07356815 | BL29: 64.30083 | BN29: 56.10435 | BO29: 71.73778 | BP29: 4.01758 | BQ29: 6.248099752 | BR29: 49.46252 | BT29: 41.43319 | BU29: 57.51968 | BV29: 4.139578 | BW29: 8.3691207 | BX29: 20.20482 | BZ29: 15.77087 | CA29: 25.50785 | CB29: 2.482772 | CC29: 12.2880184 | CD29: 19.65069 | CF29: 12.4194 | CG29: 29.66624 | CH29: 4.390516 | CI29: 22.34280832 | CJ29: 10.57 | CL29: 6.5 | CM29: 16.73 | CN29: 2.56 | CO29: 24.21948912 | CP29: 29.70545 | CR29: 21.73313 | CS29: 39.13976 | CT29: 4.473663 | CU29: 15.06007483 | CW29: 26.26145 | CY29: 20.37716 | CZ29: 33.13777 | DA29: 3.264919 | DB29: 12.43236379 | DC29: 22.48032 | DE29: 18.65409 | DF29: 26.8325 | DG29: 2.087198 | DH29: 9.284556448 | DI29: 27.14989 | DK29: 19.79008 | DL29: 36.01769 | DM29: 4.161884 | DN29: 15.32928494 | DO29: 8.483145 | DQ29: 6.309602 | DR29: 11.31501 | DS29: 1.265434 | DT29: 14.91703843 | DU29: 4.492597 | DW29: 3.09857 | DX29: 6.471899 | DY29: 0.8449599 | DZ29: 18.80782763 | EA29: 7.604714 | EC29: 5.450504 | ED29: 10.51564 | EE29: 1.276587 | EF29: 16.78678514 | EG29: 3.628049 | EI29: 2.481069 | EJ29: 5.276579 | EK29: 0.6989809 | EL29: 19.266027 | EM29: 2.711054 | EN29: * | EO29: 1.402412 | EP29: 5.176723 | EQ29: 0.9049687 | ER29: 33.38069622 | ES29: 26.30755 | EU29: 21.75753 | EV29: 31.4269 | EW29: 2.470851 | EX29: 9.39217449 | EZ29: 51.94463 | FB29: 46.66971 | FC29: 57.17655 | FD29: 2.690183 | FE29: 5.178943425 | FF29: 72.92082 | FH29: 65.62167 | FI29: 79.16233 | FJ29: 3.466932 | FK29: 4.754378791 | FL29: 47.52022 | FN29: 42.29986 | FO29: 52.79534 | FP29: 2.687242 | FQ29: 5.654944358 | FR29: 57.46506 | FT29: 48.62779 | FU29: 65.84972 | FV29: 4.436249 | FW29: 7.71990667 | FX29: 43.6101 | FZ29: 36.70517 | GA29: 50.77203 | GB29: 3.611904 | GC29: 8.282264888 | GD29: 79.48964 | GF29: 70.94397 | GG29: 86.01732 | GH29: 3.842818 | GI29: 4.834363321 | GJ29: 16.68505 | GL29: 12.64629 | GM29: 21.69333 | GN29: 2.301354 | GO29: 13.79291042
B30: Greater Bendigo (C) | D30: 22.44246 | F30: 18.09677 | G30: 27.48156 | H30: 2.395386 | I30: 10.67345558 | J30: 60.34932 | L30: 54.4381 | M30: 65.97298 | N30: 2.955034 | O30: 4.896548959 | P30: 10.18756 | R30: 7.101043 | S30: 14.40759 | T30: 1.842579 | U30: 18.08655851 | V30: 15.33134 | X30: 11.74644 | Y30: 19.76529 | Z30: 2.038603 | AA30: 13.29696556 | AB30: 2.642 | AC30: * | AD30: 1.055066 | AE30: 6.460016 | AF30: 1.225843 | AG30: 46.39829674 | AH30: 39.1305 | AJ30: 33.40243 | AK30: 45.17454 | AL30: 3.016264 | AM30: 7.708217375 | AN30: 8.240013 | AP30: 5.611644 | AQ30: 11.94367 | AR30: 1.590873 | AS30: 19.30668071 | AT30: 43.30526 | AV30: 37.56765 | AW30: 49.22819 | AX30: 2.98791 | AY30: 6.899646833 | AZ30: 12.36415 | BB30: 8.642203 | BC30: 17.38401 | BD30: 2.209817 | BE30: 17.87277734 | BF30: 14.13476 | BH30: 10.14817 | BI30: 19.35018 | BJ30: 2.332754 | BK30: 16.50366897 | BL30: 62.6243 | BN30: 56.76744 | BO30: 68.13313 | BP30: 2.910968 | BQ30: 4.648304253 | BR30: 48.15144 | BT30: 42.29791 | BU30: 54.05616 | BV30: 3.013419 | BW30: 6.258211592 | BX30: 23.77877 | BZ30: 19.05075 | CA30: 29.25612 | CB30: 2.606451 | CC30: 10.96125241 | CD30: 25.19351 | CF30: 20.25806 | CG30: 30.86596 | CH30: 2.710801 | CI30: 10.75991793 | CJ30: 17.71 | CL30: 13.36 | CM30: 23.09 | CN30: 2.48 | CO30: 14.00338792 | CP30: 25.44533 | CR30: 21.03096 | CS30: 30.42923 | CT30: 2.400906 | CU30: 9.435546719 | CW30: 35.91471 | CY30: 30.36759 | CZ30: 41.86588 | DA30: 2.944901 | DB30: 8.199707028 | DC30: 28.70661 | DE30: 22.24882 | DF30: 36.1669 | DG30: 3.566317 | DH30: 12.42333038 | DI30: 28.48414 | DK30: 21.81025 | DL30: 36.25335 | DM30: 3.701857 | DN30: 12.9962042 | DO30: 12.0306 | DQ30: 9.104907 | DR30: 15.73367 | DS30: 1.681177 | DT30: 13.97417419 | DU30: 5.199913 | DW30: 3.598772 | DX30: 7.458308 | DY30: 0.9677733 | DZ30: 18.61133638 | EA30: 7.811157 | EC30: 5.623035 | ED30: 10.75373 | EE30: 1.293733 | EF30: 16.56262958 | EG30: 7.679303 | EI30: 5.331249 | EJ30: 10.94199 | EK30: 1.410871 | EL30: 18.37238354 | EM30: 2.522422 | EN30: * | EO30: 1.330546 | EP30: 4.730767 | EQ30: 0.8176396 | ER30: 32.41486159 | ES30: 32.78785 | EU30: 28.0546 | EV30: 37.89901 | EW30: 2.518058 | EX30: 7.67985092 | EZ30: 48.11097 | FB30: 43.1425 | FC30: 53.11707 | FD30: 2.552964 | FE30: 5.30640725 | FF30: 80.22686 | FH30: 74.69394 | FI30: 84.79631 | FJ30: 2.575156 | FK30: 3.209842689 | FL30: 43.66894 | FN30: 38.29251 | FO30: 49.19839 | FP30: 2.792987 | FQ30: 6.395820462 | FR30: 64.52213 | FT30: 55.88024 | FU30: 72.31008 | FV30: 4.225199 | FW30: 6.548449346 | FX30: 54.2964 | FZ30: 47.10601 | GA30: 61.3121 | GB30: 3.64837 | GC30: 6.719358926 | GD30: 83.94849 | GF30: 74.27988 | GG30: 90.44982 | GH30: 4.082136 | GI30: 4.862667572 | GJ30: 19.5895 | GL30: 15.04011 | GM30: 25.10832 | GN30: 2.566146 | GO30: 13.09959928
B31: Greater Dandenong (C) | D31: 14.89859 | F31: 11.21878 | G31: 19.52002 | H31: 2.108861 | I31: 14.15476901 | J31: 46.81035 | L31: 41.17162 | M31: 52.53175 | N31: 2.910453 | O31: 6.217541633 | P31: 11.27256 | R31: 7.894403 | S31: 15.84758 | T31: 2.008421 | U31: 17.81690228 | V31: 15.58052 | X31: 11.05301 | Y31: 21.514 | Z31: 2.654446 | AA31: 17.03695384 | AB31: 7.061939 | AD31: 4.394188 | AE31: 11.16025 | AF31: 1.68343 | AG31: 23.83807054 | AH31: 50.94757 | AJ31: 45.12566 | AK31: 56.74388 | AL31: 2.977221 | AM31: 5.843695784 | AN31: 1.486381 | AO31: * | AP31: 0.7133022 | AQ31: 3.071405 | AR31: 0.5543359 | AS31: 37.29433436 | AT31: 37.92237 | AV31: 32.45124 | AW31: 43.7189 | AX31: 2.885758 | AY31: 7.609645705 | AZ31: 18.53712 | BB31: 14.30089 | BC31: 23.68146 | BD31: 2.389507 | BE31: 12.89038966 | BF31: 21.0698 | BH31: 16.62888 | BI31: 26.32226 | BJ31: 2.47278 | BK31: 11.73613418 | BL31: 41.30845 | BN31: 35.71114 | BO31: 47.13979 | BP31: 2.927792 | BQ31: 7.087634612 | BR31: 25.00112 | BT31: 20.28848 | BU31: 30.39106 | BV31: 2.581105 | BW31: 10.32395749 | BX31: 25.28401 | BZ31: 20.6691 | CA31: 30.53274 | CB31: 2.520061 | CC31: 9.967014726 | CD31: 26.57729 | CF31: 21.6207 | CG31: 32.20331 | CH31: 2.705318 | CI31: 10.17905889 | CJ31: 22.11 | CL31: 17.48 | CM31: 27.57 | CN31: 2.58 | CO31: 11.66892809 | CP31: 24.37558 | CR31: 19.85036 | CS31: 29.55205 | CT31: 2.477961 | CU31: 10.16575195 | CW31: 18.90591 | CY31: 14.701 | CZ31: 23.97549 | DA31: 2.363148 | DB31: 12.49951999 | DC31: 18.17803 | DE31: 14.58963 | DF31: 22.41736 | DG31: 1.99443 | DH31: 10.97165094 | DI31: 15.15223 | DK31: 11.48868 | DL31: 19.72371 | DM31: 2.092775 | DN31: 13.81166337 | DO31: 6.732395 | DQ31: 4.715806 | DR31: 9.525121 | DS31: 1.209041 | DT31: 17.9585571 | DU31: 6.089762 | DW31: 4.142811 | DX31: 8.867063 | DY31: 1.183895 | DZ31: 19.44074333 | EA31: 6.624339 | EC31: 4.764127 | ED31: 9.141177 | EE31: 1.102525 | EF31: 16.64354738 | EG31: 6.577807 | EI31: 4.434324 | EJ31: 9.652761 | EK31: 1.30742 | EL31: 19.87622927 | EM31: 2.189421 | EN31: * | EO31: 1.083425 | EP31: 4.374523 | EQ31: 0.7809224 | ER31: 35.66798711 | ES31: 20.06416 | EU31: 16.38521 | EV31: 24.32879 | EW31: 2.025653 | EX31: 10.09587743 | EZ31: 64.31379 | FB31: 58.88721 | FC31: 69.39635 | FD31: 2.689748 | FE31: 4.182225927 | FF31: 78.59214 | FH31: 73.62622 | FI31: 82.84093 | FJ31: 2.351 | FK31: 2.991393287 | FL31: 55.75492 | FN31: 50.03633 | FO31: 61.32489 | FP31: 2.891839 | FQ31: 5.186697425 | FR31: 61.57409 | FT31: 51.04838 | FU31: 71.11709 | FV31: 5.185273 | FW31: 8.42119307 | FX31: 39.8831 | FZ31: 32.43178 | GA31: 47.83441 | GB31: 3.959173 | GC31: 9.926943994 | GD31: 91.30551 | GF31: 83.0318 | GG31: 95.75138 | GH31: 3.092595 | GI31: 3.387084744 | GJ31: 9.076246 | GL31: 6.459721 | GM31: 12.60973 | GN31: 1.55129 | GO31: 17.09175798
B32: Greater Geelong (C) | D32: 21.69022 | F32: 16.85698 | G32: 27.45168 | H32: 2.703655 | I32: 12.46485743 | J32: 49.88419 | L32: 43.59301 | M32: 56.17903 | N32: 3.227777 | O32: 6.470541067 | P32: 8.744393 | R32: 5.744526 | S32: 13.09321 | T32: 1.842271 | U32: 21.06802611 | V32: 11.97547 | X32: 8.203803 | Y32: 17.15705 | Z32: 2.259992 | AA32: 18.87184386 | AB32: 1.279074 | AC32: ** | AD32: 0.4293173 | AE32: 3.747472 | AF32: 0.7088252 | AG32: 55.41705953 | AH32: 41.29031 | AJ32: 35.2138 | AK32: 47.64427 | AL32: 3.186918 | AM32: 7.718319383 | AN32: 6.889306 | AP32: 4.363213 | AQ32: 10.71405 | AR32: 1.582467 | AS32: 22.96990437 | AT32: 47.12519 | AV32: 40.66319 | AW32: 53.685 | AX32: 3.340738 | AY32: 7.089070622 | AZ32: 13.71126 | BB32: 9.412645 | BC32: 19.54933 | BD32: 2.564074 | BE32: 18.70049871 | BF32: 18.06174 | BH32: 13.22878 | BI32: 24.16858 | BJ32: 2.783995 | BK32: 15.41376966 | BL32: 65.94166 | BN32: 59.95493 | BO32: 71.45944 | BP32: 2.946018 | BQ32: 4.467612735 | BR32: 50.0319 | BT32: 43.83743 | BU32: 56.2254 | BV32: 3.176456 | BW32: 6.348861426 | BX32: 18.55382 | BZ32: 14.35611 | CA32: 23.64014 | CB32: 2.365008 | CC32: 12.74674434 | CD32: 21.19869 | CF32: 15.97415 | CG32: 27.57128 | CH32: 2.958769 | CI32: 13.95732 | CJ32: 18.02 | CL32: 13.45 | CM32: 23.72 | CN32: 2.61 | CO32: 14.48390677 | CP32: 26.21915 | CR32: 21.53236 | CS32: 31.51633 | CT32: 2.551483 | CU32: 9.731371917 | CW32: 30.80387 | CY32: 25.33631 | CZ32: 36.86869 | DA32: 2.951983 | DB32: 9.583156272 | DC32: 17.31722 | DE32: 14.41647 | DF32: 20.66073 | DG32: 1.591148 | DH32: 9.188241531 | DI32: 20.66847 | DK32: 16.0041 | DL32: 26.26714 | DM32: 2.617526 | DN32: 12.66434332 | DO32: 6.283685 | DQ32: 4.465108 | DR32: 8.774911 | DS32: 1.084255 | DT32: 17.25508201 | DU32: 4.956098 | DW32: 3.244124 | DX32: 7.501465 | DY32: 1.06134 | DZ32: 21.41483078 | EA32: 7.157738 | EC32: 5.380638 | ED32: 9.463073 | EE32: 1.031875 | EF32: 14.41621641 | EG32: 4.52334 | EI32: 3.051503 | EJ32: 6.656347 | EK32: 0.9010002 | EL32: 19.9189139 | EM32: 2.623033 | EN32: * | EO32: 1.402059 | EP32: 4.854929 | EQ32: 0.832521 | ER32: 31.73886871 | ES32: 24.09768 | EU32: 20.04334 | EV32: 28.67797 | EW32: 2.204696 | EX32: 9.148996916 | EZ32: 53.3173 | FB32: 46.94855 | FC32: 59.57973 | FD32: 3.239407 | FE32: 6.075714637 | FF32: 79.40203 | FH32: 72.7322 | FI32: 84.78174 | FJ32: 3.072833 | FK32: 3.869967808 | FL32: 45.82679 | FN32: 40.04834 | FO32: 51.71972 | FP32: 2.990874 | FQ32: 6.526475016 | FR32: 61.69445 | FT32: 52.88966 | FU32: 69.79349 | FV32: 4.351036 | FW32: 7.052556591 | FX32: 47.83626 | FZ32: 39.56127 | GA32: 56.23172 | GB32: 4.292508 | GC32: 8.97333529 | GD32: 80.60178 | GF32: 71.04963 | GG32: 87.55429 | GH32: 4.199857 | GI32: 5.210625621 | GJ32: 19.53379 | GL32: 15.18337 | GM32: 24.76673 | GN32: 2.442674 | GO32: 12.50486465
B33: Greater Shepparton (C) | D33: 30.85428 | F33: 25.68039 | G33: 36.5578 | H33: 2.78329 | I33: 9.020758222 | J33: 64.98367 | L33: 58.76561 | M33: 70.73107 | N33: 3.065322 | O33: 4.717065072 | P33: 12.45357 | R33: 8.302567 | S33: 18.2665 | T33: 2.512947 | U33: 20.17852712 | V33: 4.572332 | W33: * | X33: 1.798583 | Y33: 11.13852 | Z33: 2.140805 | AA33: 46.8208564 | AB33: 2.670081 | AC33: * | AD33: 1.400452 | AE33: 5.031997 | AF33: 0.8727985 | AG33: 32.68809074 | AH33: 46.08454 | AJ33: 39.93259 | AK33: 52.35813 | AL33: 3.186089 | AM33: 6.913574487 | AN33: 4.240123 | AP33: 2.852049 | AQ33: 6.260229 | AR33: 0.8513003 | AS33: 20.07725483 | AT33: 33.37075 | AV33: 28.02074 | AW33: 39.18614 | AX33: 2.858346 | AY33: 8.565423312 | AZ33: 13.18351 | BB33: 9.201658 | BC33: 18.53667 | BD33: 2.361622 | BE33: 17.913454 | BF33: 16.72877 | BH33: 12.18546 | BI33: 22.53141 | BJ33: 2.62972 | BK33: 15.71974509 | BL33: 59.5588 | BN33: 53.60071 | BO33: 65.24786 | BP33: 2.984152 | BQ33: 5.010430029 | BR33: 42.36705 | BT33: 36.46781 | BU33: 48.4922 | BV33: 3.081934 | BW33: 7.274365338 | BX33: 19.78803 | BZ33: 15.38318 | CA33: 25.08032 | CB33: 2.472018 | CC33: 12.49249167 | CD33: 22.5153 | CF33: 17.40462 | CG33: 28.60692 | CH33: 2.860127 | CI33: 12.70303749 | CJ33: 17.37 | CL33: 13 | CM33: 22.81 | CN33: 2.5 | CO33: 14.39263097 | CP33: 31.16744 | CR33: 26.58112 | CS33: 36.1554 | CT33: 2.448234 | CU33: 7.855101349 | CW33: 34.43362 | CY33: 28.84544 | CZ33: 40.48837 | DA33: 2.981853 | DB33: 8.659713966 | DC33: 28.65477 | DE33: 24.45585 | DF33: 33.25723 | DG33: 2.249165 | DH33: 7.849181829 | DI33: 25.04514 | DK33: 19.78481 | DL33: 31.16077 | DM33: 2.907705 | DN33: 11.60985724 | DO33: 11.18414 | DQ33: 8.67805 | DR33: 14.30063 | DS33: 1.426752 | DT33: 12.75692186 | DU33: 5.703431 | DW33: 3.854026 | DX33: 8.363104 | DY33: 1.128765 | DZ33: 19.79098195 | EA33: 10.8212 | EC33: 7.796721 | ED33: 14.83022 | EE33: 1.77815 | EF33: 16.43209626 | EG33: 6.628464 | EI33: 5.000682 | EJ33: 8.737376 | EK33: 0.9443954 | EL33: 14.24757531 | EM33: 2.41818 | EN33: * | EO33: 1.286303 | EP33: 4.500636 | EQ33: 0.7738432 | ER33: 32.00105865 | ES33: 34.28892 | EU33: 29.00825 | EV33: 39.98939 | EW33: 2.811094 | EX33: 8.19825763 | EZ33: 61.99822 | FB33: 56.07846 | FC33: 67.58136 | FD33: 2.946514 | FE33: 4.75257838 | FF33: 82.98517 | FH33: 77.08326 | FI33: 87.6114 | FJ33: 2.676646 | FK33: 3.225451005 | FL33: 55.12119 | FN33: 49.16486 | FO33: 60.93416 | FP33: 3.016148 | FQ33: 5.471848485 | FR33: 71.62234 | FT33: 63.62189 | FU33: 78.45903 | FV33: 3.803549 | FW33: 5.310562319 | FX33: 51.68103 | FZ33: 44.85836 | GA33: 58.44159 | GB33: 3.486518 | GC33: 6.746223905 | GD33: 76.36833 | GF33: 66.25958 | GG33: 84.17193 | GH33: 4.585799 | GI33: 6.004843893 | GJ33: 17.22573 | GL33: 13.20439 | GM33: 22.15908 | GN33: 2.279085 | GO33: 13.23070198
B34: Hepburn (S) | D34: 18.60803 | F34: 13.59237 | G34: 24.94029 | H34: 2.889051 | I34: 15.52582944 | J34: 45.95627 | L34: 38.8816 | M34: 53.19776 | N34: 3.677111 | O34: 8.001326043 | P34: 9.083774 | Q34: * | R34: 5.187003 | S34: 15.43155 | T34: 2.537804 | U34: 27.93777124 | V34: 9.601443 | W34: * | X34: 4.278337 | Y34: 20.15315 | Z34: 3.832959 | AA34: 39.92065568 | AB34: 1.412308 | AC34: * | AD34: 0.6369547 | AE34: 3.102019 | AF34: 0.5712247 | AG34: 40.44618454 | AH34: 31.64394 | AJ34: 23.65421 | AK34: 40.88708 | AL34: 4.431405 | AM34: 14.00396095 | AN34: 7.073269 | AP34: 4.815182 | AQ34: 10.27597 | AR34: 1.370096 | AS34: 19.37005365 | AT34: 41.05994 | AV34: 32.25353 | AW34: 50.47921 | AX34: 4.700013 | AY34: 11.44671181 | AZ34: 15.31562 | BB34: 9.482245 | BC34: 23.79428 | BD34: 3.613432 | BE34: 23.59311605 | BF34: 16.71107 | BH34: 10.70145 | BI34: 25.14521 | BJ34: 3.659653 | BK34: 21.89957316 | BL34: 65.74462 | BN34: 57.01491 | BO34: 73.5247 | BP34: 4.245316 | BQ34: 6.45728274 | BR34: 48.25331 | BT34: 39.31472 | BU34: 57.3051 | BV34: 4.639735 | BW34: 9.615371464 | BX34: 17.39212 | BZ34: 12.43573 | CA34: 23.7873 | CB34: 2.885946 | CC34: 16.59341127 | CD34: 12.26499 | CF34: 8.977796 | CG34: 16.53712 | CH34: 1.914805 | CI34: 15.61195729 | CJ34: 11.96 | CK34: * | CL34: 5.9 | CM34: 22.73 | CN34: 4.15 | CO34: 34.69899666 | CP34: 19.80228 | CR34: 16.61401 | CS34: 23.43048 | CT34: 1.73826 | CU34: 8.7780801 | CW34: 37.59461 | CY34: 28.83147 | CZ34: 47.2528 | DA34: 4.749493 | DB34: 12.63344134 | DC34: 24.42302 | DE34: 18.49758 | DF34: 31.5127 | DG34: 3.32776 | DH34: 13.62550577 | DI34: 28.4615 | DK34: 21.11894 | DL34: 37.15447 | DM34: 4.114577 | DN34: 14.45664143 | DO34: 6.630461 | DQ34: 4.915151 | DR34: 8.88843 | DS34: 1.003012 | DT34: 15.12733428 | DU34: 4.665984 | DW34: 2.998433 | DX34: 7.192165 | DY34: 1.04294 | DZ34: 22.35198406 | EA34: 8.518106 | EB34: * | EC34: 4.939876 | ED34: 14.29839 | EE34: 2.318721 | EF34: 27.22108647 | EG34: 4.435444 | EI34: 3.118429 | EJ34: 6.272663 | EK34: 0.7914693 | EL34: 17.84419553 | EM34: 2.121072 | EN34: * | EO34: 1.188608 | EP34: 3.75724 | EQ34: 0.6234711 | ER34: 29.39415069 | ES34: 34.49798 | EU34: 25.8483 | EV34: 44.31242 | EW34: 4.757802 | EX34: 13.79153794 | EZ34: 44.1283 | FB34: 39.02543 | FC34: 49.35828 | FD34: 2.645191 | FE34: 5.994318838 | FF34: 77.67927 | FH34: 67.82463 | FI34: 85.17536 | FJ34: 4.434959 | FK34: 5.709321161 | FL34: 48.42305 | FN34: 41.13879 | FO34: 55.77495 | FP34: 3.76063 | FQ34: 7.766198123 | FR34: 61.98774 | FT34: 54.29813 | FU34: 69.11936 | FV34: 3.806833 | FW34: 6.141267612 | FX34: 46.50356 | FZ34: 40.34441 | GA34: 52.77122 | GB34: 3.186387 | GC34: 6.851920584 | GD34: 70.08532 | GF34: 61.25655 | GG34: 77.6367 | GH34: 4.206096 | GI34: 6.00139373 | GJ34: 19.05375 | GL34: 14.04815 | GM34: 25.31756 | GN34: 2.870374 | GO34: 15.06461458
B35: Hindmarsh (S) | D35: 28.59615 | F35: 20.79785 | G35: 37.91857 | H35: 4.396975 | I35: 15.37610832 | J35: 55.29023 | L35: 46.39052 | M35: 63.86337 | N35: 4.502956 | O35: 8.144216438 | P35: 15.16459 | R35: 9.453692 | S35: 23.4326 | T35: 3.529307 | U35: 23.2733427 | V35: 16.78304 | X35: 11.95995 | Y35: 23.04209 | Z35: 2.815636 | AA35: 16.77667455 | AB35: 1.374533 | AC35: * | AD35: 0.7763487 | AE35: 2.422372 | AF35: 0.3992941 | AG35: 29.04943715 | AH35: 46.84008 | AJ35: 38.52535 | AK35: 55.33406 | AL35: 4.328776 | AM35: 9.241606761 | AN35: 6.208863 | AO35: * | AP35: 3.243331 | AQ35: 11.56191 | AR35: 2.021817 | AS35: 32.5634017 | AT35: 36.86272 | AV35: 28.22359 | AW35: 46.43547 | AX35: 4.693773 | AY35: 12.73311628 | AZ35: 17.72821 | BB35: 11.63043 | BC35: 26.0795 | BD35: 3.668818 | BE35: 20.69480224 | BF35: 18.71514 | BH35: 12.52802 | BI35: 27.01418 | BJ35: 3.684511 | BK35: 19.68732801 | BL35: 58.93636 | BN35: 50.97057 | BO35: 66.45957 | BP35: 3.982142 | BQ35: 6.756681275 | BR35: 47.22676 | BT35: 38.60467 | BU35: 56.01753 | BV35: 4.487564 | BW35: 9.502163604 | BX35: 23.23831 | BZ35: 16.83539 | CA35: 31.1639 | CB35: 3.662532 | CC35: 15.76075024 | CD35: 22.75728 | CF35: 15.54226 | CG35: 32.05061 | CH35: 4.220708 | CI35: 18.54662772 | CJ35: 13.79 | CK35: * | CL35: 7.9 | CM35: 22.97 | CN35: 3.78 | CO35: 27.41116751 | CP35: 26.78573 | CR35: 21.35075 | CS35: 33.0233 | CT35: 2.985515 | CU35: 11.14591613 | CW35: 29.67206 | CY35: 22.60096 | CZ35: 37.87295 | DA35: 3.918158 | DB35: 13.20487354 | DC35: 28.63891 | DE35: 23.06999 | DF35: 34.94156 | DG35: 3.038154 | DH35: 10.60848335 | DI35: 25.89387 | DK35: 19.34267 | DL35: 33.73585 | DM35: 3.685035 | DN35: 14.23130262 | DO35: 9.593369 | DQ35: 7.600131 | DR35: 12.04124 | DS35: 1.127097 | DT35: 11.74870893 | DU35: 4.604098 | DW35: 3.320041 | DX35: 6.352148 | DY35: 0.7626476 | DZ35: 16.56453881 | EA35: 8.933333 | EC35: 6.108623 | ED35: 12.88497 | EE35: 1.704374 | EF35: 19.07881414 | EG35: 7.594219 | EI35: 5.609533 | EJ35: 10.20518 | EK35: 1.160625 | EL35: 15.28300672 | EM35: 4.804074 | EN35: * | EO35: 2.209604 | EP35: 10.12936 | EQ35: 1.874873 | ER35: 39.02673023 | ES35: 35.52459 | EU35: 28.81987 | EV35: 42.85013 | EW35: 3.600287 | EX35: 10.1346335 | EZ35: 53.8006 | FB35: 46.65575 | FC35: 60.79268 | FD35: 3.630471 | FE35: 6.748012104 | FF35: 85.52699 | FH35: 77.4459 | FI35: 91.04736 | FJ35: 3.428509 | FK35: 4.008686615 | FL35: 51.10097 | FN35: 44.18957 | FO35: 57.97054 | FP35: 3.537994 | FQ35: 6.923535894 | FR35: 68.30769 | FT35: 59.98418 | FU35: 75.60402 | FV35: 4.010678 | FW35: 5.871488261 | FX35: 48.39574 | FZ35: 41.91311 | GA35: 54.93281 | GB35: 3.340177 | GC35: 6.901799621 | GD35: 79.25385 | GF35: 69.03655 | GG35: 86.74689 | GH35: 4.516588 | GI35: 5.698887814 | GJ35: 15.22833 | GL35: 10.71231 | GM35: 21.19623 | GN35: 2.658654 | GO35: 17.45860511
B36: Hobsons Bay (C) | D36: 16.89245 | F36: 13.18944 | G36: 21.37907 | H36: 2.08462 | I36: 12.34054267 | J36: 53.67653 | L36: 47.61349 | M36: 59.63277 | N36: 3.0809 | O36: 5.739752551 | P36: 7.55932 | R36: 4.706506 | S36: 11.92496 | T36: 1.797673 | U36: 23.78088241 | V36: 14.5069 | W36: * | X36: 8.219899 | Y36: 24.32792 | Z36: 4.043532 | AA36: 27.8731638 | AB36: 2.307188 | AC36: * | AD36: 1.261447 | AE36: 4.183119 | AF36: 0.7065535 | AG36: 30.6240107 | AH36: 41.7159 | AJ36: 35.9576 | AK36: 47.70937 | AL36: 3.011349 | AM36: 7.218707975 | AN36: 7.224248 | AO36: * | AP36: 4.144775 | AQ36: 12.29815 | AR36: 2.011518 | AS36: 27.84397767 | AT36: 43.79617 | AV36: 37.69441 | AW36: 50.09157 | AX36: 3.178573 | AY36: 7.257650612 | AZ36: 9.026369 | BB36: 6.127091 | BC36: 13.10602 | BD36: 1.754582 | BE36: 19.43840319 | BF36: 12.96348 | BH36: 9.428357 | BI36: 17.56699 | BJ36: 2.06214 | BK36: 15.90730267 | BL36: 61.98227 | BN36: 56.5603 | BO36: 67.12088 | BP36: 2.703372 | BQ36: 4.361524675 | BR36: 45.9461 | BT36: 40.10207 | BU36: 51.90379 | BV36: 3.02459 | BW36: 6.582909104 | BX36: 19.15616 | BZ36: 15.36094 | CA36: 23.6273 | CB36: 2.107028 | CC36: 10.99921905 | CD36: 17.91824 | CF36: 13.74068 | CG36: 23.02684 | CH36: 2.364434 | CI36: 13.19568217 | CJ36: 12.1 | CL36: 8.71 | CM36: 16.58 | CN36: 1.99 | CO36: 16.44628099 | CP36: 22.23672 | CR36: 18.78569 | CS36: 26.11784 | CT36: 1.870958 | CU36: 8.413821823 | CW36: 26.40647 | CY36: 21.61227 | CZ36: 31.83229 | DA36: 2.612148 | DB36: 9.892075692 | DC36: 21.2574 | DE36: 17.71737 | DF36: 25.28737 | DG36: 1.931186 | DH36: 9.08477048 | DI36: 23.54349 | DK36: 18.3298 | DL36: 29.70083 | DM36: 2.90472 | DN36: 12.33767806 | DO36: 7.884804 | DQ36: 5.610817 | DR36: 10.97326 | DS36: 1.351164 | DT36: 17.13630421 | DU36: 4.51214 | DW36: 2.976808 | DX36: 6.783975 | DY36: 0.9493386 | DZ36: 21.03965302 | EA36: 7.305983 | EC36: 5.47732 | ED36: 9.682624 | EE36: 1.06285 | EF36: 14.54766593 | EG36: 4.929072 | EI36: 3.351448 | EJ36: 7.19405 | EK36: 0.9616312 | EL36: 19.50937621 | EM36: 3.449423 | EN36: * | EO36: 2.088424 | EP36: 5.646219 | EQ36: 0.8764247 | ER36: 25.40786387 | ES36: 26.19685 | EU36: 21.81872 | EV36: 31.10398 | EW36: 2.372329 | EX36: 9.055779607 | EZ36: 54.76884 | FB36: 49.15881 | FC36: 60.26026 | FD36: 2.843564 | FE36: 5.191937605 | FF36: 77.95781 | FH36: 71.97917 | FI36: 82.96276 | FJ36: 2.803517 | FK36: 3.596197738 | FL36: 47.42659 | FN36: 42.30043 | FO36: 52.60757 | FP36: 2.638673 | FQ36: 5.563699604 | FR36: 53.89637 | FT36: 45.02421 | FU36: 62.52836 | FV36: 4.511242 | FW36: 8.370214914 | FX36: 43.94556 | FZ36: 37.01764 | GA36: 51.11773 | GB36: 3.620597 | GC36: 8.238823217 | GD36: 81.62783 | GF36: 71.32518 | GG36: 88.80958 | GH36: 4.438106 | GI36: 5.437001082 | GJ36: 17.04463 | GL36: 12.82942 | GM36: 22.29063 | GN36: 2.406968 | GO36: 14.12156204
B37: Horsham (RC) | D37: 23.67593 | F37: 18.51764 | G37: 29.74654 | H37: 2.868473 | I37: 12.11556632 | J37: 51.12435 | L37: 42.91167 | M37: 59.27678 | N37: 4.212559 | O37: 8.239828966 | P37: 16.47588 | R37: 10.08986 | S37: 25.74631 | T37: 3.960117 | U37: 24.03584513 | V37: 17.39709 | X37: 13.83558 | Y37: 21.6451 | Z37: 1.988903 | AA37: 11.43238898 | AB37: 2.088718 | AC37: * | AD37: 1.249924 | AE37: 3.470623 | AF37: 0.5446503 | AG37: 26.0758178 | AH37: 47.13988 | AJ37: 38.60254 | AK37: 55.84788 | AL37: 4.443504 | AM37: 9.426209825 | AN37: 4.015011 | AO37: * | AP37: 1.9314 | AQ37: 8.159418 | AR37: 1.481075 | AS37: 36.8884419 | AT37: 40.11311 | AV37: 32.74822 | AW37: 47.9533 | AX37: 3.907761 | AY37: 9.74185497 | AZ37: 16.05226 | BB37: 10.18395 | BC37: 24.38404 | BD37: 3.59299 | BE37: 22.38307877 | BF37: 16.45505 | BH37: 10.54613 | BI37: 24.75838 | BJ37: 3.599583 | BK37: 21.87524802 | BL37: 56.63108 | BN37: 47.41398 | BO37: 65.41117 | BP37: 4.640656 | BQ37: 8.194539112 | BR37: 45.10397 | BT37: 36.09525 | BU37: 54.4455 | BV37: 4.734207 | BW37: 10.49620909 | BX37: 19.4463 | BZ37: 14.31266 | CA37: 25.86544 | CB37: 2.94342 | CC37: 15.13614415 | CD37: 12.18559 | CF37: 8.293789 | CG37: 17.55403 | CH37: 2.337254 | CI37: 19.18047464 | CJ37: 13.59 | CL37: 8.27 | CM37: 21.55 | CN37: 3.34 | CO37: 24.57689478 | CP37: 29.72556 | CR37: 24.32479 | CS37: 35.75882 | CT37: 2.926111 | CU37: 9.843753995 | CW37: 33.5371 | CY37: 26.06189 | CZ37: 41.94019 | DA37: 4.079888 | DB37: 12.16529754 | DC37: 23.03747 | DE37: 19.06097 | DF37: 27.56106 | DG37: 2.169711 | DH37: 9.418182639 | DI37: 28.2926 | DK37: 20.37528 | DL37: 37.82493 | DM37: 4.481971 | DN37: 15.84149566 | DO37: 7.111444 | DQ37: 5.34629 | DR37: 9.401504 | DS37: 1.024971 | DT37: 14.41297998 | DU37: 4.910053 | DW37: 3.513521 | DX37: 6.822419 | DY37: 0.8319322 | DZ37: 16.94344644 | EA37: 4.326948 | EC37: 3.016827 | ED37: 6.169821 | EE37: 0.7904568 | EF37: 18.26822971 | EG37: 7.009422 | EI37: 4.770962 | EJ37: 10.1858 | EK37: 1.358449 | EL37: 19.38032836 | EM37: 1.435208 | EN37: * | EO37: 0.7747225 | EP37: 2.643782 | EQ37: 0.449808 | ER37: 31.34096242 | ES37: 31.79898 | EU37: 25.0927 | EV37: 39.35591 | EW37: 3.65854 | EX37: 11.5052118 | EZ37: 54.34575 | FB37: 45.50692 | FC37: 62.91913 | FD37: 4.487183 | FE37: 8.256732127 | FF37: 81.71379 | FH37: 72.58647 | FI37: 88.29234 | FJ37: 3.989643 | FK37: 4.882459864 | FL37: 45.49683 | FN37: 38.17991 | FO37: 53.0135 | FP37: 3.811903 | FQ37: 8.378392517 | FR37: 58.05182 | FT37: 50.37506 | FU37: 65.35768 | FV37: 3.85004 | FW37: 6.632074584 | FX37: 42.17387 | FZ37: 36.29338 | GA37: 48.28501 | GB37: 3.073385 | GC37: 7.28741517 | GD37: 82.51197 | GF37: 73.56681 | GG37: 88.88729 | GH37: 3.885659 | GI37: 4.709206434 | GJ37: 17.22726 | GL37: 12.36269 | GM37: 23.49287 | GN37: 2.829425 | GO37: 16.42411504
B38: Hume (C) | D38: 22.86593 | F38: 18.84117 | G38: 27.45955 | H38: 2.19984 | I38: 9.62060148 | J38: 58.31616 | L38: 53.00688 | M38: 63.43933 | N38: 2.67072 | O38: 4.579725414 | P38: 14.40864 | R38: 10.92788 | S38: 18.76453 | T38: 1.990619 | U38: 13.81545378 | V38: 8.798499 | W38: * | X38: 4.420956 | Y38: 16.75093 | Z38: 3.009522 | AA38: 34.20494791 | AB38: 5.06374 | AD38: 3.225836 | AE38: 7.863694 | AF38: 1.152972 | AG38: 22.76917851 | AH38: 46.30465 | AJ38: 41.3421 | AK38: 51.34151 | AL38: 2.559332 | AM38: 5.527159799 | AN38: 2.328579 | AO38: * | AP38: 1.306993 | AQ38: 4.115371 | AR38: 0.6822184 | AS38: 29.29762744 | AT38: 36.00538 | AV38: 31.09399 | AW38: 41.22837 | AX38: 2.593279 | AY38: 7.202476408 | AZ38: 17.22892 | BB38: 13.52464 | BC38: 21.69326 | BD38: 2.079803 | BE38: 12.07158081 | BF38: 20.7412 | BH38: 16.70246 | BI38: 25.45806 | BJ38: 2.233236 | BK38: 10.76714944 | BL38: 50.73135 | BN38: 45.32004 | BO38: 56.12558 | BP38: 2.767268 | BQ38: 5.454749381 | BR38: 33.14004 | BT38: 28.26748 | BU38: 38.40286 | BV38: 2.592986 | BW38: 7.824329723 | BX38: 25.24358 | BZ38: 20.94934 | CA38: 30.08309 | CB38: 2.333042 | CC38: 9.242120175 | CD38: 26.15634 | CF38: 21.64643 | CG38: 31.23135 | CH38: 2.449121 | CI38: 9.363393349 | CJ38: 22.37 | CL38: 18.14 | CM38: 27.25 | CN38: 2.32 | CO38: 10.37103263 | CP38: 33.62679 | CR38: 29.0553 | CS38: 38.52694 | CT38: 2.422375 | CU38: 7.203705736 | CW38: 28.16593 | CY38: 23.65587 | CZ38: 33.16235 | DA38: 2.429889 | DB38: 8.627050483 | DC38: 24.00785 | DE38: 20.16545 | DF38: 28.32265 | DG38: 2.082547 | DH38: 8.674441901 | DI38: 17.46833 | DK38: 13.86757 | DL38: 21.76776 | DM38: 2.012011 | DN38: 11.51805009 | DO38: 6.815105 | DQ38: 4.666705 | DR38: 9.850366 | DS38: 1.300829 | DT38: 19.08743886 | DU38: 7.79969 | DW38: 5.551409 | DX38: 10.85387 | DY38: 1.335967 | DZ38: 17.1284628 | EA38: 9.896104 | EC38: 7.242227 | ED38: 13.38218 | EE38: 1.552403 | EF38: 15.68701178 | EG38: 6.80919 | EI38: 4.776547 | EJ38: 9.619437 | EK38: 1.217715 | EL38: 17.88340463 | EM38: 4.245371 | EN38: * | EO38: 2.495825 | EP38: 7.131627 | EQ38: 1.139289 | ER38: 26.83602917 | ES38: 28.62549 | EU38: 24.39983 | EV38: 33.261 | EW38: 2.26449 | EX38: 7.910746681 | EZ38: 65.69254 | FB38: 61.29871 | FC38: 69.83302 | FD38: 2.181685 | FE38: 3.321054415 | FF38: 80.15264 | FH38: 75.65473 | FI38: 83.99535 | FJ38: 2.126626 | FK38: 2.653220156 | FL38: 60.12422 | FN38: 55.40793 | FO38: 64.65985 | FP38: 2.366599 | FQ38: 3.936182457 | FR38: 58.00089 | FT38: 48.73869 | FU38: 66.73186 | FV38: 4.638935 | FW38: 7.998041065 | FX38: 38.39524 | FZ38: 31.19923 | GA38: 46.13797 | GB38: 3.837691 | GC38: 9.995225971 | GD38: 79.5412 | GF38: 68.14297 | GG38: 87.60314 | GH38: 4.960352 | GI38: 6.236204634 | GJ38: 17.46906 | GL38: 13.64701 | GM38: 22.08773 | GN38: 2.14919 | GO38: 12.30283713
B39: Indigo (S) | D39: 23.08687 | F39: 17.74741 | G39: 29.45743 | H39: 2.990909 | I39: 12.95502162 | J39: 51.57094 | L39: 44.2636 | M39: 58.81172 | N39: 3.737683 | O39: 7.247653427 | P39: 11.67551 | Q39: * | R39: 6.859618 | S39: 19.17634 | T39: 3.077502 | U39: 26.35860875 | V39: 12.74353 | X39: 9.043483 | Y39: 17.66344 | Z39: 2.181377 | AA39: 17.11752552 | AB39: 4.33856 | AC39: * | AD39: 1.761223 | AE39: 10.29237 | AF39: 1.965272 | AG39: 45.29779466 | AH39: 41.63907 | AJ39: 33.96128 | AK39: 49.74511 | AL39: 4.05933 | AM39: 9.748848858 | AN39: 11.30455 | AP39: 7.203501 | AQ39: 17.30499 | AR39: 2.536479 | AS39: 22.43768217 | AT39: 47.16068 | AV39: 39.82443 | AW39: 54.62167 | AX39: 3.802569 | AY39: 8.063007149 | AZ39: 13.69599 | BB39: 8.884782 | BC39: 20.52561 | BD39: 2.936973 | BE39: 21.44403581 | BF39: 16.28683 | BH39: 11.02614 | BI39: 23.39742 | BJ39: 3.137448 | BK39: 19.26371185 | BL39: 69.45694 | BN39: 61.70897 | BO39: 76.24077 | BP39: 3.727106 | BQ39: 5.366067091 | BR39: 50.70446 | BT39: 42.83309 | BU39: 58.54107 | BV39: 4.040513 | BW39: 7.96875265 | BX39: 22.96237 | BZ39: 16.47269 | CA39: 31.0581 | CB39: 3.727694 | CC39: 16.23392533 | CD39: 22.19597 | CF39: 16.09511 | CG39: 29.78837 | CH39: 3.496862 | CI39: 15.75449057 | CJ39: 16.68 | CL39: 11.21 | CM39: 24.09 | CN39: 3.27 | CO39: 19.60431655 | CP39: 25.41962 | CR39: 20.56016 | CS39: 30.97971 | CT39: 2.662673 | CU39: 10.47487335 | CW39: 36.59183 | CY39: 29.37846 | CZ39: 44.46127 | DA39: 3.874532 | DB39: 10.58851662 | DC39: 25.05781 | DE39: 19.51126 | DF39: 31.56281 | DG39: 3.08116 | DH39: 12.29620625 | DI39: 26.21242 | DK39: 19.44485 | DL39: 34.33153 | DM39: 3.812997 | DN39: 14.54652794 | DO39: 10.4006 | DQ39: 7.713393 | DR39: 13.88314 | DS39: 1.561623 | DT39: 15.01473953 | DU39: 3.515156 | DW39: 2.356773 | DX39: 5.212504 | DY39: 0.7124379 | DZ39: 20.26760406 | EA39: 7.455404 | EC39: 5.596046 | ED39: 9.867979 | EE39: 1.079874 | EF39: 14.48444645 | EG39: 5.5369 | EI39: 3.869713 | EJ39: 7.863605 | EK39: 1.002683 | EL39: 18.10910437 | EM39: 3.444221 | EN39: * | EO39: 1.462452 | EP39: 7.896284 | EQ39: 1.487838 | ER39: 43.19809908 | ES39: 32.9256 | EU39: 26.20361 | EV39: 40.4273 | EW39: 3.649088 | EX39: 11.08282917 | EZ39: 55.59746 | FB39: 47.91791 | FC39: 63.01857 | FD39: 3.88144 | FE39: 6.981326125 | FF39: 84.9937 | FH39: 77.61176 | FI39: 90.24749 | FJ39: 3.194559 | FK39: 3.758583283 | FL39: 47.56867 | FN39: 39.97586 | FO39: 55.27558 | FP39: 3.933736 | FQ39: 8.269594252 | FR39: 61.21046 | FT39: 53.44532 | FU39: 68.4451 | FV39: 3.85363 | FW39: 6.295705015 | FX39: 47.93791 | FZ39: 41.63063 | GA39: 54.31163 | GB39: 3.252315 | GC39: 6.784432196 | GD39: 76.4378 | GF39: 66.16476 | GG39: 84.33043 | GH39: 4.650826 | GI39: 6.084458213 | GJ39: 21.36046 | GL39: 16.33011 | GM39: 27.43231 | GN39: 2.832729 | GO39: 13.26155429
B40: Kingston (C) | D40: 17.3548 | F40: 13.37116 | G40: 22.22084 | H40: 2.252711 | I40: 12.98033397 | J40: 46.47377 | L40: 41.02461 | M40: 52.00844 | N40: 2.813242 | O40: 6.053397433 | P40: 8.131924 | R40: 5.256875 | S40: 12.37401 | T40: 1.780255 | U40: 21.89217459 | V40: 14.88407 | X40: 11.14374 | Y40: 19.60284 | Z40: 2.148593 | AA40: 14.43552066 | AB40: 1.663169 | AC40: * | AD40: 0.6210865 | AE40: 4.376696 | AF40: 0.8307159 | AG40: 49.9477744 | AH40: 36.12151 | AJ40: 30.79442 | AK40: 41.81334 | AL40: 2.821244 | AM40: 7.81042653 | AN40: 5.557495 | AP40: 3.590804 | AQ40: 8.506308 | AR40: 1.22479 | AS40: 22.03852635 | AT40: 48.73743 | AV40: 42.83015 | AW40: 54.68019 | AX40: 3.037177 | AY40: 6.23171349 | AZ40: 11.68825 | BB40: 8.137212 | BC40: 16.51041 | BD40: 2.114723 | BE40: 18.0927256 | BF40: 15.37664 | BH40: 11.39476 | BI40: 20.42916 | BJ40: 2.294869 | BK40: 14.9243853 | BL40: 63.9495 | BN40: 58.33285 | BO40: 69.20868 | BP40: 2.784329 | BQ40: 4.353949601 | BR40: 43.98955 | BT40: 38.36722 | BU40: 49.77046 | BV40: 2.921456 | BW40: 6.641250024 | BX40: 18.81771 | BZ40: 14.53758 | CA40: 24.00404 | CB40: 2.411803 | CC40: 12.81666579 | CD40: 16.94012 | CF40: 12.86333 | CG40: 21.983 | CH40: 2.320288 | CI40: 13.6969986 | CJ40: 10.26 | CL40: 7.24 | CM40: 14.34 | CN40: 1.79 | CO40: 17.44639376 | CP40: 23.60769 | CR40: 19.80231 | CS40: 27.89003 | CT40: 2.064602 | CU40: 8.745463872 | CW40: 22.75227 | CY40: 18.12539 | CZ40: 28.1541 | DA40: 2.560276 | DB40: 11.25283763 | DC40: 19.30201 | DE40: 16.15911 | DF40: 22.8893 | DG40: 1.716007 | DH40: 8.890302098 | DI40: 16.62843 | DK40: 12.73216 | DL40: 21.42432 | DM40: 2.211439 | DN40: 13.2991449 | DO40: 5.827798 | DQ40: 4.172115 | DR40: 8.085093 | DS40: 0.9846173 | DT40: 16.8951858 | DU40: 5.636229 | DW40: 3.926669 | DX40: 8.027889 | DY40: 1.029444 | DZ40: 18.26476532 | EA40: 7.869154 | EC40: 5.650757 | ED40: 10.85823 | EE40: 1.312931 | EF40: 16.68452543 | EG40: 4.540074 | EI40: 3.198009 | EJ40: 6.408063 | EK40: 0.8056939 | EL40: 17.74627242 | EM40: 2.248426 | EN40: * | EO40: 1.154984 | EP40: 4.331681 | EQ40: 0.7594493 | ER40: 33.77693106 | ES40: 21.63019 | EU40: 17.80044 | EV40: 26.02306 | EW40: 2.097959 | EX40: 9.699216697 | EZ40: 55.09602 | FB40: 49.87708 | FC40: 60.20511 | FD40: 2.643982 | FE40: 4.798862059 | FF40: 81.22209 | FH40: 75.80623 | FI40: 85.65501 | FJ40: 2.508885 | FK40: 3.088919529 | FL40: 45.47286 | FN40: 40.29037 | FO40: 50.75532 | FP40: 2.679311 | FQ40: 5.892110151 | FR40: 57.31802 | FT40: 47.26053 | FU40: 66.80469 | FV40: 5.04894 | FW40: 8.808643425 | FX40: 44.81464 | FZ40: 37.44775 | GA40: 52.41637 | GB40: 3.846984 | GC40: 8.584212659 | GD40: 80.93597 | GF40: 69.86121 | GG40: 88.60499 | GH40: 4.763417 | GI40: 5.885414112 | GJ40: 15.94923 | GL40: 12.02874 | GM40: 20.84474 | GN40: 2.241276 | GO40: 14.05256555
B41: Knox (C) | D41: 23.26853 | F41: 18.73466 | G41: 28.51462 | H41: 2.497132 | I41: 10.73179956 | J41: 55.48269 | L41: 49.84873 | M41: 60.97916 | N41: 2.851012 | O41: 5.138561234 | P41: 8.722421 | R41: 5.924759 | S41: 12.66331 | T41: 1.693627 | U41: 19.41693711 | V41: 15.79615 | X41: 11.10374 | Y41: 21.98122 | Z41: 2.759994 | AA41: 17.47257401 | AB41: 1.198309 | AC41: * | AD41: 0.4701364 | AE41: 3.020092 | AF41: 0.5696066 | AG41: 47.53420028 | AH41: 45.28057 | AJ41: 39.75679 | AK41: 50.92309 | AL41: 2.860314 | AM41: 6.316868361 | AN41: 3.626559 | AO41: * | AP41: 2.042817 | AQ41: 6.358437 | AR41: 1.052514 | AS41: 29.02238734 | AT41: 40.17555 | AV41: 34.78214 | AW41: 45.81774 | AX41: 2.826168 | AY41: 7.034547131 | AZ41: 13.65406 | BB41: 9.794129 | BC41: 18.71954 | BD41: 2.261584 | BE41: 16.56345439 | BF41: 16.11235 | BH41: 12.00295 | BI41: 21.28831 | BJ41: 2.360194 | BK41: 14.64835359 | BL41: 60.29821 | BN41: 54.75308 | BO41: 65.59085 | BP41: 2.775065 | BQ41: 4.602234461 | BR41: 44.86445 | BT41: 39.58 | BU41: 50.26746 | BV41: 2.736684 | BW41: 6.099894237 | BX41: 20.095 | BZ41: 15.81476 | CA41: 25.18708 | CB41: 2.389718 | CC41: 11.89210251 | CD41: 21.80732 | CF41: 17.32835 | CG41: 27.06499 | CH41: 2.484659 | CI41: 11.39369258 | CJ41: 18.25 | CL41: 13.89 | CM41: 23.62 | CN41: 2.48 | CO41: 13.5890411 | CP41: 27.76225 | CR41: 23.68908 | CS41: 32.23989 | CT41: 2.184672 | CU41: 7.869218093 | CW41: 25.96189 | CY41: 21.24464 | CZ41: 31.31015 | DA41: 2.572243 | DB41: 9.907764804 | DC41: 19.09509 | DE41: 16.22603 | DF41: 22.3362 | DG41: 1.557962 | DH41: 8.15896652 | DI41: 20.05097 | DK41: 15.74712 | DL41: 25.17955 | DM41: 2.404975 | DN41: 11.99430751 | DO41: 6.456147 | DQ41: 4.586883 | DR41: 9.015204 | DS41: 1.114229 | DT41: 17.25842054 | DU41: 5.523797 | DW41: 3.905786 | DX41: 7.757973 | DY41: 0.9680674 | DZ41: 17.52539784 | EA41: 3.56224 | EC41: 2.291291 | ED41: 5.498495 | EE41: 0.796367 | EF41: 22.35579298 | EG41: 4.368367 | EI41: 2.961827 | EJ41: 6.398812 | EK41: 0.85933 | EL41: 19.67165305 | EM41: 1.017328 | EN41: * | EO41: 0.4739088 | EP41: 2.170286 | EQ41: 0.3952812 | ER41: 38.85484328 | ES41: 21.43531 | EU41: 17.9312 | EV41: 25.41214 | EW41: 1.908558 | EX41: 8.90380405 | EZ41: 59.24196 | FB41: 54.59175 | FC41: 63.73232 | FD41: 2.338017 | FE41: 3.946555786 | FF41: 83.35847 | FH41: 78.71321 | FI41: 87.15544 | FJ41: 2.148189 | FK41: 2.577049459 | FL41: 50.73314 | FN41: 46.0078 | FO41: 55.44542 | FP41: 2.414699 | FQ41: 4.759608808 | FR41: 60.82081 | FT41: 52.38798 | FU41: 68.65373 | FV41: 4.184354 | FW41: 6.879806435 | FX41: 41.81707 | FZ41: 34.57936 | GA41: 49.42519 | GB41: 3.814449 | GC41: 9.121750998 | GD41: 74.4578 | GF41: 62.9645 | GG41: 83.32874 | GH41: 5.231394 | GI41: 7.025985189 | GJ41: 16.3519 | GL41: 12.42684 | GM41: 21.21637 | GN41: 2.235499 | GO41: 13.67118806
B42: Latrobe (C) | D42: 20.41931 | F42: 16.47039 | G42: 25.03131 | H42: 2.183299 | I42: 10.69232506 | J42: 54.47619 | L42: 47.68581 | M42: 61.1041 | N42: 3.443569 | O42: 6.321236856 | P42: 13.91218 | R42: 9.58223 | S42: 19.77089 | T42: 2.578167 | U42: 18.53172544 | V42: 9.209351 | W42: * | X42: 4.515422 | Y42: 17.86959 | Z42: 3.255401 | AA42: 35.34886443 | AB42: 3.51903 | AC42: * | AD42: 1.964987 | AE42: 6.224086 | AF42: 1.037038 | AG42: 29.46942765 | AH42: 38.1054 | AJ42: 31.88262 | AK42: 44.74492 | AL42: 3.298189 | AM42: 8.655437287 | AN42: 4.309592 | AP42: 2.666154 | AQ42: 6.894304 | AR42: 1.04617 | AS42: 24.27538384 | AT42: 37.09339 | AV42: 31.06463 | AW42: 43.55295 | AX42: 3.201098 | AY42: 8.629834049 | AZ42: 18.72791 | BB42: 13.79515 | BC42: 24.9147 | BD42: 2.831449 | BE42: 15.11887338 | BF42: 21.547 | BH42: 16.28611 | BI42: 27.94011 | BJ42: 2.973968 | BK42: 13.80223697 | BL42: 63.53384 | BN42: 57.44309 | BO42: 69.21997 | BP42: 3.01698 | BQ42: 4.748619004 | BR42: 47.80802 | BT42: 41.53596 | BU42: 54.14997 | BV42: 3.235001 | BW42: 6.766649194 | BX42: 23.77156 | BZ42: 18.8574 | CA42: 29.50075 | CB42: 2.718594 | CC42: 11.4363298 | CD42: 25.16436 | CF42: 19.76283 | CG42: 31.46332 | CH42: 2.991135 | CI42: 11.88639409 | CJ42: 17.52 | CL42: 12.63 | CM42: 23.79 | CN42: 2.84 | CO42: 16.21004566 | CP42: 29.2785 | CR42: 24.77702 | CS42: 34.22571 | CT42: 2.415443 | CU42: 8.249886435 | CW42: 35.99348 | CY42: 29.96592 | CZ42: 42.49775 | DA42: 3.212055 | DB42: 8.923991234 | DC42: 28.5432 | DE42: 23.8714 | DF42: 33.72427 | DG42: 2.518957 | DH42: 8.825068668 | DI42: 21.05871 | DK42: 15.83982 | DL42: 27.43654 | DM42: 2.958383 | DN42: 14.04826317 | DO42: 7.413024 | DQ42: 5.702971 | DR42: 9.583728 | DS42: 0.9824164 | DT42: 13.25257277 | DU42: 6.767372 | DW42: 5.147475 | DX42: 8.849485 | DY42: 0.9361956 | DZ42: 13.83396095 | EA42: 6.77809 | EC42: 5.245869 | ED42: 8.716674 | EE42: 0.8786561 | EF42: 12.96318137 | EG42: 5.9741 | EI42: 4.363653 | EJ42: 8.128383 | EK42: 0.9489081 | EL42: 15.88369964 | EM42: 4.568362 | EN42: * | EO42: 2.397147 | EP42: 8.534198 | EQ42: 1.48442 | ER42: 32.49348454 | ES42: 33.45926 | EU42: 27.96736 | EV42: 39.43914 | EW42: 2.93739 | EX42: 8.779004676 | EZ42: 54.28621 | FB42: 48.58549 | FC42: 59.87683 | FD42: 2.892636 | FE42: 5.328491342 | FF42: 86.90147 | FH42: 81.15894 | FI42: 91.08599 | FJ42: 2.508266 | FK42: 2.886333223 | FL42: 53.21135 | FN42: 47.09667 | FO42: 59.23107 | FP42: 3.110721 | FQ42: 5.845972711 | FR42: 67.31619 | FT42: 59.86357 | FU42: 73.98633 | FV42: 3.622585 | FW42: 5.38144687 | FX42: 52.15144 | FZ42: 45.93349 | GA42: 58.30343 | GB42: 3.171703 | GC42: 6.081717015 | GD42: 78.16522 | GF42: 68.74354 | GG42: 85.35206 | GH42: 4.241615 | GI42: 5.426473565 | GJ42: 18.70726 | GL42: 13.91171 | GM42: 24.68194 | GN42: 2.742737 | GO42: 14.66135073
B43: Loddon (S) | D43: 26.52524 | F43: 20.52479 | G43: 33.53961 | H43: 3.330695 | I43: 12.55670071 | J43: 50.12011 | L43: 38.98869 | M43: 61.23963 | N43: 5.772722 | O43: 11.517776 | P43: 25.56971 | R43: 16.01276 | S43: 38.23395 | T43: 5.717388 | U43: 22.3600033 | V43: 8.832268 | W43: * | X43: 4.928958 | Y43: 15.32829 | Z43: 2.568467 | AA43: 29.08049212 | AB43: 1.229313 | AC43: * | AD43: 0.6075092 | AE43: 2.471726 | AF43: 0.4405239 | AG43: 35.83496636 | AH43: 43.07573 | AJ43: 31.33838 | AK43: 55.64637 | AL43: 6.324993 | AM43: 14.68342614 | AN43: 4.480389 | AO43: * | AP43: 2.678432 | AQ43: 7.402431 | AR43: 1.164147 | AS43: 25.98316798 | AT43: 32.91937 | AV43: 23.04479 | AW43: 44.57435 | AX43: 5.565035 | AY43: 16.90504709 | AZ43: 25.48534 | BB43: 18.04042 | BC43: 34.70179 | BD43: 4.270024 | BE43: 16.75482454 | BF43: 26.88297 | BH43: 19.37343 | BI43: 36.00354 | BJ43: 4.26566 | BK43: 15.86751761 | BL43: 68.6683 | BN43: 61.021 | BO43: 75.41962 | BP43: 3.693283 | BQ43: 5.378439542 | BR43: 57.21903 | BT43: 49.36821 | BU43: 64.72241 | BV43: 3.94735 | BW43: 6.898666405 | BX43: 22.85306 | BZ43: 16.69873 | CA43: 30.44654 | CB43: 3.512567 | CC43: 15.37022613 | CD43: 25.43952 | CF43: 15.8465 | CG43: 38.20348 | CH43: 5.752051 | CI43: 22.61068998 | CJ43: 20.48 | CK43: * | CL43: 11.33 | CM43: 34.16 | CN43: 5.82 | CO43: 28.41796875 | CP43: 24.06763 | CR43: 19.13671 | CS43: 29.80085 | CT43: 2.724213 | CU43: 11.31899153 | CW43: 38.52021 | CY43: 26.85441 | CZ43: 51.67365 | DA43: 6.458062 | DB43: 16.76538627 | DC43: 27.95825 | DE43: 24.42669 | DF43: 31.78564 | DG43: 1.879438 | DH43: 6.722302004 | DI43: 24.28747 | DK43: 14.83224 | DL43: 37.14162 | DM43: 5.730752 | DN43: 23.5955083 | DO43: 10.92661 | DQ43: 7.851054 | DR43: 15.01072 | DS43: 1.809947 | DT43: 16.5645795 | DU43: 4.456072 | DW43: 2.935411 | DX43: 6.710038 | DY43: 0.941002 | DZ43: 21.11729793 | EA43: 6.115457 | EC43: 4.466074 | ED43: 8.320925 | EE43: 0.9717132 | EF43: 15.88946174 | EG43: 6.641796 | EI43: 4.796216 | EJ43: 9.129453 | EK43: 1.091839 | EL43: 16.43891201 | EM43: 4.290522 | EN43: * | EO43: 1.642718 | EP43: 10.74014 | EQ43: 2.068572 | ER43: 48.21259511 | ES43: 39.16903 | EU43: 28.22753 | EV43: 51.31913 | EW43: 5.99297 | EX43: 15.30027677 | EZ43: 59.68827 | FB43: 50.72236 | FC43: 68.05041 | FD43: 4.463509 | FE43: 7.478033791 | FF43: 72.02593 | FH43: 63.61539 | FI43: 79.13013 | FJ43: 3.978647 | FK43: 5.523909237 | FL43: 55.01061 | FN43: 45.27591 | FO43: 64.37616 | FP43: 4.932383 | FQ43: 8.966239422 | FR43: 62.74935 | FT43: 53.39071 | FU43: 71.24106 | FV43: 4.598799 | FW43: 7.328839263 | FX43: 47.18839 | FZ43: 39.93715 | GA43: 54.56026 | GB43: 3.757107 | GC43: 7.96193089 | GD43: 80.44208 | GF43: 68.79978 | GG43: 88.46824 | GH43: 5.003267 | GI43: 6.219713613 | GJ43: 20.90474 | GL43: 13.65988 | GM43: 30.62898 | GN43: 4.328919 | GO43: 20.70783468
B44: Macedon Ranges (S) | D44: 15.30604 | F44: 11.30768 | G44: 20.39314 | H44: 2.307523 | I44: 15.07589814 | J44: 55.5869 | L44: 48.152 | M44: 62.77975 | N44: 3.758114 | O44: 6.760790762 | P44: 7.528879 | Q44: * | R44: 4.463698 | S44: 12.42514 | T44: 1.972703 | U44: 26.2018157 | V44: 11.37975 | X44: 7.674034 | Y44: 16.55406 | Z44: 2.237942 | AA44: 19.66600321 | AB44: 0.8204778 | AC44: * | AD44: 0.3396245 | AE44: 1.968693 | AF44: 0.3682065 | AG44: 44.8770826 | AH44: 39.98442 | AJ44: 33.05843 | AK44: 47.33539 | AL44: 3.665938 | AM44: 9.168416098 | AN44: 5.041166 | AP44: 3.230073 | AQ44: 7.786031 | AR44: 1.133299 | AS44: 22.48089033 | AT44: 49.31908 | AV44: 41.97396 | AW44: 56.69372 | AX44: 3.782446 | AY44: 7.669336087 | AZ44: 10.54747 | BB44: 6.569769 | BC44: 16.50798 | BD44: 2.488261 | BE44: 23.59106971 | BF44: 14.92032 | BH44: 10.1538 | BI44: 21.39166 | BJ44: 2.84569 | BK44: 19.07258021 | BL44: 72.88999 | BN44: 66.75682 | BO44: 78.26012 | BP44: 2.942258 | BQ44: 4.036573472 | BR44: 55.55323 | BT44: 49.10962 | BU44: 61.81535 | BV44: 3.258586 | BW44: 5.865700338 | BX44: 14.59953 | BZ44: 10.14742 | CA44: 20.55806 | CB44: 2.63726 | CC44: 18.06400617 | CD44: 19.72849 | CF44: 14.34366 | CG44: 26.50923 | CH44: 3.100025 | CI44: 15.71344284 | CJ44: 12.35 | CL44: 7.8 | CM44: 19.01 | CN44: 2.82 | CO44: 22.8340081 | CP44: 22.78491 | CR44: 19.55619 | CS44: 26.37194 | CT44: 1.739296 | CU44: 7.633543429 | CW44: 29.49618 | CY44: 23.32244 | CZ44: 36.52571 | DA44: 3.382329 | DB44: 11.46700691 | DC44: 17.97487 | DE44: 14.48832 | DF44: 22.08377 | DG44: 1.935176 | DH44: 10.76600832 | DI44: 24.55753 | DK44: 18.37889 | DL44: 31.99899 | DM44: 3.483485 | DN44: 14.18499743 | DO44: 7.897258 | DQ44: 5.729607 | DR44: 10.79111 | DS44: 1.277054 | DT44: 16.17085323 | DU44: 5.650421 | DW44: 3.827924 | DX44: 8.26604 | DY44: 1.111197 | DZ44: 19.66573818 | EA44: 7.203431 | EC44: 5.455786 | ED44: 9.45491 | EE44: 1.01132 | EF44: 14.03942094 | EG44: 6.084015 | EI44: 4.010428 | EJ44: 9.127794 | EK44: 1.278616 | EL44: 21.01599026 | EM44: 1.376364 | EN44: * | EO44: 0.6441775 | EP44: 2.916342 | EQ44: 0.5309238 | ER44: 38.57437422 | ES44: 26.56721 | EU44: 21.7737 | EV44: 31.98454 | EW44: 2.609889 | EX44: 9.823722551 | EZ44: 56.62301 | FB44: 50.21279 | FC44: 62.81902 | FD44: 3.232699 | FE44: 5.709161346 | FF44: 88.43928 | FH44: 82.7812 | FI44: 92.40862 | FJ44: 2.423013 | FK44: 2.739747542 | FL44: 53.99805 | FN44: 47.17832 | FO44: 60.67127 | FP44: 3.463 | FQ44: 6.413194551 | FR44: 60.44035 | FT44: 52.55413 | FU44: 67.81844 | FV44: 3.922866 | FW44: 6.49047532 | FX44: 47.85465 | FZ44: 41.19388 | GA44: 54.59259 | GB44: 3.438559 | GC44: 7.185422942 | GD44: 77.12777 | GF44: 67.57327 | GG44: 84.5123 | GH44: 4.331501 | GI44: 5.616007049 | GJ44: 15.01759 | GL44: 11.16111 | GM44: 19.90799 | GN44: 2.221429 | GO44: 14.79218037
B45: Manningham (C) | D45: 16.58424 | F45: 12.43363 | G45: 21.77584 | H45: 2.375764 | I45: 14.32543186 | J45: 44.80645 | L45: 38.31838 | M45: 51.47628 | N45: 3.375905 | O45: 7.534417478 | P45: 2.694178 | Q45: * | R45: 1.244653 | S45: 5.733807 | T45: 1.052661 | U45: 39.07169459 | V45: 17.04059 | W45: * | X45: 9.679237 | Y45: 28.24944 | Z45: 4.692684 | AA45: 27.53827186 | AB45: 3.440893 | AC45: * | AD45: 1.773672 | AE45: 6.570444 | AF45: 1.15234 | AG45: 33.48956216 | AH45: 44.93841 | AJ45: 38.23746 | AK45: 51.82825 | AL45: 3.488336 | AM45: 7.762482028 | AN45: 5.734078 | AO45: * | AP45: 2.877145 | AQ45: 11.10355 | AR45: 1.98416 | AS45: 34.6029475 | AT45: 45.10833 | AV45: 38.57315 | AW45: 51.81672 | AX45: 3.398167 | AY45: 7.533346945 | AZ45: 5.183363 | BA45: * | BB45: 2.87748 | BC45: 9.162746 | BD45: 1.535982 | BE45: 29.63292364 | BF45: 8.592628 | BH45: 5.280038 | BI45: 13.68324 | BJ45: 2.094054 | BK45: 24.37035561 | BL45: 55.40683 | BN45: 48.76148 | BO45: 61.86437 | BP45: 3.36161 | BQ45: 6.067140098 | BR45: 38.39202 | BT45: 31.96744 | BU45: 45.24901 | BV45: 3.406957 | BW45: 8.874128009 | BX45: 16.76664 | BZ45: 12.80301 | CA45: 21.65265 | CB45: 2.251575 | CC45: 13.4288981 | CD45: 19.99283 | CF45: 14.85792 | CG45: 26.35308 | CH45: 2.930145 | CI45: 14.65597917 | CJ45: 11.33 | CL45: 7.37 | CM45: 17.01 | CN45: 2.42 | CO45: 21.3592233 | CP45: 19.35134 | CR45: 15.7823 | CS45: 23.50226 | CT45: 1.968115 | CU45: 10.17043264 | CW45: 16.76843 | CY45: 12.67529 | CZ45: 21.85257 | DA45: 2.334489 | DB45: 13.92192948 | DC45: 15.15782 | DE45: 12.37036 | DF45: 18.44122 | DG45: 1.545433 | DH45: 10.1956152 | DI45: 15.68011 | DK45: 11.2673 | DL45: 21.40429 | DM45: 2.57341 | DN45: 16.41193844 | DO45: 6.519147 | DQ45: 4.777888 | DR45: 8.836105 | DS45: 1.023552 | DT45: 15.7007044 | DU45: 6.200877 | DW45: 4.2908 | DX45: 8.882325 | DY45: 1.1525 | DZ45: 18.58608065 | EA45: 4.313662 | EC45: 3.005947 | ED45: 6.15419 | EE45: 0.7892151 | EF45: 18.29571023 | EG45: 5.069617 | EI45: 3.189172 | EJ45: 7.967585 | EK45: 1.186235 | EL45: 23.39890765 | EM45: 1.629453 | EN45: * | EO45: 0.9424297 | EP45: 2.803136 | EQ45: 0.4534641 | ER45: 27.82922244 | ES45: 17.50164 | EU45: 14.35158 | EV45: 21.1722 | EW45: 1.737806 | EX45: 9.929389474 | EZ45: 61.85352 | FB45: 54.78648 | FC45: 68.45203 | FD45: 3.506535 | FE45: 5.669095308 | FF45: 82.70529 | FH45: 76.17609 | FI45: 87.73324 | FJ45: 2.937484 | FK45: 3.551748625 | FL45: 53.74695 | FN45: 46.92507 | FO45: 60.43137 | FP45: 3.466485 | FQ45: 6.449640398 | FR45: 55.40806 | FT45: 45.86192 | FU45: 64.57126 | FV45: 4.828693 | FW45: 8.714784456 | FX45: 42.37336 | FZ45: 35.37388 | GA45: 49.69288 | GB45: 3.677326 | GC45: 8.678391329 | GD45: 87.60841 | GF45: 76.84098 | GG45: 93.77523 | GH45: 4.189658 | GI45: 4.782255494 | GJ45: 10.98228 | GL45: 7.321525 | GM45: 16.15435 | GN45: 2.223365 | GO45: 20.24502198
B46: Mansfield (S) | D46: 17.11175 | F46: 11.6876 | G46: 24.35887 | H46: 3.217487 | I46: 18.8027934 | J46: 56.96543 | L46: 45.96808 | M46: 67.31593 | N46: 5.5291 | O46: 9.70606208 | P46: 15.05186 | Q46: * | R46: 7.839186 | S46: 26.9595 | T46: 4.787338 | U46: 31.80562402 | V46: 16.05763 | X46: 12.29425 | Y46: 20.70112 | Z46: 2.138128 | AA46: 13.31533981 | AB46: 1.229114 | AC46: * | AD46: 0.5596191 | AE46: 2.677981 | AF46: 0.4915076 | AG46: 39.9887724 | AH46: 39.88654 | AJ46: 29.55545 | AK46: 51.20397 | AL46: 5.607171 | AM46: 14.05780246 | AN46: 7.66006 | AO46: * | AP46: 4.253528 | AQ46: 13.41261 | AR46: 2.253664 | AS46: 29.42097059 | AT46: 44.40136 | AV46: 37.18608 | AW46: 51.86075 | AX46: 3.770343 | AY46: 8.491503413 | AZ46: 18.22109 | BA46: * | BB46: 10.40224 | BC46: 29.95231 | BD46: 4.955787 | BE46: 27.198082 | BF46: 21.19666 | BH46: 12.8844 | BI46: 32.8494 | BJ46: 5.09715 | BK46: 24.04694891 | BL46: 66.62139 | BN46: 56.93661 | BO46: 75.08136 | BP46: 4.672533 | BQ46: 7.013562761 | BR46: 54.34576 | BT46: 45.07189 | BU46: 63.32782 | BV46: 4.709432 | BW46: 8.665684315 | BX46: 19.14337 | BY46: * | BZ46: 11.36178 | CA46: 30.42514 | CB46: 4.845588 | CC46: 25.312095 | CD46: 11.26879 | CF46: 7.00494 | CG46: 17.63583 | CH46: 2.664753 | CI46: 23.64719726 | CJ46: 16.27 | CK46: * | CL46: 8.36 | CM46: 29.29 | CN46: 5.26 | CO46: 32.32944069 | CP46: 20.23812 | CR46: 16.97774 | CS46: 23.94404 | CT46: 1.776677 | CU46: 8.778863847 | CW46: 20.22912 | CY46: 14.09485 | CZ46: 28.15802 | DA46: 3.584633 | DB46: 17.72016281 | DC46: 18.696 | DE46: 14.12158 | DF46: 24.33236 | DG46: 2.60067 | DH46: 13.91030167 | DI46: 21.98526 | DK46: 14.47987 | DL46: 31.92852 | DM46: 4.458209 | DN46: 20.27817274 | DO46: 8.605342 | DQ46: 6.618479 | DR46: 11.11765 | DS46: 1.139673 | DT46: 13.24378508 | DU46: 3.768007 | DW46: 2.711049 | DX46: 5.214953 | DY46: 0.6292417 | DZ46: 16.69958946 | EA46: 5.794803 | EC46: 3.841032 | ED46: 8.652947 | EE46: 1.202486 | EF46: 20.75111095 | EG46: 4.250116 | EI46: 3.052952 | EJ46: 5.888213 | EK46: 0.7126917 | EL46: 16.76875878 | EM46: 1.715599 | EO46: 1.050514 | EP46: 2.789881 | EQ46: 0.4277513 | ER46: 24.93305837 | ES46: 22.50004 | EU46: 17.21226 | EV46: 28.84625 | EW46: 2.970532 | EX46: 13.20234097 | EZ46: 41.83554 | FB46: 33.95918 | FC46: 50.15143 | FD46: 4.166224 | FE46: 9.95857589 | FF46: 66.8207 | FH46: 56.25169 | FI46: 75.92899 | FJ46: 5.075444 | FK46: 7.595616328 | FL46: 39.9427 | FN46: 32.8104 | FO46: 47.52868 | FP46: 3.780814 | FQ46: 9.465594464 | FR46: 59.55092 | FT46: 51.82696 | FU46: 66.82908 | FV46: 3.854756 | FW46: 6.473041894 | FX46: 54.67928 | FZ46: 48.51345 | GA46: 60.7048 | GB46: 3.125337 | GC46: 5.715761071 | GD46: 82.71523 | GF46: 73.95085 | GG46: 88.97059 | GH46: 3.808452 | GI46: 4.60429355 | GJ46: 12.35553 | GL46: 8.524962 | GM46: 17.5766 | GN46: 2.286652 | GO46: 18.50711382
B47: Maribyrnong (C) | D47: 15.29575 | F47: 11.79573 | G47: 19.60348 | H47: 1.985211 | I47: 12.97884053 | J47: 44.98166 | L47: 39.19481 | M47: 50.90757 | N47: 3.00153 | O47: 6.672786198 | P47: 6.453782 | Q47: * | R47: 3.758579 | S47: 10.86351 | T47: 1.752717 | U47: 27.15798271 | V47: 15.05511 | X47: 10.57317 | Y47: 20.99099 | Z47: 2.641285 | AA47: 17.54410961 | AB47: 3.156033 | AC47: * | AD47: 1.512576 | AE47: 6.467884 | AF47: 1.173163 | AG47: 37.17207646 | AH47: 44.19948 | AJ47: 38.60623 | AK47: 49.94385 | AL47: 2.904513 | AM47: 6.57137369 | AN47: 4.384995 | AP47: 2.685715 | AQ47: 7.081194 | AR47: 1.086359 | AS47: 24.77446382 | AT47: 39.65978 | AV47: 34.05348 | AW47: 45.55152 | AX47: 2.945519 | AY47: 7.426967573 | AZ47: 12.12123 | BB47: 8.569802 | BC47: 16.87281 | BD47: 2.099554 | BE47: 17.32129495 | BF47: 15.29804 | BH47: 11.38841 | BI47: 20.24323 | BJ47: 2.249402 | BK47: 14.70385749 | BL47: 52.42381 | BN47: 46.68521 | BO47: 58.09912 | BP47: 2.924374 | BQ47: 5.578331678 | BR47: 41.07009 | BT47: 35.67914 | BU47: 46.68438 | BV47: 2.818424 | BW47: 6.862473396 | BX47: 22.92351 | BZ47: 18.73495 | CA47: 27.72899 | CB47: 2.295893 | CC47: 10.01545139 | CD47: 25.8661 | CF47: 21.15117 | CG47: 31.21596 | CH47: 2.571995 | CI47: 9.943497474 | CJ47: 18.06 | CL47: 14.12 | CM47: 22.8 | CN47: 2.21 | CO47: 12.23698782 | CP47: 22.52473 | CR47: 18.60415 | CS47: 26.99749 | CT47: 2.142128 | CU47: 9.510116214 | CW47: 25.28043 | CY47: 20.622 | CZ47: 30.58571 | DA47: 2.545705 | DB47: 10.06986432 | DC47: 21.62347 | DE47: 17.88842 | DF47: 25.89247 | DG47: 2.042166 | DH47: 9.444210388 | DI47: 21.71146 | DK47: 17.09715 | DL47: 27.16307 | DM47: 2.56864 | DN47: 11.83080272 | DO47: 9.74961 | DQ47: 6.56677 | DR47: 14.24002 | DS47: 1.929763 | DT47: 19.79323275 | DU47: 8.309981 | DW47: 5.71232 | DX47: 11.93934 | DY47: 1.565721 | DZ47: 18.84145102 | EA47: 7.757207 | EC47: 5.377549 | ED47: 11.06674 | EE47: 1.430557 | EF47: 18.44165045 | EG47: 6.148877 | EI47: 4.275685 | EJ47: 8.767554 | EK47: 1.127897 | EL47: 18.3431381 | EM47: 1.358805 | EN47: * | EO47: 0.5576486 | EP47: 3.273075 | EQ47: 0.6145777 | ER47: 45.22927867 | ES47: 27.63253 | EU47: 23.31114 | EV47: 32.4164 | EW47: 2.32677 | EX47: 8.420401606 | EZ47: 52.82051 | FB47: 47.72018 | FC47: 57.86263 | FD47: 2.596212 | FE47: 4.915158903 | FF47: 73.33945 | FH47: 67.75023 | FI47: 78.27068 | FJ47: 2.689415 | FK47: 3.667078223 | FL47: 46.35067 | FN47: 41.01785 | FO47: 51.76829 | FP47: 2.752991 | FQ47: 5.939484801 | FR47: 63.76145 | FT47: 52.75125 | FU47: 73.49511 | FV47: 5.362016 | FW47: 8.409495079 | FX47: 41.32282 | FZ47: 32.6459 | GA47: 50.57428 | GB47: 4.621733 | GC47: 11.18445692 | GD47: 82.79024 | GF47: 69.52952 | GG47: 91.02485 | GH47: 5.421175 | GI47: 6.548084653 | GJ47: 17.55002 | GL47: 13.43392 | GM47: 22.59805 | GN47: 2.332789 | GO47: 13.29222987
B48: Maroondah (C) | D48: 14.5889 | F48: 11.02633 | G48: 19.05599 | H48: 2.039671 | I48: 13.98097869 | J48: 52.17898 | L48: 45.5774 | M48: 58.70531 | N48: 3.368301 | O48: 6.455283334 | P48: 12.66654 | R48: 8.576654 | S48: 18.31601 | T48: 2.458949 | U48: 19.41294939 | V48: 17.10326 | X48: 10.74524 | Y48: 26.12231 | Z48: 3.896763 | AA48: 22.78374415 | AB48: 2.544783 | AC48: ** | AD48: 0.7586495 | AE48: 8.189114 | AF48: 1.554318 | AG48: 61.0786067 | AH48: 42.29829 | AJ48: 35.96372 | AK48: 48.89665 | AL48: 3.317265 | AM48: 7.842551082 | AN48: 4.885224 | AO48: * | AP48: 2.896077 | AQ48: 8.126266 | AR48: 1.288584 | AS48: 26.37717329 | AT48: 42.42671 | AV48: 35.99409 | AW48: 49.12657 | AX48: 3.369045 | AY48: 7.940858483 | AZ48: 13.59936 | BB48: 9.513928 | BC48: 19.06942 | BD48: 2.418684 | BE48: 17.78527813 | BF48: 15.06555 | BH48: 10.77659 | BI48: 20.6661 | BJ48: 2.508845 | BK48: 16.65286033 | BL48: 62.82796 | BN48: 56.17377 | BO48: 69.02886 | BP48: 3.296084 | BQ48: 5.24620567 | BR48: 46.70122 | BT48: 40.2136 | BU48: 53.30234 | BV48: 3.358086 | BW48: 7.190574465 | BX48: 14.14074 | BZ48: 10.04912 | CA48: 19.5365 | CB48: 2.404211 | CC48: 17.00201687 | CD48: 18.21077 | CF48: 13.56789 | CG48: 24.00124 | CH48: 2.656035 | CI48: 14.58496813 | CJ48: 13.07 | CL48: 8.81 | CM48: 18.97 | CN48: 2.57 | CO48: 19.66335119 | CP48: 22.61414 | CR48: 18.83187 | CS48: 26.90426 | CT48: 2.060191 | CU48: 9.110189466 | CW48: 26.22112 | CY48: 21.02095 | CZ48: 32.18352 | DA48: 2.853987 | DB48: 10.88430624 | DC48: 21.83113 | DE48: 18.10396 | DF48: 26.08125 | DG48: 2.035461 | DH48: 9.323663044 | DI48: 19.87563 | DK48: 15.17716 | DL48: 25.58981 | DM48: 2.654325 | DN48: 13.35467102 | DO48: 7.446432 | DQ48: 4.912477 | DR48: 11.1344 | DS48: 1.557575 | DT48: 20.91706471 | DU48: 4.575156 | DV48: * | DW48: 2.761728 | DX48: 7.487641 | DY48: 1.166303 | DZ48: 25.49209251 | EA48: 6.296412 | EC48: 4.465576 | ED48: 8.808659 | EE48: 1.092473 | EF48: 17.35072292 | EG48: 4.591306 | EI48: 3.028097 | EJ48: 6.904045 | EK48: 0.9665588 | EL48: 21.05193599 | EM48: 2.219064 | EN48: * | EO48: 0.9871053 | EP48: 4.912288 | EQ48: 0.9106272 | ER48: 41.03654514 | ES48: 25.04291 | EU48: 20.54857 | EV48: 30.14724 | EW48: 2.452015 | EX48: 9.791254291 | EZ48: 54.47559 | FB48: 48.39579 | FC48: 60.42484 | FD48: 3.083389 | FE48: 5.66012961 | FF48: 79.12155 | FH48: 72.82245 | FI48: 84.27591 | FJ48: 2.921468 | FK48: 3.692379636 | FL48: 49.84775 | FN48: 43.49585 | FO48: 56.20456 | FP48: 3.259586 | FQ48: 6.539083509 | FR48: 69.69588 | FT48: 60.57592 | FU48: 77.49008 | FV48: 4.346042 | FW48: 6.235722972 | FX48: 53.38189 | FZ48: 45.26432 | GA48: 61.32424 | GB48: 4.13239 | GC48: 7.741183386 | GD48: 66.96458 | GF48: 52.21543 | GG48: 78.9928 | GH48: 6.973367 | GI48: 10.41351562 | GJ48: 14.60609 | GL48: 10.50389 | GM48: 19.95318 | GN48: 2.396584 | GO48: 16.4081147
B49: Melbourne (C) | D49: 8.627076 | F49: 5.381419 | G49: 13.54993 | H49: 2.038468 | I49: 23.62872426 | J49: 30.78513 | L49: 24.19329 | M49: 38.26639 | N49: 3.608444 | O49: 11.72138627 | P49: 11.4483 | Q49: * | R49: 5.769194 | S49: 21.44555 | T49: 3.866056 | U49: 33.76969506 | V49: 22.37547 | X49: 17.90345 | Y49: 27.58914 | Z49: 2.47222 | AA49: 11.04879585 | AB49: 0.7687851 | AC49: ** | AD49: 0.2456581 | AE49: 2.379335 | AF49: 0.4460903 | AG49: 58.02535715 | AH49: 46.92912 | AJ49: 38.82035 | AK49: 55.20333 | AL49: 4.217117 | AM49: 8.986141227 | AN49: 5.743776 | AP49: 3.540455 | AQ49: 9.187679 | AR49: 1.400312 | AS49: 24.37964155 | AT49: 49.46887 | AV49: 41.73007 | AW49: 57.2332 | AX49: 3.986955 | AY49: 8.05952309 | AZ49: 4.25606 | BA49: * | BB49: 2.339461 | BC49: 7.620312 | BD49: 1.285331 | BE49: 30.20002068 | BF49: 9.062941 | BH49: 6.115314 | BI49: 13.23112 | BJ49: 1.788294 | BK49: 19.73193911 | BL49: 54.79651 | BN49: 46.51236 | BO49: 62.82313 | BP49: 4.197982 | BQ49: 7.661038997 | BR49: 41.10981 | BT49: 33.39313 | BU49: 49.29011 | BV49: 4.088764 | BW49: 9.945956938 | BX49: 20.09937 | BZ49: 13.53988 | CA49: 28.77891 | CB49: 3.883295 | CC49: 19.32048119 | CD49: 24.16481 | CF49: 16.13885 | CG49: 34.53828 | CH49: 4.714675 | CI49: 19.51049894 | CJ49: 17.76 | CL49: 11.54 | CM49: 26.33 | CN49: 3.76 | CO49: 21.17117117 | CP49: 27.0208 | CR49: 19.74252 | CS49: 35.78588 | CT49: 4.113849 | CU49: 15.22474908 | CW49: 22.05248 | CY49: 16.13777 | CZ49: 29.37566 | DA49: 3.37995 | DB49: 15.32684759 | DC49: 11.75979 | DE49: 7.81041 | DF49: 17.33076 | DG49: 2.39835 | DH49: 20.39449684 | DI49: 15.19695 | DK49: 10.98185 | DL49: 20.65452 | DM49: 2.454888 | DN49: 16.15382034 | DO49: 6.186236 | DP49: * | DQ49: 3.614344 | DR49: 10.39094 | DS49: 1.671338 | DT49: 27.01704235 | DU49: 2.518099 | DV49: * | DW49: 1.018043 | DX49: 6.092396 | DY49: 1.153299 | DZ49: 45.80038354 | EA49: 5.104255 | EB49: * | EC49: 2.788621 | ED49: 9.161542 | EE49: 1.553512 | EF49: 30.43562675 | EG49: 2.371845 | EH49: * | EI49: 1.270402 | EJ49: 4.385822 | EK49: 0.7508444 | EL49: 31.65655429 | EM49: 1.13698 | EN49: ** | EO49: 0.3952638 | EP49: 3.225461 | EQ49: 0.610219 | ER49: 53.6701613 | ES49: 17.77544 | EU49: 12.76134 | EV49: 24.21286 | EW49: 2.912602 | EX49: 16.38554095 | EZ49: 52.53976 | FB49: 45.92563 | FC49: 59.06597 | FD49: 3.371511 | FE49: 6.417065856 | FF49: 79.43325 | FH49: 74.68512 | FI49: 83.48771 | FJ49: 2.245049 | FK49: 2.82633406 | FL49: 44.19037 | FN49: 36.39191 | FO49: 52.28628 | FP49: 4.088797 | FQ49: 9.252687859 | FR49: 44.18605 | FT49: 26.61698 | FU49: 63.34193 | FV49: 9.820511 | FW49: 22.22536525 | FX49: 39.68892 | FZ49: 25.6941 | GA49: 55.60242 | GB49: 7.8584 | GC49: 19.79998448 | GD49: 90.27122 | GF49: 76.06311 | GG49: 96.44054 | GH49: 4.80097 | GI49: 5.318383866 | GJ49: 12.97054 | GL49: 9.342535 | GM49: 17.73184 | GN49: 2.124815 | GO49: 16.38185457
B50: Melton (S) | D50: 29.6224 | F50: 24.67826 | G50: 35.09554 | H50: 2.664418 | I50: 8.994605434 | J50: 57.36178 | L50: 51.51795 | M50: 63.00701 | N50: 2.94353 | O50: 5.131517885 | P50: 17.3832 | R50: 13.26814 | S50: 22.44425 | T50: 2.335499 | U50: 13.43538014 | V50: 12.7614 | X50: 8.094303 | Y50: 19.54716 | Z50: 2.88189 | AA50: 22.58286708 | AB50: 4.25975 | AC50: * | AD50: 2.17021 | AE50: 8.192678 | AF50: 1.448138 | AG50: 33.99584483 | AH50: 40.37101 | AJ50: 34.83014 | AK50: 46.16889 | AL50: 2.904462 | AM50: 7.19442491 | AN50: 3.015179 | AO50: * | AP50: 1.546576 | AQ50: 5.796242 | AR50: 1.018469 | AS50: 33.77806094 | AT50: 35.54651 | AV50: 30.21679 | AW50: 41.26047 | AX50: 2.827512 | AY50: 7.954401149 | AZ50: 18.5358 | BB50: 14.34908 | BC50: 23.60742 | BD50: 2.358452 | BE50: 12.72376698 | BF50: 21.25409 | BH50: 16.80929 | BI50: 26.49983 | BJ50: 2.472274 | BK50: 11.63199177 | BL50: 53.1477 | BN50: 47.48781 | BO50: 58.72774 | BP50: 2.879398 | BQ50: 5.417728331 | BR50: 37.52269 | BT50: 32.1583 | BU50: 43.21196 | BV50: 2.830463 | BW50: 7.543337111 | BX50: 24.10441 | BZ50: 19.61219 | CA50: 29.25116 | CB50: 2.461711 | CC50: 10.21269967 | CD50: 21.16797 | CF50: 16.74137 | CG50: 26.39397 | CH50: 2.462493 | CI50: 11.63310889 | CJ50: 20.18 | CL50: 15.69 | CM50: 25.56 | CN50: 2.52 | CO50: 12.4876115 | CP50: 32.24295 | CR50: 27.54308 | CS50: 37.3316 | CT50: 2.50356 | CU50: 7.764674138 | CW50: 31.52106 | CY50: 26.42782 | CZ50: 37.10091 | DA50: 2.730929 | DB50: 8.663823488 | DC50: 21.08433 | DE50: 17.34888 | DF50: 25.37713 | DG50: 2.047992 | DH50: 9.713336872 | DI50: 17.63401 | DK50: 13.85206 | DL50: 22.18265 | DM50: 2.121485 | DN50: 12.03064419 | DO50: 8.642519 | DQ50: 6.10491 | DR50: 12.09901 | DS50: 1.510603 | DT50: 17.47873508 | DU50: 7.13181 | DW50: 4.90519 | DX50: 10.26011 | DY50: 1.344768 | DZ50: 18.85591456 | EA50: 6.059956 | EC50: 3.979872 | ED50: 9.123894 | EE50: 1.284773 | EF50: 21.20102852 | EG50: 4.064491 | EI50: 2.658162 | EJ50: 6.167711 | EK50: 0.8737564 | EL50: 21.49731418 | EM50: 3.736671 | EN50: * | EO50: 2.135193 | EP50: 6.460031 | EQ50: 1.057324 | ER50: 28.29588155 | ES50: 26.42376 | EU50: 21.86618 | EV50: 31.54772 | EW50: 2.474033 | EX50: 9.362910502 | EZ50: 62.59571 | FB50: 57.55662 | FC50: 67.37566 | FD50: 2.512288 | FE50: 4.013514664 | FF50: 82.81964 | FH50: 77.97573 | FI50: 86.77885 | FJ50: 2.240592 | FK50: 2.705387273 | FL50: 56.85697 | FN50: 51.33429 | FO50: 62.21424 | FP50: 2.786259 | FQ50: 4.900470426 | FR50: 59.12533 | FT50: 48.46711 | FU50: 68.98959 | FV50: 5.307644 | FW50: 8.976937634 | FX50: 38.10479 | FZ50: 29.85416 | GA50: 47.10441 | GB50: 4.441891 | GC50: 11.65704102 | GD50: 80.94272 | GF50: 67.65014 | GG50: 89.61207 | GH50: 5.575767 | GI50: 6.888534262 | GJ50: 17.03876 | GL50: 12.98968 | GM50: 22.03044 | GN50: 2.300517 | GO50: 13.50166914
B51: Mildura (RC) | D51: 31.62253 | F51: 25.09561 | G51: 38.96395 | H51: 3.556052 | I51: 11.24531149 | J51: 57.88933 | L51: 50.54971 | M51: 64.89607 | N51: 3.684462 | O51: 6.364665129 | P51: 16.11566 | R51: 11.63288 | S51: 21.89783 | T51: 2.607214 | U51: 16.17813977 | V51: 17.38933 | X51: 11.82708 | Y51: 24.83083 | Z51: 3.302723 | AA51: 18.99281341 | AB51: 1.917252 | AC51: * | AD51: 1.066885 | AE51: 3.421964 | AF51: 0.5706449 | AG51: 29.76368782 | AH51: 40.59234 | AJ51: 33.6923 | AK51: 47.88499 | AL51: 3.644159 | AM51: 8.97745486 | AN51: 2.916788 | AP51: 1.845732 | AQ51: 4.58036 | AR51: 0.6769676 | AS51: 23.20935221 | AT51: 39.6162 | AV51: 32.76782 | AW51: 46.89749 | AX51: 3.627533 | AY51: 9.15669095 | AZ51: 15.07555 | BB51: 10.71718 | BC51: 20.79354 | BD51: 2.55577 | BE51: 16.95307966 | BF51: 18.54065 | BH51: 13.57936 | BI51: 24.79451 | BJ51: 2.855179 | BK51: 15.39956258 | BL51: 57.59087 | BN51: 50.24996 | BO51: 64.61143 | BP51: 3.68845 | BQ51: 6.404574197 | BR51: 47.56562 | BT51: 40.33661 | BU51: 54.89811 | BV51: 3.741133 | BW51: 7.865203901 | BX51: 22.26793 | BZ51: 17.20083 | CA51: 28.31722 | CB51: 2.837795 | CC51: 12.74386528 | CD51: 21.27241 | CF51: 15.82371 | CG51: 27.9738 | CH51: 3.100079 | CI51: 14.57323829 | CJ51: 17.42 | CL51: 12.43 | CM51: 23.87 | CN51: 2.91 | CO51: 16.70493685 | CP51: 26.49699 | CR51: 22.0073 | CS51: 31.5323 | CT51: 2.433926 | CU51: 9.185669769 | CW51: 34.92993 | CY51: 28.17837 | CZ51: 42.3454 | DA51: 3.635528 | DB51: 10.40805979 | DC51: 23.42885 | DE51: 19.21395 | DF51: 28.24509 | DG51: 2.305726 | DH51: 9.841396398 | DI51: 25.54678 | DK51: 19.20733 | DL51: 33.12082 | DM51: 3.560774 | DN51: 13.93824975 | DO51: 8.47533 | DQ51: 6.347159 | DR51: 11.23149 | DS51: 1.235317 | DT51: 14.57544426 | DU51: 6.294859 | DW51: 4.167633 | DX51: 9.40134 | DY51: 1.308602 | DZ51: 20.78842433 | EA51: 5.534991 | EC51: 4.202663 | ED51: 7.257694 | EE51: 0.7719481 | EF51: 13.94669115 | EG51: 6.400684 | EI51: 4.791963 | EJ51: 8.50125 | EK51: 0.9368595 | EL51: 14.63686537 | EM51: 2.064163 | EN51: * | EO51: 0.8025671 | EP51: 5.204871 | EQ51: 0.9875171 | ER51: 47.84104259 | ES51: 32.14626 | EU51: 26.11426 | EV51: 38.83915 | EW51: 3.260455 | EX51: 10.14256402 | EZ51: 53.57017 | FB51: 46.7242 | FC51: 60.28419 | FD51: 3.480446 | FE51: 6.496985169 | FF51: 85.26127 | FH51: 78.43217 | FI51: 90.19827 | FJ51: 2.976202 | FK51: 3.490684575 | FL51: 49.71597 | FN51: 42.68462 | FO51: 56.75857 | FP51: 3.61422 | FQ51: 7.269736465 | FR51: 74.3084 | FT51: 66.1746 | FU51: 81.04651 | FV51: 3.807987 | FW51: 5.124571381 | FX51: 57.70646 | FZ51: 50.66552 | GA51: 64.44765 | GB51: 3.537674 | GC51: 6.130464423 | GD51: 79.07811 | GF51: 69.05931 | GG51: 86.48753 | GH51: 4.445829 | GI51: 5.62207291 | GJ51: 20.56663 | GL51: 15.55169 | GM51: 26.68768 | GN51: 2.839895 | GO51: 13.80826611
B52: Mitchell (S) | D52: 32.17985 | F52: 26.72502 | G52: 38.16811 | H52: 2.929543 | I52: 9.103656481 | J52: 62.65494 | L52: 55.5973 | M52: 69.21201 | N52: 3.493093 | O52: 5.575127835 | P52: 21.68523 | R52: 15.80277 | S52: 29.00312 | T52: 3.369389 | U52: 15.53771392 | V52: 16.45421 | X52: 10.16435 | Y52: 25.5302 | Z52: 3.887485 | AA52: 23.62608111 | AB52: 1.781487 | AC52: * | AD52: 0.7195301 | AE52: 4.342239 | AF52: 0.8189396 | AG52: 45.96944014 | AH52: 38.99552 | AJ52: 32.58987 | AK52: 45.8047 | AL52: 3.389793 | AM52: 8.692775478 | AN52: 5.683312 | AO52: * | AP52: 3.152312 | AQ52: 10.03588 | AR52: 1.684309 | AS52: 29.63604673 | AT52: 38.48811 | AV52: 32.13712 | AW52: 45.25717 | AX52: 3.365092 | AY52: 8.743198874 | AZ52: 17.25991 | BB52: 12.34648 | BC52: 23.60219 | BD52: 2.861245 | BE52: 16.57740394 | BF52: 23.66143 | BH52: 17.94983 | BI52: 30.51455 | BJ52: 3.210865 | BK52: 13.57003782 | BL52: 66.56403 | BN52: 60.49883 | BO52: 72.127 | BP52: 2.977733 | BQ52: 4.473486656 | BR52: 49.8711 | BT52: 43.19522 | BU52: 56.55158 | BV52: 3.427656 | BW52: 6.873030673 | BX52: 25.13006 | BZ52: 19.54995 | CA52: 31.67579 | CB52: 3.100329 | CC52: 12.3371333 | CD52: 23.8249 | CF52: 18.2016 | CG52: 30.53692 | CH52: 3.152293 | CI52: 13.23108596 | CJ52: 21.79 | CL52: 16.05 | CM52: 28.87 | CN52: 3.27 | CO52: 15.00688389 | CP52: 28.62874 | CR52: 24.51419 | CS52: 33.13078 | CT52: 2.201774 | CU52: 7.69078206 | CW52: 32.92092 | CY52: 26.56627 | CZ52: 39.9683 | DA52: 3.436078 | DB52: 10.43736931 | DC52: 26.99925 | DE52: 22.6107 | DF52: 31.8886 | DG52: 2.370793 | DH52: 8.78095873 | DI52: 23.89048 | DK52: 18.28224 | DL52: 30.57542 | DM52: 3.141587 | DN52: 13.14995345 | DO52: 7.590014 | DQ52: 5.68929 | DR52: 10.05803 | DS52: 1.104344 | DT52: 14.54995999 | DU52: 7.034552 | DW52: 4.90786 | DX52: 9.986017 | DY52: 1.276603 | DZ52: 18.14760912 | EA52: 9.244268 | EC52: 7.060568 | ED52: 12.01603 | EE52: 1.255242 | EF52: 13.57859811 | EG52: 6.066007 | EI52: 4.398036 | EJ52: 8.311567 | EK52: 0.9859291 | EL52: 16.2533459 | EM52: 2.323108 | EN52: * | EO52: 1.356188 | EP52: 3.951796 | EQ52: 0.6345131 | ER52: 27.31311243 | ES52: 30.71719 | EU52: 26.21833 | EV52: 35.61538 | EW52: 2.402589 | EX52: 7.821643191 | EZ52: 59.12607 | FB52: 54.12777 | FC52: 63.94256 | FD52: 2.511519 | FE52: 4.24773539 | FF52: 82.73869 | FH52: 75.62593 | FI52: 88.10238 | FJ52: 3.169193 | FK52: 3.830364005 | FL52: 57.95767 | FN52: 51.30388 | FO52: 64.33434 | FP52: 3.342527 | FQ52: 5.767186638 | FR52: 51.79127 | FT52: 43.62808 | FU52: 59.85994 | FV52: 4.177428 | FW52: 8.065892186 | FX52: 44.93652 | FZ52: 38.03373 | GA52: 52.03999 | GB52: 3.596295 | GC52: 8.003056311 | GD52: 81.33276 | GF52: 71.78034 | GG52: 88.18394 | GH52: 4.168431 | GI52: 5.12515621 | GJ52: 17.78981 | GL52: 13.02463 | GM52: 23.8209 | GN52: 2.746843 | GO52: 15.44054152
D53: 2017 Victorian Population Health Survey
D54: Proportion (%) of adults (18+ years), with selected risk factors, chronic disease and screening tests, by local government area, Victoria, 2017 (continued)
D55: Modifiable risk factorsa | CW55: Doctor diagnosed chronic diseasea | EZ55: Screening tests and treatmenta, b
A56: Local Government Area | D56: Obese | F56: OB_LL_2017 | G56: OB_UL_2017 | H56: OB_SE_2017 | I56: OB_RSE_2017 | J56: Overweight | L56: OW_LL_2017 | M56: OW_UL_2017 | N56: OW_SE_2017 | O56: OW_RSE_2017 | P56: Daily consumer of sugar sweetened soft drinks | R56: SSB_LL_2017 | S56: SSB_UL_2017 | T56: SSB_SE_2017 | U56: SSB_RSE_ | V56: Take-away food consumed > 1 day/week | X56: TA_LL_2017 | Y56: TA_UL_2017 | Z56: TA_SE_2017 | AA56: TA_RSE_2017 | AB56: Sedentary (inactive) | AD56: SED_LL_2017 | AE56: SED_UL_2017 | AF56: SED_SE_2017 | AG56: SED_RSE_2017 | AH56: Insufficiently physically active | AJ56: INSUF_LL_2017 | AK56: INSUF_UL_2017 | AL56: INSUF_SE_2017 | AM56: INSUF_RSE_2017 | AN56: Complied with vegetable consumption guidelines | AP56: veg_13_LL_2017 | AQ56: veg_13_UL_2017 | AR56: veg_13_SE_2017 | AS56: veg_13_RSE_2017 | AT56: Complied with fruit consumption guidelines | AV56: frt_13_LL_2017 | AW56: frt_13_UL_2017 | AX56: frt_13_SE_2017 | AY56: frt_13_RSE_2017 | AZ56: Daily smoker | BB56: daily_smoker_LL_2017 | BC56: daily_smoker_UL_2017 | BD56: daily_smoker_SE_2017 | BE56: daily_smoker_RSE_2017 | BF56: Current (i.e. daily or occasional) smoker | BH56: smoker_LL_2017 | BI56: smoker_UL_2017 | BJ56: smoker_SE_2017 | BK56: smoker_RSE_2017 | BL56: Increased lifetime risk of alcohol-related harm | BN56: alc_lt09_LL_2017 | BO56: alc_lt09_UL_2017 | BP56: alc_lt09_SE_2017 | BQ56: alc_lt09_RSE_2017 | BR56: Increased risk of injury from a single occasion of drinking | BT56: alc_so09_LL_2017 | BU56: alc_so09_UL_2017 | BV56: alc_so09_SE_2017 | BW56: alc_so09_RSE_2017 | BX56: Fair or poor self-reported health | BZ56: srh_LL_2017 | CA56: srh_UL_2017 | CB56: srh_SE_2017 | CC56: srh_RSE_2017 | CD56: Low or medium life satisfaction | CF56: sat_cat2_LL_2017 | CG56: sat_cat2_UL_2017 | CH56: sat_cat2_SE_2017 | CI56: sat_cat2_RSE_2017 | CJ56: High, or very high, levels of psychological distress | CL56: k10scr3_LL_2017 | CM56: k10scr3_UL_2017 | CN56: k10scr3_SE_2017 | CO56: k10scr3_RSE_2017 | CP56: Doctor diagnosed hypertension | CR56: highbp_LL_2017 | CS56: highbp_UL_2017 | CT56: highbp_SE_2017 | CU56: highbp_RSE | CW56: Anxiety or depression | CY56: depression_LL_2017 | CZ56: depression_UL_2017 | DA56: depression_SE_2017 | DB56: depression_RSE_2017 | DC56: Arthritis | DE56: arthritis_LL_2017 | DF56: arthritis_UL_2017 | DG56: arthritis_SE_2017 | DH56: arthritis_RSE_2017 | DI56: Asthma (ever diagnosed) | DK56: asthma_LL_2017 | DL56: asthma_UL_2017 | DM56: asthma_SE_2017 | DN56: asthma_RSE_2017 | DO56: Cancer | DQ56: cancer_LL_2017 | DR56: cancer_UL_2017 | DS56: cancer_SE_2017 | DT56: cancer_RSE_2017 | DU56: Type 2 diabetes | DW56: type2_dm_LL_2017 | DX56: type2_dm_UL_2017 | DY56: type2_dm_SE_2017 | DZ56: type2_dm_RSE | EA56: Heart disease | EC56: heart_LL_2017 | ED56: heart_UL_2017 | EE56: heart_SE_2017 | EF56: heart_RSE_2017 | EG56: Osteoporosis | EI56: osteoporosis_LL_2017 | EJ56: osteoporosis_UL_2017 | EK56: osteoporosis_SE_2017 | EL56: osteoporosis_RSE_2017 | EM56: Stroke | EO56: stroke_LL_2017 | EP56: stroke_UL_2017 | EQ56: stroke_SE_2017 | ER56: stroke_RSE_2017 | ES56: Two, or more, chronic diseases | EU56: multimorb_LL_2017 | EV56: multimorb_UL_2017 | EW56: multimorb_SE_2017 | EX56: multimorb_RSE_2017 | EZ56: Had a blood-lipids test in last 2 yearsa | FB56: chol_chk_LL_2017 | FC56: chol_chk_UL_2017 | FD56: chol_chk_SE_2017 | FE56: chol_chk_RSE | FF56: Had a blood-pressure test in last 2 yearsa | FH56: bp_chk_LL_2017 | FI56: bp_chk_UL_2017 | FJ56: bp_chk_SE_2017 | FK56: bp_chk_RSE | FL56: Had a blood-glucose test in last 2 yearsa | FN56: diab_chk_LL_2017 | FO56: diab_chk_UL_2017 | FP56: diab_chk_SE_2017 | FQ56: diab_chk_RSE | FR56: Had a faecal occult blood test (50+ years of age)b | FT56: fobt_LL_2017 | FU56: fobt_UL_2017 | FV56: fobt_SE_2017 | FW56: fobt_RSE | FX56: Had a bowel exam to detect cancer (last 5 years)b | FZ56: bwlexm_LL_2017 | GA56: bwlexm_UL_2017 | GB56: bwlexm_SE_2017 | GC56: bwlexm_RSE | GD56: Had a mammogram to detect cancer in last 2 yearsb | GF56: mgrm2yrs_LL_2017 | GG56: mgrm2yrs_UL_2017 | GH56: mgrm2yrs_SE_2017 | GI56: mgrm2yrs_RSE | GJ56: Sought help for a mental health related problemb | GL56: mh_prob_LL_2017 | GM56: mh_prob_UL_2017 | GN56: mh_prob_SE_2017 | GO56: mh_prob_RSE
B57: Moira (S) | D57: 25.80936 | E57: =IF(I57>25,"*",IF(I57>50,"**","")) ->  | F57: 19.47631 | G57: 33.34884 | H57: 3.55066 | I57: =H57/D57*100 -> 13.75725706 | J57: 59.36357 | K57: =IF(O57>25,"*",IF(O57>50,"**","")) ->  | L57: 51.52044 | M57: 66.75657 | N57: 3.916014 | O57: =N57/J57*100 -> 6.596661892 | P57: 21.56667 | Q57: =IF(U57>50,"**",IF(U57>25,"*","")) ->  | R57: 14.90502 | S57: 30.15075 | T57: 3.891955 | U57: =T57/P57*100 -> 18.04615641 | V57: 14.53553 | W57: =IF(AA57>50,"**",IF(AA57>25,"*","")) ->  | X57: 11.17836 | Y57: 18.68882 | Z57: 1.908668 | AA57: =Z57/V57*100 -> 13.13105198 | AB57: 1.515073 | AC57: =IF(AG57>50,"**",IF(AG57>25,"*","")) -> * | AD57: 0.7411768 | AE57: 3.07202 | AF57: 0.5502523 | AG57: =AF57/AB57*100 -> 36.31853383 | AH57: 47.29247 | AI57: =IF(AM57>50,"**",IF(AM57>25,"*","")) ->  | AJ57: 39.84144 | AK57: 54.86609 | AL57: 3.861904 | AM57: =AL57/AH57*100 -> 8.166001903 | AN57: 5.146363 | AO57: =IF(AS57>50,"**",IF(AS57>25,"*","")) ->  | AP57: 3.477202 | AQ57: 7.554064 | AR57: 1.019886 | AS57: =AR57/AN57*100 -> 19.81760711 | AT57: 39.11346 | AU57: =IF(AY57>50,"**",IF(AY57>25,"*","")) ->  | AV57: 32.24844 | AW57: 46.43822 | AX57: 3.643025 | AY57: =AX57/AT57*100 -> 9.313993188 | AZ57: 19.68824 | BA57: =IF(BE57>50,"**",IF(BE57>25,"*","")) ->  | BB57: 13.94932 | BC57: 27.04612 | BD57: 3.336678 | BE57: =BD57/AZ57*100 -> 16.9475687 | BF57: 24.00129 | BG57: =IF(BK57>50,"**",IF(BK57>25,"*","")) ->  | BH57: 17.99786 | BI57: 31.24425 | BJ57: 3.38641 | BK57: =BJ57/BF57*100 -> 14.10928329 | BL57: 68.27542 | BM57: =IF(BQ57>50,"**",IF(BQ57>25,"*","")) ->  | BN57: 60.92229 | BO57: 74.81687 | BP57: 3.562923 | BQ57: =BP57/BL57*100 -> 5.218456364 | BR57: 51.5134 | BS57: =IF(BW57>50,"**",IF(BW57>25,"*","")) ->  | BT57: 44.22827 | BU57: 58.73477 | BV57: 3.726838 | BW57: =BV57/BR57*100 -> 7.234696215 | BX57: 26.36196 | BY57: =IF(CC57>50,"**",IF(CC57>25,"*","")) ->  | BZ57: 19.4776 | CA57: 34.63303 | CB57: 3.882718 | CC57: =CB57/BX57*100 -> 14.72848756 | CD57: 18.80932 | CE57: =IF(CI57>50,"**",IF(CI57>25,"*","")) ->  | CF57: 13.5101 | CG57: 25.57254 | CH57: 3.070919 | CI57: =CH57/CD57*100 -> 16.32658172 | CJ57: 14.62 | CK57: =IF(CO57>50,"**",IF(CO57>25,"*","")) ->  | CL57: 9.67 | CM57: 21.51 | CN57: 2.99 | CO57: =CN57/CJ57*100 -> 20.45143639 | CP57: 28.21177 | CQ57: =IF(CU57>50,"**",IF(CU57>25,"*","")) ->  | CR57: 21.80081 | CS57: 35.64856 | CT57: 3.547583 | CU57: =CT57/CP57*100 -> 12.57483313 | CW57: 34.55168 | CX57: =IF(DB57>50,"**",IF(DB57>25,"*","")) ->  | CY57: 28.37801 | CZ57: 41.29409 | DA57: 3.311011 | DB57: =DA57/CW57*100 -> 9.582778609 | DC57: 24.78203 | DD57: =IF(DH57>50,"**",IF(DH57>25,"*","")) ->  | DE57: 21.09292 | DF57: 28.88021 | DG57: 1.988245 | DH57: =DG57/DC57*100 -> 8.022930325 | DI57: 26.87468 | DJ57: =IF(DN57>50,"**",IF(DN57>25,"*","")) ->  | DK57: 20.56907 | DL57: 34.27911 | DM57: 3.510354 | DN57: =DM57/DI57*100 -> 13.06193785 | DO57: 9.624613 | DP57: =IF(DT57>50,"**",IF(DT57>25,"*","")) ->  | DQ57: 7.072489 | DR57: 12.96915 | DS57: 1.490925 | DT57: =DS57/DO57*100 -> 15.49075272 | DU57: 5.464098 | DV57: =IF(DZ57>50,"**",IF(DZ57>25,"*","")) ->  | DW57: 3.934362 | DX57: 7.541923 | DY57: 0.9079123 | DZ57: =DY57/DU57*100 -> 16.6159593 | EA57: 8.361214 | EB57: =IF(EF57>50,"**",IF(EF57>25,"*","")) ->  | EC57: 6.476069 | ED57: 10.73214 | EE57: 1.078356 | EF57: =EE57/EA57*100 -> 12.89712236 | EG57: 5.928947 | EH57: =IF(EL57>50,"**",IF(EL57>25,"*","")) ->  | EI57: 3.995897 | EJ57: 8.712264 | EK57: 1.180683 | EL57: =EK57/EG57*100 -> 19.91387341 | EM57: 2.914003 | EN57: =IF(ER57>50,"**",IF(ER57>25,"*","")) ->  | EO57: 1.946204 | EP57: 4.341755 | EQ57: 0.5969359 | ER57: =EQ57/EM57*100 -> 20.48508186 | ES57: 35.95479 | ET57: =IF(EX57>50,"**",IF(EX57>25,"*","")) ->  | EU57: 30.04763 | EV57: 42.32068 | EW57: 3.145102 | EX57: =EW57/ES57*100 -> 8.747379695 | EZ57: 55.3583 | FA57: =IF(FE57>50,"**",IF(FE57>25,"*","")) ->  | FB57: 48.32936 | FC57: 62.17933 | FD57: 3.555676 | FE57: =FD57/EZ57*100 -> 6.423022383 | FF57: 77.98144 | FG57: =IF(FK57>50,"**",IF(FK57>25,"*","")) ->  | FH57: 70.40984 | FI57: 84.05436 | FJ57: 3.483894 | FK57: =FJ57/FF57*100 -> 4.467593827 | FL57: 54.86742 | FM57: =IF(FQ57>50,"**",IF(FQ57>25,"*","")) ->  | FN57: 47.39625 | FO57: 62.12542 | FP57: 3.784639 | FQ57: =FP57/FL57*100 -> 6.897789253 | FR57: 63.71224 | FS57: =IF(FW57>50,"**",IF(FW57>25,"*","")) ->  | FT57: 55.76323 | FU57: 70.97631 | FV57: 3.908149 | FW57: =FV57/FR57*100 -> 6.134063094 | FX57: 49.66182 | FY57: =IF(GC57>50,"**",IF(GC57>25,"*","")) ->  | FZ57: 43.41588 | GA57: 55.91834 | GB57: 3.20607 | GC57: =GB57/FX57*100 -> 6.455804479 | GD57: 87.90624 | GE57: =IF(GI57>50,"**",IF(GI57>25,"*","")) ->  | GF57: 80.11438 | GG57: 92.91499 | GH57: 3.200494 | GI57: =GH57/GD57*100 -> 3.640804111 | GJ57: 17.66171 | GK57: =IF(GO57>50,"**",IF(GO57>25,"*","")) ->  | GL57: 13.30763 | GM57: 23.06141 | GN57: 2.482474 | GO57: =GN57/GJ57*100 -> 14.05568317
